Workbook

Sheet Information
A1: Forecast Repex Model - 2015 Model
A3: Purpose
A4: Utilise 2015 age profile for various asset classes, with calibrated standard lives and unit costs to determine a replacement expenditure forecast (forecast repex model)
A5: Please refer to the Non-Load Driven Network Capital Expenditure Forecasting Methodology, Appendix 5.05 of Powerlink's Revenue Proposal.
A7: Context
A8: This workbook has as inputs:
A9: * Adjusted age profiles as at the end of FY 2015 that is reflective of future replacement need (from the Age profile calculation workbooks, used in the "Asset data" worksheet).
A10: * Calibrated standard lives, (from the calibration [2010] repex model), used in the "Input Data" worksheet
A11: * Population data [towers and secondary systems], (from the age profile calculation workbooks, used in the "Input Data" worksheet).
A12: * Unit costs are input in the "Asset data" worksheet (column F).
A14: The outputs of the workbook are on "Results_Output", which are used in the Capex Model. This worksheet calculates capitalisation schedules (based off incurred replacement schedules).
A15: Output from the tower capitalisation program (reflecting the capitalisation in built sections) is also used in the Results_Output worksheet.

Sheet Input Data
B2: Input Data
B4: Switchgear | G4: Towers
B5: Calibrated Standard Life
B6: Quantity | C6: Value | D6: Source | G6: Quantity | H6: Value | I6: Source
B7: CB | C7: 34.18634124 | D7: Calibration (2010) repex model | G7: Inputs
B8: Isol / ES | C8: 39.82880706 | D8: Calibration (2010) repex model | G8: Tower Fleet Refit Timing (Offset from Rebuild) | H8: -5 | I8: Powerlink Analysis
B9: VT | C9: 34.59472923 | D9: Calibration (2010) repex model
B10: CT | C10: 33.18087017 | D10: Calibration (2010) repex model | G10: Output Calculations
G11: Tower Rebuild Calibrated Offset Standard Life - Zone B | H11: 71.44576873 | I11: Calibration (2010) repex model
G12: Tower Rebuild Calibrated Offset Standard Life - Zone C | H12: 57.91722577 | I12: Calibration (2010) repex model
G13: Tower Rebuild Calibrated Offset Standard Life - Zone DEF | H13: 40.3369029 | I13: Calibration (2010) repex model
B14: Buildings and Infrastructure
B15: Calibrated Standard Life | G15: Tower Refit Calibrated Offset Standard Life - Zone B | H15: =H11+H$8 -> 66.44576873 | I15: Calculation
B16: Quantity | C16: Value | D16: Source | G16: Tower Refit Calibrated Offset Standard Life - Zone C | H16: =H12+H$8 -> 52.91722577 | I16: Calculation
B17: Substation Building (ex Amenities, ex workshops, SVC buildings) | C17: 34.3443597 | D17: Calibration (2010) repex model | G17: Tower Refit Calibrated Offset Standard Life - Zone DEF | H17: 35.3369029 | I17: Calculation
B18: Communications Buildings | C18: 42.33184942 | D18: Calibration (2010) repex model
B19: Substation Infrastructure | C19: 50.55529469 | D19: Calibration (2010) repex model | G19: Tower Allowances
G20: Quantity | H20: Value | I20: Source
G21: Towers replaced per year for substation rebuild | H21: 4.6 | I21: Tower Calibration Quantity Sheet
G22: Allocation of Towers maintained under opex (per year) | H22: 18.4 | I22: Tower Calibration Quantity Sheet
B23: Secondary Systems and Telecommunications
B24: Calibrated Standard Life
B25: Quantity | C25: Value | D25: Source
B26: Secondary Systems (Bay and Non Bay), excludes SVC, selected nonbay, metering | C26: 20.23361768 | D26: Calibration (2010) repex model
B27: Telecommunications Systems | C27: 10.67924894 | D27: Calibration (2010) repex model
B29: Calculation of Metering Replacement Rate
B30: Sec Sys - (Bay and Non-Bay) | C30: =1243+111 -> 1354 | D30: 2015 Population Data
B31: Sec Sys - Metering | C31: 293 | D31: 2015 Population Data
B33: Ratio of (metering):(Bay+Nonbay) | C33: =C31/C30 -> 0.2163958641 | D33: Calculation

Sheet Asset data
A1: Meth all | D1: 2 | E1: =IF(D1=2,"all normal",IF(D1=1,"all deterministic","individual")) -> all normal | L1: Profile type: | M1: 3 | N1: =VLOOKUP(APtype,IDtable,4) -> Installation date
F3: Unit | J3: Quantities | CX3: Replacement Cost (NOT depreciated)
F4: Cost | G4: Replacement life | I4: Rep | J4: =VLOOKUP(APtype,IDtable,4) -> Installation date | CX4: =VLOOKUP(APtype,IDtable,4) -> Installation date
A5: ID | B5: ID | C5: ID | D5: Asset category | E5: Asset ID | F5: $ ('000) | G5: mean | H5: SD | I5: Meth | J5: =IF(OR(APtype=1,APtype=2),0,IF(APtype=3,Now,9999)) -> 2015 | K5: =IF(OR(APtype=1,APtype=2),J5+1,IF(APtype=3,J5-1,9999)) -> 2014 | L5: 2013 | M5: 2012 | N5: 2011 | O5: 2010 | P5: 2009 | Q5: 2008 | R5: 2007 | S5: 2006 | T5: 2005 | U5: 2004 | V5: 2003 | W5: 2002 | X5: 2001 | Y5: 2000 | Z5: 1999 | AA5: 1998 | AB5: 1997 | AC5: 1996 | AD5: 1995 | AE5: 1994 | AF5: 1993 | AG5: 1992 | AH5: 1991 | AI5: 1990 | AJ5: 1989 | AK5: 1988 | AL5: 1987 | AM5: 1986 | AN5: 1985 | AO5: 1984 | AP5: 1983 | AQ5: =IF(OR(APtype=1,APtype=2),AP5+1,IF(APtype=3,AP5-1,9999)) -> 1982 | AR5: 1981 | AS5: 1980 | AT5: 1979 | AU5: 1978 | AV5: 1977 | AW5: 1976 | AX5: 1975 | AY5: 1974 | AZ5: 1973 | BA5: 1972 | BB5: 1971 | BC5: 1970 | BD5: 1969 | BE5: 1968 | BF5: 1967 | BG5: 1966 | BH5: 1965 | BI5: 1964 | BJ5: 1963 | BK5: 1962 | BL5: 1961 | BM5: 1960 | BN5: 1959 | BO5: 1958 | BP5: 1957 | BQ5: 1956 | BR5: 1955 | BS5: 1954 | BT5: 1953 | BU5: 1952 | BV5: 1951 | BW5: =IF(OR(APtype=1,APtype=2),BV5+1,IF(APtype=3,BV5-1,9999)) -> 1950 | BX5: 1949 | BY5: 1948 | BZ5: 1947 | CA5: 1946 | CB5: 1945 | CC5: 1944 | CD5: 1943 | CE5: 1942 | CF5: 1941 | CG5: 1940 | CH5: 1939 | CI5: 1938 | CJ5: 1937 | CK5: 1936 | CL5: 1935 | CM5: 1934 | CN5: 1933 | CO5: 1932 | CP5: 1931 | CQ5: 1930 | CR5: 1929 | CS5: 1928 | CT5: 1927 | CU5: 1926 | CV5: 1925 | CX5: =J5 -> 2015 | CY5: =K5 -> 2014 | CZ5: 2013 | DA5: 2012 | DB5: 2011 | DC5: 2010 | DD5: 2009 | DE5: 2008 | DF5: 2007 | DG5: 2006 | DH5: 2005 | DI5: 2004 | DJ5: 2003 | DK5: 2002 | DL5: 2001 | DM5: 2000 | DN5: 1999 | DO5: 1998 | DP5: 1997 | DQ5: 1996 | DR5: 1995 | DS5: 1994 | DT5: 1993 | DU5: 1992 | DV5: 1991 | DW5: 1990 | DX5: 1989 | DY5: 1988 | DZ5: 1987 | EA5: 1986 | EB5: 1985 | EC5: 1984 | ED5: 1983 | EE5: 1982 | EF5: 1981 | EG5: 1980 | EH5: 1979 | EI5: 1978 | EJ5: 1977 | EK5: 1976 | EL5: 1975 | EM5: 1974 | EN5: 1973 | EO5: 1972 | EP5: 1971 | EQ5: 1970 | ER5: 1969 | ES5: 1968 | ET5: 1967 | EU5: 1966 | EV5: 1965 | EW5: 1964 | EX5: 1963 | EY5: 1962 | EZ5: 1961 | FA5: 1960 | FB5: 1959 | FC5: 1958 | FD5: 1957 | FE5: 1956 | FF5: 1955 | FG5: 1954 | FH5: 1953 | FI5: 1952 | FJ5: 1951 | FK5: =BW5 -> 1950 | FL5: 1949 | FM5: 1948 | FN5: 1947 | FO5: 1946 | FP5: 1945 | FQ5: 1944 | FR5: 1943 | FS5: 1942 | FT5: 1941 | FU5: 1940 | FV5: 1939 | FW5: 1938 | FX5: 1937 | FY5: 1936 | FZ5: 1935 | GA5: 1934 | GB5: 1933 | GC5: 1932 | GD5: 1931 | GE5: 1930 | GF5: 1929 | GG5: 1928 | GH5: 1927 | GI5: 1926 | GJ5: 1925
A21: 1 | D21: =IF(A21>0,VLOOKUP(A21,IDtable,2),"") -> Towers (Grillage - Rebuild), by Corrosion Zone; Highest Operating Voltage; Circuit Configuration | E21: TowerRebuild_ZoneC_132_SC_Grillage | F21: 0.01 | G21: =TowerRebuildStdLife_C -> 57.91722577 | H21: =SQRT(G21) -> 7.610336771 | I21: 2 | J21: 0 | K21: 0 | L21: 0 | M21: 0 | N21: 0 | O21: 0 | P21: 0 | Q21: 0 | R21: 0 | S21: 0 | T21: 0 | U21: 0 | V21: 0 | W21: 0 | X21: 0 | Y21: 0 | Z21: 0 | AA21: 0 | AB21: 0 | AC21: 0 | AD21: 0 | AE21: 0 | AF21: 0 | AG21: 0 | AH21: 0 | AI21: 0 | AJ21: 0 | AK21: 0 | AL21: 0 | AM21: 0 | AN21: 0 | AO21: 0 | AP21: 0 | AQ21: 0 | AR21: 0 | AS21: 0 | AT21: 0 | AU21: 1 | AV21: 0 | AW21: 0 | AX21: 0 | AY21: 0 | AZ21: 0 | BA21: 0 | BB21: 0 | BC21: 0 | BD21: 0 | BE21: 0 | BF21: 0 | BG21: 0 | BH21: 0 | BI21: 0 | BJ21: 2 | BK21: 0 | BL21: 0 | BM21: 0 | BN21: 0 | BO21: 0 | BP21: 0 | BQ21: 0 | BR21: 0 | BS21: 0 | BT21: 0 | BU21: 0 | BV21: 0 | BW21: 0 | BX21: 0 | BY21: 0 | BZ21: 0 | CA21: 0 | CB21: 0 | CC21: 0 | CD21: 0 | CE21: 0 | CF21: 0 | CG21: 0 | CH21: 0 | CI21: 0 | CJ21: 0 | CK21: 0 | CL21: 0 | CM21: 0 | CN21: 0 | CO21: 0 | CP21: 0 | CQ21: 0 | CR21: 0 | CS21: 0 | CT21: 0 | CU21: 0 | CV21: 0 | CX21: =$F21*J21 -> 0 | CY21: =$F21*K21 -> 0 | CZ21: =$F21*L21 -> 0 | DA21: =$F21*M21 -> 0 | DB21: =$F21*N21 -> 0 | DC21: =$F21*O21 -> 0 | DD21: =$F21*P21 -> 0 | DE21: =$F21*Q21 -> 0 | DF21: =$F21*R21 -> 0 | DG21: =$F21*S21 -> 0 | DH21: 0 | DI21: 0 | DJ21: 0 | DK21: 0 | DL21: 0 | DM21: 0 | DN21: 0 | DO21: 0 | DP21: 0 | DQ21: 0 | DR21: 0 | DS21: 0 | DT21: 0 | DU21: 0 | DV21: 0 | DW21: 0 | DX21: 0 | DY21: 0 | DZ21: 0 | EA21: 0 | EB21: 0 | EC21: 0 | ED21: 0 | EE21: 0 | EF21: 0 | EG21: 0 | EH21: 0 | EI21: 0.01 | EJ21: 0 | EK21: 0 | EL21: 0 | EM21: 0 | EN21: 0 | EO21: 0 | EP21: 0 | EQ21: 0 | ER21: 0 | ES21: 0 | ET21: 0 | EU21: 0 | EV21: 0 | EW21: 0 | EX21: 0.02 | EY21: 0 | EZ21: 0 | FA21: 0 | FB21: 0 | FC21: 0 | FD21: 0 | FE21: 0 | FF21: 0 | FG21: 0 | FH21: 0 | FI21: 0 | FJ21: 0 | FK21: =$F21*BW21 -> 0 | FL21: 0 | FM21: 0 | FN21: 0 | FO21: 0 | FP21: 0 | FQ21: 0 | FR21: 0 | FS21: 0 | FT21: 0 | FU21: 0 | FV21: 0 | FW21: 0 | FX21: 0 | FY21: 0 | FZ21: 0 | GA21: 0 | GB21: 0 | GC21: 0 | GD21: 0 | GE21: 0 | GF21: 0 | GG21: 0 | GH21: 0 | GI21: 0 | GJ21: 0
A22: 1 | D22: Towers (Grillage - Rebuild), by Corrosion Zone; Highest Operating Voltage; Circuit Configuration | E22: TowerRebuild_ZoneB_132_MC_Grillage | F22: 0.01 | G22: =TowerRebuildStdLife_B -> 71.44576873 | H22: =SQRT(G22) -> 8.452559892 | I22: 2 | J22: 0 | K22: 0 | L22: 0 | M22: 0 | N22: 0 | O22: 0 | P22: 0 | Q22: 0 | R22: 0 | S22: 0 | T22: 0 | U22: 0 | V22: 0 | W22: 0 | X22: 0 | Y22: 0 | Z22: 0 | AA22: 0 | AB22: 0 | AC22: 0 | AD22: 0 | AE22: 0 | AF22: 0 | AG22: 0 | AH22: 0 | AI22: 0 | AJ22: 0 | AK22: 0 | AL22: 0 | AM22: 0 | AN22: 0 | AO22: 0 | AP22: 0 | AQ22: 0 | AR22: 0 | AS22: 0 | AT22: 0 | AU22: 0 | AV22: 0 | AW22: 0 | AX22: 0 | AY22: 0 | AZ22: 0 | BA22: 0 | BB22: 0 | BC22: 0 | BD22: 0 | BE22: 0 | BF22: 0 | BG22: 0 | BH22: 0 | BI22: 0 | BJ22: 44 | BK22: 0 | BL22: 0 | BM22: 0 | BN22: 0 | BO22: 0 | BP22: 0 | BQ22: 0 | BR22: 0 | BS22: 0 | BT22: 0 | BU22: 0 | BV22: 0 | BW22: 0 | BX22: 0 | BY22: 0 | BZ22: 0 | CA22: 0 | CB22: 0 | CC22: 0 | CD22: 0 | CE22: 0 | CF22: 0 | CG22: 0 | CH22: 0 | CI22: 0 | CJ22: 0 | CK22: 0 | CL22: 0 | CM22: 0 | CN22: 0 | CO22: 0 | CP22: 0 | CQ22: 0 | CR22: 0 | CS22: 0 | CT22: 0 | CU22: 0 | CV22: 0 | CX22: 0 | CY22: 0 | CZ22: 0 | DA22: 0 | DB22: 0 | DC22: 0 | DD22: 0 | DE22: 0 | DF22: 0 | DG22: =$F22*S22 -> 0 | DH22: =$F22*T22 -> 0 | DI22: =$F22*U22 -> 0 | DJ22: =$F22*V22 -> 0 | DK22: =$F22*W22 -> 0 | DL22: =$F22*X22 -> 0 | DM22: =$F22*Y22 -> 0 | DN22: =$F22*Z22 -> 0 | DO22: =$F22*AA22 -> 0 | DP22: =$F22*AB22 -> 0 | DQ22: =$F22*AC22 -> 0 | DR22: =$F22*AD22 -> 0 | DS22: =$F22*AE22 -> 0 | DT22: =$F22*AF22 -> 0 | DU22: =$F22*AG22 -> 0 | DV22: =$F22*AH22 -> 0 | DW22: =$F22*AI22 -> 0 | DX22: =$F22*AJ22 -> 0 | DY22: =$F22*AK22 -> 0 | DZ22: =$F22*AL22 -> 0 | EA22: =$F22*AM22 -> 0 | EB22: =$F22*AN22 -> 0 | EC22: =$F22*AO22 -> 0 | ED22: =$F22*AP22 -> 0 | EE22: =$F22*AQ22 -> 0 | EF22: =$F22*AR22 -> 0 | EG22: =$F22*AS22 -> 0 | EH22: =$F22*AT22 -> 0 | EI22: =$F22*AU22 -> 0 | EJ22: =$F22*AV22 -> 0 | EK22: =$F22*AW22 -> 0 | EL22: =$F22*AX22 -> 0 | EM22: =$F22*AY22 -> 0 | EN22: =$F22*AZ22 -> 0 | EO22: =$F22*BA22 -> 0 | EP22: =$F22*BB22 -> 0 | EQ22: =$F22*BC22 -> 0 | ER22: =$F22*BD22 -> 0 | ES22: =$F22*BE22 -> 0 | ET22: =$F22*BF22 -> 0 | EU22: =$F22*BG22 -> 0 | EV22: =$F22*BH22 -> 0 | EW22: =$F22*BI22 -> 0 | EX22: =$F22*BJ22 -> 0.44 | EY22: =$F22*BK22 -> 0 | EZ22: =$F22*BL22 -> 0 | FA22: =$F22*BM22 -> 0 | FB22: =$F22*BN22 -> 0 | FC22: =$F22*BO22 -> 0 | FD22: =$F22*BP22 -> 0 | FE22: =$F22*BQ22 -> 0 | FF22: =$F22*BR22 -> 0 | FG22: =$F22*BS22 -> 0 | FH22: =$F22*BT22 -> 0 | FI22: =$F22*BU22 -> 0 | FJ22: =$F22*BV22 -> 0 | FK22: =$F22*BW22 -> 0 | FL22: =$F22*BX22 -> 0 | FM22: =$F22*BY22 -> 0 | FN22: =$F22*BZ22 -> 0 | FO22: =$F22*CA22 -> 0 | FP22: =$F22*CB22 -> 0 | FQ22: =$F22*CC22 -> 0 | FR22: =$F22*CD22 -> 0 | FS22: =$F22*CE22 -> 0 | FT22: =$F22*CF22 -> 0 | FU22: =$F22*CG22 -> 0 | FV22: =$F22*CH22 -> 0 | FW22: =$F22*CI22 -> 0 | FX22: =$F22*CJ22 -> 0 | FY22: =$F22*CK22 -> 0 | FZ22: =$F22*CL22 -> 0 | GA22: =$F22*CM22 -> 0 | GB22: =$F22*CN22 -> 0 | GC22: =$F22*CO22 -> 0 | GD22: =$F22*CP22 -> 0 | GE22: =$F22*CQ22 -> 0 | GF22: =$F22*CR22 -> 0 | GG22: =$F22*CS22 -> 0 | GH22: =$F22*CT22 -> 0 | GI22: =$F22*CU22 -> 0 | GJ22: =$F22*CV22 -> 0
A23: 1 | D23: Towers (Grillage - Rebuild), by Corrosion Zone; Highest Operating Voltage; Circuit Configuration | E23: TowerRebuild_ZoneC_132_MC_Grillage | F23: 0.01 | G23: =TowerRebuildStdLife_C -> 57.91722577 | H23: 7.610336771 | I23: 2 | J23: 0 | K23: 0 | L23: 0 | M23: 0 | N23: 0 | O23: 0 | P23: 0 | Q23: 0 | R23: 0 | S23: 0 | T23: 0 | U23: 0 | V23: 0 | W23: 0 | X23: 0 | Y23: 0 | Z23: 0 | AA23: 0 | AB23: 0 | AC23: 0 | AD23: 0 | AE23: 0 | AF23: 0 | AG23: 0 | AH23: 0 | AI23: 0 | AJ23: 0 | AK23: 0 | AL23: 0 | AM23: 0 | AN23: 0 | AO23: 0 | AP23: 0 | AQ23: 0 | AR23: 0 | AS23: 0 | AT23: 0 | AU23: 0 | AV23: 0 | AW23: 0 | AX23: 0 | AY23: 0 | AZ23: 0 | BA23: 0 | BB23: 0 | BC23: 0 | BD23: 0 | BE23: 0 | BF23: 0 | BG23: 0 | BH23: 127 | BI23: 0 | BJ23: 14 | BK23: 0 | BL23: 0 | BM23: 0 | BN23: 10 | BO23: 0 | BP23: 0 | BQ23: 0 | BR23: 0 | BS23: 0 | BT23: 0 | BU23: 0 | BV23: 0 | BW23: 0 | BX23: 0 | BY23: 0 | BZ23: 0 | CA23: 0 | CB23: 0 | CC23: 0 | CD23: 0 | CE23: 0 | CF23: 0 | CG23: 0 | CH23: 0 | CI23: 0 | CJ23: 0 | CK23: 0 | CL23: 0 | CM23: 0 | CN23: 0 | CO23: 0 | CP23: 0 | CQ23: 0 | CR23: 0 | CS23: 0 | CT23: 0 | CU23: 0 | CV23: 0 | CX23: 0 | CY23: 0 | CZ23: 0 | DA23: 0 | DB23: 0 | DC23: 0 | DD23: 0 | DE23: 0 | DF23: 0 | DG23: 0 | DH23: 0 | DI23: 0 | DJ23: 0 | DK23: 0 | DL23: 0 | DM23: 0 | DN23: 0 | DO23: 0 | DP23: 0 | DQ23: 0 | DR23: 0 | DS23: 0 | DT23: 0 | DU23: 0 | DV23: 0 | DW23: 0 | DX23: 0 | DY23: 0 | DZ23: 0 | EA23: 0 | EB23: 0 | EC23: 0 | ED23: 0 | EE23: 0 | EF23: 0 | EG23: 0 | EH23: 0 | EI23: 0 | EJ23: 0 | EK23: 0 | EL23: 0 | EM23: 0 | EN23: 0 | EO23: 0 | EP23: 0 | EQ23: 0 | ER23: 0 | ES23: 0 | ET23: 0 | EU23: 0 | EV23: 1.27 | EW23: 0 | EX23: 0.14 | EY23: 0 | EZ23: 0 | FA23: 0 | FB23: 0.1 | FC23: 0 | FD23: 0 | FE23: 0 | FF23: 0 | FG23: 0 | FH23: 0 | FI23: 0 | FJ23: 0 | FK23: 0 | FL23: 0 | FM23: 0 | FN23: 0 | FO23: 0 | FP23: 0 | FQ23: 0 | FR23: 0 | FS23: 0 | FT23: 0 | FU23: 0 | FV23: 0 | FW23: 0 | FX23: 0 | FY23: 0 | FZ23: 0 | GA23: 0 | GB23: 0 | GC23: 0 | GD23: 0 | GE23: 0 | GF23: 0 | GG23: 0 | GH23: 0 | GI23: 0 | GJ23: 0
A24: 2 | D24: Towers (Non-Grillage - Refit), by Corrosion Zone; Highest Operating Voltage; Circuit Configuration | E24: TowerRefit_ZoneB_132_SC_NonGrillage | F24: 0.01 | G24: =TowerRefitStdLife_B -> 66.44576873 | H24: 8.151427404 | I24: 2 | J24: 0 | K24: 11 | L24: 2 | M24: 9 | N24: 16 | O24: 0 | P24: 8 | Q24: 2 | R24: 11 | S24: 2 | T24: 0 | U24: 0 | V24: 1 | W24: 0 | X24: 0 | Y24: 0 | Z24: 0 | AA24: 0 | AB24: 0 | AC24: 0 | AD24: 0 | AE24: 0 | AF24: 16 | AG24: 0 | AH24: 0 | AI24: 0 | AJ24: 0 | AK24: 201 | AL24: 0 | AM24: 0 | AN24: 0 | AO24: 0 | AP24: 0 | AQ24: 0 | AR24: 0 | AS24: 0 | AT24: 0 | AU24: 0 | AV24: 127 | AW24: 0 | AX24: 0 | AY24: 4 | AZ24: 0 | BA24: 0 | BB24: 0 | BC24: 0 | BD24: 193 | BE24: 0 | BF24: 0 | BG24: 0 | BH24: 0 | BI24: 0 | BJ24: 0 | BK24: 0 | BL24: 0 | BM24: 0 | BN24: 0 | BO24: 0 | BP24: 0 | BQ24: 0 | BR24: 0 | BS24: 0 | BT24: 0 | BU24: 0 | BV24: 0 | BW24: 0 | BX24: 0 | BY24: 0 | BZ24: 0 | CA24: 0 | CB24: 0 | CC24: 0 | CD24: 0 | CE24: 0 | CF24: 0 | CG24: 0 | CH24: 0 | CI24: 0 | CJ24: 0 | CK24: 0 | CL24: 0 | CM24: 0 | CN24: 0 | CO24: 0 | CP24: 0 | CQ24: 0 | CR24: 0 | CS24: 0 | CT24: 0 | CU24: 0 | CV24: 0 | CX24: 0 | CY24: 0.11 | CZ24: 0.02 | DA24: 0.09 | DB24: 0.16 | DC24: 0 | DD24: 0.08 | DE24: 0.02 | DF24: 0.11 | DG24: 0.02 | DH24: 0 | DI24: 0 | DJ24: 0.01 | DK24: 0 | DL24: 0 | DM24: 0 | DN24: 0 | DO24: 0 | DP24: 0 | DQ24: 0 | DR24: 0 | DS24: 0 | DT24: 0.16 | DU24: 0 | DV24: 0 | DW24: 0 | DX24: 0 | DY24: 2.01 | DZ24: 0 | EA24: 0 | EB24: 0 | EC24: 0 | ED24: 0 | EE24: 0 | EF24: 0 | EG24: 0 | EH24: 0 | EI24: 0 | EJ24: 1.27 | EK24: 0 | EL24: 0 | EM24: 0.04 | EN24: 0 | EO24: 0 | EP24: 0 | EQ24: 0 | ER24: 1.93 | ES24: 0 | ET24: 0 | EU24: 0 | EV24: 0 | EW24: 0 | EX24: 0 | EY24: 0 | EZ24: 0 | FA24: 0 | FB24: 0 | FC24: 0 | FD24: 0 | FE24: 0 | FF24: 0 | FG24: 0 | FH24: 0 | FI24: 0 | FJ24: 0 | FK24: 0 | FL24: 0 | FM24: 0 | FN24: 0 | FO24: 0 | FP24: 0 | FQ24: 0 | FR24: 0 | FS24: 0 | FT24: 0 | FU24: 0 | FV24: 0 | FW24: 0 | FX24: 0 | FY24: 0 | FZ24: 0 | GA24: 0 | GB24: 0 | GC24: 0 | GD24: 0 | GE24: 0 | GF24: 0 | GG24: 0 | GH24: 0 | GI24: 0 | GJ24: 0
A25: 2 | D25: Towers (Non-Grillage - Refit), by Corrosion Zone; Highest Operating Voltage; Circuit Configuration | E25: TowerRefit_ZoneC_132_SC_NonGrillage | F25: 0.01 | G25: =TowerRefitStdLife_C -> 52.91722577 | H25: 7.27442271 | I25: 2 | J25: 6 | K25: 8 | L25: 1 | M25: 5 | N25: 20 | O25: 14 | P25: 181 | Q25: 18 | R25: 89 | S25: 14 | T25: 8 | U25: 0 | V25: 7 | W25: 1 | X25: 1 | Y25: 9 | Z25: 0 | AA25: 0 | AB25: 0 | AC25: 0 | AD25: 0 | AE25: 0 | AF25: 106 | AG25: 5 | AH25: 0 | AI25: 4 | AJ25: 0 | AK25: 32 | AL25: 422 | AM25: 12 | AN25: 1 | AO25: 0 | AP25: 0 | AQ25: 151 | AR25: 144 | AS25: 0 | AT25: 34 | AU25: 24 | AV25: 0 | AW25: 0 | AX25: 0 | AY25: 0 | AZ25: 0 | BA25: 0 | BB25: 0 | BC25: 0 | BD25: 0 | BE25: 0 | BF25: 173 | BG25: 0 | BH25: 1 | BI25: 0 | BJ25: 1 | BK25: 0 | BL25: 0 | BM25: 0 | BN25: 0 | BO25: 0 | BP25: 0 | BQ25: 0 | BR25: 0 | BS25: 0 | BT25: 0 | BU25: 0 | BV25: 0 | BW25: 0 | BX25: 0 | BY25: 0 | BZ25: 0 | CA25: 0 | CB25: 0 | CC25: 0 | CD25: 0 | CE25: 0 | CF25: 0 | CG25: 0 | CH25: 0 | CI25: 0 | CJ25: 0 | CK25: 0 | CL25: 0 | CM25: 0 | CN25: 0 | CO25: 0 | CP25: 0 | CQ25: 0 | CR25: 0 | CS25: 0 | CT25: 0 | CU25: 0 | CV25: 0 | CX25: 0.06 | CY25: 0.08 | CZ25: 0.01 | DA25: 0.05 | DB25: 0.2 | DC25: 0.14 | DD25: 1.81 | DE25: 0.18 | DF25: 0.89 | DG25: 0.14 | DH25: 0.08 | DI25: 0 | DJ25: 0.07 | DK25: 0.01 | DL25: 0.01 | DM25: 0.09 | DN25: 0 | DO25: 0 | DP25: 0 | DQ25: 0 | DR25: 0 | DS25: 0 | DT25: 1.06 | DU25: 0.05 | DV25: 0 | DW25: 0.04 | DX25: 0 | DY25: 0.32 | DZ25: 4.22 | EA25: 0.12 | EB25: 0.01 | EC25: 0 | ED25: 0 | EE25: 1.51 | EF25: 1.44 | EG25: 0 | EH25: 0.34 | EI25: 0.24 | EJ25: 0 | EK25: 0 | EL25: 0 | EM25: 0 | EN25: 0 | EO25: 0 | EP25: 0 | EQ25: 0 | ER25: 0 | ES25: 0 | ET25: 1.73 | EU25: 0 | EV25: 0.01 | EW25: 0 | EX25: 0.01 | EY25: 0 | EZ25: 0 | FA25: 0 | FB25: 0 | FC25: 0 | FD25: 0 | FE25: 0 | FF25: 0 | FG25: 0 | FH25: 0 | FI25: 0 | FJ25: 0 | FK25: 0 | FL25: 0 | FM25: 0 | FN25: 0 | FO25: 0 | FP25: 0 | FQ25: 0 | FR25: 0 | FS25: 0 | FT25: 0 | FU25: 0 | FV25: 0 | FW25: 0 | FX25: 0 | FY25: 0 | FZ25: 0 | GA25: 0 | GB25: 0 | GC25: 0 | GD25: 0 | GE25: 0 | GF25: 0 | GG25: 0 | GH25: 0 | GI25: 0 | GJ25: 0
A26: 2 | D26: Towers (Non-Grillage - Refit), by Corrosion Zone; Highest Operating Voltage; Circuit Configuration | E26: TowerRefit_ZoneD_132_SC_NonGrillage | F26: 0.01 | G26: =TowerRefitStdLife_D -> 35.3369029 | H26: 5.944485083 | I26: 2 | J26: 0 | K26: 1 | L26: 11 | M26: 3 | N26: 3 | O26: 6 | P26: 2 | Q26: 0 | R26: 0 | S26: 0 | T26: 7 | U26: 4 | V26: 0 | W26: 1 | X26: 0 | Y26: 0 | Z26: 0 | AA26: 3 | AB26: 0 | AC26: 0 | AD26: 0 | AE26: 0 | AF26: 0 | AG26: 0 | AH26: 0 | AI26: 0 | AJ26: 0 | AK26: 0 | AL26: 55 | AM26: 0 | AN26: 0 | AO26: 0 | AP26: 0 | AQ26: 0 | AR26: 0 | AS26: 0 | AT26: 0 | AU26: 0 | AV26: 0 | AW26: 0 | AX26: 0 | AY26: 0 | AZ26: 0 | BA26: 0 | BB26: 0 | BC26: 0 | BD26: 0 | BE26: 0 | BF26: 0 | BG26: 0 | BH26: 0 | BI26: 0 | BJ26: 0 | BK26: 0 | BL26: 0 | BM26: 0 | BN26: 0 | BO26: 0 | BP26: 0 | BQ26: 0 | BR26: 0 | BS26: 0 | BT26: 0 | BU26: 0 | BV26: 0 | BW26: 0 | BX26: 0 | BY26: 0 | BZ26: 0 | CA26: 0 | CB26: 0 | CC26: 0 | CD26: 0 | CE26: 0 | CF26: 0 | CG26: 0 | CH26: 0 | CI26: 0 | CJ26: 0 | CK26: 0 | CL26: 0 | CM26: 0 | CN26: 0 | CO26: 0 | CP26: 0 | CQ26: 0 | CR26: 0 | CS26: 0 | CT26: 0 | CU26: 0 | CV26: 0 | CX26: 0 | CY26: 0.01 | CZ26: 0.11 | DA26: 0.03 | DB26: 0.03 | DC26: 0.06 | DD26: 0.02 | DE26: 0 | DF26: 0 | DG26: 0 | DH26: 0.07 | DI26: 0.04 | DJ26: 0 | DK26: 0.01 | DL26: 0 | DM26: 0 | DN26: 0 | DO26: 0.03 | DP26: 0 | DQ26: 0 | DR26: 0 | DS26: 0 | DT26: 0 | DU26: 0 | DV26: 0 | DW26: 0 | DX26: 0 | DY26: 0 | DZ26: 0.55 | EA26: 0 | EB26: 0 | EC26: 0 | ED26: 0 | EE26: 0 | EF26: 0 | EG26: 0 | EH26: 0 | EI26: 0 | EJ26: 0 | EK26: 0 | EL26: 0 | EM26: 0 | EN26: 0 | EO26: 0 | EP26: 0 | EQ26: 0 | ER26: 0 | ES26: 0 | ET26: 0 | EU26: 0 | EV26: 0 | EW26: 0 | EX26: 0 | EY26: 0 | EZ26: 0 | FA26: 0 | FB26: 0 | FC26: 0 | FD26: 0 | FE26: 0 | FF26: 0 | FG26: 0 | FH26: 0 | FI26: 0 | FJ26: 0 | FK26: 0 | FL26: 0 | FM26: 0 | FN26: 0 | FO26: 0 | FP26: 0 | FQ26: 0 | FR26: 0 | FS26: 0 | FT26: 0 | FU26: 0 | FV26: 0 | FW26: 0 | FX26: 0 | FY26: 0 | FZ26: 0 | GA26: 0 | GB26: 0 | GC26: 0 | GD26: 0 | GE26: 0 | GF26: 0 | GG26: 0 | GH26: 0 | GI26: 0 | GJ26: 0
A27: 2 | D27: Towers (Non-Grillage - Refit), by Corrosion Zone; Highest Operating Voltage; Circuit Configuration | E27: TowerRefit_ZoneB_275_SC_NonGrillage | F27: 0.01 | G27: =TowerRefitStdLife_B -> 66.44576873 | H27: 8.151427404 | I27: 2 | J27: 7 | K27: 0 | L27: 0 | M27: 0 | N27: 0 | O27: 0 | P27: 6 | Q27: 6 | R27: 2 | S27: 0 | T27: 0 | U27: 0 | V27: 0 | W27: 0 | X27: 0 | Y27: 0 | Z27: 0 | AA27: 0 | AB27: 0 | AC27: 0 | AD27: 0 | AE27: 0 | AF27: 0 | AG27: 0 | AH27: 0 | AI27: 0 | AJ27: 0 | AK27: 0 | AL27: 0 | AM27: 0 | AN27: 0 | AO27: 0 | AP27: 0 | AQ27: 0 | AR27: 0 | AS27: 0 | AT27: 0 | AU27: 409 | AV27: 0 | AW27: 0 | AX27: 0 | AY27: 0 | AZ27: 0 | BA27: 0 | BB27: 0 | BC27: 0 | BD27: 0 | BE27: 0 | BF27: 0 | BG27: 0 | BH27: 0 | BI27: 0 | BJ27: 0 | BK27: 0 | BL27: 0 | BM27: 0 | BN27: 0 | BO27: 0 | BP27: 0 | BQ27: 0 | BR27: 0 | BS27: 0 | BT27: 0 | BU27: 0 | BV27: 0 | BW27: 0 | BX27: 0 | BY27: 0 | BZ27: 0 | CA27: 0 | CB27: 0 | CC27: 0 | CD27: 0 | CE27: 0 | CF27: 0 | CG27: 0 | CH27: 0 | CI27: 0 | CJ27: 0 | CK27: 0 | CL27: 0 | CM27: 0 | CN27: 0 | CO27: 0 | CP27: 0 | CQ27: 0 | CR27: 0 | CS27: 0 | CT27: 0 | CU27: 0 | CV27: 0 | CX27: 0.07 | CY27: 0 | CZ27: 0 | DA27: 0 | DB27: 0 | DC27: 0 | DD27: 0.06 | DE27: 0.06 | DF27: 0.02 | DG27: 0 | DH27: 0 | DI27: 0 | DJ27: 0 | DK27: 0 | DL27: 0 | DM27: 0 | DN27: 0 | DO27: 0 | DP27: 0 | DQ27: 0 | DR27: 0 | DS27: 0 | DT27: 0 | DU27: 0 | DV27: 0 | DW27: 0 | DX27: 0 | DY27: 0 | DZ27: 0 | EA27: 0 | EB27: 0 | EC27: 0 | ED27: 0 | EE27: 0 | EF27: 0 | EG27: 0 | EH27: 0 | EI27: 4.09 | EJ27: 0 | EK27: 0 | EL27: 0 | EM27: 0 | EN27: 0 | EO27: 0 | EP27: 0 | EQ27: 0 | ER27: 0 | ES27: 0 | ET27: 0 | EU27: 0 | EV27: 0 | EW27: 0 | EX27: 0 | EY27: 0 | EZ27: 0 | FA27: 0 | FB27: 0 | FC27: 0 | FD27: 0 | FE27: 0 | FF27: 0 | FG27: 0 | FH27: 0 | FI27: 0 | FJ27: 0 | FK27: 0 | FL27: 0 | FM27: 0 | FN27: 0 | FO27: 0 | FP27: 0 | FQ27: 0 | FR27: 0 | FS27: 0 | FT27: 0 | FU27: 0 | FV27: 0 | FW27: 0 | FX27: 0 | FY27: 0 | FZ27: 0 | GA27: 0 | GB27: 0 | GC27: 0 | GD27: 0 | GE27: 0 | GF27: 0 | GG27: 0 | GH27: 0 | GI27: 0 | GJ27: 0
A28: 2 | D28: Towers (Non-Grillage - Refit), by Corrosion Zone; Highest Operating Voltage; Circuit Configuration | E28: TowerRefit_ZoneC_275_SC_NonGrillage | F28: 0.01 | G28: =TowerRefitStdLife_C -> 52.91722577 | H28: 7.27442271 | I28: 2 | J28: 0 | K28: 6 | L28: 13 | M28: 3 | N28: 9 | O28: 21 | P28: 11 | Q28: 6 | R28: 10 | S28: 0 | T28: 221 | U28: 42 | V28: 272 | W28: 1 | X28: 2 | Y28: 0 | Z28: 72 | AA28: 2 | AB28: 0 | AC28: 161 | AD28: 150 | AE28: 40 | AF28: 462 | AG28: 0 | AH28: 0 | AI28: 0 | AJ28: 0 | AK28: 114 | AL28: 171 | AM28: 363 | AN28: 598 | AO28: 0 | AP28: 299 | AQ28: 357 | AR28: 1123 | AS28: 213 | AT28: 0 | AU28: 202 | AV28: 560 | AW28: 0 | AX28: 362 | AY28: 0 | AZ28: 298 | BA28: 0 | BB28: 0 | BC28: 0 | BD28: 0 | BE28: 0 | BF28: 0 | BG28: 0 | BH28: 0 | BI28: 0 | BJ28: 0 | BK28: 0 | BL28: 0 | BM28: 0 | BN28: 0 | BO28: 0 | BP28: 0 | BQ28: 0 | BR28: 0 | BS28: 0 | BT28: 0 | BU28: 0 | BV28: 0 | BW28: 0 | BX28: 0 | BY28: 0 | BZ28: 0 | CA28: 0 | CB28: 0 | CC28: 0 | CD28: 0 | CE28: 0 | CF28: 0 | CG28: 0 | CH28: 0 | CI28: 0 | CJ28: 0 | CK28: 0 | CL28: 0 | CM28: 0 | CN28: 0 | CO28: 0 | CP28: 0 | CQ28: 0 | CR28: 0 | CS28: 0 | CT28: 0 | CU28: 0 | CV28: 0 | CX28: 0 | CY28: 0.06 | CZ28: 0.13 | DA28: 0.03 | DB28: 0.09 | DC28: 0.21 | DD28: 0.11 | DE28: 0.06 | DF28: 0.1 | DG28: 0 | DH28: 2.21 | DI28: 0.42 | DJ28: 2.72 | DK28: 0.01 | DL28: 0.02 | DM28: 0 | DN28: 0.72 | DO28: 0.02 | DP28: 0 | DQ28: 1.61 | DR28: 1.5 | DS28: 0.4 | DT28: 4.62 | DU28: 0 | DV28: 0 | DW28: 0 | DX28: 0 | DY28: 1.14 | DZ28: 1.71 | EA28: 3.63 | EB28: 5.98 | EC28: 0 | ED28: 2.99 | EE28: 3.57 | EF28: 11.23 | EG28: 2.13 | EH28: 0 | EI28: 2.02 | EJ28: 5.6 | EK28: 0 | EL28: 3.62 | EM28: 0 | EN28: 2.98 | EO28: 0 | EP28: 0 | EQ28: 0 | ER28: 0 | ES28: 0 | ET28: 0 | EU28: 0 | EV28: 0 | EW28: 0 | EX28: 0 | EY28: 0 | EZ28: 0 | FA28: 0 | FB28: 0 | FC28: 0 | FD28: 0 | FE28: 0 | FF28: 0 | FG28: 0 | FH28: 0 | FI28: 0 | FJ28: 0 | FK28: 0 | FL28: 0 | FM28: 0 | FN28: 0 | FO28: 0 | FP28: 0 | FQ28: 0 | FR28: 0 | FS28: 0 | FT28: 0 | FU28: 0 | FV28: 0 | FW28: 0 | FX28: 0 | FY28: 0 | FZ28: 0 | GA28: 0 | GB28: 0 | GC28: 0 | GD28: 0 | GE28: 0 | GF28: 0 | GG28: 0 | GH28: 0 | GI28: 0 | GJ28: 0
A29: 2 | D29: Towers (Non-Grillage - Refit), by Corrosion Zone; Highest Operating Voltage; Circuit Configuration | E29: TowerRefit_ZoneD_275_SC_NonGrillage | F29: 0.01 | G29: =TowerRefitStdLife_D -> 35.3369029 | H29: 5.944485083 | I29: 2 | J29: 0 | K29: 2 | L29: 3 | M29: 3 | N29: 0 | O29: 0 | P29: 0 | Q29: 0 | R29: 0 | S29: 0 | T29: 0 | U29: 0 | V29: 0 | W29: 0 | X29: 0 | Y29: 0 | Z29: 0 | AA29: 0 | AB29: 0 | AC29: 0 | AD29: 0 | AE29: 0 | AF29: 0 | AG29: 0 | AH29: 17 | AI29: 0 | AJ29: 10 | AK29: 0 | AL29: 0 | AM29: 0 | AN29: 0 | AO29: 0 | AP29: 0 | AQ29: 0 | AR29: 39 | AS29: 4 | AT29: 0 | AU29: 0 | AV29: 220 | AW29: 0 | AX29: 0 | AY29: 0 | AZ29: 361 | BA29: 0 | BB29: 0 | BC29: 0 | BD29: 0 | BE29: 0 | BF29: 0 | BG29: 0 | BH29: 0 | BI29: 0 | BJ29: 0 | BK29: 0 | BL29: 0 | BM29: 0 | BN29: 0 | BO29: 0 | BP29: 0 | BQ29: 0 | BR29: 0 | BS29: 0 | BT29: 0 | BU29: 0 | BV29: 0 | BW29: 0 | BX29: 0 | BY29: 0 | BZ29: 0 | CA29: 0 | CB29: 0 | CC29: 0 | CD29: 0 | CE29: 0 | CF29: 0 | CG29: 0 | CH29: 0 | CI29: 0 | CJ29: 0 | CK29: 0 | CL29: 0 | CM29: 0 | CN29: 0 | CO29: 0 | CP29: 0 | CQ29: 0 | CR29: 0 | CS29: 0 | CT29: 0 | CU29: 0 | CV29: 0 | CX29: 0 | CY29: 0.02 | CZ29: 0.03 | DA29: 0.03 | DB29: 0 | DC29: 0 | DD29: 0 | DE29: 0 | DF29: 0 | DG29: 0 | DH29: 0 | DI29: 0 | DJ29: 0 | DK29: 0 | DL29: 0 | DM29: 0 | DN29: 0 | DO29: 0 | DP29: 0 | DQ29: 0 | DR29: 0 | DS29: 0 | DT29: 0 | DU29: 0 | DV29: 0.17 | DW29: 0 | DX29: 0.1 | DY29: 0 | DZ29: 0 | EA29: 0 | EB29: 0 | EC29: 0 | ED29: 0 | EE29: 0 | EF29: 0.39 | EG29: 0.04 | EH29: 0 | EI29: 0 | EJ29: 2.2 | EK29: 0 | EL29: 0 | EM29: 0 | EN29: 3.61 | EO29: 0 | EP29: 0 | EQ29: 0 | ER29: 0 | ES29: 0 | ET29: 0 | EU29: 0 | EV29: 0 | EW29: 0 | EX29: 0 | EY29: 0 | EZ29: 0 | FA29: 0 | FB29: 0 | FC29: 0 | FD29: 0 | FE29: 0 | FF29: 0 | FG29: 0 | FH29: 0 | FI29: 0 | FJ29: 0 | FK29: 0 | FL29: 0 | FM29: 0 | FN29: 0 | FO29: 0 | FP29: 0 | FQ29: 0 | FR29: 0 | FS29: 0 | FT29: 0 | FU29: 0 | FV29: 0 | FW29: 0 | FX29: 0 | FY29: 0 | FZ29: 0 | GA29: 0 | GB29: 0 | GC29: 0 | GD29: 0 | GE29: 0 | GF29: 0 | GG29: 0 | GH29: 0 | GI29: 0 | GJ29: 0
A30: 2 | D30: Towers (Non-Grillage - Refit), by Corrosion Zone; Highest Operating Voltage; Circuit Configuration | E30: TowerRefit_ZoneB_330_SC_NonGrillage | F30: 0.01 | G30: =TowerRefitStdLife_B -> 66.44576873 | H30: 8.151427404 | I30: 2 | J30: 0 | K30: 0 | L30: 0 | M30: 0 | N30: 0 | O30: 0 | P30: 0 | Q30: 0 | R30: 0 | S30: 0 | T30: 14 | U30: 0 | V30: 0 | W30: 0 | X30: 0 | Y30: 0 | Z30: 0 | AA30: 0 | AB30: 0 | AC30: 0 | AD30: 0 | AE30: 0 | AF30: 0 | AG30: 0 | AH30: 0 | AI30: 0 | AJ30: 0 | AK30: 0 | AL30: 0 | AM30: 0 | AN30: 0 | AO30: 0 | AP30: 0 | AQ30: 0 | AR30: 0 | AS30: 0 | AT30: 0 | AU30: 0 | AV30: 0 | AW30: 0 | AX30: 0 | AY30: 0 | AZ30: 0 | BA30: 0 | BB30: 0 | BC30: 0 | BD30: 0 | BE30: 0 | BF30: 0 | BG30: 0 | BH30: 0 | BI30: 0 | BJ30: 0 | BK30: 0 | BL30: 0 | BM30: 0 | BN30: 0 | BO30: 0 | BP30: 0 | BQ30: 0 | BR30: 0 | BS30: 0 | BT30: 0 | BU30: 0 | BV30: 0 | BW30: 0 | BX30: 0 | BY30: 0 | BZ30: 0 | CA30: 0 | CB30: 0 | CC30: 0 | CD30: 0 | CE30: 0 | CF30: 0 | CG30: 0 | CH30: 0 | CI30: 0 | CJ30: 0 | CK30: 0 | CL30: 0 | CM30: 0 | CN30: 0 | CO30: 0 | CP30: 0 | CQ30: 0 | CR30: 0 | CS30: 0 | CT30: 0 | CU30: 0 | CV30: 0 | CX30: 0 | CY30: 0 | CZ30: 0 | DA30: 0 | DB30: 0 | DC30: 0 | DD30: 0 | DE30: 0 | DF30: 0 | DG30: 0 | DH30: 0.14 | DI30: 0 | DJ30: 0 | DK30: 0 | DL30: 0 | DM30: 0 | DN30: 0 | DO30: 0 | DP30: 0 | DQ30: 0 | DR30: 0 | DS30: 0 | DT30: 0 | DU30: 0 | DV30: 0 | DW30: 0 | DX30: 0 | DY30: 0 | DZ30: 0 | EA30: 0 | EB30: 0 | EC30: 0 | ED30: 0 | EE30: 0 | EF30: 0 | EG30: 0 | EH30: 0 | EI30: 0 | EJ30: 0 | EK30: 0 | EL30: 0 | EM30: 0 | EN30: 0 | EO30: 0 | EP30: 0 | EQ30: 0 | ER30: 0 | ES30: 0 | ET30: 0 | EU30: 0 | EV30: 0 | EW30: 0 | EX30: 0 | EY30: 0 | EZ30: 0 | FA30: 0 | FB30: 0 | FC30: 0 | FD30: 0 | FE30: 0 | FF30: 0 | FG30: 0 | FH30: 0 | FI30: 0 | FJ30: 0 | FK30: 0 | FL30: 0 | FM30: 0 | FN30: 0 | FO30: 0 | FP30: 0 | FQ30: 0 | FR30: 0 | FS30: 0 | FT30: 0 | FU30: 0 | FV30: 0 | FW30: 0 | FX30: 0 | FY30: 0 | FZ30: 0 | GA30: 0 | GB30: 0 | GC30: 0 | GD30: 0 | GE30: 0 | GF30: 0 | GG30: 0 | GH30: 0 | GI30: 0 | GJ30: 0
A31: 2 | D31: Towers (Non-Grillage - Refit), by Corrosion Zone; Highest Operating Voltage; Circuit Configuration | E31: TowerRefit_ZoneB_132_MC_NonGrillage | F31: 0.01 | G31: =TowerRefitStdLife_B -> 66.44576873 | H31: 8.151427404 | I31: 2 | J31: 0 | K31: 0 | L31: 0 | M31: 0 | N31: 0 | O31: 0 | P31: 15 | Q31: 1 | R31: 1 | S31: 0 | T31: 0 | U31: 0 | V31: 0 | W31: 0 | X31: 0 | Y31: 0 | Z31: 0 | AA31: 0 | AB31: 0 | AC31: 0 | AD31: 0 | AE31: 0 | AF31: 0 | AG31: 0 | AH31: 0 | AI31: 0 | AJ31: 0 | AK31: 0 | AL31: 0 | AM31: 2 | AN31: 0 | AO31: 0 | AP31: 0 | AQ31: 0 | AR31: 0 | AS31: 0 | AT31: 2 | AU31: 0 | AV31: 0 | AW31: 0 | AX31: 0 | AY31: 205 | AZ31: 0 | BA31: 0 | BB31: 390 | BC31: 0 | BD31: 3 | BE31: 338 | BF31: 0 | BG31: 33 | BH31: 0 | BI31: 0 | BJ31: 12 | BK31: 0 | BL31: 0 | BM31: 0 | BN31: 0 | BO31: 0 | BP31: 0 | BQ31: 0 | BR31: 0 | BS31: 0 | BT31: 0 | BU31: 0 | BV31: 0 | BW31: 0 | BX31: 0 | BY31: 0 | BZ31: 0 | CA31: 0 | CB31: 0 | CC31: 0 | CD31: 0 | CE31: 0 | CF31: 0 | CG31: 0 | CH31: 0 | CI31: 0 | CJ31: 0 | CK31: 0 | CL31: 0 | CM31: 0 | CN31: 0 | CO31: 0 | CP31: 0 | CQ31: 0 | CR31: 0 | CS31: 0 | CT31: 0 | CU31: 0 | CV31: 0 | CX31: 0 | CY31: 0 | CZ31: 0 | DA31: 0 | DB31: 0 | DC31: 0 | DD31: 0.15 | DE31: 0.01 | DF31: 0.01 | DG31: 0 | DH31: 0 | DI31: 0 | DJ31: 0 | DK31: 0 | DL31: 0 | DM31: 0 | DN31: 0 | DO31: 0 | DP31: 0 | DQ31: 0 | DR31: 0 | DS31: 0 | DT31: 0 | DU31: 0 | DV31: 0 | DW31: 0 | DX31: 0 | DY31: 0 | DZ31: 0 | EA31: 0.02 | EB31: 0 | EC31: 0 | ED31: 0 | EE31: 0 | EF31: 0 | EG31: 0 | EH31: 0.02 | EI31: 0 | EJ31: 0 | EK31: 0 | EL31: 0 | EM31: 2.05 | EN31: 0 | EO31: 0 | EP31: 3.9 | EQ31: 0 | ER31: 0.03 | ES31: 3.38 | ET31: 0 | EU31: 0.33 | EV31: 0 | EW31: 0 | EX31: 0.12 | EY31: 0 | EZ31: 0 | FA31: 0 | FB31: 0 | FC31: 0 | FD31: 0 | FE31: 0 | FF31: 0 | FG31: 0 | FH31: 0 | FI31: 0 | FJ31: 0 | FK31: 0 | FL31: 0 | FM31: 0 | FN31: 0 | FO31: 0 | FP31: 0 | FQ31: 0 | FR31: 0 | FS31: 0 | FT31: 0 | FU31: 0 | FV31: 0 | FW31: 0 | FX31: 0 | FY31: 0 | FZ31: 0 | GA31: 0 | GB31: 0 | GC31: 0 | GD31: 0 | GE31: 0 | GF31: 0 | GG31: 0 | GH31: 0 | GI31: 0 | GJ31: 0
A32: 2 | D32: Towers (Non-Grillage - Refit), by Corrosion Zone; Highest Operating Voltage; Circuit Configuration | E32: TowerRefit_ZoneC_132_MC_NonGrillage | F32: 0.01 | G32: =TowerRefitStdLife_C -> 52.91722577 | H32: 7.27442271 | I32: 2 | J32: 36 | K32: 0 | L32: 0 | M32: 0 | N32: 189 | O32: 105 | P32: 15 | Q32: 186 | R32: 1 | S32: 12 | T32: 7 | U32: 4 | V32: 1 | W32: 1 | X32: 5 | Y32: 207 | Z32: 0 | AA32: 0 | AB32: 31 | AC32: 0 | AD32: 0 | AE32: 0 | AF32: 63 | AG32: 2 | AH32: 0 | AI32: 0 | AJ32: 0 | AK32: 3 | AL32: 120 | AM32: 399 | AN32: 24 | AO32: 0 | AP32: 80 | AQ32: 2 | AR32: 0 | AS32: 0 | AT32: 440 | AU32: 243 | AV32: 141 | AW32: 32 | AX32: 0 | AY32: 0 | AZ32: 0 | BA32: 12 | BB32: 53 | BC32: 11 | BD32: 0 | BE32: 162 | BF32: 27 | BG32: 30 | BH32: 0 | BI32: 10 | BJ32: 95 | BK32: 0 | BL32: 0 | BM32: 0 | BN32: 0 | BO32: 0 | BP32: 0 | BQ32: 0 | BR32: 0 | BS32: 0 | BT32: 0 | BU32: 0 | BV32: 0 | BW32: 0 | BX32: 0 | BY32: 0 | BZ32: 0 | CA32: 0 | CB32: 0 | CC32: 0 | CD32: 0 | CE32: 0 | CF32: 0 | CG32: 0 | CH32: 0 | CI32: 0 | CJ32: 0 | CK32: 0 | CL32: 0 | CM32: 0 | CN32: 0 | CO32: 0 | CP32: 0 | CQ32: 0 | CR32: 0 | CS32: 0 | CT32: 0 | CU32: 0 | CV32: 0 | CX32: 0.36 | CY32: 0 | CZ32: 0 | DA32: 0 | DB32: 1.89 | DC32: 1.05 | DD32: 0.15 | DE32: 1.86 | DF32: 0.01 | DG32: 0.12 | DH32: 0.07 | DI32: 0.04 | DJ32: 0.01 | DK32: 0.01 | DL32: 0.05 | DM32: 2.07 | DN32: 0 | DO32: 0 | DP32: 0.31 | DQ32: 0 | DR32: 0 | DS32: 0 | DT32: 0.63 | DU32: 0.02 | DV32: 0 | DW32: 0 | DX32: 0 | DY32: 0.03 | DZ32: 1.2 | EA32: 3.99 | EB32: 0.24 | EC32: 0 | ED32: 0.8 | EE32: 0.02 | EF32: 0 | EG32: 0 | EH32: 4.4 | EI32: 2.43 | EJ32: 1.41 | EK32: 0.32 | EL32: 0 | EM32: 0 | EN32: 0 | EO32: 0.12 | EP32: 0.53 | EQ32: 0.11 | ER32: 0 | ES32: 1.62 | ET32: 0.27 | EU32: 0.3 | EV32: 0 | EW32: 0.1 | EX32: 0.95 | EY32: 0 | EZ32: 0 | FA32: 0 | FB32: 0 | FC32: 0 | FD32: 0 | FE32: 0 | FF32: 0 | FG32: 0 | FH32: 0 | FI32: 0 | FJ32: 0 | FK32: 0 | FL32: 0 | FM32: 0 | FN32: 0 | FO32: 0 | FP32: 0 | FQ32: 0 | FR32: 0 | FS32: 0 | FT32: 0 | FU32: 0 | FV32: 0 | FW32: 0 | FX32: 0 | FY32: 0 | FZ32: 0 | GA32: 0 | GB32: 0 | GC32: 0 | GD32: 0 | GE32: 0 | GF32: 0 | GG32: 0 | GH32: 0 | GI32: 0 | GJ32: 0
A33: 2 | D33: Towers (Non-Grillage - Refit), by Corrosion Zone; Highest Operating Voltage; Circuit Configuration | E33: TowerRefit_ZoneD_132_MC_NonGrillage | F33: 0.01 | G33: =TowerRefitStdLife_D -> 35.3369029 | H33: 5.944485083 | I33: 2 | J33: 0 | K33: 0 | L33: 11 | M33: 4 | N33: 0 | O33: 35 | P33: 186 | Q33: 253 | R33: 0 | S33: 0 | T33: 17 | U33: 18 | V33: 0 | W33: 0 | X33: 0 | Y33: 0 | Z33: 0 | AA33: 20 | AB33: 0 | AC33: 0 | AD33: 0 | AE33: 0 | AF33: 0 | AG33: 0 | AH33: 0 | AI33: 0 | AJ33: 0 | AK33: 0 | AL33: 19 | AM33: 0 | AN33: 0 | AO33: 0 | AP33: 0 | AQ33: 120 | AR33: 0 | AS33: 0 | AT33: 0 | AU33: 0 | AV33: 77 | AW33: 0 | AX33: 0 | AY33: 0 | AZ33: 0 | BA33: 0 | BB33: 0 | BC33: 0 | BD33: 0 | BE33: 0 | BF33: 0 | BG33: 0 | BH33: 0 | BI33: 0 | BJ33: 0 | BK33: 0 | BL33: 0 | BM33: 0 | BN33: 0 | BO33: 3 | BP33: 0 | BQ33: 0 | BR33: 0 | BS33: 0 | BT33: 0 | BU33: 0 | BV33: 0 | BW33: 0 | BX33: 0 | BY33: 0 | BZ33: 0 | CA33: 0 | CB33: 0 | CC33: 0 | CD33: 0 | CE33: 0 | CF33: 0 | CG33: 0 | CH33: 0 | CI33: 0 | CJ33: 0 | CK33: 0 | CL33: 0 | CM33: 0 | CN33: 0 | CO33: 0 | CP33: 0 | CQ33: 0 | CR33: 0 | CS33: 0 | CT33: 0 | CU33: 0 | CV33: 0 | CX33: 0 | CY33: 0 | CZ33: 0.11 | DA33: 0.04 | DB33: 0 | DC33: 0.35 | DD33: 1.86 | DE33: 2.53 | DF33: 0 | DG33: 0 | DH33: 0.17 | DI33: 0.18 | DJ33: 0 | DK33: 0 | DL33: 0 | DM33: 0 | DN33: 0 | DO33: 0.2 | DP33: 0 | DQ33: 0 | DR33: 0 | DS33: 0 | DT33: 0 | DU33: 0 | DV33: 0 | DW33: 0 | DX33: 0 | DY33: 0 | DZ33: 0.19 | EA33: 0 | EB33: 0 | EC33: 0 | ED33: 0 | EE33: 1.2 | EF33: 0 | EG33: 0 | EH33: 0 | EI33: 0 | EJ33: 0.77 | EK33: 0 | EL33: 0 | EM33: 0 | EN33: 0 | EO33: 0 | EP33: 0 | EQ33: 0 | ER33: 0 | ES33: 0 | ET33: 0 | EU33: 0 | EV33: 0 | EW33: 0 | EX33: 0 | EY33: 0 | EZ33: 0 | FA33: 0 | FB33: 0 | FC33: 0.03 | FD33: 0 | FE33: 0 | FF33: 0 | FG33: 0 | FH33: 0 | FI33: 0 | FJ33: 0 | FK33: 0 | FL33: 0 | FM33: 0 | FN33: 0 | FO33: 0 | FP33: 0 | FQ33: 0 | FR33: 0 | FS33: 0 | FT33: 0 | FU33: 0 | FV33: 0 | FW33: 0 | FX33: 0 | FY33: 0 | FZ33: 0 | GA33: 0 | GB33: 0 | GC33: 0 | GD33: 0 | GE33: 0 | GF33: 0 | GG33: 0 | GH33: 0 | GI33: 0 | GJ33: 0
A34: 2 | D34: Towers (Non-Grillage - Refit), by Corrosion Zone; Highest Operating Voltage; Circuit Configuration | E34: TowerRefit_ZoneB_275_MC_NonGrillage | F34: 0.01 | G34: =TowerRefitStdLife_B -> 66.44576873 | H34: 8.151427404 | I34: 2 | J34: 2 | K34: 0 | L34: 0 | M34: 0 | N34: 0 | O34: 0 | P34: 316 | Q34: 21 | R34: 0 | S34: 0 | T34: 2 | U34: 26 | V34: 0 | W34: 0 | X34: 0 | Y34: 0 | Z34: 0 | AA34: 0 | AB34: 0 | AC34: 0 | AD34: 0 | AE34: 0 | AF34: 0 | AG34: 0 | AH34: 0 | AI34: 0 | AJ34: 0 | AK34: 0 | AL34: 0 | AM34: 0 | AN34: 0 | AO34: 0 | AP34: 0 | AQ34: 0 | AR34: 0 | AS34: 0 | AT34: 0 | AU34: 1 | AV34: 0 | AW34: 0 | AX34: 0 | AY34: 0 | AZ34: 0 | BA34: 75 | BB34: 0 | BC34: 3 | BD34: 0 | BE34: 0 | BF34: 0 | BG34: 0 | BH34: 0 | BI34: 0 | BJ34: 0 | BK34: 0 | BL34: 0 | BM34: 0 | BN34: 0 | BO34: 0 | BP34: 0 | BQ34: 0 | BR34: 0 | BS34: 0 | BT34: 0 | BU34: 0 | BV34: 0 | BW34: 0 | BX34: 0 | BY34: 0 | BZ34: 0 | CA34: 0 | CB34: 0 | CC34: 0 | CD34: 0 | CE34: 0 | CF34: 0 | CG34: 0 | CH34: 0 | CI34: 0 | CJ34: 0 | CK34: 0 | CL34: 0 | CM34: 0 | CN34: 0 | CO34: 0 | CP34: 0 | CQ34: 0 | CR34: 0 | CS34: 0 | CT34: 0 | CU34: 0 | CV34: 0 | CX34: 0.02 | CY34: 0 | CZ34: 0 | DA34: 0 | DB34: 0 | DC34: 0 | DD34: 3.16 | DE34: 0.21 | DF34: 0 | DG34: 0 | DH34: 0.02 | DI34: 0.26 | DJ34: 0 | DK34: 0 | DL34: 0 | DM34: 0 | DN34: 0 | DO34: 0 | DP34: 0 | DQ34: 0 | DR34: 0 | DS34: 0 | DT34: 0 | DU34: 0 | DV34: 0 | DW34: 0 | DX34: 0 | DY34: 0 | DZ34: 0 | EA34: 0 | EB34: 0 | EC34: 0 | ED34: 0 | EE34: 0 | EF34: 0 | EG34: 0 | EH34: 0 | EI34: 0.01 | EJ34: 0 | EK34: 0 | EL34: 0 | EM34: 0 | EN34: 0 | EO34: 0.75 | EP34: 0 | EQ34: 0.03 | ER34: 0 | ES34: 0 | ET34: 0 | EU34: 0 | EV34: 0 | EW34: 0 | EX34: 0 | EY34: 0 | EZ34: 0 | FA34: 0 | FB34: 0 | FC34: 0 | FD34: 0 | FE34: 0 | FF34: 0 | FG34: 0 | FH34: 0 | FI34: 0 | FJ34: 0 | FK34: 0 | FL34: 0 | FM34: 0 | FN34: 0 | FO34: 0 | FP34: 0 | FQ34: 0 | FR34: 0 | FS34: 0 | FT34: 0 | FU34: 0 | FV34: 0 | FW34: 0 | FX34: 0 | FY34: 0 | FZ34: 0 | GA34: 0 | GB34: 0 | GC34: 0 | GD34: 0 | GE34: 0 | GF34: 0 | GG34: 0 | GH34: 0 | GI34: 0 | GJ34: 0
A35: 2 | D35: Towers (Non-Grillage - Refit), by Corrosion Zone; Highest Operating Voltage; Circuit Configuration | E35: TowerRefit_ZoneC_275_MC_NonGrillage | F35: 0.01 | G35: =TowerRefitStdLife_C -> 52.91722577 | H35: 7.27442271 | I35: 2 | J35: 6 | K35: 371 | L35: 431 | M35: 3 | N35: 356 | O35: 433 | P35: 27 | Q35: 76 | R35: 147 | S35: 71 | T35: 6 | U35: 185 | V35: 0 | W35: 34 | X35: 340 | Y35: 316 | Z35: 728 | AA35: 5 | AB35: 0 | AC35: 0 | AD35: 1 | AE35: 12 | AF35: 77 | AG35: 0 | AH35: 19 | AI35: 6 | AJ35: 0 | AK35: 4 | AL35: 65 | AM35: 29 | AN35: 214 | AO35: 9 | AP35: 3 | AQ35: 0 | AR35: 96 | AS35: 0 | AT35: 1 | AU35: 3 | AV35: 0 | AW35: 0 | AX35: 0 | AY35: 0 | AZ35: 4 | BA35: 27 | BB35: 0 | BC35: 77 | BD35: 0 | BE35: 0 | BF35: 0 | BG35: 0 | BH35: 0 | BI35: 0 | BJ35: 0 | BK35: 0 | BL35: 0 | BM35: 0 | BN35: 0 | BO35: 0 | BP35: 0 | BQ35: 0 | BR35: 0 | BS35: 0 | BT35: 0 | BU35: 0 | BV35: 0 | BW35: 0 | BX35: 0 | BY35: 0 | BZ35: 0 | CA35: 0 | CB35: 0 | CC35: 0 | CD35: 0 | CE35: 0 | CF35: 0 | CG35: 0 | CH35: 0 | CI35: 0 | CJ35: 0 | CK35: 0 | CL35: 0 | CM35: 0 | CN35: 0 | CO35: 0 | CP35: 0 | CQ35: 0 | CR35: 0 | CS35: 0 | CT35: 0 | CU35: 0 | CV35: 0 | CX35: 0.06 | CY35: 3.71 | CZ35: 4.31 | DA35: 0.03 | DB35: 3.56 | DC35: 4.33 | DD35: 0.27 | DE35: 0.76 | DF35: 1.47 | DG35: 0.71 | DH35: 0.06 | DI35: 1.85 | DJ35: 0 | DK35: 0.34 | DL35: 3.4 | DM35: 3.16 | DN35: 7.28 | DO35: 0.05 | DP35: 0 | DQ35: 0 | DR35: 0.01 | DS35: 0.12 | DT35: 0.77 | DU35: 0 | DV35: 0.19 | DW35: 0.06 | DX35: 0 | DY35: 0.04 | DZ35: 0.65 | EA35: 0.29 | EB35: 2.14 | EC35: 0.09 | ED35: 0.03 | EE35: 0 | EF35: 0.96 | EG35: 0 | EH35: 0.01 | EI35: 0.03 | EJ35: 0 | EK35: 0 | EL35: 0 | EM35: 0 | EN35: 0.04 | EO35: 0.27 | EP35: 0 | EQ35: 0.77 | ER35: 0 | ES35: 0 | ET35: 0 | EU35: 0 | EV35: 0 | EW35: 0 | EX35: 0 | EY35: 0 | EZ35: 0 | FA35: 0 | FB35: 0 | FC35: 0 | FD35: 0 | FE35: 0 | FF35: 0 | FG35: 0 | FH35: 0 | FI35: 0 | FJ35: 0 | FK35: 0 | FL35: 0 | FM35: 0 | FN35: 0 | FO35: 0 | FP35: 0 | FQ35: 0 | FR35: 0 | FS35: 0 | FT35: 0 | FU35: 0 | FV35: 0 | FW35: 0 | FX35: 0 | FY35: 0 | FZ35: 0 | GA35: 0 | GB35: 0 | GC35: 0 | GD35: 0 | GE35: 0 | GF35: 0 | GG35: 0 | GH35: 0 | GI35: 0 | GJ35: 0
A36: 2 | D36: Towers (Non-Grillage - Refit), by Corrosion Zone; Highest Operating Voltage; Circuit Configuration | E36: TowerRefit_ZoneD_275_MC_NonGrillage | F36: 0.01 | G36: =TowerRefitStdLife_D -> 35.3369029 | H36: 5.944485083 | I36: 2 | J36: 0 | K36: 110 | L36: 111 | M36: 206 | N36: 0 | O36: 170 | P36: 1 | Q36: 0 | R36: 0 | S36: 0 | T36: 0 | U36: 0 | V36: 0 | W36: 166 | X36: 0 | Y36: 0 | Z36: 0 | AA36: 132 | AB36: 0 | AC36: 0 | AD36: 0 | AE36: 0 | AF36: 0 | AG36: 0 | AH36: 0 | AI36: 0 | AJ36: 518 | AK36: 0 | AL36: 0 | AM36: 0 | AN36: 0 | AO36: 0 | AP36: 0 | AQ36: 0 | AR36: 0 | AS36: 0 | AT36: 0 | AU36: 0 | AV36: 0 | AW36: 0 | AX36: 0 | AY36: 0 | AZ36: 0 | BA36: 0 | BB36: 0 | BC36: 0 | BD36: 0 | BE36: 0 | BF36: 0 | BG36: 0 | BH36: 0 | BI36: 0 | BJ36: 0 | BK36: 0 | BL36: 0 | BM36: 0 | BN36: 0 | BO36: 0 | BP36: 0 | BQ36: 0 | BR36: 0 | BS36: 0 | BT36: 0 | BU36: 0 | BV36: 0 | BW36: 0 | BX36: 0 | BY36: 0 | BZ36: 0 | CA36: 0 | CB36: 0 | CC36: 0 | CD36: 0 | CE36: 0 | CF36: 0 | CG36: 0 | CH36: 0 | CI36: 0 | CJ36: 0 | CK36: 0 | CL36: 0 | CM36: 0 | CN36: 0 | CO36: 0 | CP36: 0 | CQ36: 0 | CR36: 0 | CS36: 0 | CT36: 0 | CU36: 0 | CV36: 0 | CX36: 0 | CY36: 1.1 | CZ36: 1.11 | DA36: 2.06 | DB36: 0 | DC36: 1.7 | DD36: 0.01 | DE36: 0 | DF36: 0 | DG36: 0 | DH36: 0 | DI36: 0 | DJ36: 0 | DK36: 1.66 | DL36: 0 | DM36: 0 | DN36: 0 | DO36: 1.32 | DP36: 0 | DQ36: 0 | DR36: 0 | DS36: 0 | DT36: 0 | DU36: 0 | DV36: 0 | DW36: 0 | DX36: 5.18 | DY36: 0 | DZ36: 0 | EA36: 0 | EB36: 0 | EC36: 0 | ED36: 0 | EE36: 0 | EF36: 0 | EG36: 0 | EH36: 0 | EI36: 0 | EJ36: 0 | EK36: 0 | EL36: 0 | EM36: 0 | EN36: 0 | EO36: 0 | EP36: 0 | EQ36: 0 | ER36: 0 | ES36: 0 | ET36: 0 | EU36: 0 | EV36: 0 | EW36: 0 | EX36: 0 | EY36: 0 | EZ36: 0 | FA36: 0 | FB36: 0 | FC36: 0 | FD36: 0 | FE36: 0 | FF36: 0 | FG36: 0 | FH36: 0 | FI36: 0 | FJ36: 0 | FK36: 0 | FL36: 0 | FM36: 0 | FN36: 0 | FO36: 0 | FP36: 0 | FQ36: 0 | FR36: 0 | FS36: 0 | FT36: 0 | FU36: 0 | FV36: 0 | FW36: 0 | FX36: 0 | FY36: 0 | FZ36: 0 | GA36: 0 | GB36: 0 | GC36: 0 | GD36: 0 | GE36: 0 | GF36: 0 | GG36: 0 | GH36: 0 | GI36: 0 | GJ36: 0
A37: 2 | D37: Towers (Non-Grillage - Refit), by Corrosion Zone; Highest Operating Voltage; Circuit Configuration | E37: TowerRefit_ZoneB_330_MC_NonGrillage | F37: 0.01 | G37: =TowerRefitStdLife_B -> 66.44576873 | H37: 8.151427404 | I37: 2 | J37: 0 | K37: 0 | L37: 0 | M37: 0 | N37: 0 | O37: 0 | P37: 0 | Q37: 0 | R37: 0 | S37: 0 | T37: 233 | U37: 0 | V37: 0 | W37: 0 | X37: 0 | Y37: 0 | Z37: 0 | AA37: 0 | AB37: 0 | AC37: 0 | AD37: 0 | AE37: 0 | AF37: 0 | AG37: 0 | AH37: 0 | AI37: 0 | AJ37: 0 | AK37: 0 | AL37: 0 | AM37: 0 | AN37: 0 | AO37: 0 | AP37: 0 | AQ37: 0 | AR37: 0 | AS37: 0 | AT37: 0 | AU37: 0 | AV37: 0 | AW37: 0 | AX37: 0 | AY37: 0 | AZ37: 0 | BA37: 0 | BB37: 0 | BC37: 0 | BD37: 0 | BE37: 0 | BF37: 0 | BG37: 0 | BH37: 0 | BI37: 0 | BJ37: 0 | BK37: 0 | BL37: 0 | BM37: 0 | BN37: 0 | BO37: 0 | BP37: 0 | BQ37: 0 | BR37: 0 | BS37: 0 | BT37: 0 | BU37: 0 | BV37: 0 | BW37: 0 | BX37: 0 | BY37: 0 | BZ37: 0 | CA37: 0 | CB37: 0 | CC37: 0 | CD37: 0 | CE37: 0 | CF37: 0 | CG37: 0 | CH37: 0 | CI37: 0 | CJ37: 0 | CK37: 0 | CL37: 0 | CM37: 0 | CN37: 0 | CO37: 0 | CP37: 0 | CQ37: 0 | CR37: 0 | CS37: 0 | CT37: 0 | CU37: 0 | CV37: 0 | CX37: 0 | CY37: 0 | CZ37: 0 | DA37: 0 | DB37: 0 | DC37: 0 | DD37: 0 | DE37: 0 | DF37: 0 | DG37: 0 | DH37: 2.33 | DI37: 0 | DJ37: 0 | DK37: 0 | DL37: 0 | DM37: 0 | DN37: 0 | DO37: 0 | DP37: 0 | DQ37: 0 | DR37: 0 | DS37: 0 | DT37: 0 | DU37: 0 | DV37: 0 | DW37: 0 | DX37: 0 | DY37: 0 | DZ37: 0 | EA37: 0 | EB37: 0 | EC37: 0 | ED37: 0 | EE37: 0 | EF37: 0 | EG37: 0 | EH37: 0 | EI37: 0 | EJ37: 0 | EK37: 0 | EL37: 0 | EM37: 0 | EN37: 0 | EO37: 0 | EP37: 0 | EQ37: 0 | ER37: 0 | ES37: 0 | ET37: 0 | EU37: 0 | EV37: 0 | EW37: 0 | EX37: 0 | EY37: 0 | EZ37: 0 | FA37: 0 | FB37: 0 | FC37: 0 | FD37: 0 | FE37: 0 | FF37: 0 | FG37: 0 | FH37: 0 | FI37: 0 | FJ37: 0 | FK37: 0 | FL37: 0 | FM37: 0 | FN37: 0 | FO37: 0 | FP37: 0 | FQ37: 0 | FR37: 0 | FS37: 0 | FT37: 0 | FU37: 0 | FV37: 0 | FW37: 0 | FX37: 0 | FY37: 0 | FZ37: 0 | GA37: 0 | GB37: 0 | GC37: 0 | GD37: 0 | GE37: 0 | GF37: 0 | GG37: 0 | GH37: 0 | GI37: 0 | GJ37: 0
A38: 2 | D38: Towers (Non-Grillage - Refit), by Corrosion Zone; Highest Operating Voltage; Circuit Configuration | E38: TowerRefit_ZoneC_330_MC_NonGrillage | F38: 0.01 | G38: =TowerRefitStdLife_C -> 52.91722577 | H38: 7.27442271 | I38: 2 | J38: 0 | K38: 0 | L38: 0 | M38: 0 | N38: 0 | O38: 0 | P38: 0 | Q38: 170 | R38: 0 | S38: 0 | T38: 2 | U38: 0 | V38: 0 | W38: 0 | X38: 483 | Y38: 0 | Z38: 0 | AA38: 0 | AB38: 0 | AC38: 0 | AD38: 0 | AE38: 0 | AF38: 0 | AG38: 0 | AH38: 0 | AI38: 0 | AJ38: 0 | AK38: 0 | AL38: 0 | AM38: 0 | AN38: 0 | AO38: 0 | AP38: 0 | AQ38: 0 | AR38: 0 | AS38: 0 | AT38: 0 | AU38: 0 | AV38: 0 | AW38: 0 | AX38: 0 | AY38: 0 | AZ38: 0 | BA38: 0 | BB38: 0 | BC38: 0 | BD38: 0 | BE38: 0 | BF38: 0 | BG38: 0 | BH38: 0 | BI38: 0 | BJ38: 0 | BK38: 0 | BL38: 0 | BM38: 0 | BN38: 0 | BO38: 0 | BP38: 0 | BQ38: 0 | BR38: 0 | BS38: 0 | BT38: 0 | BU38: 0 | BV38: 0 | BW38: 0 | BX38: 0 | BY38: 0 | BZ38: 0 | CA38: 0 | CB38: 0 | CC38: 0 | CD38: 0 | CE38: 0 | CF38: 0 | CG38: 0 | CH38: 0 | CI38: 0 | CJ38: 0 | CK38: 0 | CL38: 0 | CM38: 0 | CN38: 0 | CO38: 0 | CP38: 0 | CQ38: 0 | CR38: 0 | CS38: 0 | CT38: 0 | CU38: 0 | CV38: 0 | CX38: 0 | CY38: 0 | CZ38: 0 | DA38: 0 | DB38: 0 | DC38: 0 | DD38: 0 | DE38: 1.7 | DF38: 0 | DG38: 0 | DH38: 0.02 | DI38: 0 | DJ38: 0 | DK38: 0 | DL38: 4.83 | DM38: 0 | DN38: 0 | DO38: 0 | DP38: 0 | DQ38: 0 | DR38: 0 | DS38: 0 | DT38: 0 | DU38: 0 | DV38: 0 | DW38: 0 | DX38: 0 | DY38: 0 | DZ38: 0 | EA38: 0 | EB38: 0 | EC38: 0 | ED38: 0 | EE38: 0 | EF38: 0 | EG38: 0 | EH38: 0 | EI38: 0 | EJ38: 0 | EK38: 0 | EL38: 0 | EM38: 0 | EN38: 0 | EO38: 0 | EP38: 0 | EQ38: 0 | ER38: 0 | ES38: 0 | ET38: 0 | EU38: 0 | EV38: 0 | EW38: 0 | EX38: 0 | EY38: 0 | EZ38: 0 | FA38: 0 | FB38: 0 | FC38: 0 | FD38: 0 | FE38: 0 | FF38: 0 | FG38: 0 | FH38: 0 | FI38: 0 | FJ38: 0 | FK38: 0 | FL38: 0 | FM38: 0 | FN38: 0 | FO38: 0 | FP38: 0 | FQ38: 0 | FR38: 0 | FS38: 0 | FT38: 0 | FU38: 0 | FV38: 0 | FW38: 0 | FX38: 0 | FY38: 0 | FZ38: 0 | GA38: 0 | GB38: 0 | GC38: 0 | GD38: 0 | GE38: 0 | GF38: 0 | GG38: 0 | GH38: 0 | GI38: 0 | GJ38: 0
A39: 3 | D39: Towers - Replaced as part of substation rebuild | E39: Towers - Replaced as part of substation rebuild | F39: 0.01 | CX39: 0 | CY39: 0 | CZ39: 0 | DA39: 0 | DB39: 0 | DC39: 0 | DD39: 0 | DE39: 0 | DF39: 0 | DG39: 0 | DH39: 0 | DI39: 0 | DJ39: 0 | DK39: 0 | DL39: 0 | DM39: 0 | DN39: 0 | DO39: 0 | DP39: 0 | DQ39: 0 | DR39: 0 | DS39: 0 | DT39: 0 | DU39: 0 | DV39: 0 | DW39: 0 | DX39: 0 | DY39: 0 | DZ39: 0 | EA39: 0 | EB39: 0 | EC39: 0 | ED39: 0 | EE39: 0 | EF39: 0 | EG39: 0 | EH39: 0 | EI39: 0 | EJ39: 0 | EK39: 0 | EL39: 0 | EM39: 0 | EN39: 0 | EO39: 0 | EP39: 0 | EQ39: 0 | ER39: 0 | ES39: 0 | ET39: 0 | EU39: 0 | EV39: 0 | EW39: 0 | EX39: 0 | EY39: 0 | EZ39: 0 | FA39: 0 | FB39: 0 | FC39: 0 | FD39: 0 | FE39: 0 | FF39: 0 | FG39: 0 | FH39: 0 | FI39: 0 | FJ39: 0 | FK39: 0 | FL39: 0 | FM39: 0 | FN39: 0 | FO39: 0 | FP39: 0 | FQ39: 0 | FR39: 0 | FS39: 0 | FT39: 0 | FU39: 0 | FV39: 0 | FW39: 0 | FX39: 0 | FY39: 0 | FZ39: 0 | GA39: 0 | GB39: 0 | GC39: 0 | GD39: 0 | GE39: 0 | GF39: 0 | GG39: 0 | GH39: 0 | GI39: 0 | GJ39: 0
CX40: 0 | CY40: 0 | CZ40: 0 | DA40: 0 | DB40: 0 | DC40: 0 | DD40: 0 | DE40: 0 | DF40: 0 | DG40: 0 | DH40: 0 | DI40: 0 | DJ40: 0 | DK40: 0 | DL40: 0 | DM40: 0 | DN40: 0 | DO40: 0 | DP40: 0 | DQ40: 0 | DR40: 0 | DS40: 0 | DT40: 0 | DU40: 0 | DV40: 0 | DW40: 0 | DX40: 0 | DY40: 0 | DZ40: 0 | EA40: 0 | EB40: 0 | EC40: 0 | ED40: 0 | EE40: 0 | EF40: 0 | EG40: 0 | EH40: 0 | EI40: 0 | EJ40: 0 | EK40: 0 | EL40: 0 | EM40: 0 | EN40: 0 | EO40: 0 | EP40: 0 | EQ40: 0 | ER40: 0 | ES40: 0 | ET40: 0 | EU40: 0 | EV40: 0 | EW40: 0 | EX40: 0 | EY40: 0 | EZ40: 0 | FA40: 0 | FB40: 0 | FC40: 0 | FD40: 0 | FE40: 0 | FF40: 0 | FG40: 0 | FH40: 0 | FI40: 0 | FJ40: 0 | FK40: 0 | FL40: 0 | FM40: 0 | FN40: 0 | FO40: 0 | FP40: 0 | FQ40: 0 | FR40: 0 | FS40: 0 | FT40: 0 | FU40: 0 | FV40: 0 | FW40: 0 | FX40: 0 | FY40: 0 | FZ40: 0 | GA40: 0 | GB40: 0 | GC40: 0 | GD40: 0 | GE40: 0 | GF40: 0 | GG40: 0 | GH40: 0 | GI40: 0 | GJ40: 0
A41: 4 | D41: Substation Switchgear Equipment By Highest Operating Voltage; Equipment Type | E41: < = 33 kV; Air Insulated circuit Breaker | F41: 0.01 | G41: =StdLife_CB -> 34.18634124 | H41: 5.846908691 | I41: 2 | J41: 0 | K41: 0 | L41: 0 | M41: 0 | N41: 0 | O41: 0 | P41: 0 | Q41: 0 | R41: 0 | S41: 0 | T41: 0 | U41: 0 | V41: 0 | W41: 0 | X41: 0 | Y41: 0 | Z41: 0 | AA41: 0 | AB41: 0 | AC41: 0 | AD41: 0 | AE41: 0 | AF41: 0 | AG41: 1 | AH41: 0 | AI41: 0 | AJ41: 1 | AK41: 0 | AL41: 0 | AM41: 0 | AN41: 0 | AO41: 2 | AP41: 0 | AQ41: 0 | AR41: 0 | AS41: 0 | AT41: 0 | AU41: 0 | AV41: 0 | AW41: 0 | AX41: 0 | AY41: 0 | AZ41: 0 | BA41: 0 | BB41: 0 | BC41: 0 | BD41: 0 | BE41: 0 | BF41: 0 | BG41: 0 | BH41: 0 | BI41: 0 | BJ41: 0 | BK41: 0 | BL41: 0 | BM41: 0 | BN41: 0 | BO41: 0 | BP41: 0 | BQ41: 0 | BR41: 0 | BS41: 0 | BT41: 0 | BU41: 0 | BV41: 0 | BW41: 0 | BX41: 0 | BY41: 0 | BZ41: 0 | CA41: 0 | CB41: 0 | CC41: 0 | CD41: 0 | CE41: 0 | CF41: 0 | CG41: 0 | CH41: 0 | CI41: 0 | CJ41: 0 | CK41: 0 | CL41: 0 | CM41: 0 | CN41: 0 | CO41: 0 | CP41: 0 | CQ41: 0 | CR41: 0 | CS41: 0 | CT41: 0 | CU41: 0 | CV41: 0 | CX41: 0 | CY41: 0 | CZ41: 0 | DA41: 0 | DB41: 0 | DC41: 0 | DD41: 0 | DE41: 0 | DF41: 0 | DG41: 0 | DH41: 0 | DI41: 0 | DJ41: 0 | DK41: 0 | DL41: 0 | DM41: 0 | DN41: 0 | DO41: 0 | DP41: 0 | DQ41: 0 | DR41: 0 | DS41: 0 | DT41: 0 | DU41: 0.01 | DV41: 0 | DW41: 0 | DX41: 0.01 | DY41: 0 | DZ41: 0 | EA41: 0 | EB41: 0 | EC41: 0.02 | ED41: 0 | EE41: 0 | EF41: 0 | EG41: 0 | EH41: 0 | EI41: 0 | EJ41: 0 | EK41: 0 | EL41: 0 | EM41: 0 | EN41: 0 | EO41: 0 | EP41: 0 | EQ41: 0 | ER41: 0 | ES41: 0 | ET41: 0 | EU41: 0 | EV41: 0 | EW41: 0 | EX41: 0 | EY41: 0 | EZ41: 0 | FA41: 0 | FB41: 0 | FC41: 0 | FD41: 0 | FE41: 0 | FF41: 0 | FG41: 0 | FH41: 0 | FI41: 0 | FJ41: 0 | FK41: 0 | FL41: 0 | FM41: 0 | FN41: 0 | FO41: 0 | FP41: 0 | FQ41: 0 | FR41: 0 | FS41: 0 | FT41: 0 | FU41: 0 | FV41: 0 | FW41: 0 | FX41: 0 | FY41: 0 | FZ41: 0 | GA41: 0 | GB41: 0 | GC41: 0 | GD41: 0 | GE41: 0 | GF41: 0 | GG41: 0 | GH41: 0 | GI41: 0 | GJ41: 0
A42: 4 | D42: Substation Switchgear Equipment By Highest Operating Voltage; Equipment Type | E42: > 33 kV & < = 66 kV ; Air Insulated circuit Breaker | F42: 0.01 | G42: 34.18634124 | H42: 5.846908691 | I42: 2 | J42: 0 | K42: 0 | L42: 2 | M42: 7 | N42: 0 | O42: 0 | P42: 0 | Q42: 0 | R42: 0 | S42: 0 | T42: 0 | U42: 0 | V42: 0 | W42: 0 | X42: 0 | Y42: 0 | Z42: 2 | AA42: 2 | AB42: 0 | AC42: 0 | AD42: 0 | AE42: 0 | AF42: 0 | AG42: 0 | AH42: 0 | AI42: 0 | AJ42: 0 | AK42: 0 | AL42: 0 | AM42: 0 | AN42: 0 | AO42: 0 | AP42: 0 | AQ42: 0 | AR42: 0 | AS42: 0 | AT42: 0 | AU42: 0 | AV42: 0 | AW42: 0 | AX42: 0 | AY42: 0 | AZ42: 0 | BA42: 0 | BB42: 0 | BC42: 0 | BD42: 0 | BE42: 0 | BF42: 0 | BG42: 0 | BH42: 0 | BI42: 0 | BJ42: 0 | BK42: 0 | BL42: 0 | BM42: 0 | BN42: 0 | BO42: 0 | BP42: 0 | BQ42: 0 | BR42: 0 | BS42: 0 | BT42: 0 | BU42: 0 | BV42: 0 | BW42: 0 | BX42: 0 | BY42: 0 | BZ42: 0 | CA42: 0 | CB42: 0 | CC42: 0 | CD42: 0 | CE42: 0 | CF42: 0 | CG42: 0 | CH42: 0 | CI42: 0 | CJ42: 0 | CK42: 0 | CL42: 0 | CM42: 0 | CN42: 0 | CO42: 0 | CP42: 0 | CQ42: 0 | CR42: 0 | CS42: 0 | CT42: 0 | CU42: 0 | CV42: 0 | CX42: 0 | CY42: 0 | CZ42: 0.02 | DA42: 0.07 | DB42: 0 | DC42: 0 | DD42: 0 | DE42: 0 | DF42: 0 | DG42: 0 | DH42: 0 | DI42: 0 | DJ42: 0 | DK42: 0 | DL42: 0 | DM42: 0 | DN42: 0.02 | DO42: 0.02 | DP42: 0 | DQ42: 0 | DR42: 0 | DS42: 0 | DT42: 0 | DU42: 0 | DV42: 0 | DW42: 0 | DX42: 0 | DY42: 0 | DZ42: 0 | EA42: 0 | EB42: 0 | EC42: 0 | ED42: 0 | EE42: 0 | EF42: 0 | EG42: 0 | EH42: 0 | EI42: 0 | EJ42: 0 | EK42: 0 | EL42: 0 | EM42: 0 | EN42: 0 | EO42: 0 | EP42: 0 | EQ42: 0 | ER42: 0 | ES42: 0 | ET42: 0 | EU42: 0 | EV42: 0 | EW42: 0 | EX42: 0 | EY42: 0 | EZ42: 0 | FA42: 0 | FB42: 0 | FC42: 0 | FD42: 0 | FE42: 0 | FF42: 0 | FG42: 0 | FH42: 0 | FI42: 0 | FJ42: 0 | FK42: 0 | FL42: 0 | FM42: 0 | FN42: 0 | FO42: 0 | FP42: 0 | FQ42: 0 | FR42: 0 | FS42: 0 | FT42: 0 | FU42: 0 | FV42: 0 | FW42: 0 | FX42: 0 | FY42: 0 | FZ42: 0 | GA42: 0 | GB42: 0 | GC42: 0 | GD42: 0 | GE42: 0 | GF42: 0 | GG42: 0 | GH42: 0 | GI42: 0 | GJ42: 0
A43: 4 | D43: Substation Switchgear Equipment By Highest Operating Voltage; Equipment Type | E43: > 66 kV & < = 132 kV ; Air Insulated circuit Breaker | F43: 0.01 | G43: 34.18634124 | H43: 5.846908691 | I43: 2 | J43: 8 | K43: 40 | L43: 32 | M43: 29 | N43: 27 | O43: 48 | P43: 58 | Q43: 26 | R43: 22 | S43: 17 | T43: 15 | U43: 2 | V43: 4 | W43: 4 | X43: 7 | Y43: 3 | Z43: 8 | AA43: 13 | AB43: 4 | AC43: 1 | AD43: 7 | AE43: 3 | AF43: 1 | AG43: 3 | AH43: 2 | AI43: 2 | AJ43: 6 | AK43: 16 | AL43: 20 | AM43: 13 | AN43: 10 | AO43: 7 | AP43: 8 | AQ43: 5 | AR43: 5 | AS43: 2 | AT43: 7 | AU43: 4 | AV43: 2 | AW43: 2 | AX43: 4 | AY43: 2 | AZ43: 0 | BA43: 0 | BB43: 0 | BC43: 3 | BD43: 0 | BE43: 3 | BF43: 0 | BG43: 0 | BH43: 0 | BI43: 0 | BJ43: 10 | BK43: 0 | BL43: 0 | BM43: 0 | BN43: 0 | BO43: 0 | BP43: 0 | BQ43: 0 | BR43: 0 | BS43: 0 | BT43: 0 | BU43: 0 | BV43: 0 | BW43: 0 | BX43: 0 | BY43: 0 | BZ43: 0 | CA43: 0 | CB43: 0 | CC43: 0 | CD43: 0 | CE43: 0 | CF43: 0 | CG43: 0 | CH43: 0 | CI43: 0 | CJ43: 0 | CK43: 0 | CL43: 0 | CM43: 0 | CN43: 0 | CO43: 0 | CP43: 0 | CQ43: 0 | CR43: 0 | CS43: 0 | CT43: 0 | CU43: 0 | CV43: 0 | CX43: =$F43*J43 -> 0.08 | CY43: =$F43*K43 -> 0.4 | CZ43: =$F43*L43 -> 0.32 | DA43: =$F43*M43 -> 0.29 | DB43: =$F43*N43 -> 0.27 | DC43: =$F43*O43 -> 0.48 | DD43: =$F43*P43 -> 0.58 | DE43: =$F43*Q43 -> 0.26 | DF43: =$F43*R43 -> 0.22 | DG43: 0.17 | DH43: 0.15 | DI43: 0.02 | DJ43: 0.04 | DK43: 0.04 | DL43: 0.07 | DM43: 0.03 | DN43: 0.08 | DO43: 0.13 | DP43: 0.04 | DQ43: 0.01 | DR43: 0.07 | DS43: 0.03 | DT43: 0.01 | DU43: 0.03 | DV43: 0.02 | DW43: 0.02 | DX43: 0.06 | DY43: 0.16 | DZ43: 0.2 | EA43: 0.13 | EB43: 0.1 | EC43: 0.07 | ED43: 0.08 | EE43: 0.05 | EF43: 0.05 | EG43: 0.02 | EH43: 0.07 | EI43: 0.04 | EJ43: 0.02 | EK43: 0.02 | EL43: 0.04 | EM43: 0.02 | EN43: 0 | EO43: 0 | EP43: 0 | EQ43: 0.03 | ER43: 0 | ES43: 0.03 | ET43: 0 | EU43: 0 | EV43: 0 | EW43: 0 | EX43: 0.1 | EY43: 0 | EZ43: 0 | FA43: 0 | FB43: 0 | FC43: 0 | FD43: 0 | FE43: 0 | FF43: 0 | FG43: 0 | FH43: 0 | FI43: 0 | FJ43: 0 | FK43: 0 | FL43: 0 | FM43: 0 | FN43: 0 | FO43: 0 | FP43: 0 | FQ43: 0 | FR43: 0 | FS43: 0 | FT43: 0 | FU43: 0 | FV43: 0 | FW43: 0 | FX43: 0 | FY43: 0 | FZ43: 0 | GA43: 0 | GB43: 0 | GC43: 0 | GD43: 0 | GE43: 0 | GF43: 0 | GG43: 0 | GH43: 0 | GI43: 0 | GJ43: 0
A44: 4 | D44: Substation Switchgear Equipment By Highest Operating Voltage; Equipment Type | E44: > 132 kV & < = 275 kV ; Air Insulated circuit Breaker | F44: 0.01 | G44: 34.18634124 | H44: 5.846908691 | I44: 2 | J44: 16 | K44: 21 | L44: 31 | M44: 30 | N44: 6 | O44: 15 | P44: 33 | Q44: 42 | R44: 31 | S44: 27 | T44: 15 | U44: 5 | V44: 10 | W44: 12 | X44: 3 | Y44: 7 | Z44: 10 | AA44: 13 | AB44: 0 | AC44: 5 | AD44: 4 | AE44: 8 | AF44: 12 | AG44: 2 | AH44: 0 | AI44: 0 | AJ44: 18 | AK44: 1 | AL44: 1 | AM44: 1 | AN44: 12 | AO44: 1 | AP44: 0 | AQ44: 0 | AR44: 3 | AS44: 0 | AT44: 1 | AU44: 4 | AV44: 0 | AW44: 0 | AX44: 9 | AY44: 0 | AZ44: 0 | BA44: 0 | BB44: 0 | BC44: 0 | BD44: 0 | BE44: 0 | BF44: 0 | BG44: 0 | BH44: 0 | BI44: 0 | BJ44: 0 | BK44: 0 | BL44: 0 | BM44: 0 | BN44: 0 | BO44: 0 | BP44: 0 | BQ44: 0 | BR44: 0 | BS44: 0 | BT44: 0 | BU44: 0 | BV44: 0 | BW44: 0 | BX44: 0 | BY44: 0 | BZ44: 0 | CA44: 0 | CB44: 0 | CC44: 0 | CD44: 0 | CE44: 0 | CF44: 0 | CG44: 0 | CH44: 0 | CI44: 0 | CJ44: 0 | CK44: 0 | CL44: 0 | CM44: 0 | CN44: 0 | CO44: 0 | CP44: 0 | CQ44: 0 | CR44: 0 | CS44: 0 | CT44: 0 | CU44: 0 | CV44: 0 | CX44: 0.16 | CY44: 0.21 | CZ44: 0.31 | DA44: 0.3 | DB44: 0.06 | DC44: 0.15 | DD44: 0.33 | DE44: 0.42 | DF44: 0.31 | DG44: 0.27 | DH44: 0.15 | DI44: 0.05 | DJ44: 0.1 | DK44: 0.12 | DL44: 0.03 | DM44: 0.07 | DN44: 0.1 | DO44: 0.13 | DP44: 0 | DQ44: 0.05 | DR44: 0.04 | DS44: 0.08 | DT44: 0.12 | DU44: 0.02 | DV44: 0 | DW44: 0 | DX44: 0.18 | DY44: 0.01 | DZ44: 0.01 | EA44: 0.01 | EB44: 0.12 | EC44: 0.01 | ED44: 0 | EE44: 0 | EF44: 0.03 | EG44: 0 | EH44: 0.01 | EI44: 0.04 | EJ44: 0 | EK44: 0 | EL44: 0.09 | EM44: 0 | EN44: 0 | EO44: 0 | EP44: 0 | EQ44: 0 | ER44: 0 | ES44: 0 | ET44: 0 | EU44: 0 | EV44: 0 | EW44: 0 | EX44: 0 | EY44: 0 | EZ44: 0 | FA44: 0 | FB44: 0 | FC44: 0 | FD44: 0 | FE44: 0 | FF44: 0 | FG44: 0 | FH44: 0 | FI44: 0 | FJ44: 0 | FK44: 0 | FL44: 0 | FM44: 0 | FN44: 0 | FO44: 0 | FP44: 0 | FQ44: 0 | FR44: 0 | FS44: 0 | FT44: 0 | FU44: 0 | FV44: 0 | FW44: 0 | FX44: 0 | FY44: 0 | FZ44: 0 | GA44: 0 | GB44: 0 | GC44: 0 | GD44: 0 | GE44: 0 | GF44: 0 | GG44: 0 | GH44: 0 | GI44: 0 | GJ44: 0
A45: 4 | D45: Substation Switchgear Equipment By Highest Operating Voltage; Equipment Type | E45: > 275 kV & < = 330 kV ; Air Insulated circuit Breaker | F45: 0.01 | G45: 34.18634124 | H45: 5.846908691 | I45: 2 | J45: 0 | K45: 0 | L45: 0 | M45: 3 | N45: 0 | O45: 0 | P45: 0 | Q45: 1 | R45: 0 | S45: 0 | T45: 4 | U45: 0 | V45: 0 | W45: 0 | X45: 0 | Y45: 0 | Z45: 0 | AA45: 0 | AB45: 0 | AC45: 0 | AD45: 0 | AE45: 0 | AF45: 0 | AG45: 0 | AH45: 0 | AI45: 0 | AJ45: 0 | AK45: 0 | AL45: 0 | AM45: 0 | AN45: 0 | AO45: 0 | AP45: 0 | AQ45: 0 | AR45: 0 | AS45: 0 | AT45: 0 | AU45: 0 | AV45: 0 | AW45: 0 | AX45: 0 | AY45: 0 | AZ45: 0 | BA45: 0 | BB45: 0 | BC45: 0 | BD45: 0 | BE45: 0 | BF45: 0 | BG45: 0 | BH45: 0 | BI45: 0 | BJ45: 0 | BK45: 0 | BL45: 0 | BM45: 0 | BN45: 0 | BO45: 0 | BP45: 0 | BQ45: 0 | BR45: 0 | BS45: 0 | BT45: 0 | BU45: 0 | BV45: 0 | BW45: 0 | BX45: 0 | BY45: 0 | BZ45: 0 | CA45: 0 | CB45: 0 | CC45: 0 | CD45: 0 | CE45: 0 | CF45: 0 | CG45: 0 | CH45: 0 | CI45: 0 | CJ45: 0 | CK45: 0 | CL45: 0 | CM45: 0 | CN45: 0 | CO45: 0 | CP45: 0 | CQ45: 0 | CR45: 0 | CS45: 0 | CT45: 0 | CU45: 0 | CV45: 0 | CX45: 0 | CY45: 0 | CZ45: 0 | DA45: 0.03 | DB45: 0 | DC45: 0 | DD45: 0 | DE45: 0.01 | DF45: 0 | DG45: 0 | DH45: 0.04 | DI45: 0 | DJ45: 0 | DK45: 0 | DL45: 0 | DM45: 0 | DN45: 0 | DO45: 0 | DP45: 0 | DQ45: 0 | DR45: 0 | DS45: 0 | DT45: 0 | DU45: 0 | DV45: 0 | DW45: 0 | DX45: 0 | DY45: 0 | DZ45: 0 | EA45: 0 | EB45: 0 | EC45: 0 | ED45: 0 | EE45: 0 | EF45: 0 | EG45: 0 | EH45: 0 | EI45: 0 | EJ45: 0 | EK45: 0 | EL45: 0 | EM45: 0 | EN45: 0 | EO45: 0 | EP45: 0 | EQ45: 0 | ER45: 0 | ES45: 0 | ET45: 0 | EU45: 0 | EV45: 0 | EW45: 0 | EX45: 0 | EY45: 0 | EZ45: 0 | FA45: 0 | FB45: 0 | FC45: 0 | FD45: 0 | FE45: 0 | FF45: 0 | FG45: 0 | FH45: 0 | FI45: 0 | FJ45: 0 | FK45: 0 | FL45: 0 | FM45: 0 | FN45: 0 | FO45: 0 | FP45: 0 | FQ45: 0 | FR45: 0 | FS45: 0 | FT45: 0 | FU45: 0 | FV45: 0 | FW45: 0 | FX45: 0 | FY45: 0 | FZ45: 0 | GA45: 0 | GB45: 0 | GC45: 0 | GD45: 0 | GE45: 0 | GF45: 0 | GG45: 0 | GH45: 0 | GI45: 0 | GJ45: 0
A46: 4 | D46: Substation Switchgear Equipment By Highest Operating Voltage; Equipment Type | E46: < = 33 kV; Air Insulated Isolators / Earth Switch | F46: 0.01 | G46: =StdLife_IsolES -> 39.82880706 | H46: 6.311006818 | I46: 2 | J46: 0 | K46: 1 | L46: 0 | M46: 2 | N46: 0 | O46: 0 | P46: 0 | Q46: 0 | R46: 2 | S46: 0 | T46: 0 | U46: 0 | V46: 0 | W46: 2 | X46: 0 | Y46: 1 | Z46: 1 | AA46: 1 | AB46: 0 | AC46: 0 | AD46: 5 | AE46: 0 | AF46: 0 | AG46: 0 | AH46: 0 | AI46: 1 | AJ46: 2 | AK46: 0 | AL46: 0 | AM46: 0 | AN46: 0 | AO46: 1 | AP46: 0 | AQ46: 2 | AR46: 0 | AS46: 0 | AT46: 1 | AU46: 0 | AV46: 0 | AW46: 0 | AX46: 2 | AY46: 0 | AZ46: 0 | BA46: 2 | BB46: 0 | BC46: 0 | BD46: 0 | BE46: 0 | BF46: 0 | BG46: 0 | BH46: 0 | BI46: 0 | BJ46: 1 | BK46: 1 | BL46: 0 | BM46: 0 | BN46: 0 | BO46: 0 | BP46: 0 | BQ46: 0 | BR46: 0 | BS46: 0 | BT46: 0 | BU46: 0 | BV46: 0 | BW46: 0 | BX46: 0 | BY46: 0 | BZ46: 0 | CA46: 0 | CB46: 0 | CC46: 0 | CD46: 0 | CE46: 0 | CF46: 0 | CG46: 0 | CH46: 0 | CI46: 0 | CJ46: 0 | CK46: 0 | CL46: 0 | CM46: 0 | CN46: 0 | CO46: 0 | CP46: 0 | CQ46: 0 | CR46: 0 | CS46: 0 | CT46: 0 | CU46: 0 | CV46: 0 | CX46: 0 | CY46: 0.01 | CZ46: 0 | DA46: 0.02 | DB46: 0 | DC46: 0 | DD46: 0 | DE46: 0 | DF46: 0.02 | DG46: 0 | DH46: 0 | DI46: 0 | DJ46: 0 | DK46: 0.02 | DL46: 0 | DM46: 0.01 | DN46: 0.01 | DO46: 0.01 | DP46: 0 | DQ46: 0 | DR46: 0.05 | DS46: 0 | DT46: 0 | DU46: 0 | DV46: 0 | DW46: 0.01 | DX46: 0.02 | DY46: 0 | DZ46: 0 | EA46: 0 | EB46: 0 | EC46: 0.01 | ED46: 0 | EE46: 0.02 | EF46: 0 | EG46: 0 | EH46: 0.01 | EI46: 0 | EJ46: 0 | EK46: 0 | EL46: 0.02 | EM46: 0 | EN46: 0 | EO46: 0.02 | EP46: 0 | EQ46: 0 | ER46: 0 | ES46: 0 | ET46: 0 | EU46: 0 | EV46: 0 | EW46: 0 | EX46: 0.01 | EY46: 0.01 | EZ46: 0 | FA46: 0 | FB46: 0 | FC46: 0 | FD46: 0 | FE46: 0 | FF46: 0 | FG46: 0 | FH46: 0 | FI46: 0 | FJ46: 0 | FK46: 0 | FL46: 0 | FM46: 0 | FN46: 0 | FO46: 0 | FP46: 0 | FQ46: 0 | FR46: 0 | FS46: 0 | FT46: 0 | FU46: 0 | FV46: 0 | FW46: 0 | FX46: 0 | FY46: 0 | FZ46: 0 | GA46: 0 | GB46: 0 | GC46: 0 | GD46: 0 | GE46: 0 | GF46: 0 | GG46: 0 | GH46: 0 | GI46: 0 | GJ46: 0
A47: 4 | D47: Substation Switchgear Equipment By Highest Operating Voltage; Equipment Type | E47: > 33 kV & < = 66 kV ; Air Insulated Isolators / Earth Switch | F47: 0.01 | G47: =StdLife_IsolES -> 39.82880706 | H47: 6.311006818 | I47: 2 | J47: 0 | K47: 0 | L47: 14 | M47: 17 | N47: 0 | O47: 0 | P47: 6 | Q47: 2 | R47: 0 | S47: 2 | T47: 0 | U47: 0 | V47: 0 | W47: 0 | X47: 0 | Y47: 1 | Z47: 1 | AA47: 3 | AB47: 0 | AC47: 0 | AD47: 0 | AE47: 0 | AF47: 0 | AG47: 0 | AH47: 0 | AI47: 0 | AJ47: 0 | AK47: 0 | AL47: 0 | AM47: 0 | AN47: 0 | AO47: 0 | AP47: 0 | AQ47: 2 | AR47: 0 | AS47: 2 | AT47: 2 | AU47: 2 | AV47: 0 | AW47: 0 | AX47: 0 | AY47: 0 | AZ47: 0 | BA47: 0 | BB47: 0 | BC47: 0 | BD47: 0 | BE47: 0 | BF47: 0 | BG47: 0 | BH47: 0 | BI47: 0 | BJ47: 0 | BK47: 0 | BL47: 0 | BM47: 0 | BN47: 0 | BO47: 0 | BP47: 0 | BQ47: 0 | BR47: 0 | BS47: 0 | BT47: 0 | BU47: 0 | BV47: 0 | BW47: 0 | BX47: 0 | BY47: 0 | BZ47: 0 | CA47: 0 | CB47: 0 | CC47: 0 | CD47: 0 | CE47: 0 | CF47: 0 | CG47: 0 | CH47: 0 | CI47: 0 | CJ47: 0 | CK47: 0 | CL47: 0 | CM47: 0 | CN47: 0 | CO47: 0 | CP47: 0 | CQ47: 0 | CR47: 0 | CS47: 0 | CT47: 0 | CU47: 0 | CV47: 0 | CX47: 0 | CY47: 0 | CZ47: 0.14 | DA47: 0.17 | DB47: 0 | DC47: 0 | DD47: 0.06 | DE47: 0.02 | DF47: 0 | DG47: 0.02 | DH47: 0 | DI47: 0 | DJ47: 0 | DK47: 0 | DL47: 0 | DM47: 0.01 | DN47: 0.01 | DO47: 0.03 | DP47: 0 | DQ47: 0 | DR47: 0 | DS47: 0 | DT47: 0 | DU47: 0 | DV47: 0 | DW47: 0 | DX47: 0 | DY47: 0 | DZ47: 0 | EA47: 0 | EB47: 0 | EC47: 0 | ED47: 0 | EE47: 0.02 | EF47: 0 | EG47: 0.02 | EH47: 0.02 | EI47: 0.02 | EJ47: 0 | EK47: 0 | EL47: 0 | EM47: 0 | EN47: 0 | EO47: 0 | EP47: 0 | EQ47: 0 | ER47: 0 | ES47: 0 | ET47: 0 | EU47: 0 | EV47: 0 | EW47: 0 | EX47: 0 | EY47: 0 | EZ47: 0 | FA47: 0 | FB47: 0 | FC47: 0 | FD47: 0 | FE47: 0 | FF47: 0 | FG47: 0 | FH47: 0 | FI47: 0 | FJ47: 0 | FK47: 0 | FL47: 0 | FM47: 0 | FN47: 0 | FO47: 0 | FP47: 0 | FQ47: 0 | FR47: 0 | FS47: 0 | FT47: 0 | FU47: 0 | FV47: 0 | FW47: 0 | FX47: 0 | FY47: 0 | FZ47: 0 | GA47: 0 | GB47: 0 | GC47: 0 | GD47: 0 | GE47: 0 | GF47: 0 | GG47: 0 | GH47: 0 | GI47: 0 | GJ47: 0
A48: 4 | D48: Substation Switchgear Equipment By Highest Operating Voltage; Equipment Type | E48: > 66 kV & < = 132 kV ; Air Insulated Isolators / Earth Switch | F48: 0.01 | G48: =StdLife_IsolES -> 39.82880706 | H48: 6.311006818 | I48: 2 | J48: 23 | K48: 113 | L48: 90 | M48: 126 | N48: 76 | O48: 158 | P48: 192 | Q48: 80 | R48: 68 | S48: 41 | T48: 63 | U48: 25 | V48: 13 | W48: 14 | X48: 33 | Y48: 25 | Z48: 15 | AA48: 36 | AB48: 17 | AC48: 8 | AD48: 30 | AE48: 4 | AF48: 9 | AG48: 10 | AH48: 6 | AI48: 5 | AJ48: 14 | AK48: 16 | AL48: 49 | AM48: 42 | AN48: 42 | AO48: 23 | AP48: 38 | AQ48: 26 | AR48: 15 | AS48: 14 | AT48: 43 | AU48: 55 | AV48: 8 | AW48: 3 | AX48: 11 | AY48: 4 | AZ48: 11 | BA48: 21 | BB48: 1 | BC48: 12 | BD48: 2 | BE48: 11 | BF48: 0 | BG48: 5 | BH48: 16 | BI48: 43 | BJ48: 2 | BK48: 0 | BL48: 0 | BM48: 0 | BN48: 0 | BO48: 0 | BP48: 0 | BQ48: 0 | BR48: 0 | BS48: 0 | BT48: 0 | BU48: 0 | BV48: 0 | BW48: 0 | BX48: 0 | BY48: 0 | BZ48: 0 | CA48: 0 | CB48: 0 | CC48: 0 | CD48: 0 | CE48: 0 | CF48: 0 | CG48: 0 | CH48: 0 | CI48: 0 | CJ48: 0 | CK48: 0 | CL48: 0 | CM48: 0 | CN48: 0 | CO48: 0 | CP48: 0 | CQ48: 0 | CR48: 0 | CS48: 0 | CT48: 0 | CU48: 0 | CV48: 0 | CX48: 0.23 | CY48: 1.13 | CZ48: 0.9 | DA48: 1.26 | DB48: 0.76 | DC48: 1.58 | DD48: 1.92 | DE48: 0.8 | DF48: 0.68 | DG48: 0.41 | DH48: 0.63 | DI48: 0.25 | DJ48: 0.13 | DK48: 0.14 | DL48: 0.33 | DM48: 0.25 | DN48: 0.15 | DO48: 0.36 | DP48: 0.17 | DQ48: 0.08 | DR48: 0.3 | DS48: 0.04 | DT48: 0.09 | DU48: 0.1 | DV48: 0.06 | DW48: 0.05 | DX48: 0.14 | DY48: 0.16 | DZ48: 0.49 | EA48: 0.42 | EB48: 0.42 | EC48: 0.23 | ED48: 0.38 | EE48: 0.26 | EF48: 0.15 | EG48: 0.14 | EH48: 0.43 | EI48: 0.55 | EJ48: 0.08 | EK48: 0.03 | EL48: 0.11 | EM48: 0.04 | EN48: 0.11 | EO48: 0.21 | EP48: 0.01 | EQ48: 0.12 | ER48: 0.02 | ES48: 0.11 | ET48: 0 | EU48: 0.05 | EV48: 0.16 | EW48: 0.43 | EX48: 0.02 | EY48: 0 | EZ48: 0 | FA48: 0 | FB48: 0 | FC48: 0 | FD48: 0 | FE48: 0 | FF48: 0 | FG48: 0 | FH48: 0 | FI48: 0 | FJ48: 0 | FK48: 0 | FL48: 0 | FM48: 0 | FN48: 0 | FO48: 0 | FP48: 0 | FQ48: 0 | FR48: 0 | FS48: 0 | FT48: 0 | FU48: 0 | FV48: 0 | FW48: 0 | FX48: 0 | FY48: 0 | FZ48: 0 | GA48: 0 | GB48: 0 | GC48: 0 | GD48: 0 | GE48: 0 | GF48: 0 | GG48: 0 | GH48: 0 | GI48: 0 | GJ48: 0
A49: 4 | D49: Substation Switchgear Equipment By Highest Operating Voltage; Equipment Type | E49: > 132 kV & < = 275 kV ; Air Insulated Isolators / Earth Switch | F49: 0.01 | G49: 39.82880706 | H49: 6.311006818 | I49: 2 | J49: 96 | K49: 119 | L49: 180 | M49: 158 | N49: 44 | O49: 72 | P49: 141 | Q49: 238 | R49: 113 | S49: 116 | T49: 92 | U49: 43 | V49: 29 | W49: 42 | X49: 21 | Y49: 89 | Z49: 37 | AA49: 61 | AB49: 1 | AC49: 19 | AD49: 25 | AE49: 53 | AF49: 66 | AG49: 33 | AH49: 24 | AI49: 1 | AJ49: 37 | AK49: 0 | AL49: 15 | AM49: 14 | AN49: 35 | AO49: 94 | AP49: 3 | AQ49: 18 | AR49: 8 | AS49: 0 | AT49: 19 | AU49: 106 | AV49: 8 | AW49: 29 | AX49: 16 | AY49: 19 | AZ49: 5 | BA49: 10 | BB49: 26 | BC49: 16 | BD49: 3 | BE49: 0 | BF49: 0 | BG49: 0 | BH49: 0 | BI49: 0 | BJ49: 0 | BK49: 0 | BL49: 0 | BM49: 0 | BN49: 0 | BO49: 0 | BP49: 0 | BQ49: 0 | BR49: 0 | BS49: 0 | BT49: 0 | BU49: 0 | BV49: 0 | BW49: 0 | BX49: 0 | BY49: 0 | BZ49: 0 | CA49: 0 | CB49: 0 | CC49: 0 | CD49: 0 | CE49: 0 | CF49: 0 | CG49: 0 | CH49: 0 | CI49: 0 | CJ49: 0 | CK49: 0 | CL49: 0 | CM49: 0 | CN49: 0 | CO49: 0 | CP49: 0 | CQ49: 0 | CR49: 0 | CS49: 0 | CT49: 0 | CU49: 0 | CV49: 0 | CX49: 0.96 | CY49: 1.19 | CZ49: 1.8 | DA49: 1.58 | DB49: 0.44 | DC49: 0.72 | DD49: 1.41 | DE49: 2.38 | DF49: 1.13 | DG49: 1.16 | DH49: 0.92 | DI49: 0.43 | DJ49: 0.29 | DK49: 0.42 | DL49: 0.21 | DM49: 0.89 | DN49: 0.37 | DO49: 0.61 | DP49: 0.01 | DQ49: 0.19 | DR49: 0.25 | DS49: 0.53 | DT49: 0.66 | DU49: 0.33 | DV49: 0.24 | DW49: 0.01 | DX49: 0.37 | DY49: 0 | DZ49: 0.15 | EA49: 0.14 | EB49: 0.35 | EC49: 0.94 | ED49: 0.03 | EE49: 0.18 | EF49: 0.08 | EG49: 0 | EH49: 0.19 | EI49: 1.06 | EJ49: 0.08 | EK49: 0.29 | EL49: 0.16 | EM49: 0.19 | EN49: 0.05 | EO49: 0.1 | EP49: 0.26 | EQ49: 0.16 | ER49: 0.03 | ES49: 0 | ET49: 0 | EU49: 0 | EV49: 0 | EW49: 0 | EX49: 0 | EY49: 0 | EZ49: 0 | FA49: 0 | FB49: 0 | FC49: 0 | FD49: 0 | FE49: 0 | FF49: 0 | FG49: 0 | FH49: 0 | FI49: 0 | FJ49: 0 | FK49: 0 | FL49: 0 | FM49: 0 | FN49: 0 | FO49: 0 | FP49: 0 | FQ49: 0 | FR49: 0 | FS49: 0 | FT49: 0 | FU49: 0 | FV49: 0 | FW49: 0 | FX49: 0 | FY49: 0 | FZ49: 0 | GA49: 0 | GB49: 0 | GC49: 0 | GD49: 0 | GE49: 0 | GF49: 0 | GG49: 0 | GH49: 0 | GI49: 0 | GJ49: 0
A50: 4 | D50: Substation Switchgear Equipment By Highest Operating Voltage; Equipment Type | E50: > 275 kV & < = 330 kV ; Air Insulated Isolators / Earth Switch | F50: 0.01 | G50: 39.82880706 | H50: 6.311006818 | I50: 2 | J50: 0 | K50: 0 | L50: 0 | M50: 9 | N50: 0 | O50: 0 | P50: 2 | Q50: 5 | R50: 1 | S50: 0 | T50: 28 | U50: 0 | V50: 0 | W50: 0 | X50: 0 | Y50: 0 | Z50: 0 | AA50: 0 | AB50: 0 | AC50: 0 | AD50: 0 | AE50: 0 | AF50: 0 | AG50: 0 | AH50: 0 | AI50: 0 | AJ50: 0 | AK50: 0 | AL50: 0 | AM50: 0 | AN50: 0 | AO50: 0 | AP50: 0 | AQ50: 0 | AR50: 0 | AS50: 0 | AT50: 0 | AU50: 0 | AV50: 0 | AW50: 0 | AX50: 0 | AY50: 0 | AZ50: 0 | BA50: 0 | BB50: 0 | BC50: 0 | BD50: 0 | BE50: 0 | BF50: 0 | BG50: 0 | BH50: 0 | BI50: 0 | BJ50: 0 | BK50: 0 | BL50: 0 | BM50: 0 | BN50: 0 | BO50: 0 | BP50: 0 | BQ50: 0 | BR50: 0 | BS50: 0 | BT50: 0 | BU50: 0 | BV50: 0 | BW50: 0 | BX50: 0 | BY50: 0 | BZ50: 0 | CA50: 0 | CB50: 0 | CC50: 0 | CD50: 0 | CE50: 0 | CF50: 0 | CG50: 0 | CH50: 0 | CI50: 0 | CJ50: 0 | CK50: 0 | CL50: 0 | CM50: 0 | CN50: 0 | CO50: 0 | CP50: 0 | CQ50: 0 | CR50: 0 | CS50: 0 | CT50: 0 | CU50: 0 | CV50: 0 | CX50: 0 | CY50: 0 | CZ50: 0 | DA50: 0.09 | DB50: 0 | DC50: 0 | DD50: 0.02 | DE50: 0.05 | DF50: 0.01 | DG50: 0 | DH50: 0.28 | DI50: 0 | DJ50: 0 | DK50: 0 | DL50: 0 | DM50: 0 | DN50: 0 | DO50: 0 | DP50: 0 | DQ50: 0 | DR50: 0 | DS50: 0 | DT50: 0 | DU50: 0 | DV50: 0 | DW50: 0 | DX50: 0 | DY50: 0 | DZ50: 0 | EA50: 0 | EB50: 0 | EC50: 0 | ED50: 0 | EE50: 0 | EF50: 0 | EG50: 0 | EH50: 0 | EI50: 0 | EJ50: 0 | EK50: 0 | EL50: 0 | EM50: 0 | EN50: 0 | EO50: 0 | EP50: 0 | EQ50: 0 | ER50: 0 | ES50: 0 | ET50: 0 | EU50: 0 | EV50: 0 | EW50: 0 | EX50: 0 | EY50: 0 | EZ50: 0 | FA50: 0 | FB50: 0 | FC50: 0 | FD50: 0 | FE50: 0 | FF50: 0 | FG50: 0 | FH50: 0 | FI50: 0 | FJ50: 0 | FK50: 0 | FL50: 0 | FM50: 0 | FN50: 0 | FO50: 0 | FP50: 0 | FQ50: 0 | FR50: 0 | FS50: 0 | FT50: 0 | FU50: 0 | FV50: 0 | FW50: 0 | FX50: 0 | FY50: 0 | FZ50: 0 | GA50: 0 | GB50: 0 | GC50: 0 | GD50: 0 | GE50: 0 | GF50: 0 | GG50: 0 | GH50: 0 | GI50: 0 | GJ50: 0
A51: 4 | D51: Substation Switchgear Equipment By Highest Operating Voltage; Equipment Type | E51: < = 33 kV; VT | F51: 0.01 | G51: =StdLife_VT -> 34.59472923 | H51: 5.881728422 | I51: 2 | J51: 0 | K51: 6 | L51: 0 | M51: 0 | N51: 0 | O51: 0 | P51: 0 | Q51: 1 | R51: 3 | S51: 0 | T51: 0 | U51: 0 | V51: 0 | W51: 1 | X51: 0 | Y51: 2 | Z51: 0 | AA51: 0 | AB51: 0 | AC51: 0 | AD51: 0 | AE51: 0 | AF51: 1 | AG51: 0 | AH51: 0 | AI51: 0 | AJ51: 0 | AK51: 0 | AL51: 0 | AM51: 0 | AN51: 0 | AO51: 0 | AP51: 0 | AQ51: 0 | AR51: 1 | AS51: 0 | AT51: 0 | AU51: 0 | AV51: 0 | AW51: 2 | AX51: 0 | AY51: 0 | AZ51: 0 | BA51: 1 | BB51: 1 | BC51: 0 | BD51: 0 | BE51: 0 | BF51: 0 | BG51: 0 | BH51: 0 | BI51: 0 | BJ51: 0 | BK51: 0 | BL51: 0 | BM51: 0 | BN51: 0 | BO51: 0 | BP51: 0 | BQ51: 0 | BR51: 0 | BS51: 0 | BT51: 0 | BU51: 0 | BV51: 0 | BW51: 0 | BX51: 0 | BY51: 0 | BZ51: 0 | CA51: 0 | CB51: 0 | CC51: 0 | CD51: 0 | CE51: 0 | CF51: 0 | CG51: 0 | CH51: 0 | CI51: 0 | CJ51: 0 | CK51: 0 | CL51: 0 | CM51: 0 | CN51: 0 | CO51: 0 | CP51: 0 | CQ51: 0 | CR51: 0 | CS51: 0 | CT51: 0 | CU51: 0 | CV51: 0 | CX51: 0 | CY51: 0.06 | CZ51: 0 | DA51: 0 | DB51: 0 | DC51: 0 | DD51: 0 | DE51: 0.01 | DF51: 0.03 | DG51: 0 | DH51: 0 | DI51: 0 | DJ51: 0 | DK51: 0.01 | DL51: 0 | DM51: 0.02 | DN51: 0 | DO51: 0 | DP51: 0 | DQ51: 0 | DR51: 0 | DS51: 0 | DT51: 0.01 | DU51: 0 | DV51: 0 | DW51: 0 | DX51: 0 | DY51: 0 | DZ51: 0 | EA51: 0 | EB51: 0 | EC51: 0 | ED51: 0 | EE51: 0 | EF51: 0.01 | EG51: 0 | EH51: 0 | EI51: 0 | EJ51: 0 | EK51: 0.02 | EL51: 0 | EM51: 0 | EN51: 0 | EO51: 0.01 | EP51: 0.01 | EQ51: 0 | ER51: 0 | ES51: 0 | ET51: 0 | EU51: 0 | EV51: 0 | EW51: 0 | EX51: 0 | EY51: 0 | EZ51: 0 | FA51: 0 | FB51: 0 | FC51: 0 | FD51: 0 | FE51: 0 | FF51: 0 | FG51: 0 | FH51: 0 | FI51: 0 | FJ51: 0 | FK51: 0 | FL51: 0 | FM51: 0 | FN51: 0 | FO51: 0 | FP51: 0 | FQ51: 0 | FR51: 0 | FS51: 0 | FT51: 0 | FU51: 0 | FV51: 0 | FW51: 0 | FX51: 0 | FY51: 0 | FZ51: 0 | GA51: 0 | GB51: 0 | GC51: 0 | GD51: 0 | GE51: 0 | GF51: 0 | GG51: 0 | GH51: 0 | GI51: 0 | GJ51: 0
A52: 4 | D52: Substation Switchgear Equipment By Highest Operating Voltage; Equipment Type | E52: > 33 kV & < = 66 kV ; VT | F52: 0.01 | G52: =StdLife_VT -> 34.59472923 | H52: 5.881728422 | I52: 2 | J52: 0 | K52: 0 | L52: 3 | M52: 0 | N52: 0 | O52: 0 | P52: 0 | Q52: 0 | R52: 3 | S52: 0 | T52: 3 | U52: 3 | V52: 0 | W52: 3 | X52: 0 | Y52: 11 | Z52: 0 | AA52: 4 | AB52: 0 | AC52: 0 | AD52: 0 | AE52: 0 | AF52: 0 | AG52: 0 | AH52: 0 | AI52: 0 | AJ52: 0 | AK52: 0 | AL52: 0 | AM52: 6 | AN52: 3 | AO52: 0 | AP52: 0 | AQ52: 6 | AR52: 0 | AS52: 0 | AT52: 0 | AU52: 6 | AV52: 0 | AW52: 0 | AX52: 4 | AY52: 0 | AZ52: 0 | BA52: 0 | BB52: 0 | BC52: 0 | BD52: 0 | BE52: 0 | BF52: 0 | BG52: 0 | BH52: 0 | BI52: 0 | BJ52: 0 | BK52: 0 | BL52: 0 | BM52: 0 | BN52: 0 | BO52: 0 | BP52: 0 | BQ52: 0 | BR52: 0 | BS52: 0 | BT52: 0 | BU52: 0 | BV52: 0 | BW52: 0 | BX52: 0 | BY52: 0 | BZ52: 0 | CA52: 0 | CB52: 0 | CC52: 0 | CD52: 0 | CE52: 0 | CF52: 0 | CG52: 0 | CH52: 0 | CI52: 0 | CJ52: 0 | CK52: 0 | CL52: 0 | CM52: 0 | CN52: 0 | CO52: 0 | CP52: 0 | CQ52: 0 | CR52: 0 | CS52: 0 | CT52: 0 | CU52: 0 | CV52: 0 | CX52: 0 | CY52: 0 | CZ52: 0.03 | DA52: 0 | DB52: 0 | DC52: 0 | DD52: 0 | DE52: 0 | DF52: 0.03 | DG52: 0 | DH52: 0.03 | DI52: 0.03 | DJ52: 0 | DK52: 0.03 | DL52: 0 | DM52: 0.11 | DN52: 0 | DO52: 0.04 | DP52: 0 | DQ52: 0 | DR52: 0 | DS52: 0 | DT52: 0 | DU52: 0 | DV52: 0 | DW52: 0 | DX52: 0 | DY52: 0 | DZ52: 0 | EA52: 0.06 | EB52: 0.03 | EC52: 0 | ED52: 0 | EE52: 0.06 | EF52: 0 | EG52: 0 | EH52: 0 | EI52: 0.06 | EJ52: 0 | EK52: 0 | EL52: 0.04 | EM52: 0 | EN52: 0 | EO52: 0 | EP52: 0 | EQ52: 0 | ER52: 0 | ES52: 0 | ET52: 0 | EU52: 0 | EV52: 0 | EW52: 0 | EX52: 0 | EY52: 0 | EZ52: 0 | FA52: 0 | FB52: 0 | FC52: 0 | FD52: 0 | FE52: 0 | FF52: 0 | FG52: 0 | FH52: 0 | FI52: 0 | FJ52: 0 | FK52: 0 | FL52: 0 | FM52: 0 | FN52: 0 | FO52: 0 | FP52: 0 | FQ52: 0 | FR52: 0 | FS52: 0 | FT52: 0 | FU52: 0 | FV52: 0 | FW52: 0 | FX52: 0 | FY52: 0 | FZ52: 0 | GA52: 0 | GB52: 0 | GC52: 0 | GD52: 0 | GE52: 0 | GF52: 0 | GG52: 0 | GH52: 0 | GI52: 0 | GJ52: 0
A53: 4 | D53: =IF(A53>0,VLOOKUP(A53,IDtable,2),"") -> Substation Switchgear Equipment By Highest Operating Voltage; Equipment Type | E53: > 66 kV & < = 132 kV ; VT | F53: 0.01 | G53: =StdLife_VT -> 34.59472923 | H53: 5.881728422 | I53: 2 | J53: 31 | K53: 94 | L53: 73 | M53: 62 | N53: 64 | O53: 132 | P53: 116 | Q53: 58 | R53: 103 | S53: 39 | T53: 49 | U53: 17 | V53: 83 | W53: 50 | X53: 32 | Y53: 32 | Z53: 7 | AA53: 33 | AB53: 20 | AC53: 5 | AD53: 7 | AE53: 7 | AF53: 6 | AG53: 5 | AH53: 2 | AI53: 0 | AJ53: 5 | AK53: 16 | AL53: 26 | AM53: 26 | AN53: 39 | AO53: 4 | AP53: 22 | AQ53: 8 | AR53: 0 | AS53: 0 | AT53: 4 | AU53: 17 | AV53: 0 | AW53: 9 | AX53: 3 | AY53: 10 | AZ53: 0 | BA53: 1 | BB53: 0 | BC53: 0 | BD53: 0 | BE53: 3 | BF53: 7 | BG53: 1 | BH53: 0 | BI53: 0 | BJ53: 2 | BK53: 0 | BL53: 0 | BM53: 0 | BN53: 0 | BO53: 0 | BP53: 0 | BQ53: 0 | BR53: 0 | BS53: 0 | BT53: 0 | BU53: 0 | BV53: 0 | BW53: 0 | BX53: 0 | BY53: 0 | BZ53: 0 | CA53: 0 | CB53: 0 | CC53: 0 | CD53: 0 | CE53: 0 | CF53: 0 | CG53: 0 | CH53: 0 | CI53: 0 | CJ53: 0 | CK53: 0 | CL53: 0 | CM53: 0 | CN53: 0 | CO53: 0 | CP53: 0 | CQ53: 0 | CR53: 0 | CS53: 0 | CT53: 0 | CU53: 0 | CV53: 0 | CX53: 0.31 | CY53: 0.94 | CZ53: 0.73 | DA53: 0.62 | DB53: 0.64 | DC53: 1.32 | DD53: 1.16 | DE53: 0.58 | DF53: 1.03 | DG53: 0.39 | DH53: 0.49 | DI53: 0.17 | DJ53: 0.83 | DK53: 0.5 | DL53: 0.32 | DM53: 0.32 | DN53: 0.07 | DO53: 0.33 | DP53: 0.2 | DQ53: 0.05 | DR53: 0.07 | DS53: 0.07 | DT53: 0.06 | DU53: 0.05 | DV53: 0.02 | DW53: 0 | DX53: 0.05 | DY53: 0.16 | DZ53: 0.26 | EA53: 0.26 | EB53: 0.39 | EC53: 0.04 | ED53: 0.22 | EE53: 0.08 | EF53: 0 | EG53: 0 | EH53: 0.04 | EI53: 0.17 | EJ53: 0 | EK53: 0.09 | EL53: 0.03 | EM53: 0.1 | EN53: 0 | EO53: 0.01 | EP53: 0 | EQ53: 0 | ER53: 0 | ES53: 0.03 | ET53: 0.07 | EU53: 0.01 | EV53: 0 | EW53: 0 | EX53: 0.02 | EY53: 0 | EZ53: 0 | FA53: 0 | FB53: 0 | FC53: 0 | FD53: 0 | FE53: 0 | FF53: 0 | FG53: 0 | FH53: 0 | FI53: 0 | FJ53: 0 | FK53: 0 | FL53: 0 | FM53: 0 | FN53: 0 | FO53: 0 | FP53: 0 | FQ53: 0 | FR53: 0 | FS53: 0 | FT53: 0 | FU53: 0 | FV53: 0 | FW53: 0 | FX53: 0 | FY53: 0 | FZ53: 0 | GA53: 0 | GB53: 0 | GC53: 0 | GD53: 0 | GE53: 0 | GF53: 0 | GG53: 0 | GH53: 0 | GI53: 0 | GJ53: 0
A54: 4 | D54: Substation Switchgear Equipment By Highest Operating Voltage; Equipment Type | E54: > 132 kV & < = 275 kV ; VT | F54: 0.01 | G54: =StdLife_VT -> 34.59472923 | H54: 5.881728422 | I54: 2 | J54: 45 | K54: 58 | L54: 81 | M54: 60 | N54: 29 | O54: 22 | P54: 39 | Q54: 60 | R54: 42 | S54: 34 | T54: 24 | U54: 6 | V54: 10 | W54: 21 | X54: 0 | Y54: 37 | Z54: 15 | AA54: 15 | AB54: 15 | AC54: 0 | AD54: 6 | AE54: 4 | AF54: 1 | AG54: 0 | AH54: 1 | AI54: 0 | AJ54: 3 | AK54: 5 | AL54: 1 | AM54: 0 | AN54: 22 | AO54: 50 | AP54: 4 | AQ54: 0 | AR54: 0 | AS54: 0 | AT54: 0 | AU54: 15 | AV54: 0 | AW54: 0 | AX54: 6 | AY54: 1 | AZ54: 6 | BA54: 0 | BB54: 0 | BC54: 3 | BD54: 0 | BE54: 0 | BF54: 0 | BG54: 0 | BH54: 0 | BI54: 0 | BJ54: 0 | BK54: 0 | BL54: 0 | BM54: 0 | BN54: 0 | BO54: 0 | BP54: 0 | BQ54: 0 | BR54: 0 | BS54: 0 | BT54: 0 | BU54: 0 | BV54: 0 | BW54: 0 | BX54: 0 | BY54: 0 | BZ54: 0 | CA54: 0 | CB54: 0 | CC54: 0 | CD54: 0 | CE54: 0 | CF54: 0 | CG54: 0 | CH54: 0 | CI54: 0 | CJ54: 0 | CK54: 0 | CL54: 0 | CM54: 0 | CN54: 0 | CO54: 0 | CP54: 0 | CQ54: 0 | CR54: 0 | CS54: 0 | CT54: 0 | CU54: 0 | CV54: 0 | CX54: 0.45 | CY54: 0.58 | CZ54: 0.81 | DA54: 0.6 | DB54: 0.29 | DC54: 0.22 | DD54: 0.39 | DE54: 0.6 | DF54: 0.42 | DG54: 0.34 | DH54: 0.24 | DI54: 0.06 | DJ54: 0.1 | DK54: 0.21 | DL54: 0 | DM54: 0.37 | DN54: 0.15 | DO54: 0.15 | DP54: 0.15 | DQ54: 0 | DR54: 0.06 | DS54: 0.04 | DT54: 0.01 | DU54: 0 | DV54: 0.01 | DW54: 0 | DX54: 0.03 | DY54: 0.05 | DZ54: 0.01 | EA54: 0 | EB54: 0.22 | EC54: 0.5 | ED54: 0.04 | EE54: 0 | EF54: 0 | EG54: 0 | EH54: 0 | EI54: 0.15 | EJ54: 0 | EK54: 0 | EL54: 0.06 | EM54: 0.01 | EN54: 0.06 | EO54: 0 | EP54: 0 | EQ54: 0.03 | ER54: 0 | ES54: 0 | ET54: 0 | EU54: 0 | EV54: 0 | EW54: 0 | EX54: 0 | EY54: 0 | EZ54: 0 | FA54: 0 | FB54: 0 | FC54: 0 | FD54: 0 | FE54: 0 | FF54: 0 | FG54: 0 | FH54: 0 | FI54: 0 | FJ54: 0 | FK54: 0 | FL54: 0 | FM54: 0 | FN54: 0 | FO54: 0 | FP54: 0 | FQ54: 0 | FR54: 0 | FS54: 0 | FT54: 0 | FU54: 0 | FV54: 0 | FW54: 0 | FX54: 0 | FY54: 0 | FZ54: 0 | GA54: 0 | GB54: 0 | GC54: 0 | GD54: 0 | GE54: 0 | GF54: 0 | GG54: 0 | GH54: 0 | GI54: 0 | GJ54: 0
A55: 4 | D55: Substation Switchgear Equipment By Highest Operating Voltage; Equipment Type | E55: > 275 kV & < = 330 kV ; VT | F55: 0.01 | G55: =StdLife_VT -> 34.59472923 | H55: 5.881728422 | I55: 2 | J55: 0 | K55: 0 | L55: 0 | M55: 0 | N55: 0 | O55: 3 | P55: 0 | Q55: 3 | R55: 0 | S55: 0 | T55: 10 | U55: 0 | V55: 0 | W55: 0 | X55: 0 | Y55: 0 | Z55: 0 | AA55: 0 | AB55: 0 | AC55: 0 | AD55: 0 | AE55: 0 | AF55: 0 | AG55: 0 | AH55: 0 | AI55: 0 | AJ55: 0 | AK55: 0 | AL55: 0 | AM55: 0 | AN55: 0 | AO55: 0 | AP55: 0 | AQ55: 0 | AR55: 0 | AS55: 0 | AT55: 0 | AU55: 0 | AV55: 0 | AW55: 0 | AX55: 0 | AY55: 0 | AZ55: 0 | BA55: 0 | BB55: 0 | BC55: 0 | BD55: 0 | BE55: 0 | BF55: 0 | BG55: 0 | BH55: 0 | BI55: 0 | BJ55: 0 | BK55: 0 | BL55: 0 | BM55: 0 | BN55: 0 | BO55: 0 | BP55: 0 | BQ55: 0 | BR55: 0 | BS55: 0 | BT55: 0 | BU55: 0 | BV55: 0 | BW55: 0 | BX55: 0 | BY55: 0 | BZ55: 0 | CA55: 0 | CB55: 0 | CC55: 0 | CD55: 0 | CE55: 0 | CF55: 0 | CG55: 0 | CH55: 0 | CI55: 0 | CJ55: 0 | CK55: 0 | CL55: 0 | CM55: 0 | CN55: 0 | CO55: 0 | CP55: 0 | CQ55: 0 | CR55: 0 | CS55: 0 | CT55: 0 | CU55: 0 | CV55: 0 | CX55: 0 | CY55: 0 | CZ55: 0 | DA55: 0 | DB55: 0 | DC55: 0.03 | DD55: 0 | DE55: 0.03 | DF55: 0 | DG55: 0 | DH55: 0.1 | DI55: 0 | DJ55: 0 | DK55: 0 | DL55: 0 | DM55: 0 | DN55: 0 | DO55: 0 | DP55: 0 | DQ55: 0 | DR55: 0 | DS55: 0 | DT55: 0 | DU55: 0 | DV55: 0 | DW55: 0 | DX55: 0 | DY55: 0 | DZ55: 0 | EA55: 0 | EB55: 0 | EC55: 0 | ED55: 0 | EE55: 0 | EF55: 0 | EG55: 0 | EH55: 0 | EI55: 0 | EJ55: 0 | EK55: 0 | EL55: 0 | EM55: 0 | EN55: 0 | EO55: 0 | EP55: 0 | EQ55: 0 | ER55: 0 | ES55: 0 | ET55: 0 | EU55: 0 | EV55: 0 | EW55: 0 | EX55: 0 | EY55: 0 | EZ55: 0 | FA55: 0 | FB55: 0 | FC55: 0 | FD55: 0 | FE55: 0 | FF55: 0 | FG55: 0 | FH55: 0 | FI55: 0 | FJ55: 0 | FK55: 0 | FL55: 0 | FM55: 0 | FN55: 0 | FO55: 0 | FP55: 0 | FQ55: 0 | FR55: 0 | FS55: 0 | FT55: 0 | FU55: 0 | FV55: 0 | FW55: 0 | FX55: 0 | FY55: 0 | FZ55: 0 | GA55: 0 | GB55: 0 | GC55: 0 | GD55: 0 | GE55: 0 | GF55: 0 | GG55: 0 | GH55: 0 | GI55: 0 | GJ55: 0
A56: 4 | D56: Substation Switchgear Equipment By Highest Operating Voltage; Equipment Type | E56: < = 33 kV; CT | F56: 0.01 | G56: =StdLife_CT -> 33.18087017 | H56: 5.760283862 | I56: 2 | J56: 0 | K56: 0 | L56: 12 | M56: 0 | N56: 0 | O56: 0 | P56: 0 | Q56: 3 | R56: 18 | S56: 0 | T56: 0 | U56: 1 | V56: 42 | W56: 0 | X56: 0 | Y56: 0 | Z56: 0 | AA56: 0 | AB56: 0 | AC56: 0 | AD56: 3 | AE56: 0 | AF56: 0 | AG56: 3 | AH56: 0 | AI56: 0 | AJ56: 0 | AK56: 0 | AL56: 0 | AM56: 0 | AN56: 0 | AO56: 0 | AP56: 0 | AQ56: 0 | AR56: 0 | AS56: 0 | AT56: 0 | AU56: 2 | AV56: 0 | AW56: 0 | AX56: 0 | AY56: 0 | AZ56: 2 | BA56: 0 | BB56: 0 | BC56: 0 | BD56: 0 | BE56: 0 | BF56: 0 | BG56: 0 | BH56: 0 | BI56: 0 | BJ56: 0 | BK56: 0 | BL56: 0 | BM56: 0 | BN56: 0 | BO56: 0 | BP56: 0 | BQ56: 0 | BR56: 0 | BS56: 0 | BT56: 0 | BU56: 0 | BV56: 0 | BW56: 0 | BX56: 0 | BY56: 0 | BZ56: 0 | CA56: 0 | CB56: 0 | CC56: 0 | CD56: 0 | CE56: 0 | CF56: 0 | CG56: 0 | CH56: 0 | CI56: 0 | CJ56: 0 | CK56: 0 | CL56: 0 | CM56: 0 | CN56: 0 | CO56: 0 | CP56: 0 | CQ56: 0 | CR56: 0 | CS56: 0 | CT56: 0 | CU56: 0 | CV56: 0 | CX56: 0 | CY56: 0 | CZ56: 0.12 | DA56: 0 | DB56: 0 | DC56: 0 | DD56: 0 | DE56: 0.03 | DF56: 0.18 | DG56: 0 | DH56: 0 | DI56: 0.01 | DJ56: 0.42 | DK56: 0 | DL56: 0 | DM56: 0 | DN56: 0 | DO56: 0 | DP56: 0 | DQ56: 0 | DR56: 0.03 | DS56: 0 | DT56: 0 | DU56: 0.03 | DV56: 0 | DW56: 0 | DX56: 0 | DY56: 0 | DZ56: 0 | EA56: 0 | EB56: 0 | EC56: 0 | ED56: 0 | EE56: 0 | EF56: 0 | EG56: 0 | EH56: 0 | EI56: 0.02 | EJ56: 0 | EK56: 0 | EL56: 0 | EM56: 0 | EN56: 0.02 | EO56: 0 | EP56: 0 | EQ56: 0 | ER56: 0 | ES56: 0 | ET56: 0 | EU56: 0 | EV56: 0 | EW56: 0 | EX56: 0 | EY56: 0 | EZ56: 0 | FA56: 0 | FB56: 0 | FC56: 0 | FD56: 0 | FE56: 0 | FF56: 0 | FG56: 0 | FH56: 0 | FI56: 0 | FJ56: 0 | FK56: 0 | FL56: 0 | FM56: 0 | FN56: 0 | FO56: 0 | FP56: 0 | FQ56: 0 | FR56: 0 | FS56: 0 | FT56: 0 | FU56: 0 | FV56: 0 | FW56: 0 | FX56: 0 | FY56: 0 | FZ56: 0 | GA56: 0 | GB56: 0 | GC56: 0 | GD56: 0 | GE56: 0 | GF56: 0 | GG56: 0 | GH56: 0 | GI56: 0 | GJ56: 0
A57: 4 | D57: Substation Switchgear Equipment By Highest Operating Voltage; Equipment Type | E57: > 33 kV & < = 66 kV ; CT | F57: 0.01 | G57: =StdLife_CT -> 33.18087017 | H57: 5.760283862 | I57: 2 | J57: 3 | K57: 0 | L57: 15 | M57: 42 | N57: 0 | O57: 0 | P57: 12 | Q57: 0 | R57: 3 | S57: 0 | T57: 5 | U57: 1 | V57: 0 | W57: 3 | X57: 2 | Y57: 4 | Z57: 3 | AA57: 9 | AB57: 1 | AC57: 0 | AD57: 0 | AE57: 0 | AF57: 0 | AG57: 0 | AH57: 0 | AI57: 0 | AJ57: 3 | AK57: 0 | AL57: 0 | AM57: 6 | AN57: 0 | AO57: 0 | AP57: 0 | AQ57: 6 | AR57: 2 | AS57: 0 | AT57: 0 | AU57: 0 | AV57: 0 | AW57: 0 | AX57: 3 | AY57: 3 | AZ57: 0 | BA57: 0 | BB57: 0 | BC57: 0 | BD57: 0 | BE57: 0 | BF57: 0 | BG57: 0 | BH57: 0 | BI57: 0 | BJ57: 0 | BK57: 0 | BL57: 0 | BM57: 0 | BN57: 0 | BO57: 0 | BP57: 0 | BQ57: 0 | BR57: 0 | BS57: 0 | BT57: 0 | BU57: 0 | BV57: 0 | BW57: 0 | BX57: 0 | BY57: 0 | BZ57: 0 | CA57: 0 | CB57: 0 | CC57: 0 | CD57: 0 | CE57: 0 | CF57: 0 | CG57: 0 | CH57: 0 | CI57: 0 | CJ57: 0 | CK57: 0 | CL57: 0 | CM57: 0 | CN57: 0 | CO57: 0 | CP57: 0 | CQ57: 0 | CR57: 0 | CS57: 0 | CT57: 0 | CU57: 0 | CV57: 0 | CX57: 0.03 | CY57: 0 | CZ57: 0.15 | DA57: 0.42 | DB57: 0 | DC57: 0 | DD57: 0.12 | DE57: 0 | DF57: 0.03 | DG57: 0 | DH57: 0.05 | DI57: 0.01 | DJ57: 0 | DK57: 0.03 | DL57: 0.02 | DM57: 0.04 | DN57: 0.03 | DO57: 0.09 | DP57: 0.01 | DQ57: 0 | DR57: 0 | DS57: 0 | DT57: 0 | DU57: 0 | DV57: 0 | DW57: 0 | DX57: 0.03 | DY57: 0 | DZ57: 0 | EA57: 0.06 | EB57: 0 | EC57: 0 | ED57: 0 | EE57: 0.06 | EF57: 0.02 | EG57: 0 | EH57: 0 | EI57: 0 | EJ57: 0 | EK57: 0 | EL57: 0.03 | EM57: 0.03 | EN57: 0 | EO57: 0 | EP57: 0 | EQ57: 0 | ER57: 0 | ES57: 0 | ET57: 0 | EU57: 0 | EV57: 0 | EW57: 0 | EX57: 0 | EY57: 0 | EZ57: 0 | FA57: 0 | FB57: 0 | FC57: 0 | FD57: 0 | FE57: 0 | FF57: 0 | FG57: 0 | FH57: 0 | FI57: 0 | FJ57: 0 | FK57: 0 | FL57: 0 | FM57: 0 | FN57: 0 | FO57: 0 | FP57: 0 | FQ57: 0 | FR57: 0 | FS57: 0 | FT57: 0 | FU57: 0 | FV57: 0 | FW57: 0 | FX57: 0 | FY57: 0 | FZ57: 0 | GA57: 0 | GB57: 0 | GC57: 0 | GD57: 0 | GE57: 0 | GF57: 0 | GG57: 0 | GH57: 0 | GI57: 0 | GJ57: 0
A58: 4 | D58: Substation Switchgear Equipment By Highest Operating Voltage; Equipment Type | E58: > 66 kV & < = 132 kV ; CT | F58: 0.01 | G58: =StdLife_CT -> 33.18087017 | H58: 5.760283862 | I58: 2 | J58: 48 | K58: 244 | L58: 178 | M58: 111 | N58: 42 | O58: 109 | P58: 118 | Q58: 42 | R58: 32 | S58: 69 | T58: 63 | U58: 12 | V58: 15 | W58: 9 | X58: 70 | Y58: 52 | Z58: 32 | AA58: 49 | AB58: 19 | AC58: 0 | AD58: 25 | AE58: 1 | AF58: 5 | AG58: 12 | AH58: 15 | AI58: 0 | AJ58: 18 | AK58: 8 | AL58: 33 | AM58: 26 | AN58: 57 | AO58: 45 | AP58: 31 | AQ58: 11 | AR58: 15 | AS58: 6 | AT58: 36 | AU58: 12 | AV58: 0 | AW58: 14 | AX58: 8 | AY58: 0 | AZ58: 0 | BA58: 0 | BB58: 3 | BC58: 1 | BD58: 6 | BE58: 8 | BF58: 3 | BG58: 5 | BH58: 0 | BI58: 0 | BJ58: 2 | BK58: 0 | BL58: 0 | BM58: 0 | BN58: 0 | BO58: 0 | BP58: 0 | BQ58: 0 | BR58: 0 | BS58: 0 | BT58: 0 | BU58: 0 | BV58: 0 | BW58: 0 | BX58: 0 | BY58: 0 | BZ58: 0 | CA58: 0 | CB58: 0 | CC58: 0 | CD58: 0 | CE58: 0 | CF58: 0 | CG58: 0 | CH58: 0 | CI58: 0 | CJ58: 0 | CK58: 0 | CL58: 0 | CM58: 0 | CN58: 0 | CO58: 0 | CP58: 0 | CQ58: 0 | CR58: 0 | CS58: 0 | CT58: 0 | CU58: 0 | CV58: 0 | CX58: 0.48 | CY58: 2.44 | CZ58: 1.78 | DA58: 1.11 | DB58: 0.42 | DC58: 1.09 | DD58: 1.18 | DE58: 0.42 | DF58: 0.32 | DG58: 0.69 | DH58: 0.63 | DI58: 0.12 | DJ58: 0.15 | DK58: 0.09 | DL58: 0.7 | DM58: 0.52 | DN58: 0.32 | DO58: 0.49 | DP58: 0.19 | DQ58: 0 | DR58: 0.25 | DS58: 0.01 | DT58: 0.05 | DU58: 0.12 | DV58: 0.15 | DW58: 0 | DX58: 0.18 | DY58: 0.08 | DZ58: 0.33 | EA58: 0.26 | EB58: 0.57 | EC58: 0.45 | ED58: 0.31 | EE58: 0.11 | EF58: 0.15 | EG58: 0.06 | EH58: 0.36 | EI58: 0.12 | EJ58: 0 | EK58: 0.14 | EL58: 0.08 | EM58: 0 | EN58: 0 | EO58: 0 | EP58: 0.03 | EQ58: 0.01 | ER58: 0.06 | ES58: 0.08 | ET58: 0.03 | EU58: 0.05 | EV58: 0 | EW58: 0 | EX58: 0.02 | EY58: 0 | EZ58: 0 | FA58: 0 | FB58: 0 | FC58: 0 | FD58: 0 | FE58: 0 | FF58: 0 | FG58: 0 | FH58: 0 | FI58: 0 | FJ58: 0 | FK58: 0 | FL58: 0 | FM58: 0 | FN58: 0 | FO58: 0 | FP58: 0 | FQ58: 0 | FR58: 0 | FS58: 0 | FT58: 0 | FU58: 0 | FV58: 0 | FW58: 0 | FX58: 0 | FY58: 0 | FZ58: 0 | GA58: 0 | GB58: 0 | GC58: 0 | GD58: 0 | GE58: 0 | GF58: 0 | GG58: 0 | GH58: 0 | GI58: 0 | GJ58: 0
A59: 4 | D59: Substation Switchgear Equipment By Highest Operating Voltage; Equipment Type | E59: > 132 kV & < = 275 kV ; CT | F59: 0.01 | G59: =StdLife_CT -> 33.18087017 | H59: 5.760283862 | I59: 2 | J59: 130 | K59: 112 | L59: 96 | M59: 100 | N59: 21 | O59: 64 | P59: 89 | Q59: 126 | R59: 75 | S59: 80 | T59: 46 | U59: 11 | V59: 23 | W59: 40 | X59: 0 | Y59: 16 | Z59: 9 | AA59: 39 | AB59: 0 | AC59: 8 | AD59: 0 | AE59: 1 | AF59: 36 | AG59: 15 | AH59: 0 | AI59: 0 | AJ59: 14 | AK59: 10 | AL59: 10 | AM59: 16 | AN59: 18 | AO59: 8 | AP59: 18 | AQ59: 0 | AR59: 0 | AS59: 0 | AT59: 0 | AU59: 24 | AV59: 0 | AW59: 0 | AX59: 48 | AY59: 0 | AZ59: 0 | BA59: 0 | BB59: 0 | BC59: 0 | BD59: 0 | BE59: 0 | BF59: 0 | BG59: 0 | BH59: 0 | BI59: 0 | BJ59: 0 | BK59: 0 | BL59: 0 | BM59: 0 | BN59: 0 | BO59: 0 | BP59: 0 | BQ59: 0 | BR59: 0 | BS59: 0 | BT59: 0 | BU59: 0 | BV59: 0 | BW59: 0 | BX59: 0 | BY59: 0 | BZ59: 0 | CA59: 0 | CB59: 0 | CC59: 0 | CD59: 0 | CE59: 0 | CF59: 0 | CG59: 0 | CH59: 0 | CI59: 0 | CJ59: 0 | CK59: 0 | CL59: 0 | CM59: 0 | CN59: 0 | CO59: 0 | CP59: 0 | CQ59: 0 | CR59: 0 | CS59: 0 | CT59: 0 | CU59: 0 | CV59: 0 | CX59: 1.3 | CY59: 1.12 | CZ59: 0.96 | DA59: 1 | DB59: 0.21 | DC59: 0.64 | DD59: 0.89 | DE59: 1.26 | DF59: 0.75 | DG59: 0.8 | DH59: 0.46 | DI59: 0.11 | DJ59: 0.23 | DK59: 0.4 | DL59: 0 | DM59: 0.16 | DN59: 0.09 | DO59: 0.39 | DP59: 0 | DQ59: 0.08 | DR59: 0 | DS59: 0.01 | DT59: 0.36 | DU59: 0.15 | DV59: 0 | DW59: 0 | DX59: 0.14 | DY59: 0.1 | DZ59: 0.1 | EA59: 0.16 | EB59: 0.18 | EC59: 0.08 | ED59: 0.18 | EE59: 0 | EF59: 0 | EG59: 0 | EH59: 0 | EI59: 0.24 | EJ59: 0 | EK59: 0 | EL59: 0.48 | EM59: 0 | EN59: 0 | EO59: 0 | EP59: 0 | EQ59: 0 | ER59: 0 | ES59: 0 | ET59: 0 | EU59: 0 | EV59: 0 | EW59: 0 | EX59: 0 | EY59: 0 | EZ59: 0 | FA59: 0 | FB59: 0 | FC59: 0 | FD59: 0 | FE59: 0 | FF59: 0 | FG59: 0 | FH59: 0 | FI59: 0 | FJ59: 0 | FK59: 0 | FL59: 0 | FM59: 0 | FN59: 0 | FO59: 0 | FP59: 0 | FQ59: 0 | FR59: 0 | FS59: 0 | FT59: 0 | FU59: 0 | FV59: 0 | FW59: 0 | FX59: 0 | FY59: 0 | FZ59: 0 | GA59: 0 | GB59: 0 | GC59: 0 | GD59: 0 | GE59: 0 | GF59: 0 | GG59: 0 | GH59: 0 | GI59: 0 | GJ59: 0
A60: 4 | D60: Substation Switchgear Equipment By Highest Operating Voltage; Equipment Type | E60: > 275 kV & < = 330 kV ; CT | F60: 0.01 | G60: =StdLife_CT -> 33.18087017 | H60: 5.760283862 | I60: 2 | J60: 0 | K60: 0 | L60: 0 | M60: 9 | N60: 0 | O60: 0 | P60: 0 | Q60: 3 | R60: 0 | S60: 0 | T60: 12 | U60: 0 | V60: 0 | W60: 0 | X60: 0 | Y60: 0 | Z60: 0 | AA60: 0 | AB60: 0 | AC60: 0 | AD60: 0 | AE60: 0 | AF60: 0 | AG60: 0 | AH60: 0 | AI60: 0 | AJ60: 0 | AK60: 0 | AL60: 0 | AM60: 0 | AN60: 0 | AO60: 0 | AP60: 0 | AQ60: 0 | AR60: 0 | AS60: 0 | AT60: 0 | AU60: 0 | AV60: 0 | AW60: 0 | AX60: 0 | AY60: 0 | AZ60: 0 | BA60: 0 | BB60: 0 | BC60: 0 | BD60: 0 | BE60: 0 | BF60: 0 | BG60: 0 | BH60: 0 | BI60: 0 | BJ60: 0 | BK60: 0 | BL60: 0 | BM60: 0 | BN60: 0 | BO60: 0 | BP60: 0 | BQ60: 0 | BR60: 0 | BS60: 0 | BT60: 0 | BU60: 0 | BV60: 0 | BW60: 0 | BX60: 0 | BY60: 0 | BZ60: 0 | CA60: 0 | CB60: 0 | CC60: 0 | CD60: 0 | CE60: 0 | CX60: 0 | CY60: 0 | CZ60: 0 | DA60: 0.09 | DB60: 0 | DC60: 0 | DD60: 0 | DE60: 0.03 | DF60: 0 | DG60: 0 | DH60: 0.12 | DI60: 0 | DJ60: 0 | DK60: 0 | DL60: 0 | DM60: 0 | DN60: 0 | DO60: 0 | DP60: 0 | DQ60: 0 | DR60: 0 | DS60: 0 | DT60: 0 | DU60: 0 | DV60: 0 | DW60: 0 | DX60: 0 | DY60: 0 | DZ60: 0 | EA60: 0 | EB60: 0 | EC60: 0 | ED60: 0 | EE60: 0 | EF60: 0 | EG60: 0 | EH60: 0 | EI60: 0 | EJ60: 0 | EK60: 0 | EL60: 0 | EM60: 0 | EN60: 0 | EO60: 0 | EP60: 0 | EQ60: 0 | ER60: 0 | ES60: 0 | ET60: 0 | EU60: 0 | EV60: 0 | EW60: 0 | EX60: 0 | EY60: 0 | EZ60: 0 | FA60: 0 | FB60: 0 | FC60: 0 | FD60: 0 | FE60: 0 | FF60: 0 | FG60: 0 | FH60: 0 | FI60: 0 | FJ60: 0 | FK60: 0 | FL60: 0 | FM60: 0 | FN60: 0 | FO60: 0 | FP60: 0 | FQ60: 0 | FR60: 0 | FS60: 0 | FT60: 0 | FU60: 0 | FV60: 0 | FW60: 0 | FX60: 0 | FY60: 0 | FZ60: 0 | GA60: 0 | GB60: 0 | GC60: 0 | GD60: 0 | GE60: 0 | GF60: 0 | GG60: 0 | GH60: 0 | GI60: 0 | GJ60: 0
A62: 5 | D62: Secondary Systems and Telecommunications, by Function | E62: Secondary Systems (Bay or Non-bay) | F62: 725.0719983 | G62: =StdLife_SecSysBayNBay -> 20.23361768 | H62: 4.498179374 | I62: 2 | J62: 34 | K62: 126 | L62: 54 | M62: 169 | N62: 43 | O62: 120 | P62: 84 | Q62: 49 | R62: 67 | S62: 96 | T62: 56 | U62: 9 | V62: 79 | W62: 31 | X62: 53 | Y62: 34 | Z62: 28 | AA62: 23 | AB62: 39 | AC62: 30 | AD62: 7 | AE62: 12 | AF62: 3 | AG62: 17 | AH62: 6 | AI62: 1 | AJ62: 0 | AK62: 3 | AL62: 20 | AM62: 15 | AN62: 12 | AO62: 2 | AP62: 13 | AQ62: 8 | AR62: 3 | AS62: 2 | AT62: 5 | AU62: 0 | AV62: 0 | AW62: 0 | AX62: 0 | AY62: 0 | AZ62: 1 | BA62: 0 | BB62: 0 | BC62: 0 | BD62: 0 | BE62: 0 | BF62: 0 | BG62: 0 | BH62: 0 | BI62: 0 | BJ62: 0 | BK62: 0 | BL62: 0 | BM62: 0 | BN62: 0 | BO62: 0 | BP62: 0 | BQ62: 0 | BR62: 0 | BS62: 0 | BT62: 0 | BU62: 0 | BV62: 0 | BW62: 0 | BX62: 0 | BY62: 0 | BZ62: 0 | CA62: 0 | CB62: 0 | CC62: 0 | CD62: 0 | CE62: 0 | CF62: 0 | CG62: 0 | CX62: 24652.44794 | CY62: 91359.07179 | CZ62: 39153.88791 | DA62: 122537.1677 | DB62: 31178.09593 | DC62: 87008.6398 | DD62: 60906.04786 | DE62: 35528.52792 | DF62: 48579.82389 | DG62: 69606.91184 | DH62: 40604.03191 | DI62: 6525.647985 | DJ62: 57280.68787 | DK62: 22477.23195 | DL62: 38428.81591 | DM62: 24652.44794 | DN62: 20302.01595 | DO62: 16676.65596 | DP62: 28277.80794 | DQ62: 21752.15995 | DR62: 5075.503988 | DS62: 8700.86398 | DT62: 2175.215995 | DU62: 12326.22397 | DV62: 4350.43199 | DW62: 725.0719983 | DX62: 0 | DY62: 2175.215995 | DZ62: 14501.43997 | EA62: 10876.07998 | EB62: 8700.86398 | EC62: 1450.143997 | ED62: 9425.935978 | EE62: 5800.575987 | EF62: 2175.215995 | EG62: 1450.143997 | EH62: 3625.359992 | EI62: 0 | EJ62: 0 | EK62: 0 | EL62: 0 | EM62: 0 | EN62: 725.0719983 | EO62: 0 | EP62: 0 | EQ62: 0 | ER62: 0 | ES62: 0 | ET62: 0 | EU62: 0 | EV62: 0 | EW62: 0 | EX62: 0 | EY62: 0 | EZ62: 0 | FA62: 0 | FB62: 0 | FC62: 0 | FD62: 0 | FE62: 0 | FF62: 0 | FG62: 0 | FH62: 0 | FI62: 0 | FJ62: 0 | FK62: 0 | FL62: 0 | FM62: 0 | FN62: 0 | FO62: 0 | FP62: 0 | FQ62: 0 | FR62: 0 | FS62: 0 | FT62: 0 | FU62: 0 | FV62: 0 | FW62: 0 | FX62: 0 | FY62: 0 | FZ62: 0 | GA62: 0 | GB62: 0 | GC62: 0 | GD62: 0 | GE62: 0 | GF62: 0 | GG62: 0 | GH62: 0 | GI62: 0 | GJ62: 0
A63: 5 | D63: Secondary Systems and Telecommunications, by Function | E63: Telecommunications | F63: 37.81222324 | G63: =StdLife_Telecomms -> 10.67924894 | H63: 3.267912016 | I63: 2 | J63: 802 | K63: 155 | L63: 155 | M63: 126 | N63: 106 | O63: 225 | P63: 222 | Q63: 160 | R63: 123 | S63: 44 | T63: 68 | U63: 133 | V63: 171 | W63: 130 | X63: 55 | Y63: 84 | Z63: 122 | AA63: 139 | AB63: 28 | AC63: 9 | AD63: 7 | AE63: 10 | AF63: 0 | AG63: 0 | AH63: 0 | AI63: 0 | AJ63: 0 | AK63: 0 | AL63: 0 | AM63: 0 | AN63: 0 | AO63: 0 | AP63: 0 | AQ63: 0 | AR63: 0 | AS63: 0 | AT63: 0 | AU63: 0 | AV63: 0 | AW63: 0 | AX63: 0 | AY63: 0 | AZ63: 0 | BA63: 0 | BB63: 0 | BC63: 0 | BD63: 0 | BE63: 0 | BF63: 0 | BG63: 0 | BH63: 0 | BI63: 0 | BJ63: 0 | BK63: 0 | BL63: 0 | BM63: 0 | BN63: 0 | BO63: 0 | BP63: 0 | BQ63: 0 | BR63: 0 | BS63: 0 | BT63: 0 | BU63: 0 | BV63: 0 | BW63: 0 | BX63: 0 | BY63: 0 | BZ63: 0 | CA63: 0 | CB63: 0 | CC63: 0 | CD63: 0 | CE63: 0 | CF63: 0 | CG63: 0 | CX63: =$F63*J63 -> 30325.40304 | CY63: =$F63*K63 -> 5860.894602 | CZ63: =$F63*L63 -> 5860.894602 | DA63: =$F63*M63 -> 4764.340128 | DB63: =$F63*N63 -> 4008.095663 | DC63: =$F63*O63 -> 8507.750228 | DD63: =$F63*P63 -> 8394.313558 | DE63: =$F63*Q63 -> 6049.955718 | DF63: =$F63*R63 -> 4650.903458 | DG63: =$F63*S63 -> 1663.737822 | DH63: =$F63*T63 -> 2571.23118 | DI63: 5029.02569 | DJ63: 6465.890173 | DK63: 4915.589021 | DL63: 2079.672278 | DM63: 3176.226752 | DN63: 4613.091235 | DO63: 5255.89903 | DP63: 1058.742251 | DQ63: 340.3100091 | DR63: 264.6855627 | DS63: 378.1222324 | DT63: 0 | DU63: 0 | DV63: 0 | DW63: 0 | DX63: 0 | DY63: 0 | DZ63: 0 | EA63: 0 | EB63: 0 | EC63: 0 | ED63: 0 | EE63: 0 | EF63: 0 | EG63: 0 | EH63: 0 | EI63: 0 | EJ63: 0 | EK63: 0 | EL63: 0 | EM63: 0 | EN63: 0 | EO63: 0 | EP63: 0 | EQ63: 0 | ER63: 0 | ES63: 0 | ET63: 0 | EU63: 0 | EV63: 0 | EW63: 0 | EX63: 0 | EY63: 0 | EZ63: 0 | FA63: 0 | FB63: 0 | FC63: 0 | FD63: 0 | FE63: 0 | FF63: 0 | FG63: 0 | FH63: 0 | FI63: 0 | FJ63: 0 | FK63: 0 | FL63: 0 | FM63: 0 | FN63: 0 | FO63: 0 | FP63: 0 | FQ63: 0 | FR63: 0 | FS63: 0 | FT63: 0 | FU63: 0 | FV63: 0 | FW63: 0 | FX63: 0 | FY63: 0 | FZ63: 0 | GA63: 0 | GB63: 0 | GC63: 0 | GD63: 0 | GE63: 0 | GF63: 0 | GG63: 0 | GH63: 0 | GI63: 0 | GJ63: 0
A64: 5 | D64: Secondary Systems and Telecommunications, by Function | E64: Metering Secondary Systems | F64: 554.4377925 | I64: 2 | CX64: 0 | CY64: 0 | CZ64: 0 | DA64: 0 | DB64: 0 | DC64: 0 | DD64: 0 | DE64: 0 | DF64: 0 | DG64: 0 | DH64: 0 | DI64: 0 | DJ64: 0 | DK64: 0 | DL64: 0 | DM64: 0 | DN64: 0 | DO64: 0 | DP64: 0 | DQ64: 0 | DR64: 0 | DS64: 0 | DT64: 0 | DU64: 0 | DV64: 0 | DW64: 0 | DX64: 0 | DY64: 0 | DZ64: 0 | EA64: 0 | EB64: 0 | EC64: 0 | ED64: 0 | EE64: 0 | EF64: 0 | EG64: 0 | EH64: 0 | EI64: 0 | EJ64: 0 | EK64: 0 | EL64: 0 | EM64: 0 | EN64: 0 | EO64: 0 | EP64: 0 | EQ64: 0 | ER64: 0 | ES64: 0 | ET64: 0 | EU64: 0 | EV64: 0 | EW64: 0 | EX64: 0 | EY64: 0 | EZ64: 0 | FA64: 0 | FB64: 0 | FC64: 0 | FD64: 0 | FE64: 0 | FF64: 0 | FG64: 0 | FH64: 0 | FI64: 0 | FJ64: 0 | FK64: 0 | FL64: 0 | FM64: 0 | FN64: 0 | FO64: 0 | FP64: 0 | FQ64: 0 | FR64: 0 | FS64: 0 | FT64: 0 | FU64: 0 | FV64: 0 | FW64: 0 | FX64: 0 | FY64: 0 | FZ64: 0 | GA64: 0 | GB64: 0 | GC64: 0 | GD64: 0 | GE64: 0 | GF64: 0 | GG64: 0 | GH64: 0 | GI64: 0 | GJ64: 0
A66: 6 | D66: Other, by Function | E66: Substation Buildings | F66: 646.2185595 | G66: =StdLife_SubBldg -> 34.3443597 | H66: 5.860406103 | I66: 2 | J66: 4 | K66: 10 | L66: 21 | M66: 12 | N66: 4 | O66: 9 | P66: 18 | Q66: 8 | R66: 11 | S66: 7 | T66: 5 | U66: 4 | V66: 8 | W66: 3 | X66: 9 | Y66: 16 | Z66: 0 | AA66: 1 | AB66: 0 | AC66: 0 | AD66: 2 | AE66: 0 | AF66: 1 | AG66: 2 | AH66: 1 | AI66: 1 | AJ66: 2 | AK66: 2 | AL66: 2 | AM66: 2 | AN66: 2 | AO66: 1 | AP66: 3 | AQ66: 0 | AR66: 2 | AS66: 0 | AT66: 2 | AU66: 4 | AV66: 1 | AW66: 2 | AX66: 0 | AY66: 3 | AZ66: 2 | BA66: 0 | BB66: 2 | BC66: 0 | BD66: 0 | BE66: 0 | BF66: 0 | BG66: 0 | BH66: 0 | BI66: 0 | BJ66: 0 | BK66: 0 | BL66: 0 | BM66: 0 | BN66: 0 | BO66: 0 | BP66: 0 | BQ66: 0 | BR66: 0 | BS66: 0 | BT66: 0 | BU66: 0 | BV66: 0 | BW66: 0 | BX66: 0 | BY66: 0 | BZ66: 0 | CA66: 0 | CB66: 0 | CC66: 0 | CD66: 0 | CE66: 0 | CF66: 0 | CG66: 0 | CH66: 0 | CI66: 0 | CJ66: 0 | CK66: 0 | CL66: 0 | CM66: 0 | CN66: 0 | CO66: 0 | CP66: 0 | CQ66: 0 | CR66: 0 | CS66: 0 | CT66: 0 | CU66: 0 | CV66: 0 | CX66: 2584.874238 | CY66: 6462.185595 | CZ66: 13570.58975 | DA66: 7754.622714 | DB66: 2584.874238 | DC66: 5815.967036 | DD66: 11631.93407 | DE66: 5169.748476 | DF66: 7108.404155 | DG66: 4523.529917 | DH66: 3231.092798 | DI66: 2584.874238 | DJ66: 5169.748476 | DK66: 1938.655679 | DL66: 5815.967036 | DM66: 10339.49695 | DN66: 0 | DO66: 646.2185595 | DP66: 0 | DQ66: 0 | DR66: 1292.437119 | DS66: 0 | DT66: 646.2185595 | DU66: 1292.437119 | DV66: 646.2185595 | DW66: 646.2185595 | DX66: 1292.437119 | DY66: 1292.437119 | DZ66: 1292.437119 | EA66: 1292.437119 | EB66: 1292.437119 | EC66: 646.2185595 | ED66: 1938.655679 | EE66: 0 | EF66: 1292.437119 | EG66: 0 | EH66: 1292.437119 | EI66: 2584.874238 | EJ66: 646.2185595 | EK66: 1292.437119 | EL66: 0 | EM66: 1938.655679 | EN66: 1292.437119 | EO66: 0 | EP66: 1292.437119 | EQ66: 0 | ER66: 0 | ES66: 0 | ET66: 0 | EU66: 0 | EV66: 0 | EW66: 0 | EX66: 0 | EY66: 0 | EZ66: 0 | FA66: 0 | FB66: 0 | FC66: 0 | FD66: 0 | FE66: 0 | FF66: 0 | FG66: 0 | FH66: 0 | FI66: 0 | FJ66: 0 | FK66: 0 | FL66: 0 | FM66: 0 | FN66: 0 | FO66: 0 | FP66: 0 | FQ66: 0 | FR66: 0 | FS66: 0 | FT66: 0 | FU66: 0 | FV66: 0 | FW66: 0 | FX66: 0 | FY66: 0 | FZ66: 0 | GA66: 0 | GB66: 0 | GC66: 0 | GD66: 0 | GE66: 0 | GF66: 0 | GG66: 0 | GH66: 0 | GI66: 0 | GJ66: 0
A67: 6 | D67: Other, by Function | E67: Communications Buildings | F67: 350.6917793 | G67: =StdLife_CommBldg -> 42.33184942 | H67: 6.506293063 | I67: 2 | J67: 0 | K67: 0 | L67: 0 | M67: 0 | N67: 0 | O67: 4 | P67: 1 | Q67: 2 | R67: 0 | S67: 1 | T67: 0 | U67: 3 | V67: 2 | W67: 3 | X67: 2 | Y67: 4 | Z67: 6 | AA67: 1 | AB67: 1 | AC67: 0 | AD67: 0 | AE67: 0 | AF67: 0 | AG67: 0 | AH67: 0 | AI67: 0 | AJ67: 1 | AK67: 0 | AL67: 1 | AM67: 2 | AN67: 6 | AO67: 0 | AP67: 3 | AQ67: 4 | AR67: 0 | AS67: 13 | AT67: 1 | AU67: 0 | AV67: 0 | AW67: 0 | AX67: 4 | AY67: 0 | AZ67: 0 | BA67: 2 | BB67: 0 | BC67: 0 | BD67: 0 | BE67: 1 | BF67: 0 | BG67: 0 | BH67: 0 | BI67: 0 | BJ67: 0 | BK67: 0 | BL67: 0 | BM67: 0 | BN67: 0 | BO67: 0 | BP67: 0 | BQ67: 0 | BR67: 0 | BS67: 0 | BT67: 0 | BU67: 0 | BV67: 0 | BW67: 0 | BX67: 0 | BY67: 0 | BZ67: 0 | CA67: 0 | CB67: 0 | CC67: 0 | CD67: 0 | CE67: 0 | CF67: 0 | CG67: 0 | CH67: 0 | CI67: 0 | CJ67: 0 | CK67: 0 | CL67: 0 | CM67: 0 | CN67: 0 | CO67: 0 | CP67: 0 | CQ67: 0 | CR67: 0 | CS67: 0 | CT67: 0 | CU67: 0 | CV67: 0 | CX67: 0 | CY67: 0 | CZ67: 0 | DA67: 0 | DB67: 0 | DC67: 1402.767117 | DD67: 350.6917793 | DE67: 701.3835585 | DF67: 0 | DG67: 350.6917793 | DH67: 0 | DI67: 1052.075338 | DJ67: 701.3835585 | DK67: 1052.075338 | DL67: 701.3835585 | DM67: 1402.767117 | DN67: 2104.150676 | DO67: 350.6917793 | DP67: 350.6917793 | DQ67: 0 | DR67: 0 | DS67: 0 | DT67: 0 | DU67: 0 | DV67: 0 | DW67: 0 | DX67: 350.6917793 | DY67: 0 | DZ67: 350.6917793 | EA67: 701.3835585 | EB67: 2104.150676 | EC67: 0 | ED67: 1052.075338 | EE67: 1402.767117 | EF67: 0 | EG67: 4558.99313 | EH67: 350.6917793 | EI67: 0 | EJ67: 0 | EK67: 0 | EL67: 1402.767117 | EM67: 0 | EN67: 0 | EO67: 701.3835585 | EP67: 0 | EQ67: 0 | ER67: 0 | ES67: 350.6917793 | ET67: 0 | EU67: 0 | EV67: 0 | EW67: 0 | EX67: 0 | EY67: 0 | EZ67: 0 | FA67: 0 | FB67: 0 | FC67: 0 | FD67: 0 | FE67: 0 | FF67: 0 | FG67: 0 | FH67: 0 | FI67: 0 | FJ67: 0 | FK67: 0 | FL67: 0 | FM67: 0 | FN67: 0 | FO67: 0 | FP67: 0 | FQ67: 0 | FR67: 0 | FS67: 0 | FT67: 0 | FU67: 0 | FV67: 0 | FW67: 0 | FX67: 0 | FY67: 0 | FZ67: 0 | GA67: 0 | GB67: 0 | GC67: 0 | GD67: 0 | GE67: 0 | GF67: 0 | GG67: 0 | GH67: 0 | GI67: 0 | GJ67: 0
A68: 6 | D68: Other, by Function | E68: Substation Infrastructure | F68: 1968.917621 | G68: =StdLife_SubInfra -> 50.55529469 | H68: 7.110224658 | I68: 2 | J68: 0 | K68: 2 | L68: 2 | M68: 2 | N68: 4 | O68: 2 | P68: 10 | Q68: 1 | R68: 5 | S68: 1 | T68: 3 | U68: 1 | V68: 7 | W68: 3 | X68: 4 | Y68: 0 | Z68: 3 | AA68: 4 | AB68: 0 | AC68: 0 | AD68: 0 | AE68: 1 | AF68: 4 | AG68: 2 | AH68: 1 | AI68: 1 | AJ68: 1 | AK68: 2 | AL68: 10 | AM68: 4 | AN68: 1 | AO68: 5 | AP68: 1 | AQ68: 4 | AR68: 1 | AS68: 1 | AT68: 5 | AU68: 2 | AV68: 0 | AW68: 0 | AX68: 1 | AY68: 4 | AZ68: 0 | BA68: 1 | BB68: 0 | BC68: 1 | BD68: 2 | BE68: 0 | BF68: 3 | BG68: 1 | BH68: 2 | BI68: 4 | BJ68: 0 | BK68: 1 | BL68: 0 | BM68: 0 | BN68: 1 | BO68: 2 | BP68: 0 | BQ68: 0 | BR68: 0 | BS68: 0 | BT68: 0 | BU68: 0 | BV68: 0 | BW68: 0 | BX68: 0 | BY68: 0 | BZ68: 0 | CA68: 0 | CB68: 0 | CC68: 0 | CD68: 0 | CE68: 0 | CF68: 0 | CG68: 0 | CH68: 0 | CI68: 0 | CJ68: 0 | CK68: 0 | CL68: 0 | CM68: 0 | CN68: 0 | CO68: 0 | CP68: 0 | CQ68: 0 | CR68: 0 | CS68: 0 | CT68: 0 | CU68: 0 | CV68: 0 | CX68: 0 | CY68: 3937.835242 | CZ68: 3937.835242 | DA68: 3937.835242 | DB68: 7875.670483 | DC68: 3937.835242 | DD68: 19689.17621 | DE68: 1968.917621 | DF68: 9844.588104 | DG68: 1968.917621 | DH68: 5906.752863 | DI68: 1968.917621 | DJ68: 13782.42335 | DK68: 5906.752863 | DL68: 7875.670483 | DM68: 0 | DN68: 5906.752863 | DO68: 7875.670483 | DP68: 0 | DQ68: 0 | DR68: 0 | DS68: 1968.917621 | DT68: 7875.670483 | DU68: 3937.835242 | DV68: 1968.917621 | DW68: 1968.917621 | DX68: 1968.917621 | DY68: 3937.835242 | DZ68: 19689.17621 | EA68: 7875.670483 | EB68: 1968.917621 | EC68: 9844.588104 | ED68: 1968.917621 | EE68: 7875.670483 | EF68: 1968.917621 | EG68: 1968.917621 | EH68: 9844.588104 | EI68: 3937.835242 | EJ68: 0 | EK68: 0 | EL68: 1968.917621 | EM68: 7875.670483 | EN68: 0 | EO68: 1968.917621 | EP68: 0 | EQ68: 1968.917621 | ER68: 3937.835242 | ES68: 0 | ET68: 5906.752863 | EU68: 1968.917621 | EV68: 3937.835242 | EW68: 7875.670483 | EX68: 0 | EY68: 1968.917621 | EZ68: 0 | FA68: 0 | FB68: 1968.917621 | FC68: 3937.835242 | FD68: 0 | FE68: 0 | FF68: 0 | FG68: 0 | FH68: 0 | FI68: 0 | FJ68: 0 | FK68: 0 | FL68: 0 | FM68: 0 | FN68: 0 | FO68: 0 | FP68: 0 | FQ68: 0 | FR68: 0 | FS68: 0 | FT68: 0 | FU68: 0 | FV68: 0 | FW68: 0 | FX68: 0 | FY68: 0 | FZ68: 0 | GA68: 0 | GB68: 0 | GC68: 0 | GD68: 0 | GE68: 0 | GF68: 0 | GG68: 0 | GH68: 0 | GI68: 0 | GJ68: 0
A70: 7 | D70: Towers - Reallocation for Maintenance Intervention | E70: Reallocation to opex for tower maintenance intervention | F70: 0.01 | CX70: 0 | CY70: 0 | CZ70: 0 | DA70: 0 | DB70: 0 | DC70: 0 | DD70: 0 | DE70: 0 | DF70: 0 | DG70: 0 | DH70: 0 | DI70: 0 | DJ70: 0 | DK70: 0 | DL70: 0 | DM70: 0 | DN70: 0 | DO70: 0 | DP70: 0 | DQ70: 0 | DR70: 0 | DS70: 0 | DT70: 0 | DU70: 0 | DV70: 0 | DW70: 0 | DX70: 0 | DY70: 0 | DZ70: 0 | EA70: 0 | EB70: 0 | EC70: 0 | ED70: 0 | EE70: 0 | EF70: 0 | EG70: 0 | EH70: 0 | EI70: 0 | EJ70: 0 | EK70: 0 | EL70: 0 | EM70: 0 | EN70: 0 | EO70: 0 | EP70: 0 | EQ70: 0 | ER70: 0 | ES70: 0 | ET70: 0 | EU70: 0 | EV70: 0 | EW70: 0 | EX70: 0 | EY70: 0 | EZ70: 0 | FA70: 0 | FB70: 0 | FC70: 0 | FD70: 0 | FE70: 0 | FF70: 0 | FG70: 0 | FH70: 0 | FI70: 0 | FJ70: 0 | FK70: 0 | FL70: 0 | FM70: 0 | FN70: 0 | FO70: 0 | FP70: 0 | FQ70: 0 | FR70: 0 | FS70: 0 | FT70: 0 | FU70: 0 | FV70: 0 | FW70: 0 | FX70: 0 | FY70: 0 | FZ70: 0 | GA70: 0 | GB70: 0 | GC70: 0 | GD70: 0 | GE70: 0 | GF70: 0 | GG70: 0 | GH70: 0 | GI70: 0 | GJ70: 0

Sheet RRR hist-forc
A1: Asset calcs | AY1: =CONCATENATE("Replacement expenditure forecast (real ", TEXT(Tables!B20-1,"####"),"-",RIGHT(TEXT(Tables!B20,"##"),2)," $'000)") -> Replacement expenditure forecast (real 2015-16 $'000) | BS1: Weighted average age forecast (WAA) | CN1: Weighted average remaining life forecast (WARL) | DI1: Replacement quantity forecast
AY2: 1 | AZ2: 2 | BA2: 3 | BB2: 4 | BC2: 5 | BD2: 6 | BE2: 7 | BF2: 8 | BG2: 9 | BH2: 10 | BI2: 11 | BJ2: 12 | BK2: 13 | BL2: 14 | BM2: 15 | BN2: 16 | BO2: 17 | BP2: 18 | BQ2: 19 | BR2: 20 | BS2: 0 | BT2: 1 | BU2: 2 | BV2: 3 | BW2: 4 | BX2: 5 | BY2: 6 | BZ2: 7 | CA2: 8 | CB2: 9 | CC2: 10 | CD2: 11 | CE2: 12 | CF2: 13 | CG2: 14 | CH2: 15 | CI2: 16 | CJ2: 17 | CK2: 18 | CL2: 19 | CM2: 20 | CN2: 0 | CO2: 1 | CP2: 2 | CQ2: 3 | CR2: 4 | CS2: 5 | CT2: 6 | CU2: 7 | CV2: 8 | CW2: 9 | CX2: 10 | CY2: 11 | CZ2: 12 | DA2: 13 | DB2: 14 | DC2: 15 | DD2: 16 | DE2: 17 | DF2: 18 | DG2: 19 | DH2: 20 | DI2: 1 | DJ2: 2 | DK2: 3 | DL2: 4 | DM2: 5 | DN2: 6 | DO2: 7 | DP2: 8 | DQ2: 9 | DR2: 10 | DS2: 11 | DT2: 12 | DU2: 13 | DV2: 14 | DW2: 15 | DX2: 16 | DY2: 17 | DZ2: 18 | EA2: 19 | EB2: 20
Q3: DNSP
G4: Historical | Q4: Forcast | AO4: Model forecast
E5: year | G5: =H5-1 -> 2006 | H5: 2007 | I5: 2008 | J5: 2009 | K5: 2010 | L5: 2011 | M5: 2012 | N5: 2013 | O5: =P5-1 -> 2014 | P5: =IF(Tables!B19=1,Now,Now-1) -> 2015 | Q5: =P5+1 -> 2016 | R5: =Q5+1 -> 2017 | S5: 2018 | T5: 2019 | U5: 2020 | V5: 2021 | W5: 2022 | X5: 2023 | Y5: 2024 | Z5: 2025 | AA5: =Z5+1 -> 2026 | AB5: 2027 | AC5: 2028 | AD5: 2029 | AE5: 2030 | AF5: 2031 | AG5: 2032 | AH5: 2033 | AI5: 2034 | AJ5: 2035 | AO5: =G5 -> 2006 | AP5: 2007 | AQ5: 2008 | AR5: 2009 | AS5: 2010 | AT5: 2011 | AU5: 2012 | AV5: 2013 | AW5: 2014 | AX5: 2015 | AY5: =Q5 -> 2016 | AZ5: 2017 | BA5: 2018 | BB5: 2019 | BC5: 2020 | BD5: 2021 | BE5: 2022 | BF5: 2023 | BG5: 2024 | BH5: 2025 | BI5: 2026 | BJ5: 2027 | BK5: 2028 | BL5: 2029 | BM5: 2030 | BN5: 2031 | BO5: 2032 | BP5: 2033 | BQ5: 2034 | BR5: 2035 | BS5: =AX5 -> 2015 | BT5: =AY5 -> 2016 | BU5: 2017 | BV5: 2018 | BW5: 2019 | BX5: 2020 | BY5: 2021 | BZ5: 2022 | CA5: 2023 | CB5: 2024 | CC5: 2025 | CD5: 2026 | CE5: 2027 | CF5: 2028 | CG5: 2029 | CH5: 2030 | CI5: 2031 | CJ5: 2032 | CK5: 2033 | CL5: 2034 | CM5: 2035 | CN5: =BS5 -> 2015 | CO5: =BT5 -> 2016 | CP5: 2017 | CQ5: 2018 | CR5: 2019 | CS5: 2020 | CT5: 2021 | CU5: 2022 | CV5: 2023 | CW5: 2024 | CX5: 2025 | CY5: 2026 | CZ5: 2027 | DA5: 2028 | DB5: 2029 | DC5: 2030 | DD5: 2031 | DE5: 2032 | DF5: 2033 | DG5: 2034 | DH5: 2035 | DI5: =AY5 -> 2016 | DJ5: =AZ5 -> 2017 | DK5: 2018 | DL5: 2019 | DM5: 2020 | DN5: 2021 | DO5: 2022 | DP5: 2023 | DQ5: 2024 | DR5: 2025 | DS5: 2026 | DT5: 2027 | DU5: 2028 | DV5: 2029 | DW5: 2030 | DX5: 2031 | DY5: 2032 | DZ5: 2033 | EA5: 2034 | EB5: 2035
A6: 1 | D6: =VLOOKUP(A6,IDtable,2) -> Towers (Grillage - Rebuild), by Corrosion Zone; Highest Operating Voltage; Circuit Configuration | E6: =D6 -> Towers (Grillage - Rebuild), by Corrosion Zone; Highest Operating Voltage; Circuit Configuration | AN6: =D6 & " (mod)" -> Towers (Grillage - Rebuild), by Corrosion Zone; Highest Operating Voltage; Circuit Configuration (mod) | AY6: =SUMIF($A$21:$A$991,$A6,AY$21:AY$991) -> 0.0726968899 | AZ6: 0.08020143585 | BA6: 0.08714045414 | BB6: 0.09325414626 | BC6: 0.0983064187 | BD6: 0.1021019058 | BE6: 0.1045004213 | BF6: 0.1054272368 | BG6: 0.1048780166 | BH6: 0.1029178465 | BI6: =SUMIF($A$21:$A$991,$A6,BI$21:BI$991) -> 0.09967449163 | BJ6: 0.09532670431 | BK6: 0.09008896808 | BL6: 0.08419442585 | BM6: 0.07787785314 | BN6: 0.07136039154 | BO6: 0.06483739398 | BP6: 0.05847022188 | BQ6: 0.05238226466 | BR6: 0.0466589148 | DI6: =SUMIF($A$21:$A$991,$A6,DI$21:DI$991) -> 7.26968899 | DJ6: 8.020143585 | DK6: 8.714045414 | DL6: 9.325414626 | DM6: 9.83064187 | DN6: 10.21019058 | DO6: 10.45004213 | DP6: 10.54272368 | DQ6: 10.48780166 | DR6: 10.29178465 | DS6: =SUMIF($A$21:$A$991,$A6,DS$21:DS$991) -> 9.967449163 | DT6: 9.532670431 | DU6: 9.008896808 | DV6: 8.419442585 | DW6: 7.787785314 | DX6: 7.136039154 | DY6: 6.483739398 | DZ6: 5.847022188 | EA6: 5.238226466 | EB6: 4.66589148
A7: 2 | D7: Towers (Non-Grillage - Refit), by Corrosion Zone; Highest Operating Voltage; Circuit Configuration | E7: Towers (Non-Grillage - Refit), by Corrosion Zone; Highest Operating Voltage; Circuit Configuration | AN7: =D7 & " (mod)" -> Towers (Non-Grillage - Refit), by Corrosion Zone; Highest Operating Voltage; Circuit Configuration (mod) | AY7: 2.621820296 | AZ7: 2.537447934 | BA7: 2.487683061 | BB7: 2.477588846 | BC7: 2.50948109 | BD7: 2.582987796 | BE7: 2.69543564 | BF7: 2.842403935 | BG7: 3.018306249 | BH7: 3.216897794 | BI7: 3.431653355 | BJ7: 3.656006688 | BK7: 3.883479758 | BL7: 4.10775312 | BM7: 4.322734314 | BN7: 4.522670135 | BO7: 4.702325431 | BP7: 4.857222534 | BQ7: 4.98390939 | BR7: 5.080207631 | DI7: 262.1820296 | DJ7: 253.7447934 | DK7: 248.7683061 | DL7: 247.7588846 | DM7: 250.948109 | DN7: 258.2987796 | DO7: 269.543564 | DP7: 284.2403935 | DQ7: 301.8306249 | DR7: 321.6897794 | DS7: 343.1653355 | DT7: 365.6006688 | DU7: 388.3479758 | DV7: 410.775312 | DW7: 432.2734314 | DX7: 452.2670135 | DY7: 470.2325431 | DZ7: 485.7222534 | EA7: 498.390939 | EB7: 508.0207631
A8: 3 | D8: Towers - Replaced as part of substation rebuild | E8: Towers - Replaced as part of substation rebuild | AN8: Towers - Replaced as part of substation rebuild (mod) | AY8: 0.046 | AZ8: 0.046 | BA8: 0.046 | BB8: 0.046 | BC8: 0.046 | BD8: 0.046 | BE8: 0.046 | BF8: 0.046 | BG8: 0.046 | BH8: 0.046 | BI8: 0.046 | BJ8: 0.046 | BK8: 0.046 | BL8: 0.046 | BM8: 0.046 | BN8: 0.046 | BO8: 0.046 | BP8: 0.046 | BQ8: 0.046 | BR8: 0.046 | DI8: 4.6 | DJ8: 4.6 | DK8: 4.6 | DL8: 4.6 | DM8: 4.6 | DN8: 4.6 | DO8: 4.6 | DP8: 4.6 | DQ8: 4.6 | DR8: 4.6 | DS8: 4.6 | DT8: 4.6 | DU8: 4.6 | DV8: 4.6 | DW8: 4.6 | DX8: 4.6 | DY8: 4.6 | DZ8: 4.6 | EA8: 4.6 | EB8: 4.6
A9: 4 | D9: Substation Switchgear Equipment By Highest Operating Voltage; Equipment Type | E9: Substation Switchgear Equipment By Highest Operating Voltage; Equipment Type | AN9: Substation Switchgear Equipment By Highest Operating Voltage; Equipment Type (mod) | AY9: 2.454173739 | AZ9: 2.254755978 | BA9: 2.088867021 | BB9: 1.948414768 | BC9: 1.827720848 | BD9: 1.723275043 | BE9: 1.633428481 | BF9: 1.558037941 | BG9: 1.498077547 | BH9: 1.455242931 | BI9: 1.431579297 | BJ9: 1.429164081 | BK9: 1.449866004 | BL9: 1.495187195 | BM9: 1.566177856 | BN9: 1.663398224 | BO9: 1.786894357 | BP9: 1.936154788 | BQ9: 2.110024558 | BR9: 2.306569754 | DI9: 245.4173739 | DJ9: 225.4755978 | DK9: 208.8867021 | DL9: 194.8414768 | DM9: 182.7720848 | DN9: 172.3275043 | DO9: 163.3428481 | DP9: 155.8037941 | DQ9: 149.8077547 | DR9: 145.5242931 | DS9: 143.1579297 | DT9: 142.9164081 | DU9: 144.9866004 | DV9: 149.5187195 | DW9: 156.6177856 | DX9: 166.3398224 | DY9: 178.6894357 | DZ9: 193.6154788 | EA9: 211.0024558 | EB9: 230.6569754
A10: 5 | D10: Secondary Systems and Telecommunications, by Function | E10: Secondary Systems and Telecommunications, by Function | AN10: Secondary Systems and Telecommunications, by Function (mod) | AY10: 81171.76412 | AZ10: 63797.4696 | BA10: 54563.47367 | BB10: 50412.53833 | BC10: 49408.53214 | BD10: 50377.77158 | BE10: 52622.8216 | BF10: 55699.52018 | BG10: 59263.65897 | BH10: 62994.1634 | BI10: 66584.60881 | BJ10: 69774.5753 | BK10: 72383.09044 | BL10: 74317.12561 | BM10: 75551.86325 | BN10: 76099.49267 | BO10: 75987.35585 | BP10: 75255.45118 | BQ10: 73968.60589 | BR10: 72230.55369 | DI10: 559.6444643 | DJ10: 417.9242974 | DK10: 335.5509584 | DL10: 293.4808873 | DM10: 278.3253249 | DN10: 281.4073536 | DO10: 297.0675028 | DP10: 320.8151212 | DQ10: 348.0062663 | DR10: 373.5759692 | DS10: 392.8535638 | DT10: 402.8772577 | DU10: 403.3281046 | DV10: 396.4631959 | DW10: 386.0602839 | DX10: 375.9396519 | DY10: 368.7616272 | DZ10: 365.5172288 | EA10: 365.7101431 | EB10: 367.9475436
A11: 6 | D11: Other, by Function | E11: Other, by Function | AN11: Other, by Function (mod) | AY11: 8478.74612 | AZ11: 8114.196212 | BA11: 7758.299826 | BB11: 7424.33902 | BC11: 7122.740079 | BD11: 6861.610669 | BE11: 6647.316566 | BF11: 6484.954824 | BG11: 6378.628121 | BH11: 6331.482079 | BI11: 6345.524713 | BJ11: 6421.296381 | BK11: 6557.492377 | BL11: 6750.652657 | BM11: 6995.021414 | BN11: 7282.644588 | BO11: 7603.72257 | BP11: 7947.179376 | BQ11: 8301.361944 | BR11: 8654.756339 | DI11: 9.202656182 | DJ11: 8.747219744 | DK11: 8.322949126 | DL11: 7.939143489 | DM11: 7.60042138 | DN11: 7.308332844 | DO11: 7.063025 | DP11: 6.864677364 | DQ11: 6.714498915 | DR11: 6.615175209 | DS11: 6.570756308 | DT11: 6.586070576 | DU11: 6.665822058 | DV11: 6.813569185 | DW11: 7.030783588 | DX11: 7.316150552 | DY11: 7.665206042 | DZ11: 8.070325683 | EA11: 8.521008638 | EB11: 9.004352616
A12: 7 | D12: Towers - Reallocation for Maintenance Intervention | E12: Towers - Reallocation for Maintenance Intervention | AN12: Towers - Reallocation for Maintenance Intervention (mod) | AY12: 0.184 | AZ12: 0.184 | BA12: 0.184 | BB12: 0.184 | BC12: 0.184 | BD12: 0.184 | BE12: 0.184 | BF12: 0 | BG12: 0 | BH12: 0 | BI12: 0 | BJ12: 0 | BK12: 0 | BL12: 0 | BM12: 0 | BN12: 0 | BO12: 0 | BP12: 0 | BQ12: 0 | BR12: 0 | DI12: 18.4 | DJ12: 18.4 | DK12: 18.4 | DL12: 18.4 | DM12: 18.4 | DN12: 18.4 | DO12: 18.4 | DP12: 0 | DQ12: 0 | DR12: 0 | DS12: 0 | DT12: 0 | DU12: 0 | DV12: 0 | DW12: 0 | DX12: 0 | DY12: 0 | DZ12: 0 | EA12: 0 | EB12: 0
A13: 8 | D13: Not Used | E13: Not Used | AN13: Not Used (mod) | AY13: 0 | AZ13: 0 | BA13: 0 | BB13: 0 | BC13: 0 | BD13: 0 | BE13: 0 | BF13: 0 | BG13: 0 | BH13: 0 | BI13: 0 | BJ13: 0 | BK13: 0 | BL13: 0 | BM13: 0 | BN13: 0 | BO13: 0 | BP13: 0 | BQ13: 0 | BR13: 0 | DI13: 0 | DJ13: 0 | DK13: 0 | DL13: 0 | DM13: 0 | DN13: 0 | DO13: 0 | DP13: 0 | DQ13: 0 | DR13: 0 | DS13: 0 | DT13: 0 | DU13: 0 | DV13: 0 | DW13: 0 | DX13: 0 | DY13: 0 | DZ13: 0 | EA13: 0 | EB13: 0
A14: 9 | D14: =VLOOKUP(A14,IDtable,2) -> Not Used | E14: =D14 -> Not Used | AN14: =D14 & " (mod)" -> Not Used (mod) | AY14: 0 | AZ14: 0 | BA14: 0 | BB14: 0 | BC14: 0 | BD14: 0 | BE14: 0 | BF14: 0 | BG14: 0 | BH14: 0 | BI14: 0 | BJ14: 0 | BK14: 0 | BL14: 0 | BM14: 0 | BN14: 0 | BO14: 0 | BP14: 0 | BQ14: 0 | BR14: 0 | DI14: 0 | DJ14: 0 | DK14: 0 | DL14: 0 | DM14: 0 | DN14: 0 | DO14: 0 | DP14: 0 | DQ14: 0 | DR14: 0 | DS14: 0 | DT14: 0 | DU14: 0 | DV14: 0 | DW14: 0 | DX14: 0 | DY14: 0 | DZ14: 0 | EA14: 0 | EB14: 0
A15: 10 | D15: =VLOOKUP(A15,IDtable,2) -> Not Used | E15: =D15 -> Not Used | AN15: =D15 & " (mod)" -> Not Used (mod) | AY15: 0 | AZ15: 0 | BA15: 0 | BB15: 0 | BC15: 0 | BD15: 0 | BE15: 0 | BF15: 0 | BG15: 0 | BH15: 0 | BI15: 0 | BJ15: 0 | BK15: 0 | BL15: 0 | BM15: 0 | BN15: 0 | BO15: 0 | BP15: 0 | BQ15: 0 | BR15: 0 | DI15: 0 | DJ15: 0 | DK15: 0 | DL15: 0 | DM15: 0 | DN15: 0 | DO15: 0 | DP15: 0 | DQ15: 0 | DR15: 0 | DS15: 0 | DT15: 0 | DU15: 0 | DV15: 0 | DW15: 0 | DX15: 0 | DY15: 0 | DZ15: 0 | EA15: 0 | EB15: 0
A16: 11 | D16: =VLOOKUP(A16,IDtable,2) -> Not Used | E16: =D16 -> Not Used | AN16: =D16 & " (mod)" -> Not Used (mod) | AY16: 0 | AZ16: 0 | BA16: 0 | BB16: 0 | BC16: 0 | BD16: 0 | BE16: 0 | BF16: 0 | BG16: 0 | BH16: 0 | BI16: 0 | BJ16: 0 | BK16: 0 | BL16: 0 | BM16: 0 | BN16: 0 | BO16: 0 | BP16: 0 | BQ16: 0 | BR16: 0 | DI16: 0 | DJ16: 0 | DK16: 0 | DL16: 0 | DM16: 0 | DN16: 0 | DO16: 0 | DP16: 0 | DQ16: 0 | DR16: 0 | DS16: 0 | DT16: 0 | DU16: 0 | DV16: 0 | DW16: 0 | DX16: 0 | DY16: 0 | DZ16: 0 | EA16: 0 | EB16: 0
A17: 12 | D17: =VLOOKUP(A17,IDtable,2) -> Not Used | E17: =D17 -> Not Used | AN17: =D17 & " (mod)" -> Not Used (mod) | AY17: 0 | AZ17: 0 | BA17: 0 | BB17: 0 | BC17: 0 | BD17: 0 | BE17: 0 | BF17: 0 | BG17: 0 | BH17: 0 | BI17: 0 | BJ17: 0 | BK17: 0 | BL17: 0 | BM17: 0 | BN17: 0 | BO17: 0 | BP17: 0 | BQ17: 0 | BR17: 0 | DI17: 0 | DJ17: 0 | DK17: 0 | DL17: 0 | DM17: 0 | DN17: 0 | DO17: 0 | DP17: 0 | DQ17: 0 | DR17: 0 | DS17: 0 | DT17: 0 | DU17: 0 | DV17: 0 | DW17: 0 | DX17: 0 | DY17: 0 | DZ17: 0 | EA17: 0 | EB17: 0
D18: Total | G18: =SUM(G6:G14) -> 0 | H18: =SUM(H6:H14) -> 0 | I18: 0 | J18: 0 | K18: 0 | L18: 0 | M18: 0 | N18: 0 | O18: 0 | P18: 0 | Q18: 0 | R18: 0 | S18: 0 | T18: 0 | U18: 0 | V18: 0 | W18: 0 | X18: 0 | Y18: 0 | Z18: 0 | AA18: 0 | AB18: 0 | AC18: 0 | AD18: 0 | AE18: 0 | AF18: 0 | AG18: 0 | AH18: 0 | AI18: 0 | AJ18: 0 | AN18: Total (mod) | AO18: 0 | AP18: 0 | AQ18: 0 | AR18: 0 | AS18: 0 | AT18: 0 | AU18: 0 | AV18: 0 | AW18: 0 | AX18: 0 | AY18: =SUM(AY6:AY17) -> 89655.88893 | AZ18: 71916.76822 | BA18: 62326.66719 | BB18: 57841.62661 | BC18: 56535.93773 | BD18: 57244.02062 | BE18: 59274.80153 | BF18: 62189.02688 | BG18: 65646.95435 | BH18: 69330.46654 | BI18: 72935.14243 | BJ18: 76201.09817 | BK18: 78946.05225 | BL18: 81073.5114 | BM18: 82552.89745 | BN18: 83388.44069 | BO18: 83597.67848 | BP18: 83209.52841 | BQ18: 82277.16015 | BR18: 80892.78947 | DI18: =SUM(DI6:DI17) -> 1106.716213 | DJ18: 936.9120519 | DK18: 833.2429611 | DL18: 776.3458068 | DM18: 752.476582 | DN18: 752.5521609 | DO18: 770.466982 | DP18: 782.8667098 | DQ18: 821.4469464 | DR18: 862.2970015 | DS18: 900.3150344 | DT18: 932.1130756 | DU18: 956.9373996 | DV18: 976.5902392 | DW18: 994.3700699 | DX18: 1013.598678 | DY18: 1036.432551 | DZ18: 1063.372309 | EA18: 1093.462773 | EB18: 1124.895526
D19: % | G19: RRR model | L19: recursive | M19: 1st year
D20: asset categories | F20: Std life | G20: Rep life | H20: SD | I20: Life (S/R) | J20: Meth (D/P) | K20: M life | L20: =IF(Tables!B18=1,TRUE,FALSE) -> TRUE | M20: =IF(Tables!B19=1,TRUE,FALSE) -> TRUE | AY20: % of RC ↑ | AZ20: =AZ18/AY18 -> 0.802142158 | BA20: =BA18/AZ18 -> 0.8666500001 | BB20: 0.9280397816 | BC20: 0.9774264841 | BD20: 1.012524474 | BE20: 1.035475861 | BF20: 1.049164658 | BS20: % of total life ↑ | CN20: % of total life ↑
A21: ='Asset data'!A21 -> 1 | B21: ='Asset data'!B21 -> 0 | C21: ='Asset data'!C21 -> 0 | D21: ='Asset data'!E21 -> TowerRebuild_ZoneC_132_SC_Grillage | E21: =IF(A21>0,VLOOKUP(A21,IDtable,2),0) -> Towers (Grillage - Rebuild), by Corrosion Zone; Highest Operating Voltage; Circuit Configuration | F21: ='Asset data'!G21 -> 57.91722577 | G21: =F21 -> 57.91722577 | H21: ='Asset data'!H21 -> 7.610336771 | I21: S | J21: =IF(A21=0,0,IF('Asset data'!$D$1=1,1,IF('Asset data'!$D$1=2,2,'Asset data'!I21))) -> 2 | K21: =IF(A21>0,IF(I21="S",F21,IF(I21="R",G21,9999)),0) -> 57.91722577 | AY21: =repcalc('Age profile (Inst)'!CT21:GF21,J21,K21,H21,20,$L$20,$M$20) -> 0.001133831163 | AZ21: 0.001229034012 | BA21: 0.001311147435 | BB21: 0.001377108266 | BC21: 0.00142466 | BD21: 0.001452540261 | BE21: 0.001460578847 | BF21: 0.001449692225 | BG21: 0.00142177319 | BH21: 0.001379487929 | BI21: 0.001326004802 | BJ21: 0.001264687806 | BK21: 0.001198791627 | BL21: 0.001131193802 | BM21: 0.001064193121 | BN21: 0.0009993931444 | BO21: 0.000937677327 | BP21: 0.0008792697053 | BQ21: 0.0008238643592 | BR21: 0.0007707993589 | BS21: 47.5 | BT21: 46.50549968 | BU21: 45.42753318 | BV21: 44.30922687 | BW21: 43.19360074 | BX21: 42.12014556 | BY21: 41.12205104 | BZ21: 40.22442265 | CA21: 39.443618 | CB21: 38.78763463 | CC21: 38.2573321 | CD21: 37.84819181 | CE21: 37.55230182 | CF21: 37.36028487 | CG21: 37.26294552 | CH21: 37.25248486 | CI21: 37.323209 | CJ21: 37.47173421 | CK21: 37.6967608 | CL21: 37.99853884 | CM21: 38.37817465 | CN21: =BS21*$AX21 -> 0 | CO21: 0 | CP21: 0 | CQ21: 0 | CR21: 0 | CS21: 0 | CT21: 0 | CU21: 0 | CV21: 0 | CW21: 0 | CX21: 0 | CY21: 0 | CZ21: 0 | DA21: 0 | DB21: 0 | DC21: 0 | DD21: 0 | DE21: 0 | DF21: 0 | DG21: 0 | DH21: 0 | DI21: =IF('Asset data'!$F21=0,0,AY21/'Asset data'!$F21) -> 0.1133831163 | DJ21: =IF('Asset data'!$F21=0,0,AZ21/'Asset data'!$F21) -> 0.1229034012 | DK21: =IF('Asset data'!$F21=0,0,BA21/'Asset data'!$F21) -> 0.1311147435 | DL21: =IF('Asset data'!$F21=0,0,BB21/'Asset data'!$F21) -> 0.1377108266 | DM21: =IF('Asset data'!$F21=0,0,BC21/'Asset data'!$F21) -> 0.142466 | DN21: =IF('Asset data'!$F21=0,0,BD21/'Asset data'!$F21) -> 0.1452540261 | DO21: =IF('Asset data'!$F21=0,0,BE21/'Asset data'!$F21) -> 0.1460578847 | DP21: =IF('Asset data'!$F21=0,0,BF21/'Asset data'!$F21) -> 0.1449692225 | DQ21: =IF('Asset data'!$F21=0,0,BG21/'Asset data'!$F21) -> 0.142177319 | DR21: =IF('Asset data'!$F21=0,0,BH21/'Asset data'!$F21) -> 0.1379487929 | DS21: =IF('Asset data'!$F21=0,0,BI21/'Asset data'!$F21) -> 0.1326004802 | DT21: =IF('Asset data'!$F21=0,0,BJ21/'Asset data'!$F21) -> 0.1264687806 | DU21: =IF('Asset data'!$F21=0,0,BK21/'Asset data'!$F21) -> 0.1198791627 | DV21: =IF('Asset data'!$F21=0,0,BL21/'Asset data'!$F21) -> 0.1131193802 | DW21: =IF('Asset data'!$F21=0,0,BM21/'Asset data'!$F21) -> 0.1064193121 | DX21: =IF('Asset data'!$F21=0,0,BN21/'Asset data'!$F21) -> 0.09993931444 | DY21: =IF('Asset data'!$F21=0,0,BO21/'Asset data'!$F21) -> 0.0937677327 | DZ21: =IF('Asset data'!$F21=0,0,BP21/'Asset data'!$F21) -> 0.08792697053 | EA21: =IF('Asset data'!$F21=0,0,BQ21/'Asset data'!$F21) -> 0.08238643592 | EB21: =IF('Asset data'!$F21=0,0,BR21/'Asset data'!$F21) -> 0.07707993589
A22: ='Asset data'!A22 -> 1 | B22: ='Asset data'!B22 -> 0 | C22: ='Asset data'!C22 -> 0 | D22: ='Asset data'!E22 -> TowerRebuild_ZoneB_132_MC_Grillage | E22: Towers (Grillage - Rebuild), by Corrosion Zone; Highest Operating Voltage; Circuit Configuration | F22: ='Asset data'!G22 -> 71.44576873 | G22: 71.44576873 | H22: ='Asset data'!H22 -> 8.452559892 | I22: S | J22: =IF(A22=0,0,IF('Asset data'!$D$1=1,1,IF('Asset data'!$D$1=2,2,'Asset data'!I22))) -> 2 | K22: 71.44576873 | AY22: =repcalc('Age profile (Inst)'!CT22:GF22,J22,K22,H22,20,$L$20,$M$20) -> 0.001948354164 | AZ22: 0.002503958191 | BA22: 0.003173325697 | BB22: 0.003965798397 | BC22: 0.004887367857 | BD22: 0.005939471963 | BE22: 0.007117853743 | BF22: 0.008411601699 | BG22: 0.009802497916 | BH22: 0.01126479356 | BI22: 0.01276550902 | BJ22: 0.01426531807 | BK22: 0.01572002402 | BL22: 0.01708257657 | BM22: 0.01830551587 | BN22: 0.01934367534 | BO22: 0.02015693259 | BP22: 0.02071277653 | BQ22: 0.02098846237 | BR22: 0.02097255558 | BS22: 52.5 | BT22: 53.26531188 | BU22: 53.95938129 | BV22: 54.566781 | BW22: 55.07091683 | BX22: 55.45469783 | BY22: 55.70145662 | BZ22: 55.79609756 | CA22: 55.72641089 | CB22: 55.48444802 | CC22: 55.06781562 | CD22: 54.48072265 | CE22: 53.73461588 | CF22: 52.84827056 | CG22: 51.84726407 | CH22: 50.7628429 | CI22: 49.63028152 | CJ22: 48.48690733 | CK22: 47.37001122 | CL22: 46.3148701 | CM22: 45.35307439 | CN22: =BS22*$AX22 -> 0 | CO22: 0 | CP22: 0 | CQ22: 0 | CR22: 0 | CS22: 0 | CT22: 0 | CU22: 0 | CV22: 0 | CW22: 0 | CX22: =CC22*$AX22 -> 0 | CY22: 0 | CZ22: 0 | DA22: 0 | DB22: 0 | DC22: 0 | DD22: 0 | DE22: 0 | DF22: 0 | DG22: 0 | DH22: =CM22*$AX22 -> 0 | DI22: =IF('Asset data'!$F22=0,0,AY22/'Asset data'!$F22) -> 0.1948354164 | DJ22: =IF('Asset data'!$F22=0,0,AZ22/'Asset data'!$F22) -> 0.2503958191 | DK22: =IF('Asset data'!$F22=0,0,BA22/'Asset data'!$F22) -> 0.3173325697 | DL22: =IF('Asset data'!$F22=0,0,BB22/'Asset data'!$F22) -> 0.3965798397 | DM22: =IF('Asset data'!$F22=0,0,BC22/'Asset data'!$F22) -> 0.4887367857 | DN22: =IF('Asset data'!$F22=0,0,BD22/'Asset data'!$F22) -> 0.5939471963 | DO22: =IF('Asset data'!$F22=0,0,BE22/'Asset data'!$F22) -> 0.7117853743 | DP22: =IF('Asset data'!$F22=0,0,BF22/'Asset data'!$F22) -> 0.8411601699 | DQ22: =IF('Asset data'!$F22=0,0,BG22/'Asset data'!$F22) -> 0.9802497916 | DR22: =IF('Asset data'!$F22=0,0,BH22/'Asset data'!$F22) -> 1.126479356 | DS22: =IF('Asset data'!$F22=0,0,BI22/'Asset data'!$F22) -> 1.276550902 | DT22: =IF('Asset data'!$F22=0,0,BJ22/'Asset data'!$F22) -> 1.426531807 | DU22: =IF('Asset data'!$F22=0,0,BK22/'Asset data'!$F22) -> 1.572002402 | DV22: =IF('Asset data'!$F22=0,0,BL22/'Asset data'!$F22) -> 1.708257657 | DW22: =IF('Asset data'!$F22=0,0,BM22/'Asset data'!$F22) -> 1.830551587 | DX22: =IF('Asset data'!$F22=0,0,BN22/'Asset data'!$F22) -> 1.934367534 | DY22: =IF('Asset data'!$F22=0,0,BO22/'Asset data'!$F22) -> 2.015693259 | DZ22: =IF('Asset data'!$F22=0,0,BP22/'Asset data'!$F22) -> 2.071277653 | EA22: =IF('Asset data'!$F22=0,0,BQ22/'Asset data'!$F22) -> 2.098846237 | EB22: =IF('Asset data'!$F22=0,0,BR22/'Asset data'!$F22) -> 2.097255558
A23: ='Asset data'!A23 -> 1 | B23: ='Asset data'!B23 -> 0 | C23: ='Asset data'!C23 -> 0 | D23: ='Asset data'!E23 -> TowerRebuild_ZoneC_132_MC_Grillage | E23: =IF(A23>0,VLOOKUP(A23,IDtable,2),0) -> Towers (Grillage - Rebuild), by Corrosion Zone; Highest Operating Voltage; Circuit Configuration | F23: ='Asset data'!G23 -> 57.91722577 | G23: =F23 -> 57.91722577 | H23: ='Asset data'!H23 -> 7.610336771 | I23: S | J23: =IF(A23=0,0,IF('Asset data'!$D$1=1,1,IF('Asset data'!$D$1=2,2,'Asset data'!I23))) -> 2 | K23: =IF(A23>0,IF(I23="S",F23,IF(I23="R",G23,9999)),0) -> 57.91722577 | AY23: =repcalc('Age profile (Inst)'!CT23:GF23,J23,K23,H23,20,$L$20,$M$20) -> 0.06961470457 | AZ23: 0.07646844365 | BA23: 0.082655981 | BB23: 0.0879112396 | BC23: 0.09199439084 | BD23: 0.09470989361 | BE23: 0.09592198876 | BF23: 0.09556594289 | BG23: 0.09365374553 | BH23: 0.09027356506 | BI23: 0.08558297781 | BJ23: 0.07979669844 | BK23: 0.07317015243 | BL23: 0.06598065547 | BM23: 0.05850814415 | BN23: 0.05101732305 | BO23: 0.04374278406 | BP23: 0.03687817565 | BQ23: 0.03056993793 | BR23: 0.02491555987 | BS23: 51.08278146 | BT23: 49.68519471 | BU23: 48.1384909 | BV23: 46.48794893 | BW23: 44.78510991 | BX23: 43.08451011 | BY23: 41.44009062 | BZ23: 39.90176378 | CA23: 38.51257451 | CB23: 37.30675817 | CC23: 36.30881096 | CD23: 35.53350878 | CE23: 34.98667983 | CF23: 34.66647392 | CG23: 34.56487398 | CH23: 34.66924032 | CI23: 34.96374424 | CJ23: 35.43061108 | CK23: 36.05114459 | CL23: 36.80653811 | CM23: 37.67849587 | CN23: 0 | CO23: 0 | CP23: 0 | CQ23: 0 | CR23: 0 | CS23: 0 | CT23: 0 | CU23: 0 | CV23: 0 | CW23: 0 | CX23: 0 | CY23: 0 | CZ23: 0 | DA23: 0 | DB23: 0 | DC23: 0 | DD23: 0 | DE23: 0 | DF23: 0 | DG23: 0 | DH23: =CM23*$AX23 -> 0 | DI23: =IF('Asset data'!$F23=0,0,AY23/'Asset data'!$F23) -> 6.961470457 | DJ23: =IF('Asset data'!$F23=0,0,AZ23/'Asset data'!$F23) -> 7.646844365 | DK23: =IF('Asset data'!$F23=0,0,BA23/'Asset data'!$F23) -> 8.2655981 | DL23: =IF('Asset data'!$F23=0,0,BB23/'Asset data'!$F23) -> 8.79112396 | DM23: =IF('Asset data'!$F23=0,0,BC23/'Asset data'!$F23) -> 9.199439084 | DN23: =IF('Asset data'!$F23=0,0,BD23/'Asset data'!$F23) -> 9.470989361 | DO23: =IF('Asset data'!$F23=0,0,BE23/'Asset data'!$F23) -> 9.592198876 | DP23: =IF('Asset data'!$F23=0,0,BF23/'Asset data'!$F23) -> 9.556594289 | DQ23: =IF('Asset data'!$F23=0,0,BG23/'Asset data'!$F23) -> 9.365374553 | DR23: =IF('Asset data'!$F23=0,0,BH23/'Asset data'!$F23) -> 9.027356506 | DS23: =IF('Asset data'!$F23=0,0,BI23/'Asset data'!$F23) -> 8.558297781 | DT23: =IF('Asset data'!$F23=0,0,BJ23/'Asset data'!$F23) -> 7.979669844 | DU23: =IF('Asset data'!$F23=0,0,BK23/'Asset data'!$F23) -> 7.317015243 | DV23: =IF('Asset data'!$F23=0,0,BL23/'Asset data'!$F23) -> 6.598065547 | DW23: =IF('Asset data'!$F23=0,0,BM23/'Asset data'!$F23) -> 5.850814415 | DX23: =IF('Asset data'!$F23=0,0,BN23/'Asset data'!$F23) -> 5.101732305 | DY23: =IF('Asset data'!$F23=0,0,BO23/'Asset data'!$F23) -> 4.374278406 | DZ23: =IF('Asset data'!$F23=0,0,BP23/'Asset data'!$F23) -> 3.687817565 | EA23: =IF('Asset data'!$F23=0,0,BQ23/'Asset data'!$F23) -> 3.056993793 | EB23: =IF('Asset data'!$F23=0,0,BR23/'Asset data'!$F23) -> 2.491555987
A24: ='Asset data'!A24 -> 2 | B24: ='Asset data'!B24 -> 0 | C24: ='Asset data'!C24 -> 0 | D24: ='Asset data'!E24 -> TowerRefit_ZoneB_132_SC_NonGrillage | E24: Towers (Non-Grillage - Refit), by Corrosion Zone; Highest Operating Voltage; Circuit Configuration | F24: ='Asset data'!G24 -> 66.44576873 | G24: 66.44576873 | H24: ='Asset data'!H24 -> 8.151427404 | I24: S | J24: =IF(A24=0,0,IF('Asset data'!$D$1=1,1,IF('Asset data'!$D$1=2,2,'Asset data'!I24))) -> 2 | K24: 66.44576873 | AY24: =repcalc('Age profile (Inst)'!CT24:GF24,J24,K24,H24,20,$L$20,$M$20) -> 0.005784288703 | AZ24: 0.007729634697 | BA24: 0.0101815233 | BB24: 0.01322039932 | BC24: 0.01692355986 | BD24: 0.02135974722 | BE24: 0.02658305137 | BF24: 0.03262652886 | BG24: 0.03949607249 | BH24: 0.04716515446 | BI24: 0.05557109568 | BJ24: 0.06461346784 | BK24: 0.07415510741 | BL24: 0.08402601433 | BM24: 0.09403014004 | BN24: 0.1039547665 | BO24: 0.1135818759 | BP24: 0.1227006477 | BQ24: 0.1311200322 | BR24: 0.1386802682 | BS24: 33.55638474 | BT24: 34.5116095 | BU24: 35.45071515 | BV24: 36.36920075 | BW24: 37.2618131 | BX24: 38.12260228 | BY24: 38.94505221 | BZ24: 39.72229683 | CA24: 40.44742429 | CB24: 41.11385935 | CC24: 41.71579933 | CD24: 42.24866473 | CE24: 42.709514 | CF24: 43.09736835 | CG24: 43.41339785 | CH24: 43.6609367 | CI24: 43.84531953 | CJ24: 43.97355739 | CK24: 44.05389482 | CL24: 44.09530238 | CM24: 44.10695986 | CN24: =BS24*$AX24 -> 0 | CO24: =BT24*$AX24 -> 0 | CP24: =BU24*$AX24 -> 0 | CQ24: =BV24*$AX24 -> 0 | CR24: =BW24*$AX24 -> 0 | CS24: =BX24*$AX24 -> 0 | CT24: =BY24*$AX24 -> 0 | CU24: =BZ24*$AX24 -> 0 | CV24: =CA24*$AX24 -> 0 | CW24: =CB24*$AX24 -> 0 | CX24: =CC24*$AX24 -> 0 | CY24: =CD24*$AX24 -> 0 | CZ24: =CE24*$AX24 -> 0 | DA24: =CF24*$AX24 -> 0 | DB24: =CG24*$AX24 -> 0 | DC24: =CH24*$AX24 -> 0 | DD24: =CI24*$AX24 -> 0 | DE24: =CJ24*$AX24 -> 0 | DF24: =CK24*$AX24 -> 0 | DG24: =CL24*$AX24 -> 0 | DH24: 0 | DI24: =IF('Asset data'!$F24=0,0,AY24/'Asset data'!$F24) -> 0.5784288703 | DJ24: =IF('Asset data'!$F24=0,0,AZ24/'Asset data'!$F24) -> 0.7729634697 | DK24: =IF('Asset data'!$F24=0,0,BA24/'Asset data'!$F24) -> 1.01815233 | DL24: =IF('Asset data'!$F24=0,0,BB24/'Asset data'!$F24) -> 1.322039932 | DM24: =IF('Asset data'!$F24=0,0,BC24/'Asset data'!$F24) -> 1.692355986 | DN24: =IF('Asset data'!$F24=0,0,BD24/'Asset data'!$F24) -> 2.135974722 | DO24: =IF('Asset data'!$F24=0,0,BE24/'Asset data'!$F24) -> 2.658305137 | DP24: =IF('Asset data'!$F24=0,0,BF24/'Asset data'!$F24) -> 3.262652886 | DQ24: =IF('Asset data'!$F24=0,0,BG24/'Asset data'!$F24) -> 3.949607249 | DR24: =IF('Asset data'!$F24=0,0,BH24/'Asset data'!$F24) -> 4.716515446 | DS24: =IF('Asset data'!$F24=0,0,BI24/'Asset data'!$F24) -> 5.557109568 | DT24: =IF('Asset data'!$F24=0,0,BJ24/'Asset data'!$F24) -> 6.461346784 | DU24: =IF('Asset data'!$F24=0,0,BK24/'Asset data'!$F24) -> 7.415510741 | DV24: =IF('Asset data'!$F24=0,0,BL24/'Asset data'!$F24) -> 8.402601433 | DW24: =IF('Asset data'!$F24=0,0,BM24/'Asset data'!$F24) -> 9.403014004 | DX24: =IF('Asset data'!$F24=0,0,BN24/'Asset data'!$F24) -> 10.39547665 | DY24: =IF('Asset data'!$F24=0,0,BO24/'Asset data'!$F24) -> 11.35818759 | DZ24: =IF('Asset data'!$F24=0,0,BP24/'Asset data'!$F24) -> 12.27006477 | EA24: =IF('Asset data'!$F24=0,0,BQ24/'Asset data'!$F24) -> 13.11200322 | EB24: =IF('Asset data'!$F24=0,0,BR24/'Asset data'!$F24) -> 13.86802682
A25: ='Asset data'!A25 -> 2 | B25: ='Asset data'!B25 -> 0 | C25: ='Asset data'!C25 -> 0 | D25: ='Asset data'!E25 -> TowerRefit_ZoneC_132_SC_NonGrillage | E25: Towers (Non-Grillage - Refit), by Corrosion Zone; Highest Operating Voltage; Circuit Configuration | F25: ='Asset data'!G25 -> 52.91722577 | G25: 52.91722577 | H25: ='Asset data'!H25 -> 7.27442271 | I25: S | J25: =IF(A25=0,0,IF('Asset data'!$D$1=1,1,IF('Asset data'!$D$1=2,2,'Asset data'!I25))) -> 2 | K25: 52.91722577 | AY25: =repcalc('Age profile (Inst)'!CT25:GF25,J25,K25,H25,20,$L$20,$M$20) -> 0.1257503648 | AZ25: 0.1376843827 | BA25: 0.1490715852 | BB25: 0.1599011878 | BC25: 0.1702898852 | BD25: 0.1804818631 | BE25: 0.1908320362 | BF25: 0.2017727259 | BG25: 0.213766284 | BH25: 0.2272482631 | BI25: 0.2425672911 | BJ25: 0.2599285881 | BK25: 0.2793479421 | BL25: 0.3006219516 | BM25: 0.3233186112 | BN25: 0.3467901005 | BO25: 0.3702072409 | BP25: 0.3926128091 | BQ25: 0.4129889919 | BR25: 0.4303329212 | BS25: 26.33981233 | BT25: 26.93705737 | BU25: 27.51744786 | BV25: 28.08679423 | BW25: 28.64945188 | BX25: 29.20766893 | BY25: 29.7612175 | BZ25: 30.30735158 | CA25: 30.84107961 | CB25: 31.35569774 | CC25: 31.8435047 | CD25: 32.29661105 | CE25: 32.7077589 | CF25: 33.07108017 | CG25: 33.38273707 | CH25: 33.6414066 | CI25: 33.84858651 | CJ25: 34.00871244 | CK25: 34.12908249 | CL25: 34.21958943 | CM25: 34.29226667 | CN25: 0 | CO25: 0 | CP25: 0 | CQ25: 0 | CR25: 0 | CS25: 0 | CT25: 0 | CU25: 0 | CV25: 0 | CW25: 0 | CX25: 0 | CY25: 0 | CZ25: 0 | DA25: 0 | DB25: 0 | DC25: 0 | DD25: 0 | DE25: 0 | DF25: 0 | DG25: 0 | DH25: 0 | DI25: =IF('Asset data'!$F25=0,0,AY25/'Asset data'!$F25) -> 12.57503648 | DJ25: =IF('Asset data'!$F25=0,0,AZ25/'Asset data'!$F25) -> 13.76843827 | DK25: =IF('Asset data'!$F25=0,0,BA25/'Asset data'!$F25) -> 14.90715852 | DL25: =IF('Asset data'!$F25=0,0,BB25/'Asset data'!$F25) -> 15.99011878 | DM25: =IF('Asset data'!$F25=0,0,BC25/'Asset data'!$F25) -> 17.02898852 | DN25: =IF('Asset data'!$F25=0,0,BD25/'Asset data'!$F25) -> 18.04818631 | DO25: =IF('Asset data'!$F25=0,0,BE25/'Asset data'!$F25) -> 19.08320362 | DP25: =IF('Asset data'!$F25=0,0,BF25/'Asset data'!$F25) -> 20.17727259 | DQ25: =IF('Asset data'!$F25=0,0,BG25/'Asset data'!$F25) -> 21.3766284 | DR25: =IF('Asset data'!$F25=0,0,BH25/'Asset data'!$F25) -> 22.72482631 | DS25: =IF('Asset data'!$F25=0,0,BI25/'Asset data'!$F25) -> 24.25672911 | DT25: =IF('Asset data'!$F25=0,0,BJ25/'Asset data'!$F25) -> 25.99285881 | DU25: =IF('Asset data'!$F25=0,0,BK25/'Asset data'!$F25) -> 27.93479421 | DV25: =IF('Asset data'!$F25=0,0,BL25/'Asset data'!$F25) -> 30.06219516 | DW25: =IF('Asset data'!$F25=0,0,BM25/'Asset data'!$F25) -> 32.33186112 | DX25: =IF('Asset data'!$F25=0,0,BN25/'Asset data'!$F25) -> 34.67901005 | DY25: =IF('Asset data'!$F25=0,0,BO25/'Asset data'!$F25) -> 37.02072409 | DZ25: =IF('Asset data'!$F25=0,0,BP25/'Asset data'!$F25) -> 39.26128091 | EA25: =IF('Asset data'!$F25=0,0,BQ25/'Asset data'!$F25) -> 41.29889919 | EB25: =IF('Asset data'!$F25=0,0,BR25/'Asset data'!$F25) -> 43.03329212
A26: ='Asset data'!A26 -> 2 | B26: ='Asset data'!B26 -> 0 | C26: ='Asset data'!C26 -> 0 | D26: ='Asset data'!E26 -> TowerRefit_ZoneD_132_SC_NonGrillage | E26: Towers (Non-Grillage - Refit), by Corrosion Zone; Highest Operating Voltage; Circuit Configuration | F26: ='Asset data'!G26 -> 35.3369029 | G26: 35.3369029 | H26: ='Asset data'!H26 -> 5.944485083 | I26: S | J26: =IF(A26=0,0,IF('Asset data'!$D$1=1,1,IF('Asset data'!$D$1=2,2,'Asset data'!I26))) -> 2 | K26: 35.3369029 | AY26: =repcalc('Age profile (Inst)'!CT26:GF26,J26,K26,H26,20,$L$20,$M$20) -> 0.02393689322 | AZ26: 0.02823996791 | BA26: 0.03239605991 | BB26: 0.03614026878 | BC26: 0.03921204034 | BD26: 0.04138672187 | BE26: 0.04250512434 | BF26: 0.04249585944 | BG26: 0.04138628235 | BH26: 0.03929991925 | BI26: 0.03644081866 | BJ26: 0.03306772123 | BK26: 0.02946270176 | BL26: 0.02589961747 | BM26: 0.0226172149 | BN26: 0.0198003307 | BO26: 0.01757070424 | BP26: 0.01598700606 | BQ26: 0.01505219434 | BR26: 0.01472548595 | BS26: 19.29166667 | BT26: 19.5689649 | BU26: 19.72603666 | BV26: 19.78029331 | BW26: 19.75940158 | BX26: 19.69853248 | BY26: 19.63619688 | BZ26: 19.6096122 | CA26: 19.65063343 | CB26: 19.78300974 | CC26: 20.02124954 | CD26: 20.37091834 | CE26: 20.829916 | CF26: 21.39022337 | CG26: 22.03970925 | CH26: 22.76375353 | CI26: 23.5465931 | CJ26: 24.37239595 | CK26: 25.22610698 | CL26: 26.09410374 | CM26: 26.9646776 | CN26: 0 | CO26: 0 | CP26: 0 | CQ26: 0 | CR26: 0 | CS26: 0 | CT26: 0 | CU26: 0 | CV26: 0 | CW26: 0 | CX26: 0 | CY26: 0 | CZ26: 0 | DA26: 0 | DB26: 0 | DC26: 0 | DD26: 0 | DE26: 0 | DF26: 0 | DG26: 0 | DH26: 0 | DI26: =IF('Asset data'!$F26=0,0,AY26/'Asset data'!$F26) -> 2.393689322 | DJ26: =IF('Asset data'!$F26=0,0,AZ26/'Asset data'!$F26) -> 2.823996791 | DK26: =IF('Asset data'!$F26=0,0,BA26/'Asset data'!$F26) -> 3.239605991 | DL26: =IF('Asset data'!$F26=0,0,BB26/'Asset data'!$F26) -> 3.614026878 | DM26: =IF('Asset data'!$F26=0,0,BC26/'Asset data'!$F26) -> 3.921204034 | DN26: =IF('Asset data'!$F26=0,0,BD26/'Asset data'!$F26) -> 4.138672187 | DO26: =IF('Asset data'!$F26=0,0,BE26/'Asset data'!$F26) -> 4.250512434 | DP26: =IF('Asset data'!$F26=0,0,BF26/'Asset data'!$F26) -> 4.249585944 | DQ26: =IF('Asset data'!$F26=0,0,BG26/'Asset data'!$F26) -> 4.138628235 | DR26: =IF('Asset data'!$F26=0,0,BH26/'Asset data'!$F26) -> 3.929991925 | DS26: =IF('Asset data'!$F26=0,0,BI26/'Asset data'!$F26) -> 3.644081866 | DT26: =IF('Asset data'!$F26=0,0,BJ26/'Asset data'!$F26) -> 3.306772123 | DU26: =IF('Asset data'!$F26=0,0,BK26/'Asset data'!$F26) -> 2.946270176 | DV26: =IF('Asset data'!$F26=0,0,BL26/'Asset data'!$F26) -> 2.589961747 | DW26: =IF('Asset data'!$F26=0,0,BM26/'Asset data'!$F26) -> 2.26172149 | DX26: =IF('Asset data'!$F26=0,0,BN26/'Asset data'!$F26) -> 1.98003307 | DY26: =IF('Asset data'!$F26=0,0,BO26/'Asset data'!$F26) -> 1.757070424 | DZ26: =IF('Asset data'!$F26=0,0,BP26/'Asset data'!$F26) -> 1.598700606 | EA26: =IF('Asset data'!$F26=0,0,BQ26/'Asset data'!$F26) -> 1.505219434 | EB26: =IF('Asset data'!$F26=0,0,BR26/'Asset data'!$F26) -> 1.472548595
A27: ='Asset data'!A27 -> 2 | B27: ='Asset data'!B27 -> 0 | C27: ='Asset data'!C27 -> 0 | D27: ='Asset data'!E27 -> TowerRefit_ZoneB_275_SC_NonGrillage | E27: Towers (Non-Grillage - Refit), by Corrosion Zone; Highest Operating Voltage; Circuit Configuration | F27: ='Asset data'!G27 -> 66.44576873 | G27: 66.44576873 | H27: ='Asset data'!H27 -> 8.151427404 | I27: S | J27: =IF(A27=0,0,IF('Asset data'!$D$1=1,1,IF('Asset data'!$D$1=2,2,'Asset data'!I27))) -> 2 | K27: 66.44576873 | AY27: =repcalc('Age profile (Inst)'!CT27:GF27,J27,K27,H27,20,$L$20,$M$20) -> 0.0004572459169 | AZ27: 0.0006959485994 | BA27: 0.001043461774 | BB27: 0.001541160881 | BC27: 0.002242288394 | BD27: 0.003213712522 | BE27: 0.004537270267 | BF27: 0.006310363049 | BG27: 0.00864542045 | BH27: 0.01166782678 | BI27: 0.01551193267 | BJ27: 0.02031486484 | BK27: 0.02620801059 | BL27: 0.0333062908 | BM27: 0.04169563416 | BN27: 0.05141939966 | BO27: 0.06246482531 | BP27: 0.07475085668 | BQ27: 0.08811887506 | BR27: 0.1023278508 | BS27: 35.91162791 | BT27: 36.90758713 | BU27: 37.90127575 | BV27: 38.89157192 | BW27: 39.8768852 | BX27: 40.85500431 | BY27: 41.82291545 | BZ27: 42.77659487 | CA27: 43.71078428 | CB27: 44.61876475 | CC27: 45.4921531 | CD27: 46.32075389 | CE27: 47.0925086 | CF27: 47.79359036 | CG27: 48.40869367 | CH27: 48.92156268 | CI27: 49.31578466 | CJ27: 49.5758465 | CK27: 49.68841166 | CL27: 49.64372707 | CM27: 49.4370216 | CN27: 0 | CO27: 0 | CP27: 0 | CQ27: 0 | CR27: 0 | CS27: 0 | CT27: 0 | CU27: 0 | CV27: 0 | CW27: 0 | CX27: 0 | CY27: 0 | CZ27: 0 | DA27: 0 | DB27: 0 | DC27: 0 | DD27: 0 | DE27: 0 | DF27: 0 | DG27: 0 | DH27: 0 | DI27: =IF('Asset data'!$F27=0,0,AY27/'Asset data'!$F27) -> 0.04572459169 | DJ27: =IF('Asset data'!$F27=0,0,AZ27/'Asset data'!$F27) -> 0.06959485994 | DK27: =IF('Asset data'!$F27=0,0,BA27/'Asset data'!$F27) -> 0.1043461774 | DL27: =IF('Asset data'!$F27=0,0,BB27/'Asset data'!$F27) -> 0.1541160881 | DM27: =IF('Asset data'!$F27=0,0,BC27/'Asset data'!$F27) -> 0.2242288394 | DN27: =IF('Asset data'!$F27=0,0,BD27/'Asset data'!$F27) -> 0.3213712522 | DO27: =IF('Asset data'!$F27=0,0,BE27/'Asset data'!$F27) -> 0.4537270267 | DP27: =IF('Asset data'!$F27=0,0,BF27/'Asset data'!$F27) -> 0.6310363049 | DQ27: =IF('Asset data'!$F27=0,0,BG27/'Asset data'!$F27) -> 0.864542045 | DR27: =IF('Asset data'!$F27=0,0,BH27/'Asset data'!$F27) -> 1.166782678 | DS27: =IF('Asset data'!$F27=0,0,BI27/'Asset data'!$F27) -> 1.551193267 | DT27: =IF('Asset data'!$F27=0,0,BJ27/'Asset data'!$F27) -> 2.031486484 | DU27: =IF('Asset data'!$F27=0,0,BK27/'Asset data'!$F27) -> 2.620801059 | DV27: =IF('Asset data'!$F27=0,0,BL27/'Asset data'!$F27) -> 3.33062908 | DW27: =IF('Asset data'!$F27=0,0,BM27/'Asset data'!$F27) -> 4.169563416 | DX27: =IF('Asset data'!$F27=0,0,BN27/'Asset data'!$F27) -> 5.141939966 | DY27: =IF('Asset data'!$F27=0,0,BO27/'Asset data'!$F27) -> 6.246482531 | DZ27: =IF('Asset data'!$F27=0,0,BP27/'Asset data'!$F27) -> 7.475085668 | EA27: =IF('Asset data'!$F27=0,0,BQ27/'Asset data'!$F27) -> 8.811887506 | EB27: =IF('Asset data'!$F27=0,0,BR27/'Asset data'!$F27) -> 10.23278508
A28: ='Asset data'!A28 -> 2 | B28: ='Asset data'!B28 -> 0 | C28: ='Asset data'!C28 -> 0 | D28: ='Asset data'!E28 -> TowerRefit_ZoneC_275_SC_NonGrillage | E28: Towers (Non-Grillage - Refit), by Corrosion Zone; Highest Operating Voltage; Circuit Configuration | F28: ='Asset data'!G28 -> 52.91722577 | G28: 52.91722577 | H28: ='Asset data'!H28 -> 7.27442271 | I28: S | J28: =IF(A28=0,0,IF('Asset data'!$D$1=1,1,IF('Asset data'!$D$1=2,2,'Asset data'!I28))) -> 2 | K28: 52.91722577 | AY28: =repcalc('Age profile (Inst)'!CT28:GF28,J28,K28,H28,20,$L$20,$M$20) -> 0.2426558442 | AZ28: 0.3101096382 | BA28: 0.3904450381 | BB28: 0.4844007421 | BC28: 0.5922823749 | BD28: 0.7138533026 | BE28: 0.8482424618 | BF28: 0.9938800688 | BG28: 1.148471403 | BH28: 1.309017047 | BI28: 1.471885029 | BJ28: 1.632936347 | BK28: 1.787700642 | BL28: 1.931593705 | BM28: 2.06016351 | BN28: 2.169347234 | BO28: 2.255718786 | BP28: 2.316705365 | BQ28: 2.350752827 | BR28: 2.357423333 | BS28: 30.29639844 | BT28: 31.14082752 | BU28: 31.94069077 | BV28: 32.68775151 | BW28: 33.37364152 | BX28: 33.99026482 | BY28: 34.53025508 | BZ28: 34.98745859 | CA28: 35.35741214 | CB28: 35.63778488 | CC28: 35.82875373 | CD28: 35.93328256 | CE28: 35.95727448 | CF28: 35.90956744 | CG28: 35.80174834 | CH28: 35.64777285 | CI28: 35.46339799 | CJ28: 35.26546 | CK28: 35.07105486 | CL28: 34.89669815 | CM28: 34.75754798 | CN28: 0 | CO28: 0 | CP28: 0 | CQ28: 0 | CR28: 0 | CS28: 0 | CT28: 0 | CU28: 0 | CV28: 0 | CW28: 0 | CX28: 0 | CY28: 0 | CZ28: 0 | DA28: 0 | DB28: 0 | DC28: 0 | DD28: 0 | DE28: 0 | DF28: 0 | DG28: 0 | DH28: 0 | DI28: =IF('Asset data'!$F28=0,0,AY28/'Asset data'!$F28) -> 24.26558442 | DJ28: =IF('Asset data'!$F28=0,0,AZ28/'Asset data'!$F28) -> 31.01096382 | DK28: =IF('Asset data'!$F28=0,0,BA28/'Asset data'!$F28) -> 39.04450381 | DL28: =IF('Asset data'!$F28=0,0,BB28/'Asset data'!$F28) -> 48.44007421 | DM28: =IF('Asset data'!$F28=0,0,BC28/'Asset data'!$F28) -> 59.22823749 | DN28: =IF('Asset data'!$F28=0,0,BD28/'Asset data'!$F28) -> 71.38533026 | DO28: =IF('Asset data'!$F28=0,0,BE28/'Asset data'!$F28) -> 84.82424618 | DP28: =IF('Asset data'!$F28=0,0,BF28/'Asset data'!$F28) -> 99.38800688 | DQ28: =IF('Asset data'!$F28=0,0,BG28/'Asset data'!$F28) -> 114.8471403 | DR28: =IF('Asset data'!$F28=0,0,BH28/'Asset data'!$F28) -> 130.9017047 | DS28: =IF('Asset data'!$F28=0,0,BI28/'Asset data'!$F28) -> 147.1885029 | DT28: =IF('Asset data'!$F28=0,0,BJ28/'Asset data'!$F28) -> 163.2936347 | DU28: =IF('Asset data'!$F28=0,0,BK28/'Asset data'!$F28) -> 178.7700642 | DV28: =IF('Asset data'!$F28=0,0,BL28/'Asset data'!$F28) -> 193.1593705 | DW28: =IF('Asset data'!$F28=0,0,BM28/'Asset data'!$F28) -> 206.016351 | DX28: =IF('Asset data'!$F28=0,0,BN28/'Asset data'!$F28) -> 216.9347234 | DY28: =IF('Asset data'!$F28=0,0,BO28/'Asset data'!$F28) -> 225.5718786 | DZ28: =IF('Asset data'!$F28=0,0,BP28/'Asset data'!$F28) -> 231.6705365 | EA28: =IF('Asset data'!$F28=0,0,BQ28/'Asset data'!$F28) -> 235.0752827 | EB28: =IF('Asset data'!$F28=0,0,BR28/'Asset data'!$F28) -> 235.7423333
A29: ='Asset data'!A29 -> 2 | B29: ='Asset data'!B29 -> 0 | C29: ='Asset data'!C29 -> 0 | D29: ='Asset data'!E29 -> TowerRefit_ZoneD_275_SC_NonGrillage | E29: Towers (Non-Grillage - Refit), by Corrosion Zone; Highest Operating Voltage; Circuit Configuration | F29: ='Asset data'!G29 -> 35.3369029 | G29: 35.3369029 | H29: ='Asset data'!H29 -> 5.944485083 | I29: S | J29: =IF(A29=0,0,IF('Asset data'!$D$1=1,1,IF('Asset data'!$D$1=2,2,'Asset data'!I29))) -> 2 | K29: 35.3369029 | AY29: =repcalc('Age profile (Inst)'!CT29:GF29,J29,K29,H29,20,$L$20,$M$20) -> 1.393852475 | AZ29: 1.15890423 | BA29: 0.9416988578 | BB29: 0.7484703944 | BC29: 0.5825186868 | BD29: 0.4445743779 | BE29: 0.333356632 | BF29: 0.2462048019 | BG29: 0.1796854313 | BH29: 0.1301068531 | BI29: 0.09390644492 | BJ29: 0.06790390672 | BK29: 0.04943426991 | BL29: 0.03638599455 | BM29: 0.02717355365 | BN29: 0.0206723918 | BO29: 0.01613926401 | BP29: 0.01313456696 | BQ29: 0.01145669561 | BR29: 0.01109249894 | BS29: 39.45751138 | BT29: 31.6881371 | BU29: 26.97906527 | BV29: 24.16620701 | BW29: 22.59110166 | BX29: 21.85581969 | BY29: 21.70600558 | BZ29: 21.97156308 | CA29: 22.53480219 | CB29: 23.31236822 | CC29: 24.24440513 | CD29: 25.28767509 | CE29: 26.41093966 | CF29: 27.59170829 | CG29: 28.8138714 | CH29: 30.06594628 | CI29: 31.33977229 | CJ29: 32.62954718 | CK29: 33.93112745 | CL29: 35.24153446 | CM29: 36.55862133 | CN29: 0 | CO29: 0 | CP29: 0 | CQ29: 0 | CR29: 0 | CS29: 0 | CT29: 0 | CU29: 0 | CV29: 0 | CW29: 0 | CX29: 0 | CY29: 0 | CZ29: 0 | DA29: 0 | DB29: 0 | DC29: 0 | DD29: 0 | DE29: 0 | DF29: 0 | DG29: 0 | DH29: 0 | DI29: =IF('Asset data'!$F29=0,0,AY29/'Asset data'!$F29) -> 139.3852475 | DJ29: =IF('Asset data'!$F29=0,0,AZ29/'Asset data'!$F29) -> 115.890423 | DK29: =IF('Asset data'!$F29=0,0,BA29/'Asset data'!$F29) -> 94.16988578 | DL29: =IF('Asset data'!$F29=0,0,BB29/'Asset data'!$F29) -> 74.84703944 | DM29: =IF('Asset data'!$F29=0,0,BC29/'Asset data'!$F29) -> 58.25186868 | DN29: =IF('Asset data'!$F29=0,0,BD29/'Asset data'!$F29) -> 44.45743779 | DO29: =IF('Asset data'!$F29=0,0,BE29/'Asset data'!$F29) -> 33.3356632 | DP29: =IF('Asset data'!$F29=0,0,BF29/'Asset data'!$F29) -> 24.62048019 | DQ29: =IF('Asset data'!$F29=0,0,BG29/'Asset data'!$F29) -> 17.96854313 | DR29: =IF('Asset data'!$F29=0,0,BH29/'Asset data'!$F29) -> 13.01068531 | DS29: =IF('Asset data'!$F29=0,0,BI29/'Asset data'!$F29) -> 9.390644492 | DT29: =IF('Asset data'!$F29=0,0,BJ29/'Asset data'!$F29) -> 6.790390672 | DU29: =IF('Asset data'!$F29=0,0,BK29/'Asset data'!$F29) -> 4.943426991 | DV29: =IF('Asset data'!$F29=0,0,BL29/'Asset data'!$F29) -> 3.638599455 | DW29: =IF('Asset data'!$F29=0,0,BM29/'Asset data'!$F29) -> 2.717355365 | DX29: =IF('Asset data'!$F29=0,0,BN29/'Asset data'!$F29) -> 2.06723918 | DY29: =IF('Asset data'!$F29=0,0,BO29/'Asset data'!$F29) -> 1.613926401 | DZ29: =IF('Asset data'!$F29=0,0,BP29/'Asset data'!$F29) -> 1.313456696 | EA29: =IF('Asset data'!$F29=0,0,BQ29/'Asset data'!$F29) -> 1.145669561 | EB29: =IF('Asset data'!$F29=0,0,BR29/'Asset data'!$F29) -> 1.109249894
A30: ='Asset data'!A30 -> 2 | B30: ='Asset data'!B30 -> 0 | C30: ='Asset data'!C30 -> 0 | D30: ='Asset data'!E30 -> TowerRefit_ZoneB_330_SC_NonGrillage | E30: Towers (Non-Grillage - Refit), by Corrosion Zone; Highest Operating Voltage; Circuit Configuration | F30: ='Asset data'!G30 -> 66.44576873 | G30: 66.44576873 | H30: ='Asset data'!H30 -> 8.151427404 | I30: S | J30: =IF(A30=0,0,IF('Asset data'!$D$1=1,1,IF('Asset data'!$D$1=2,2,'Asset data'!I30))) -> 2 | K30: 66.44576873 | AY30: =repcalc('Age profile (Inst)'!CT30:GF30,J30,K30,H30,20,$L$20,$M$20) -> 6.329147606e-13 | AZ30: 1.445538681e-12 | BA30: 3.252266019e-12 | BB30: 7.20799151e-12 | BC30: 1.573672448e-11 | BD30: 3.384435918e-11 | BE30: 7.170181311e-11 | BF30: 1.496393721e-10 | BG30: 3.076334261e-10 | BH30: 6.230072228e-10 | BI30: 1.242866733e-09 | BJ30: 2.442462905e-09 | BK30: 4.728281542e-09 | BL30: 9.016762426e-09 | BM30: 1.693830232e-08 | BN30: 3.134448186e-08 | BO30: 5.713790065e-08 | BP30: 1.026028538e-07 | BQ30: 1.814958024e-07 | BR30: 3.162610586e-07 | BS30: 10.5 | BT30: 11.5 | BU30: 12.5 | BV30: 13.5 | BW30: 14.5 | BX30: 15.5 | BY30: 16.49999999 | BZ30: 17.49999998 | CA30: 18.49999997 | CB30: 19.49999992 | CC30: 20.49999983 | CD30: 21.49999965 | CE30: 22.49999926 | CF30: 23.49999849 | CG30: 24.49999694 | CH30: 25.49999392 | CI30: 26.4999881 | CJ30: 27.49997708 | CK30: 28.49995656 | CL30: 29.49991896 | CM30: 30.49985119 | CN30: 0 | CO30: 0 | CP30: 0 | CQ30: 0 | CR30: 0 | CS30: 0 | CT30: 0 | CU30: 0 | CV30: 0 | CW30: 0 | CX30: 0 | CY30: 0 | CZ30: 0 | DA30: 0 | DB30: 0 | DC30: 0 | DD30: 0 | DE30: 0 | DF30: 0 | DG30: 0 | DH30: 0 | DI30: =IF('Asset data'!$F30=0,0,AY30/'Asset data'!$F30) -> 6.329147606e-11 | DJ30: =IF('Asset data'!$F30=0,0,AZ30/'Asset data'!$F30) -> 1.445538681e-10 | DK30: =IF('Asset data'!$F30=0,0,BA30/'Asset data'!$F30) -> 3.252266019e-10 | DL30: =IF('Asset data'!$F30=0,0,BB30/'Asset data'!$F30) -> 7.20799151e-10 | DM30: =IF('Asset data'!$F30=0,0,BC30/'Asset data'!$F30) -> 1.573672448e-09 | DN30: =IF('Asset data'!$F30=0,0,BD30/'Asset data'!$F30) -> 3.384435918e-09 | DO30: =IF('Asset data'!$F30=0,0,BE30/'Asset data'!$F30) -> 7.170181311e-09 | DP30: =IF('Asset data'!$F30=0,0,BF30/'Asset data'!$F30) -> 1.496393721e-08 | DQ30: =IF('Asset data'!$F30=0,0,BG30/'Asset data'!$F30) -> 3.076334261e-08 | DR30: =IF('Asset data'!$F30=0,0,BH30/'Asset data'!$F30) -> 6.230072228e-08 | DS30: =IF('Asset data'!$F30=0,0,BI30/'Asset data'!$F30) -> 1.242866733e-07 | DT30: =IF('Asset data'!$F30=0,0,BJ30/'Asset data'!$F30) -> 2.442462905e-07 | DU30: =IF('Asset data'!$F30=0,0,BK30/'Asset data'!$F30) -> 4.728281542e-07 | DV30: =IF('Asset data'!$F30=0,0,BL30/'Asset data'!$F30) -> 9.016762426e-07 | DW30: =IF('Asset data'!$F30=0,0,BM30/'Asset data'!$F30) -> 1.693830232e-06 | DX30: =IF('Asset data'!$F30=0,0,BN30/'Asset data'!$F30) -> 3.134448186e-06 | DY30: =IF('Asset data'!$F30=0,0,BO30/'Asset data'!$F30) -> 5.713790065e-06 | DZ30: =IF('Asset data'!$F30=0,0,BP30/'Asset data'!$F30) -> 1.026028538e-05 | EA30: =IF('Asset data'!$F30=0,0,BQ30/'Asset data'!$F30) -> 1.814958024e-05 | EB30: =IF('Asset data'!$F30=0,0,BR30/'Asset data'!$F30) -> 3.162610586e-05
A31: ='Asset data'!A31 -> 2 | B31: ='Asset data'!B31 -> 0 | C31: ='Asset data'!C31 -> 0 | D31: ='Asset data'!E31 -> TowerRefit_ZoneB_132_MC_NonGrillage | E31: Towers (Non-Grillage - Refit), by Corrosion Zone; Highest Operating Voltage; Circuit Configuration | F31: ='Asset data'!G31 -> 66.44576873 | G31: 66.44576873 | H31: ='Asset data'!H31 -> 8.151427404 | I31: S | J31: =IF(A31=0,0,IF('Asset data'!$D$1=1,1,IF('Asset data'!$D$1=2,2,'Asset data'!I31))) -> 2 | K31: 66.44576873 | AY31: =repcalc('Age profile (Inst)'!CT31:GF31,J31,K31,H31,20,$L$20,$M$20) -> 0.02392872772 | AZ31: 0.03161045245 | BA31: 0.0411880764 | BB31: 0.05293475904 | BC31: 0.06710244879 | BD31: 0.08390031009 | BE31: 0.1034705316 | BF31: 0.1258630393 | BG31: 0.1510111415 | BH31: 0.1787105189 | BI31: 0.2086041519 | BJ31: 0.2401756961 | BK31: 0.2727534114 | BL31: 0.3055260402 | BM31: 0.3375710284 | BN31: 0.3678942971 | BO31: 0.395479521 | BP31: 0.4193436961 | BQ31: 0.4385948596 | BR31: 0.4524872802 | BS31: 44.47704591 | BT31: 45.36369175 | BU31: 46.21167766 | BV31: 47.01087447 | BW31: 47.74964575 | BX31: 48.4150284 | BY31: 48.99308012 | BZ31: 49.46941468 | CA31: 49.82992893 | CB31: 50.06170196 | CC31: 50.15401878 | CD31: 50.09944149 | CE31: 49.89482707 | CF31: 49.54217628 | CG31: 49.04920013 | CH31: 48.42950986 | CI31: 47.70237332 | CJ31: 46.89202978 | CK31: 46.02660899 | CL31: 45.13674917 | CM31: 44.2540443 | CN31: 0 | CO31: 0 | CP31: 0 | CQ31: 0 | CR31: 0 | CS31: 0 | CT31: 0 | CU31: 0 | CV31: 0 | CW31: 0 | CX31: 0 | CY31: 0 | CZ31: 0 | DA31: 0 | DB31: 0 | DC31: 0 | DD31: 0 | DE31: 0 | DF31: 0 | DG31: 0 | DH31: 0 | DI31: =IF('Asset data'!$F31=0,0,AY31/'Asset data'!$F31) -> 2.392872772 | DJ31: =IF('Asset data'!$F31=0,0,AZ31/'Asset data'!$F31) -> 3.161045245 | DK31: =IF('Asset data'!$F31=0,0,BA31/'Asset data'!$F31) -> 4.11880764 | DL31: =IF('Asset data'!$F31=0,0,BB31/'Asset data'!$F31) -> 5.293475904 | DM31: =IF('Asset data'!$F31=0,0,BC31/'Asset data'!$F31) -> 6.710244879 | DN31: =IF('Asset data'!$F31=0,0,BD31/'Asset data'!$F31) -> 8.390031009 | DO31: =IF('Asset data'!$F31=0,0,BE31/'Asset data'!$F31) -> 10.34705316 | DP31: =IF('Asset data'!$F31=0,0,BF31/'Asset data'!$F31) -> 12.58630393 | DQ31: =IF('Asset data'!$F31=0,0,BG31/'Asset data'!$F31) -> 15.10111415 | DR31: =IF('Asset data'!$F31=0,0,BH31/'Asset data'!$F31) -> 17.87105189 | DS31: =IF('Asset data'!$F31=0,0,BI31/'Asset data'!$F31) -> 20.86041519 | DT31: =IF('Asset data'!$F31=0,0,BJ31/'Asset data'!$F31) -> 24.01756961 | DU31: =IF('Asset data'!$F31=0,0,BK31/'Asset data'!$F31) -> 27.27534114 | DV31: =IF('Asset data'!$F31=0,0,BL31/'Asset data'!$F31) -> 30.55260402 | DW31: =IF('Asset data'!$F31=0,0,BM31/'Asset data'!$F31) -> 33.75710284 | DX31: =IF('Asset data'!$F31=0,0,BN31/'Asset data'!$F31) -> 36.78942971 | DY31: =IF('Asset data'!$F31=0,0,BO31/'Asset data'!$F31) -> 39.5479521 | DZ31: =IF('Asset data'!$F31=0,0,BP31/'Asset data'!$F31) -> 41.93436961 | EA31: =IF('Asset data'!$F31=0,0,BQ31/'Asset data'!$F31) -> 43.85948596 | EB31: =IF('Asset data'!$F31=0,0,BR31/'Asset data'!$F31) -> 45.24872802
A32: ='Asset data'!A32 -> 2 | B32: ='Asset data'!B32 -> 0 | C32: ='Asset data'!C32 -> 0 | D32: ='Asset data'!E32 -> TowerRefit_ZoneC_132_MC_NonGrillage | E32: Towers (Non-Grillage - Refit), by Corrosion Zone; Highest Operating Voltage; Circuit Configuration | F32: ='Asset data'!G32 -> 52.91722577 | G32: 52.91722577 | H32: ='Asset data'!H32 -> 7.27442271 | I32: S | J32: =IF(A32=0,0,IF('Asset data'!$D$1=1,1,IF('Asset data'!$D$1=2,2,'Asset data'!I32))) -> 2 | K32: 52.91722577 | AY32: =repcalc('Age profile (Inst)'!CT32:GF32,J32,K32,H32,20,$L$20,$M$20) -> 0.3252543722 | AZ32: 0.3572728101 | BA32: 0.3895540438 | BB32: 0.4220671915 | BC32: 0.4548366201 | BD32: 0.4879052872 | BE32: 0.5212874998 | BF32: 0.5549176217 | BG32: 0.5886025982 | BH32: 0.621986284 | BI32: 0.6545323438 | BJ32: 0.6855301077 | BK32: 0.7141245706 | BL32: 0.7393682938 | BM32: 0.7602898729 | BN32: 0.7759714043 | BO32: 0.7856263473 | BP32: 0.7886694137 | BQ32: 0.7847714761 | BR32: 0.7738946164 | BS32: 28.53237541 | BT32: 28.96769496 | BU32: 29.38230601 | BV32: 29.77750763 | BW32: 30.15314169 | BX32: 30.50774995 | BY32: 30.83892723 | BZ32: 31.14384039 | CA32: 31.41985211 | CB32: 31.66516286 | CC32: 31.8793714 | CD32: 32.06386469 | CE32: 32.22198047 | CF32: 32.35893428 | CG32: 32.48155045 | CH32: 32.59786931 | CI32: 32.7167102 | CJ32: 32.84725123 | CK32: 32.99865404 | CL32: 33.17972994 | CM32: 33.39862686 | CN32: 0 | CO32: 0 | CP32: 0 | CQ32: 0 | CR32: 0 | CS32: 0 | CT32: 0 | CU32: 0 | CV32: 0 | CW32: 0 | CX32: 0 | CY32: 0 | CZ32: 0 | DA32: 0 | DB32: 0 | DC32: 0 | DD32: 0 | DE32: 0 | DF32: 0 | DG32: 0 | DH32: 0 | DI32: =IF('Asset data'!$F32=0,0,AY32/'Asset data'!$F32) -> 32.52543722 | DJ32: =IF('Asset data'!$F32=0,0,AZ32/'Asset data'!$F32) -> 35.72728101 | DK32: =IF('Asset data'!$F32=0,0,BA32/'Asset data'!$F32) -> 38.95540438 | DL32: =IF('Asset data'!$F32=0,0,BB32/'Asset data'!$F32) -> 42.20671915 | DM32: =IF('Asset data'!$F32=0,0,BC32/'Asset data'!$F32) -> 45.48366201 | DN32: =IF('Asset data'!$F32=0,0,BD32/'Asset data'!$F32) -> 48.79052872 | DO32: =IF('Asset data'!$F32=0,0,BE32/'Asset data'!$F32) -> 52.12874998 | DP32: =IF('Asset data'!$F32=0,0,BF32/'Asset data'!$F32) -> 55.49176217 | DQ32: =IF('Asset data'!$F32=0,0,BG32/'Asset data'!$F32) -> 58.86025982 | DR32: =IF('Asset data'!$F32=0,0,BH32/'Asset data'!$F32) -> 62.1986284 | DS32: =IF('Asset data'!$F32=0,0,BI32/'Asset data'!$F32) -> 65.45323438 | DT32: =IF('Asset data'!$F32=0,0,BJ32/'Asset data'!$F32) -> 68.55301077 | DU32: =IF('Asset data'!$F32=0,0,BK32/'Asset data'!$F32) -> 71.41245706 | DV32: =IF('Asset data'!$F32=0,0,BL32/'Asset data'!$F32) -> 73.93682938 | DW32: =IF('Asset data'!$F32=0,0,BM32/'Asset data'!$F32) -> 76.02898729 | DX32: =IF('Asset data'!$F32=0,0,BN32/'Asset data'!$F32) -> 77.59714043 | DY32: =IF('Asset data'!$F32=0,0,BO32/'Asset data'!$F32) -> 78.56263473 | DZ32: =IF('Asset data'!$F32=0,0,BP32/'Asset data'!$F32) -> 78.86694137 | EA32: =IF('Asset data'!$F32=0,0,BQ32/'Asset data'!$F32) -> 78.47714761 | EB32: =IF('Asset data'!$F32=0,0,BR32/'Asset data'!$F32) -> 77.38946164
A33: ='Asset data'!A33 -> 2 | B33: ='Asset data'!B33 -> 0 | C33: ='Asset data'!C33 -> 0 | D33: ='Asset data'!E33 -> TowerRefit_ZoneD_132_MC_NonGrillage | E33: Towers (Non-Grillage - Refit), by Corrosion Zone; Highest Operating Voltage; Circuit Configuration | F33: ='Asset data'!G33 -> 35.3369029 | G33: 35.3369029 | H33: ='Asset data'!H33 -> 5.944485083 | I33: S | J33: =IF(A33=0,0,IF('Asset data'!$D$1=1,1,IF('Asset data'!$D$1=2,2,'Asset data'!I33))) -> 2 | K33: 35.3369029 | AY33: =repcalc('Age profile (Inst)'!CT33:GF33,J33,K33,H33,20,$L$20,$M$20) -> 0.2931545842 | AZ33: 0.2747446392 | BA33: 0.2546463106 | BB33: 0.2324620963 | BC33: 0.208588254 | BD33: 0.1838579591 | BE33: 0.1592830732 | BF33: 0.1358774461 | BG33: 0.1145473467 | BH33: 0.09603658085 | BI33: 0.08091461526 | BJ33: 0.06959577207 | BK33: 0.06237685035 | BL33: 0.0594800055 | BM33: 0.06108801349 | BN33: 0.06736069551 | BO33: 0.07842464396 | BP33: 0.09433354466 | BQ33: 0.1150029717 | BR33: 0.1401306419 | BS33: 15.43184797 | BT33: 14.99065761 | BU33: 14.8506391 | BV33: 14.91914801 | BW33: 15.15927245 | BX33: 15.54556298 | BY33: 16.05698144 | BZ33: 16.67483764 | CA33: 17.38200281 | CB33: 18.16256274 | CC33: 19.00162221 | CD33: 19.88513385 | CE33: 20.79968633 | CF33: 21.73221852 | CG33: 22.66965738 | CH33: 23.59851823 | CI33: 24.50455772 | CJ33: 25.37261956 | CK33: 26.18684236 | CL33: 26.93138344 | CM33: 27.59173666 | CN33: 0 | CO33: 0 | CP33: 0 | CQ33: 0 | CR33: 0 | CS33: 0 | CT33: 0 | CU33: 0 | CV33: 0 | CW33: 0 | CX33: 0 | CY33: 0 | CZ33: 0 | DA33: 0 | DB33: 0 | DC33: 0 | DD33: 0 | DE33: 0 | DF33: 0 | DG33: 0 | DH33: 0 | DI33: =IF('Asset data'!$F33=0,0,AY33/'Asset data'!$F33) -> 29.31545842 | DJ33: =IF('Asset data'!$F33=0,0,AZ33/'Asset data'!$F33) -> 27.47446392 | DK33: =IF('Asset data'!$F33=0,0,BA33/'Asset data'!$F33) -> 25.46463106 | DL33: =IF('Asset data'!$F33=0,0,BB33/'Asset data'!$F33) -> 23.24620963 | DM33: =IF('Asset data'!$F33=0,0,BC33/'Asset data'!$F33) -> 20.8588254 | DN33: =IF('Asset data'!$F33=0,0,BD33/'Asset data'!$F33) -> 18.38579591 | DO33: =IF('Asset data'!$F33=0,0,BE33/'Asset data'!$F33) -> 15.92830732 | DP33: =IF('Asset data'!$F33=0,0,BF33/'Asset data'!$F33) -> 13.58774461 | DQ33: =IF('Asset data'!$F33=0,0,BG33/'Asset data'!$F33) -> 11.45473467 | DR33: =IF('Asset data'!$F33=0,0,BH33/'Asset data'!$F33) -> 9.603658085 | DS33: =IF('Asset data'!$F33=0,0,BI33/'Asset data'!$F33) -> 8.091461526 | DT33: =IF('Asset data'!$F33=0,0,BJ33/'Asset data'!$F33) -> 6.959577207 | DU33: =IF('Asset data'!$F33=0,0,BK33/'Asset data'!$F33) -> 6.237685035 | DV33: =IF('Asset data'!$F33=0,0,BL33/'Asset data'!$F33) -> 5.94800055 | DW33: =IF('Asset data'!$F33=0,0,BM33/'Asset data'!$F33) -> 6.108801349 | DX33: =IF('Asset data'!$F33=0,0,BN33/'Asset data'!$F33) -> 6.736069551 | DY33: =IF('Asset data'!$F33=0,0,BO33/'Asset data'!$F33) -> 7.842464396 | DZ33: =IF('Asset data'!$F33=0,0,BP33/'Asset data'!$F33) -> 9.433354466 | EA33: =IF('Asset data'!$F33=0,0,BQ33/'Asset data'!$F33) -> 11.50029717 | EB33: =IF('Asset data'!$F33=0,0,BR33/'Asset data'!$F33) -> 14.01306419
A34: ='Asset data'!A34 -> 2 | B34: ='Asset data'!B34 -> 0 | C34: ='Asset data'!C34 -> 0 | D34: ='Asset data'!E34 -> TowerRefit_ZoneB_275_MC_NonGrillage | E34: Towers (Non-Grillage - Refit), by Corrosion Zone; Highest Operating Voltage; Circuit Configuration | F34: ='Asset data'!G34 -> 66.44576873 | G34: 66.44576873 | H34: ='Asset data'!H34 -> 8.151427404 | I34: S | J34: =IF(A34=0,0,IF('Asset data'!$D$1=1,1,IF('Asset data'!$D$1=2,2,'Asset data'!I34))) -> 2 | K34: 66.44576873 | AY34: =repcalc('Age profile (Inst)'!CT34:GF34,J34,K34,H34,20,$L$20,$M$20) -> 0.0008987363319 | AZ34: 0.001247470149 | BA34: 0.001705808736 | BB34: 0.002297908065 | BC34: 0.003049558719 | BD34: 0.003986973435 | BE34: 0.005135133033 | BF34: 0.006515716332 | BG34: 0.008144696901 | BH34: 0.01002975299 | BI34: 0.01216769902 | BJ34: 0.01454219803 | BK34: 0.01712204404 | BL34: 0.01986030201 | BM34: 0.02269455438 | BN34: 0.02554842543 | BO34: 0.02833444116 | BP34: 0.03095814457 | BQ34: 0.03332323892 | BR34: 0.03533739471 | BS34: 13.38340807 | BT34: 14.37451454 | BU34: 15.36190678 | BV34: 16.34431594 | BW34: 17.32016318 | BX34: 18.2875337 | BY34: 19.24416946 | BZ34: 20.18748925 | CA34: 21.11464544 | CB34: 22.02262489 | CC34: 22.90839862 | CD34: 23.76911928 | CE34: 24.60235797 | CF34: 25.40636299 | CG34: 26.18031498 | CH34: 26.92454615 | CI34: 27.64068978 | CJ34: 28.33173052 | CK34: 29.0019367 | CL34: 29.65667222 | CM34: 30.30210383 | CN34: 0 | CO34: 0 | CP34: 0 | CQ34: 0 | CR34: 0 | CS34: 0 | CT34: 0 | CU34: 0 | CV34: 0 | CW34: 0 | CX34: 0 | CY34: 0 | CZ34: 0 | DA34: 0 | DB34: 0 | DC34: 0 | DD34: 0 | DE34: 0 | DF34: 0 | DG34: 0 | DH34: 0 | DI34: =IF('Asset data'!$F34=0,0,AY34/'Asset data'!$F34) -> 0.08987363319 | DJ34: =IF('Asset data'!$F34=0,0,AZ34/'Asset data'!$F34) -> 0.1247470149 | DK34: =IF('Asset data'!$F34=0,0,BA34/'Asset data'!$F34) -> 0.1705808736 | DL34: =IF('Asset data'!$F34=0,0,BB34/'Asset data'!$F34) -> 0.2297908065 | DM34: =IF('Asset data'!$F34=0,0,BC34/'Asset data'!$F34) -> 0.3049558719 | DN34: =IF('Asset data'!$F34=0,0,BD34/'Asset data'!$F34) -> 0.3986973435 | DO34: =IF('Asset data'!$F34=0,0,BE34/'Asset data'!$F34) -> 0.5135133033 | DP34: =IF('Asset data'!$F34=0,0,BF34/'Asset data'!$F34) -> 0.6515716332 | DQ34: =IF('Asset data'!$F34=0,0,BG34/'Asset data'!$F34) -> 0.8144696901 | DR34: =IF('Asset data'!$F34=0,0,BH34/'Asset data'!$F34) -> 1.002975299 | DS34: =IF('Asset data'!$F34=0,0,BI34/'Asset data'!$F34) -> 1.216769902 | DT34: =IF('Asset data'!$F34=0,0,BJ34/'Asset data'!$F34) -> 1.454219803 | DU34: =IF('Asset data'!$F34=0,0,BK34/'Asset data'!$F34) -> 1.712204404 | DV34: =IF('Asset data'!$F34=0,0,BL34/'Asset data'!$F34) -> 1.986030201 | DW34: =IF('Asset data'!$F34=0,0,BM34/'Asset data'!$F34) -> 2.269455438 | DX34: =IF('Asset data'!$F34=0,0,BN34/'Asset data'!$F34) -> 2.554842543 | DY34: =IF('Asset data'!$F34=0,0,BO34/'Asset data'!$F34) -> 2.833444116 | DZ34: =IF('Asset data'!$F34=0,0,BP34/'Asset data'!$F34) -> 3.095814457 | EA34: =IF('Asset data'!$F34=0,0,BQ34/'Asset data'!$F34) -> 3.332323892 | EB34: =IF('Asset data'!$F34=0,0,BR34/'Asset data'!$F34) -> 3.533739471
A35: ='Asset data'!A35 -> 2 | B35: ='Asset data'!B35 -> 0 | C35: ='Asset data'!C35 -> 0 | D35: ='Asset data'!E35 -> TowerRefit_ZoneC_275_MC_NonGrillage | E35: Towers (Non-Grillage - Refit), by Corrosion Zone; Highest Operating Voltage; Circuit Configuration | F35: ='Asset data'!G35 -> 52.91722577 | G35: 52.91722577 | H35: ='Asset data'!H35 -> 7.27442271 | I35: S | J35: =IF(A35=0,0,IF('Asset data'!$D$1=1,1,IF('Asset data'!$D$1=2,2,'Asset data'!I35))) -> 2 | K35: 52.91722577 | AY35: =repcalc('Age profile (Inst)'!CT35:GF35,J35,K35,H35,20,$L$20,$M$20) -> 0.0449398229 | AZ35: 0.05247306276 | BA35: 0.06049266926 | BB35: 0.06893634979 | BC35: 0.07775981451 | BD35: 0.08694779278 | BE35: 0.0965218006 | BF35: 0.1065429003 | BG35: 0.1171083774 | BH35: 0.1283422923 | BI35: 0.1403811025 | BJ35: 0.1533567766 | BK35: 0.167380777 | BL35: 0.182532737 | BM35: 0.198857398 | BN35: 0.2163723478 | BO35: 0.2350873504 | BP35: 0.2550338163 | BQ35: 0.2763005605 | BR35: 0.2990698809 | BS35: 12.80296509 | BT35: 13.75531032 | BU35: 14.70078464 | BV35: 15.63950315 | BW35: 16.57169628 | BX35: 17.49762146 | BY35: 18.41745783 | BZ35: 19.33120296 | CA35: 20.23859246 | CB35: 21.13905998 | CC35: 22.031748 | CD35: 22.91557024 | CE35: 23.7893161 | CF35: 24.65177904 | CG35: 25.50188434 | CH35: 26.3387893 | CI35: 27.16193019 | CJ35: 27.97099619 | CK35: 28.76582025 | CL35: 29.54619054 | CM35: 30.31160136 | CN35: 0 | CO35: 0 | CP35: 0 | CQ35: 0 | CR35: 0 | CS35: 0 | CT35: 0 | CU35: 0 | CV35: 0 | CW35: 0 | CX35: 0 | CY35: 0 | CZ35: 0 | DA35: 0 | DB35: 0 | DC35: 0 | DD35: 0 | DE35: 0 | DF35: 0 | DG35: 0 | DH35: 0 | DI35: =IF('Asset data'!$F35=0,0,AY35/'Asset data'!$F35) -> 4.49398229 | DJ35: =IF('Asset data'!$F35=0,0,AZ35/'Asset data'!$F35) -> 5.247306276 | DK35: =IF('Asset data'!$F35=0,0,BA35/'Asset data'!$F35) -> 6.049266926 | DL35: =IF('Asset data'!$F35=0,0,BB35/'Asset data'!$F35) -> 6.893634979 | DM35: =IF('Asset data'!$F35=0,0,BC35/'Asset data'!$F35) -> 7.775981451 | DN35: =IF('Asset data'!$F35=0,0,BD35/'Asset data'!$F35) -> 8.694779278 | DO35: =IF('Asset data'!$F35=0,0,BE35/'Asset data'!$F35) -> 9.65218006 | DP35: =IF('Asset data'!$F35=0,0,BF35/'Asset data'!$F35) -> 10.65429003 | DQ35: =IF('Asset data'!$F35=0,0,BG35/'Asset data'!$F35) -> 11.71083774 | DR35: =IF('Asset data'!$F35=0,0,BH35/'Asset data'!$F35) -> 12.83422923 | DS35: =IF('Asset data'!$F35=0,0,BI35/'Asset data'!$F35) -> 14.03811025 | DT35: =IF('Asset data'!$F35=0,0,BJ35/'Asset data'!$F35) -> 15.33567766 | DU35: =IF('Asset data'!$F35=0,0,BK35/'Asset data'!$F35) -> 16.7380777 | DV35: =IF('Asset data'!$F35=0,0,BL35/'Asset data'!$F35) -> 18.2532737 | DW35: =IF('Asset data'!$F35=0,0,BM35/'Asset data'!$F35) -> 19.8857398 | DX35: =IF('Asset data'!$F35=0,0,BN35/'Asset data'!$F35) -> 21.63723478 | DY35: =IF('Asset data'!$F35=0,0,BO35/'Asset data'!$F35) -> 23.50873504 | DZ35: =IF('Asset data'!$F35=0,0,BP35/'Asset data'!$F35) -> 25.50338163 | EA35: =IF('Asset data'!$F35=0,0,BQ35/'Asset data'!$F35) -> 27.63005605 | EB35: =IF('Asset data'!$F35=0,0,BR35/'Asset data'!$F35) -> 29.90698809
A36: ='Asset data'!A36 -> 2 | B36: ='Asset data'!B36 -> 0 | C36: ='Asset data'!C36 -> 0 | D36: ='Asset data'!E36 -> TowerRefit_ZoneD_275_MC_NonGrillage | E36: Towers (Non-Grillage - Refit), by Corrosion Zone; Highest Operating Voltage; Circuit Configuration | F36: ='Asset data'!G36 -> 35.3369029 | G36: 35.3369029 | H36: ='Asset data'!H36 -> 5.944485083 | I36: S | J36: =IF(A36=0,0,IF('Asset data'!$D$1=1,1,IF('Asset data'!$D$1=2,2,'Asset data'!I36))) -> 2 | K36: 35.3369029 | AY36: =repcalc('Age profile (Inst)'!CT36:GF36,J36,K36,H36,20,$L$20,$M$20) -> 0.1412065998 | AZ36: 0.1767350057 | BA36: 0.2152582512 | BB36: 0.2552137055 | BC36: 0.2946704212 | BD36: 0.3315100932 | BE36: 0.3636632198 | BF36: 0.3893646361 | BG36: 0.4073839538 | BH36: 0.4171875224 | BI36: 0.4190001377 | BJ36: 0.4137546671 | BK36: 0.4029412387 | BL36: 0.388388573 | BM36: 0.37202285 | BN36: 0.3556508605 | BO36: 0.3408039938 | BP36: 0.3286610218 | BQ36: 0.3200460748 | BR36: 0.3154796977 | BS36: 14.41513437 | BT36: 15.14648055 | BU36: 15.80759855 | BV36: 16.3953865 | BW36: 16.91195681 | BX36: 17.36520276 | BY36: 17.76836388 | BZ36: 18.13855722 | CA36: 18.49455662 | CB36: 18.85434475 | CC36: 19.23302098 | CD36: 19.64150093 | CE36: 20.08616563 | CF36: 20.56933396 | CG36: 21.09024371 | CH36: 21.64617301 | CI36: 22.23339359 | CJ36: 22.84776962 | CK36: 23.48495167 | CL36: 24.14023421 | CM36: 24.80823418 | CN36: 0 | CO36: 0 | CP36: 0 | CQ36: 0 | CR36: 0 | CS36: 0 | CT36: 0 | CU36: 0 | CV36: 0 | CW36: 0 | CX36: 0 | CY36: 0 | CZ36: 0 | DA36: 0 | DB36: 0 | DC36: 0 | DD36: 0 | DE36: 0 | DF36: 0 | DG36: 0 | DH36: 0 | DI36: =IF('Asset data'!$F36=0,0,AY36/'Asset data'!$F36) -> 14.12065998 | DJ36: =IF('Asset data'!$F36=0,0,AZ36/'Asset data'!$F36) -> 17.67350057 | DK36: =IF('Asset data'!$F36=0,0,BA36/'Asset data'!$F36) -> 21.52582512 | DL36: =IF('Asset data'!$F36=0,0,BB36/'Asset data'!$F36) -> 25.52137055 | DM36: =IF('Asset data'!$F36=0,0,BC36/'Asset data'!$F36) -> 29.46704212 | DN36: =IF('Asset data'!$F36=0,0,BD36/'Asset data'!$F36) -> 33.15100932 | DO36: =IF('Asset data'!$F36=0,0,BE36/'Asset data'!$F36) -> 36.36632198 | DP36: =IF('Asset data'!$F36=0,0,BF36/'Asset data'!$F36) -> 38.93646361 | DQ36: =IF('Asset data'!$F36=0,0,BG36/'Asset data'!$F36) -> 40.73839538 | DR36: =IF('Asset data'!$F36=0,0,BH36/'Asset data'!$F36) -> 41.71875224 | DS36: =IF('Asset data'!$F36=0,0,BI36/'Asset data'!$F36) -> 41.90001377 | DT36: =IF('Asset data'!$F36=0,0,BJ36/'Asset data'!$F36) -> 41.37546671 | DU36: =IF('Asset data'!$F36=0,0,BK36/'Asset data'!$F36) -> 40.29412387 | DV36: =IF('Asset data'!$F36=0,0,BL36/'Asset data'!$F36) -> 38.8388573 | DW36: =IF('Asset data'!$F36=0,0,BM36/'Asset data'!$F36) -> 37.202285 | DX36: =IF('Asset data'!$F36=0,0,BN36/'Asset data'!$F36) -> 35.56508605 | DY36: =IF('Asset data'!$F36=0,0,BO36/'Asset data'!$F36) -> 34.08039938 | DZ36: =IF('Asset data'!$F36=0,0,BP36/'Asset data'!$F36) -> 32.86610218 | EA36: =IF('Asset data'!$F36=0,0,BQ36/'Asset data'!$F36) -> 32.00460748 | EB36: =IF('Asset data'!$F36=0,0,BR36/'Asset data'!$F36) -> 31.54796977
A37: ='Asset data'!A37 -> 2 | B37: ='Asset data'!B37 -> 0 | C37: ='Asset data'!C37 -> 0 | D37: ='Asset data'!E37 -> TowerRefit_ZoneB_330_MC_NonGrillage | E37: Towers (Non-Grillage - Refit), by Corrosion Zone; Highest Operating Voltage; Circuit Configuration | F37: ='Asset data'!G37 -> 66.44576873 | G37: 66.44576873 | H37: ='Asset data'!H37 -> 8.151427404 | I37: S | J37: =IF(A37=0,0,IF('Asset data'!$D$1=1,1,IF('Asset data'!$D$1=2,2,'Asset data'!I37))) -> 2 | K37: 66.44576873 | AY37: =repcalc('Age profile (Inst)'!CT37:GF37,J37,K37,H37,20,$L$20,$M$20) -> 1.053350994e-11 | AZ37: 2.405789376e-11 | BA37: 5.412699875e-11 | BB37: 1.19961573e-10 | BC37: 2.619040575e-10 | BD37: 5.632668349e-10 | BE37: 1.193323033e-09 | BF37: 2.490426692e-09 | BG37: 5.119899163e-09 | BH37: 1.036862021e-08 | BI37: 2.068485348e-08 | BJ37: 4.064956121e-08 | BK37: 7.869211424e-08 | BL37: 1.500646889e-07 | BM37: 2.819017458e-07 | BN37: 5.216617338e-07 | BO37: 9.509379179e-07 | BP37: 1.707604639e-06 | BQ37: 3.020608711e-06 | BR37: 5.263487617e-06 | BS37: 10.5 | BT37: 11.5 | BU37: 12.5 | BV37: 13.5 | BW37: 14.5 | BX37: 15.5 | BY37: 16.49999999 | BZ37: 17.49999998 | CA37: 18.49999997 | CB37: 19.49999992 | CC37: 20.49999983 | CD37: 21.49999965 | CE37: 22.49999926 | CF37: 23.49999849 | CG37: 24.49999694 | CH37: 25.49999392 | CI37: 26.4999881 | CJ37: 27.49997708 | CK37: 28.49995656 | CL37: 29.49991896 | CM37: 30.49985119 | CN37: 0 | CO37: 0 | CP37: 0 | CQ37: 0 | CR37: 0 | CS37: 0 | CT37: 0 | CU37: 0 | CV37: 0 | CW37: 0 | CX37: 0 | CY37: 0 | CZ37: 0 | DA37: 0 | DB37: 0 | DC37: 0 | DD37: 0 | DE37: 0 | DF37: 0 | DG37: 0 | DH37: 0 | DI37: =IF('Asset data'!$F37=0,0,AY37/'Asset data'!$F37) -> 1.053350994e-09 | DJ37: =IF('Asset data'!$F37=0,0,AZ37/'Asset data'!$F37) -> 2.405789376e-09 | DK37: =IF('Asset data'!$F37=0,0,BA37/'Asset data'!$F37) -> 5.412699875e-09 | DL37: =IF('Asset data'!$F37=0,0,BB37/'Asset data'!$F37) -> 1.19961573e-08 | DM37: =IF('Asset data'!$F37=0,0,BC37/'Asset data'!$F37) -> 2.619040575e-08 | DN37: =IF('Asset data'!$F37=0,0,BD37/'Asset data'!$F37) -> 5.632668349e-08 | DO37: =IF('Asset data'!$F37=0,0,BE37/'Asset data'!$F37) -> 1.193323033e-07 | DP37: =IF('Asset data'!$F37=0,0,BF37/'Asset data'!$F37) -> 2.490426692e-07 | DQ37: =IF('Asset data'!$F37=0,0,BG37/'Asset data'!$F37) -> 5.119899163e-07 | DR37: =IF('Asset data'!$F37=0,0,BH37/'Asset data'!$F37) -> 1.036862021e-06 | DS37: =IF('Asset data'!$F37=0,0,BI37/'Asset data'!$F37) -> 2.068485348e-06 | DT37: =IF('Asset data'!$F37=0,0,BJ37/'Asset data'!$F37) -> 4.064956121e-06 | DU37: =IF('Asset data'!$F37=0,0,BK37/'Asset data'!$F37) -> 7.869211424e-06 | DV37: =IF('Asset data'!$F37=0,0,BL37/'Asset data'!$F37) -> 1.500646889e-05 | DW37: =IF('Asset data'!$F37=0,0,BM37/'Asset data'!$F37) -> 2.819017458e-05 | DX37: =IF('Asset data'!$F37=0,0,BN37/'Asset data'!$F37) -> 5.216617338e-05 | DY37: =IF('Asset data'!$F37=0,0,BO37/'Asset data'!$F37) -> 9.509379179e-05 | DZ37: =IF('Asset data'!$F37=0,0,BP37/'Asset data'!$F37) -> 0.0001707604639 | EA37: =IF('Asset data'!$F37=0,0,BQ37/'Asset data'!$F37) -> 0.0003020608711 | EB37: =IF('Asset data'!$F37=0,0,BR37/'Asset data'!$F37) -> 0.0005263487617
A38: ='Asset data'!A38 -> 2 | B38: ='Asset data'!B38 -> 0 | C38: ='Asset data'!C38 -> 0 | D38: ='Asset data'!E38 -> TowerRefit_ZoneC_330_MC_NonGrillage | E38: Towers (Non-Grillage - Refit), by Corrosion Zone; Highest Operating Voltage; Circuit Configuration | F38: ='Asset data'!G38 -> 52.91722577 | G38: 52.91722577 | H38: ='Asset data'!H38 -> 7.27442271 | I38: S | J38: =IF(A38=0,0,IF('Asset data'!$D$1=1,1,IF('Asset data'!$D$1=2,2,'Asset data'!I38))) -> 2 | K38: 52.91722577 | AY38: =repcalc('Age profile (Inst)'!CT38:GF38,J38,K38,H38,20,$L$20,$M$20) -> 3.411834475e-07 | AZ38: 6.913395885e-07 | BA38: 1.374718506e-06 | BB38: 2.682605841e-06 | BC38: 5.137156505e-06 | BD38: 9.654148433e-06 | BE38: 1.780463683e-05 | BF38: 3.222428899e-05 | BG38: 5.723585477e-05 | BH38: 9.976808142e-05 | BI38: 0.0001706704167 | BJ38: 0.0002865320741 | BK38: 0.0004721092371 | BL38: 0.0007634361245 | BM38: 0.001211634054 | BN38: 0.001887328164 | BO38: 0.002885428677 | BP38: 0.004329834903 | BQ38: 0.006377389919 | BR38: 0.009220181569 | BS38: 12.67099237 | BT38: 13.67099159 | BU38: 14.6709899 | BV38: 15.67098633 | BW38: 16.67097897 | BX38: 17.67096408 | BY38: 18.67093463 | BZ38: 19.67087762 | CA38: 20.67076952 | CB38: 21.67056881 | CC38: 22.6702038 | CD38: 23.66955347 | CE38: 24.66841819 | CF38: 25.66647614 | CG38: 26.66322032 | CH38: 27.65787051 | CI38: 28.64925411 | CJ38: 29.63565079 | CK38: 30.61459815 | CL38: 31.58265991 | CM38: 32.53516555 | CN38: 0 | CO38: 0 | CP38: 0 | CQ38: 0 | CR38: 0 | CS38: 0 | CT38: 0 | CU38: 0 | CV38: 0 | CW38: 0 | CX38: 0 | CY38: 0 | CZ38: 0 | DA38: 0 | DB38: 0 | DC38: 0 | DD38: 0 | DE38: 0 | DF38: 0 | DG38: 0 | DH38: 0 | DI38: =IF('Asset data'!$F38=0,0,AY38/'Asset data'!$F38) -> 3.411834475e-05 | DJ38: =IF('Asset data'!$F38=0,0,AZ38/'Asset data'!$F38) -> 6.913395885e-05 | DK38: =IF('Asset data'!$F38=0,0,BA38/'Asset data'!$F38) -> 0.0001374718506 | DL38: =IF('Asset data'!$F38=0,0,BB38/'Asset data'!$F38) -> 0.0002682605841 | DM38: =IF('Asset data'!$F38=0,0,BC38/'Asset data'!$F38) -> 0.0005137156505 | DN38: =IF('Asset data'!$F38=0,0,BD38/'Asset data'!$F38) -> 0.0009654148433 | DO38: =IF('Asset data'!$F38=0,0,BE38/'Asset data'!$F38) -> 0.001780463683 | DP38: =IF('Asset data'!$F38=0,0,BF38/'Asset data'!$F38) -> 0.003222428899 | DQ38: =IF('Asset data'!$F38=0,0,BG38/'Asset data'!$F38) -> 0.005723585477 | DR38: =IF('Asset data'!$F38=0,0,BH38/'Asset data'!$F38) -> 0.009976808142 | DS38: =IF('Asset data'!$F38=0,0,BI38/'Asset data'!$F38) -> 0.01706704167 | DT38: =IF('Asset data'!$F38=0,0,BJ38/'Asset data'!$F38) -> 0.02865320741 | DU38: =IF('Asset data'!$F38=0,0,BK38/'Asset data'!$F38) -> 0.04721092371 | DV38: =IF('Asset data'!$F38=0,0,BL38/'Asset data'!$F38) -> 0.07634361245 | DW38: =IF('Asset data'!$F38=0,0,BM38/'Asset data'!$F38) -> 0.1211634054 | DX38: =IF('Asset data'!$F38=0,0,BN38/'Asset data'!$F38) -> 0.1887328164 | DY38: =IF('Asset data'!$F38=0,0,BO38/'Asset data'!$F38) -> 0.2885428677 | DZ38: =IF('Asset data'!$F38=0,0,BP38/'Asset data'!$F38) -> 0.4329834903 | EA38: =IF('Asset data'!$F38=0,0,BQ38/'Asset data'!$F38) -> 0.6377389919 | EB38: =IF('Asset data'!$F38=0,0,BR38/'Asset data'!$F38) -> 0.9220181569
A39: ='Asset data'!A39 -> 3 | B39: ='Asset data'!B39 -> 0 | C39: ='Asset data'!C39 -> 0 | D39: ='Asset data'!E39 -> Towers - Replaced as part of substation rebuild | E39: Towers - Replaced as part of substation rebuild | F39: ='Asset data'!G39 -> 0 | G39: 0 | H39: ='Asset data'!H39 -> 0 | I39: S | J39: =IF(A39=0,0,IF('Asset data'!$D$1=1,1,IF('Asset data'!$D$1=2,2,'Asset data'!I39))) -> 2 | K39: 0 | AY39: =DI39*'Asset data'!$F$39 -> 0.046 | AZ39: =DJ39*'Asset data'!$F$39 -> 0.046 | BA39: =DK39*'Asset data'!$F$39 -> 0.046 | BB39: =DL39*'Asset data'!$F$39 -> 0.046 | BC39: =DM39*'Asset data'!$F$39 -> 0.046 | BD39: =DN39*'Asset data'!$F$39 -> 0.046 | BE39: =DO39*'Asset data'!$F$39 -> 0.046 | BF39: =DP39*'Asset data'!$F$39 -> 0.046 | BG39: =DQ39*'Asset data'!$F$39 -> 0.046 | BH39: =DR39*'Asset data'!$F$39 -> 0.046 | BI39: =DS39*'Asset data'!$F$39 -> 0.046 | BJ39: =DT39*'Asset data'!$F$39 -> 0.046 | BK39: =DU39*'Asset data'!$F$39 -> 0.046 | BL39: =DV39*'Asset data'!$F$39 -> 0.046 | BM39: =DW39*'Asset data'!$F$39 -> 0.046 | BN39: =DX39*'Asset data'!$F$39 -> 0.046 | BO39: =DY39*'Asset data'!$F$39 -> 0.046 | BP39: =DZ39*'Asset data'!$F$39 -> 0.046 | BQ39: =EA39*'Asset data'!$F$39 -> 0.046 | BR39: =EB39*'Asset data'!$F$39 -> 0.046 | DI39: =TowersRebuiltPerYearForSubstationWorks -> 4.6 | DJ39: 4.6 | DK39: 4.6 | DL39: 4.6 | DM39: 4.6 | DN39: 4.6 | DO39: 4.6 | DP39: 4.6 | DQ39: 4.6 | DR39: 4.6 | DS39: 4.6 | DT39: 4.6 | DU39: 4.6 | DV39: 4.6 | DW39: 4.6 | DX39: 4.6 | DY39: 4.6 | DZ39: 4.6 | EA39: 4.6 | EB39: 4.6
A40: ='Asset data'!A40 -> 0 | B40: ='Asset data'!B40 -> 0 | C40: ='Asset data'!C40 -> 0 | D40: ='Asset data'!E40 -> 0 | E40: 0 | F40: ='Asset data'!G40 -> 0 | G40: 0 | H40: ='Asset data'!H40 -> 0 | I40: S | J40: =IF(A40=0,0,IF('Asset data'!$D$1=1,1,IF('Asset data'!$D$1=2,2,'Asset data'!I40))) -> 0 | K40: 0 | AY40: =repcalc('Age profile (Inst)'!CT40:GF40,J40,K40,H40,20,$L$20,$M$20) -> 0 | AZ40: 0 | BA40: 0 | BB40: 0 | BC40: 0 | BD40: 0 | BE40: 0 | BF40: 0 | BG40: 0 | BH40: 0 | BI40: 0 | BJ40: 0 | BK40: 0 | BL40: 0 | BM40: 0 | BN40: 0 | BO40: 0 | BP40: 0 | BQ40: 0 | BR40: 0 | BS40: 0 | BT40: 0 | BU40: 0 | BV40: 0 | BW40: 0 | BX40: 0 | BY40: 0 | BZ40: 0 | CA40: 0 | CB40: 0 | CC40: 0 | CD40: 0 | CE40: 0 | CF40: 0 | CG40: 0 | CH40: 0 | CI40: 0 | CJ40: 0 | CK40: 0 | CL40: 0 | CM40: 0 | CN40: 0 | CO40: 0 | CP40: 0 | CQ40: 0 | CR40: 0 | CS40: 0 | CT40: 0 | CU40: 0 | CV40: 0 | CW40: 0 | CX40: 0 | CY40: 0 | CZ40: 0 | DA40: 0 | DB40: 0 | DC40: 0 | DD40: 0 | DE40: 0 | DF40: 0 | DG40: 0 | DH40: 0 | DI40: =IF('Asset data'!$F40=0,0,AY40/'Asset data'!$F40) -> 0 | DJ40: =IF('Asset data'!$F40=0,0,AZ40/'Asset data'!$F40) -> 0 | DK40: =IF('Asset data'!$F40=0,0,BA40/'Asset data'!$F40) -> 0 | DL40: =IF('Asset data'!$F40=0,0,BB40/'Asset data'!$F40) -> 0 | DM40: =IF('Asset data'!$F40=0,0,BC40/'Asset data'!$F40) -> 0 | DN40: =IF('Asset data'!$F40=0,0,BD40/'Asset data'!$F40) -> 0 | DO40: =IF('Asset data'!$F40=0,0,BE40/'Asset data'!$F40) -> 0 | DP40: =IF('Asset data'!$F40=0,0,BF40/'Asset data'!$F40) -> 0 | DQ40: =IF('Asset data'!$F40=0,0,BG40/'Asset data'!$F40) -> 0 | DR40: =IF('Asset data'!$F40=0,0,BH40/'Asset data'!$F40) -> 0 | DS40: =IF('Asset data'!$F40=0,0,BI40/'Asset data'!$F40) -> 0 | DT40: =IF('Asset data'!$F40=0,0,BJ40/'Asset data'!$F40) -> 0 | DU40: =IF('Asset data'!$F40=0,0,BK40/'Asset data'!$F40) -> 0 | DV40: =IF('Asset data'!$F40=0,0,BL40/'Asset data'!$F40) -> 0 | DW40: =IF('Asset data'!$F40=0,0,BM40/'Asset data'!$F40) -> 0 | DX40: =IF('Asset data'!$F40=0,0,BN40/'Asset data'!$F40) -> 0 | DY40: =IF('Asset data'!$F40=0,0,BO40/'Asset data'!$F40) -> 0 | DZ40: =IF('Asset data'!$F40=0,0,BP40/'Asset data'!$F40) -> 0 | EA40: =IF('Asset data'!$F40=0,0,BQ40/'Asset data'!$F40) -> 0 | EB40: =IF('Asset data'!$F40=0,0,BR40/'Asset data'!$F40) -> 0
A41: ='Asset data'!A41 -> 4 | B41: ='Asset data'!B41 -> 0 | C41: ='Asset data'!C41 -> 0 | D41: ='Asset data'!E41 -> < = 33 kV; Air Insulated circuit Breaker | E41: Substation Switchgear Equipment By Highest Operating Voltage; Equipment Type | F41: ='Asset data'!G41 -> 34.18634124 | G41: 34.18634124 | H41: ='Asset data'!H41 -> 5.846908691 | I41: S | J41: =IF(A41=0,0,IF('Asset data'!$D$1=1,1,IF('Asset data'!$D$1=2,2,'Asset data'!I41))) -> 2 | K41: 34.18634124 | AY41: =repcalc('Age profile (Inst)'!CT41:GF41,J41,K41,H41,20,$L$20,$M$20) -> 0.002386904369 | AZ41: 0.002608609599 | BA41: 0.002785609119 | BB41: 0.00290845676 | BC41: 0.002971179959 | BD41: 0.002971657877 | BE41: 0.002911563105 | BF41: 0.002795932474 | BG41: 0.002632480874 | BH41: 0.002430786465 | BI41: 0.002201460093 | BJ41: 0.001955378614 | BK41: 0.001703026085 | BL41: 0.001453960114 | BM41: 0.001216407655 | BN41: 0.0009969928541 | BO41: 0.0008006022963 | BP41: 0.0006303929821 | BQ41: 0.0004879412112 | BR41: 0.000373516298 | BS41: 28.25 | BT41: 27.41579266 | BU41: 26.52664064 | BV41: 25.63365961 | BW41: 24.78217065 | BX41: 24.0098709 | BY41: 23.3468617 | BZ41: 22.81659669 | CA41: 22.43686253 | CB41: 22.22031303 | CC41: 22.17453732 | CD41: 22.30193481 | CE41: 22.59973057 | CF41: 23.06035325 | CG41: 23.67221852 | CH41: 24.42081014 | CI41: 25.28987706 | CJ41: 26.26256974 | CK41: 27.32239298 | CL41: 28.45392032 | CM41: 29.64327052 | CN41: 0 | CO41: 0 | CP41: 0 | CQ41: 0 | CR41: 0 | CS41: 0 | CT41: 0 | CU41: 0 | CV41: 0 | CW41: 0 | CX41: 0 | CY41: 0 | CZ41: 0 | DA41: 0 | DB41: 0 | DC41: 0 | DD41: 0 | DE41: 0 | DF41: 0 | DG41: 0 | DH41: 0 | DI41: =IF('Asset data'!$F41=0,0,AY41/'Asset data'!$F41) -> 0.2386904369 | DJ41: =IF('Asset data'!$F41=0,0,AZ41/'Asset data'!$F41) -> 0.2608609599 | DK41: =IF('Asset data'!$F41=0,0,BA41/'Asset data'!$F41) -> 0.2785609119 | DL41: =IF('Asset data'!$F41=0,0,BB41/'Asset data'!$F41) -> 0.290845676 | DM41: =IF('Asset data'!$F41=0,0,BC41/'Asset data'!$F41) -> 0.2971179959 | DN41: =IF('Asset data'!$F41=0,0,BD41/'Asset data'!$F41) -> 0.2971657877 | DO41: =IF('Asset data'!$F41=0,0,BE41/'Asset data'!$F41) -> 0.2911563105 | DP41: =IF('Asset data'!$F41=0,0,BF41/'Asset data'!$F41) -> 0.2795932474 | DQ41: =IF('Asset data'!$F41=0,0,BG41/'Asset data'!$F41) -> 0.2632480874 | DR41: =IF('Asset data'!$F41=0,0,BH41/'Asset data'!$F41) -> 0.2430786465 | DS41: =IF('Asset data'!$F41=0,0,BI41/'Asset data'!$F41) -> 0.2201460093 | DT41: =IF('Asset data'!$F41=0,0,BJ41/'Asset data'!$F41) -> 0.1955378614 | DU41: =IF('Asset data'!$F41=0,0,BK41/'Asset data'!$F41) -> 0.1703026085 | DV41: =IF('Asset data'!$F41=0,0,BL41/'Asset data'!$F41) -> 0.1453960114 | DW41: =IF('Asset data'!$F41=0,0,BM41/'Asset data'!$F41) -> 0.1216407655 | DX41: =IF('Asset data'!$F41=0,0,BN41/'Asset data'!$F41) -> 0.09969928541 | DY41: =IF('Asset data'!$F41=0,0,BO41/'Asset data'!$F41) -> 0.08006022963 | DZ41: =IF('Asset data'!$F41=0,0,BP41/'Asset data'!$F41) -> 0.06303929821 | EA41: =IF('Asset data'!$F41=0,0,BQ41/'Asset data'!$F41) -> 0.04879412112 | EB41: =IF('Asset data'!$F41=0,0,BR41/'Asset data'!$F41) -> 0.0373516298
A42: ='Asset data'!A42 -> 4 | B42: ='Asset data'!B42 -> 0 | C42: ='Asset data'!C42 -> 0 | D42: ='Asset data'!E42 -> > 33 kV & < = 66 kV ; Air Insulated circuit Breaker | E42: Substation Switchgear Equipment By Highest Operating Voltage; Equipment Type | F42: ='Asset data'!G42 -> 34.18634124 | G42: 34.18634124 | H42: ='Asset data'!H42 -> 5.846908691 | I42: S | J42: =IF(A42=0,0,IF('Asset data'!$D$1=1,1,IF('Asset data'!$D$1=2,2,'Asset data'!I42))) -> 2 | K42: 34.18634124 | AY42: =repcalc('Age profile (Inst)'!CT42:GF42,J42,K42,H42,20,$L$20,$M$20) -> 4.822426561e-05 | AZ42: 7.708353753e-05 | BA42: 0.0001196993618 | BB42: 0.0001805786558 | BC42: 0.0002646672754 | BD42: 0.0003768904679 | BE42: 0.0005214868059 | BF42: 0.0007011845572 | BG42: 0.0009163314866 | BH42: 0.001164148136 | BI42: 0.001438311552 | BJ42: 0.00172907148 | BK42: 0.002024040461 | BL42: 0.002309681877 | BM42: 0.002573361533 | BN42: 0.002805660948 | BO42: 0.003002516907 | BP42: 0.00316669455 | BQ42: 0.003308150553 | BR42: 0.003443006109 | BS42: 7.5 | BT42: 8.493464854 | BU42: 9.482445182 | BV42: 10.46445994 | BW42: 11.43605013 | BX42: 12.39262643 | BY42: 13.32842794 | BZ42: 14.23667268 | CA42: 15.10997678 | CB42: 15.94108538 | CC42: 16.72388424 | CD42: 17.45455538 | CE42: 18.13262746 | CF42: 18.76160271 | CG42: 19.34886539 | CH42: 19.90471715 | CI42: 20.44061321 | CJ42: 20.96691147 | CK42: 21.49060536 | CL42: 22.01353697 | CM42: 22.53149143 | CN42: 0 | CO42: 0 | CP42: 0 | CQ42: 0 | CR42: 0 | CS42: 0 | CT42: 0 | CU42: 0 | CV42: 0 | CW42: 0 | CX42: 0 | CY42: 0 | CZ42: 0 | DA42: 0 | DB42: 0 | DC42: 0 | DD42: 0 | DE42: 0 | DF42: 0 | DG42: 0 | DH42: 0 | DI42: =IF('Asset data'!$F42=0,0,AY42/'Asset data'!$F42) -> 0.004822426561 | DJ42: =IF('Asset data'!$F42=0,0,AZ42/'Asset data'!$F42) -> 0.007708353753 | DK42: =IF('Asset data'!$F42=0,0,BA42/'Asset data'!$F42) -> 0.01196993618 | DL42: =IF('Asset data'!$F42=0,0,BB42/'Asset data'!$F42) -> 0.01805786558 | DM42: =IF('Asset data'!$F42=0,0,BC42/'Asset data'!$F42) -> 0.02646672754 | DN42: =IF('Asset data'!$F42=0,0,BD42/'Asset data'!$F42) -> 0.03768904679 | DO42: =IF('Asset data'!$F42=0,0,BE42/'Asset data'!$F42) -> 0.05214868059 | DP42: =IF('Asset data'!$F42=0,0,BF42/'Asset data'!$F42) -> 0.07011845572 | DQ42: =IF('Asset data'!$F42=0,0,BG42/'Asset data'!$F42) -> 0.09163314866 | DR42: =IF('Asset data'!$F42=0,0,BH42/'Asset data'!$F42) -> 0.1164148136 | DS42: =IF('Asset data'!$F42=0,0,BI42/'Asset data'!$F42) -> 0.1438311552 | DT42: =IF('Asset data'!$F42=0,0,BJ42/'Asset data'!$F42) -> 0.172907148 | DU42: =IF('Asset data'!$F42=0,0,BK42/'Asset data'!$F42) -> 0.2024040461 | DV42: =IF('Asset data'!$F42=0,0,BL42/'Asset data'!$F42) -> 0.2309681877 | DW42: =IF('Asset data'!$F42=0,0,BM42/'Asset data'!$F42) -> 0.2573361533 | DX42: =IF('Asset data'!$F42=0,0,BN42/'Asset data'!$F42) -> 0.2805660948 | DY42: =IF('Asset data'!$F42=0,0,BO42/'Asset data'!$F42) -> 0.3002516907 | DZ42: =IF('Asset data'!$F42=0,0,BP42/'Asset data'!$F42) -> 0.316669455 | EA42: =IF('Asset data'!$F42=0,0,BQ42/'Asset data'!$F42) -> 0.3308150553 | EB42: =IF('Asset data'!$F42=0,0,BR42/'Asset data'!$F42) -> 0.3443006109
A43: ='Asset data'!A43 -> 4 | B43: ='Asset data'!B43 -> 0 | C43: ='Asset data'!C43 -> 0 | D43: ='Asset data'!E43 -> > 66 kV & < = 132 kV ; Air Insulated circuit Breaker | E43: Substation Switchgear Equipment By Highest Operating Voltage; Equipment Type | F43: ='Asset data'!G43 -> 34.18634124 | G43: 34.18634124 | H43: ='Asset data'!H43 -> 5.846908691 | I43: S | J43: =IF(A43=0,0,IF('Asset data'!$D$1=1,1,IF('Asset data'!$D$1=2,2,'Asset data'!I43))) -> 2 | K43: 34.18634124 | AY43: =repcalc('Age profile (Inst)'!CT43:GF43,J43,K43,H43,20,$L$20,$M$20) -> 0.1813821836 | AZ43: 0.1547186269 | BA43: 0.136786675 | BB43: 0.124195783 | BC43: 0.1146937919 | BD43: 0.106877214 | BE43: 0.09995447654 | BF43: 0.0935614479 | BG43: 0.08762136821 | BH43: 0.08223985232 | BI43: 0.07762713332 | BJ43: 0.07404193708 | BK43: 0.07175295372 | BL43: 0.07101432931 | BM43: 0.07205117614 | BN43: 0.07505043611 | BO43: 0.08015225436 | BP43: 0.08743785053 | BQ43: 0.09691184479 | BR43: 0.1084797969 | BS43: 13.97572816 | BT43: 13.55536605 | BU43: 13.65850287 | BV43: 13.96714908 | BW43: 14.39181268 | BX43: 14.89702311 | BY43: 15.46561125 | BZ43: 16.08755062 | CA43: 16.75554955 | CB43: 17.46313686 | CC43: 18.20386571 | CD43: 18.97104765 | CE43: 19.75770271 | CF43: 20.55654692 | CG43: 21.35993222 | CH43: 22.15973077 | CI43: 22.94721792 | CJ43: 23.71304887 | CK43: 24.44743567 | CL43: 25.14060837 | CM43: 25.78358737 | CN43: 0 | CO43: 0 | CP43: 0 | CQ43: 0 | CR43: 0 | CS43: 0 | CT43: 0 | CU43: 0 | CV43: 0 | CW43: 0 | CX43: 0 | CY43: 0 | CZ43: 0 | DA43: 0 | DB43: 0 | DC43: 0 | DD43: 0 | DE43: 0 | DF43: 0 | DG43: 0 | DH43: 0 | DI43: =IF('Asset data'!$F43=0,0,AY43/'Asset data'!$F43) -> 18.13821836 | DJ43: =IF('Asset data'!$F43=0,0,AZ43/'Asset data'!$F43) -> 15.47186269 | DK43: =IF('Asset data'!$F43=0,0,BA43/'Asset data'!$F43) -> 13.6786675 | DL43: =IF('Asset data'!$F43=0,0,BB43/'Asset data'!$F43) -> 12.4195783 | DM43: =IF('Asset data'!$F43=0,0,BC43/'Asset data'!$F43) -> 11.46937919 | DN43: =IF('Asset data'!$F43=0,0,BD43/'Asset data'!$F43) -> 10.6877214 | DO43: =IF('Asset data'!$F43=0,0,BE43/'Asset data'!$F43) -> 9.995447654 | DP43: =IF('Asset data'!$F43=0,0,BF43/'Asset data'!$F43) -> 9.35614479 | DQ43: =IF('Asset data'!$F43=0,0,BG43/'Asset data'!$F43) -> 8.762136821 | DR43: =IF('Asset data'!$F43=0,0,BH43/'Asset data'!$F43) -> 8.223985232 | DS43: =IF('Asset data'!$F43=0,0,BI43/'Asset data'!$F43) -> 7.762713332 | DT43: =IF('Asset data'!$F43=0,0,BJ43/'Asset data'!$F43) -> 7.404193708 | DU43: =IF('Asset data'!$F43=0,0,BK43/'Asset data'!$F43) -> 7.175295372 | DV43: =IF('Asset data'!$F43=0,0,BL43/'Asset data'!$F43) -> 7.101432931 | DW43: =IF('Asset data'!$F43=0,0,BM43/'Asset data'!$F43) -> 7.205117614 | DX43: =IF('Asset data'!$F43=0,0,BN43/'Asset data'!$F43) -> 7.505043611 | DY43: =IF('Asset data'!$F43=0,0,BO43/'Asset data'!$F43) -> 8.015225436 | DZ43: =IF('Asset data'!$F43=0,0,BP43/'Asset data'!$F43) -> 8.743785053 | EA43: =IF('Asset data'!$F43=0,0,BQ43/'Asset data'!$F43) -> 9.691184479 | EB43: =IF('Asset data'!$F43=0,0,BR43/'Asset data'!$F43) -> 10.84797969
A44: ='Asset data'!A44 -> 4 | B44: ='Asset data'!B44 -> 0 | C44: ='Asset data'!C44 -> 0 | D44: ='Asset data'!E44 -> > 132 kV & < = 275 kV ; Air Insulated circuit Breaker | E44: Substation Switchgear Equipment By Highest Operating Voltage; Equipment Type | F44: ='Asset data'!G44 -> 34.18634124 | G44: 34.18634124 | H44: ='Asset data'!H44 -> 5.846908691 | I44: S | J44: =IF(A44=0,0,IF('Asset data'!$D$1=1,1,IF('Asset data'!$D$1=2,2,'Asset data'!I44))) -> 2 | K44: 34.18634124 | AY44: =repcalc('Age profile (Inst)'!CT44:GF44,J44,K44,H44,20,$L$20,$M$20) -> 0.05758082853 | AZ44: 0.05579397918 | BA44: 0.05430962896 | BB44: 0.05324888344 | BC44: 0.05267591093 | BD44: 0.0526097066 | BE44: 0.05304100057 | BF44: 0.05395066102 | BG44: 0.05532647988 | BH44: 0.05717615153 | BI44: 0.05953521854 | BJ44: 0.06246951301 | BK44: 0.06607206929 | BL44: 0.07045468576 | BM44: 0.07573443998 | BN44: 0.0820157112 | BO44: 0.08936877174 | BP44: 0.09780678207 | BQ44: 0.1072639133 | BR44: 0.1175780519 | BS44: 11.51711491 | BT44: 12.02005104 | BU44: 12.61663356 | BV44: 13.26912676 | BW44: 13.95586086 | BX44: 14.66383902 | BY44: 15.38485349 | BZ44: 16.11335623 | CA44: 16.84524353 | CB44: 17.57712921 | CC44: 18.30587834 | CD44: 19.02827639 | CE44: 19.74077137 | CF44: 20.43926895 | CG44: 21.11899039 | CH44: 21.77442391 | CI44: 22.39941432 | CJ44: 22.98743923 | CK44: 23.53210615 | CL44: 24.02786641 | CM44: 24.47088332 | CN44: 0 | CO44: 0 | CP44: 0 | CQ44: 0 | CR44: 0 | CS44: 0 | CT44: 0 | CU44: 0 | CV44: 0 | CW44: 0 | CX44: 0 | CY44: 0 | CZ44: 0 | DA44: 0 | DB44: 0 | DC44: 0 | DD44: 0 | DE44: 0 | DF44: 0 | DG44: 0 | DH44: 0 | DI44: =IF('Asset data'!$F44=0,0,AY44/'Asset data'!$F44) -> 5.758082853 | DJ44: =IF('Asset data'!$F44=0,0,AZ44/'Asset data'!$F44) -> 5.579397918 | DK44: =IF('Asset data'!$F44=0,0,BA44/'Asset data'!$F44) -> 5.430962896 | DL44: =IF('Asset data'!$F44=0,0,BB44/'Asset data'!$F44) -> 5.324888344 | DM44: =IF('Asset data'!$F44=0,0,BC44/'Asset data'!$F44) -> 5.267591093 | DN44: =IF('Asset data'!$F44=0,0,BD44/'Asset data'!$F44) -> 5.26097066 | DO44: =IF('Asset data'!$F44=0,0,BE44/'Asset data'!$F44) -> 5.304100057 | DP44: =IF('Asset data'!$F44=0,0,BF44/'Asset data'!$F44) -> 5.395066102 | DQ44: =IF('Asset data'!$F44=0,0,BG44/'Asset data'!$F44) -> 5.532647988 | DR44: =IF('Asset data'!$F44=0,0,BH44/'Asset data'!$F44) -> 5.717615153 | DS44: =IF('Asset data'!$F44=0,0,BI44/'Asset data'!$F44) -> 5.953521854 | DT44: =IF('Asset data'!$F44=0,0,BJ44/'Asset data'!$F44) -> 6.246951301 | DU44: =IF('Asset data'!$F44=0,0,BK44/'Asset data'!$F44) -> 6.607206929 | DV44: =IF('Asset data'!$F44=0,0,BL44/'Asset data'!$F44) -> 7.045468576 | DW44: =IF('Asset data'!$F44=0,0,BM44/'Asset data'!$F44) -> 7.573443998 | DX44: =IF('Asset data'!$F44=0,0,BN44/'Asset data'!$F44) -> 8.20157112 | DY44: =IF('Asset data'!$F44=0,0,BO44/'Asset data'!$F44) -> 8.936877174 | DZ44: =IF('Asset data'!$F44=0,0,BP44/'Asset data'!$F44) -> 9.780678207 | EA44: =IF('Asset data'!$F44=0,0,BQ44/'Asset data'!$F44) -> 10.72639133 | EB44: =IF('Asset data'!$F44=0,0,BR44/'Asset data'!$F44) -> 11.75780519
A45: ='Asset data'!A45 -> 4 | B45: ='Asset data'!B45 -> 0 | C45: ='Asset data'!C45 -> 0 | D45: ='Asset data'!E45 -> > 275 kV & < = 330 kV ; Air Insulated circuit Breaker | E45: Substation Switchgear Equipment By Highest Operating Voltage; Equipment Type | F45: ='Asset data'!G45 -> 34.18634124 | G45: 34.18634124 | H45: ='Asset data'!H45 -> 5.846908691 | I45: S | J45: =IF(A45=0,0,IF('Asset data'!$D$1=1,1,IF('Asset data'!$D$1=2,2,'Asset data'!I45))) -> 2 | K45: 34.18634124 | AY45: =repcalc('Age profile (Inst)'!CT45:GF45,J45,K45,H45,20,$L$20,$M$20) -> 1.103291407e-06 | AZ45: 2.145894643e-06 | BA45: 4.055257087e-06 | BB45: 7.446346495e-06 | BC45: 1.328647267e-05 | BD45: 2.303821992e-05 | BE45: 3.882372754e-05 | BF45: 6.359120033e-05 | BG45: 0.0001012506421 | BH45: 0.0001567318603 | BI45: 0.0002359081276 | BJ45: 0.0003453290334 | BK45: 0.0004917212898 | BL45: 0.0006812495316 | BM45: 0.0009185787646 | BN45: 0.001205838306 | BO45: 0.00154164025 | BP45: 0.001920337087 | BQ45: 0.002331698325 | BR45: 0.002761137657 | BS45: 7.5 | BT45: 8.499849753 | BU45: 9.499531037 | BV45: 10.49887878 | BW45: 11.49758964 | BX45: 12.49512683 | BY45: 13.490576 | BZ45: 14.48243809 | CA45: 15.46834952 | CB45: 16.44472987 | CC45: 17.40637692 | CD45: 18.34605777 | CE45: 19.25418173 | CF45: 20.11867838 | CG45: 20.92522767 | CH45: 21.65797883 | CI45: 22.30082982 | CJ45: 22.83921139 | CK45: 23.26214868 | CL45: 23.56421522 | CM45: 23.74692891 | CN45: 0 | CO45: 0 | CP45: 0 | CQ45: 0 | CR45: 0 | CS45: 0 | CT45: 0 | CU45: 0 | CV45: 0 | CW45: 0 | CX45: 0 | CY45: 0 | CZ45: 0 | DA45: 0 | DB45: 0 | DC45: 0 | DD45: 0 | DE45: 0 | DF45: 0 | DG45: 0 | DH45: 0 | DI45: =IF('Asset data'!$F45=0,0,AY45/'Asset data'!$F45) -> 0.0001103291407 | DJ45: =IF('Asset data'!$F45=0,0,AZ45/'Asset data'!$F45) -> 0.0002145894643 | DK45: =IF('Asset data'!$F45=0,0,BA45/'Asset data'!$F45) -> 0.0004055257087 | DL45: =IF('Asset data'!$F45=0,0,BB45/'Asset data'!$F45) -> 0.0007446346495 | DM45: =IF('Asset data'!$F45=0,0,BC45/'Asset data'!$F45) -> 0.001328647267 | DN45: =IF('Asset data'!$F45=0,0,BD45/'Asset data'!$F45) -> 0.002303821992 | DO45: =IF('Asset data'!$F45=0,0,BE45/'Asset data'!$F45) -> 0.003882372754 | DP45: =IF('Asset data'!$F45=0,0,BF45/'Asset data'!$F45) -> 0.006359120033 | DQ45: =IF('Asset data'!$F45=0,0,BG45/'Asset data'!$F45) -> 0.01012506421 | DR45: =IF('Asset data'!$F45=0,0,BH45/'Asset data'!$F45) -> 0.01567318603 | DS45: =IF('Asset data'!$F45=0,0,BI45/'Asset data'!$F45) -> 0.02359081276 | DT45: =IF('Asset data'!$F45=0,0,BJ45/'Asset data'!$F45) -> 0.03453290334 | DU45: =IF('Asset data'!$F45=0,0,BK45/'Asset data'!$F45) -> 0.04917212898 | DV45: =IF('Asset data'!$F45=0,0,BL45/'Asset data'!$F45) -> 0.06812495316 | DW45: =IF('Asset data'!$F45=0,0,BM45/'Asset data'!$F45) -> 0.09185787646 | DX45: =IF('Asset data'!$F45=0,0,BN45/'Asset data'!$F45) -> 0.1205838306 | DY45: =IF('Asset data'!$F45=0,0,BO45/'Asset data'!$F45) -> 0.154164025 | DZ45: =IF('Asset data'!$F45=0,0,BP45/'Asset data'!$F45) -> 0.1920337087 | EA45: =IF('Asset data'!$F45=0,0,BQ45/'Asset data'!$F45) -> 0.2331698325 | EB45: =IF('Asset data'!$F45=0,0,BR45/'Asset data'!$F45) -> 0.2761137657
A46: ='Asset data'!A46 -> 4 | B46: ='Asset data'!B46 -> 0 | C46: ='Asset data'!C46 -> 0 | D46: ='Asset data'!E46 -> < = 33 kV; Air Insulated Isolators / Earth Switch | E46: Substation Switchgear Equipment By Highest Operating Voltage; Equipment Type | F46: ='Asset data'!G46 -> 39.82880706 | G46: 39.82880706 | H46: ='Asset data'!H46 -> 6.311006818 | I46: S | J46: =IF(A46=0,0,IF('Asset data'!$D$1=1,1,IF('Asset data'!$D$1=2,2,'Asset data'!I46))) -> 2 | K46: 39.82880706 | AY46: =repcalc('Age profile (Inst)'!CT46:GF46,J46,K46,H46,20,$L$20,$M$20) -> 0.01530177637 | AZ46: 0.01318156154 | BA46: 0.0114891844 | BB46: 0.01015098745 | BC46: 0.009101575872 | BD46: 0.008286614685 | BE46: 0.0076631554 | BF46: 0.007198337839 | BG46: 0.006867238396 | BH46: 0.006650465037 | BI46: 0.006531905527 | BJ46: 0.006496866817 | BK46: 0.006530720526 | BL46: 0.006618090524 | BM46: 0.006742570295 | BN46: 0.006886924521 | BO46: 0.007033699809 | BP46: 0.007166139715 | BQ46: 0.007269271741 | BR46: 0.007331015079 | BS46: 24.71428571 | BT46: 23.20131834 | BU46: 22.52197555 | BV46: 22.26901926 | BW46: 22.27240978 | BX46: 22.44535565 | BY46: 22.73656154 | BZ46: 23.11224851 | CA46: 23.54829603 | CB46: 24.02643151 | CC46: 24.53228153 | CD46: 25.05437977 | CE46: 25.58370188 | CF46: 26.11349544 | CG46: 26.63925745 | CH46: 27.15874764 | CI46: 27.67194519 | CJ46: 28.18088106 | CK46: 28.68931727 | CL46: 29.20228928 | CM46: 29.72556385 | CN46: 0 | CO46: 0 | CP46: 0 | CQ46: 0 | CR46: 0 | CS46: 0 | CT46: 0 | CU46: 0 | CV46: 0 | CW46: 0 | CX46: 0 | CY46: 0 | CZ46: 0 | DA46: 0 | DB46: 0 | DC46: 0 | DD46: 0 | DE46: 0 | DF46: 0 | DG46: 0 | DH46: 0 | DI46: =IF('Asset data'!$F46=0,0,AY46/'Asset data'!$F46) -> 1.530177637 | DJ46: =IF('Asset data'!$F46=0,0,AZ46/'Asset data'!$F46) -> 1.318156154 | DK46: =IF('Asset data'!$F46=0,0,BA46/'Asset data'!$F46) -> 1.14891844 | DL46: =IF('Asset data'!$F46=0,0,BB46/'Asset data'!$F46) -> 1.015098745 | DM46: =IF('Asset data'!$F46=0,0,BC46/'Asset data'!$F46) -> 0.9101575872 | DN46: =IF('Asset data'!$F46=0,0,BD46/'Asset data'!$F46) -> 0.8286614685 | DO46: =IF('Asset data'!$F46=0,0,BE46/'Asset data'!$F46) -> 0.76631554 | DP46: =IF('Asset data'!$F46=0,0,BF46/'Asset data'!$F46) -> 0.7198337839 | DQ46: =IF('Asset data'!$F46=0,0,BG46/'Asset data'!$F46) -> 0.6867238396 | DR46: =IF('Asset data'!$F46=0,0,BH46/'Asset data'!$F46) -> 0.6650465037 | DS46: =IF('Asset data'!$F46=0,0,BI46/'Asset data'!$F46) -> 0.6531905527 | DT46: =IF('Asset data'!$F46=0,0,BJ46/'Asset data'!$F46) -> 0.6496866817 | DU46: =IF('Asset data'!$F46=0,0,BK46/'Asset data'!$F46) -> 0.6530720526 | DV46: =IF('Asset data'!$F46=0,0,BL46/'Asset data'!$F46) -> 0.6618090524 | DW46: =IF('Asset data'!$F46=0,0,BM46/'Asset data'!$F46) -> 0.6742570295 | DX46: =IF('Asset data'!$F46=0,0,BN46/'Asset data'!$F46) -> 0.6886924521 | DY46: =IF('Asset data'!$F46=0,0,BO46/'Asset data'!$F46) -> 0.7033699809 | DZ46: =IF('Asset data'!$F46=0,0,BP46/'Asset data'!$F46) -> 0.7166139715 | EA46: =IF('Asset data'!$F46=0,0,BQ46/'Asset data'!$F46) -> 0.7269271741 | EB46: =IF('Asset data'!$F46=0,0,BR46/'Asset data'!$F46) -> 0.7331015079
A47: ='Asset data'!A47 -> 4 | B47: ='Asset data'!B47 -> 0 | C47: ='Asset data'!C47 -> 0 | D47: ='Asset data'!E47 -> > 33 kV & < = 66 kV ; Air Insulated Isolators / Earth Switch | E47: Substation Switchgear Equipment By Highest Operating Voltage; Equipment Type | F47: ='Asset data'!G47 -> 39.82880706 | G47: 39.82880706 | H47: ='Asset data'!H47 -> 6.311006818 | I47: S | J47: =IF(A47=0,0,IF('Asset data'!$D$1=1,1,IF('Asset data'!$D$1=2,2,'Asset data'!I47))) -> 2 | K47: 39.82880706 | AY47: =repcalc('Age profile (Inst)'!CT47:GF47,J47,K47,H47,20,$L$20,$M$20) -> 0.005891443855 | AZ47: 0.006318873234 | BA47: 0.006620219496 | BB47: 0.006776953016 | BC47: 0.006781096237 | BD47: 0.006636465216 | BE47: 0.00635859324 | BF47: 0.005973340285 | BG47: 0.005514392731 | BH47: 0.00502001794 | BI47: 0.004529531165 | BJ47: 0.004079947294 | BK47: 0.003703233735 | BL47: 0.003424471797 | BM47: 0.003261096092 | BN47: 0.003223236427 | BO47: 0.003315049646 | BP47: 0.003536807926 | BQ47: 0.003887409137 | BR47: 0.004366898283 | BS47: 9.962962963 | BT47: 10.56406012 | BU47: 11.15957809 | BV47: 11.76177137 | BW47: 12.38170075 | BX47: 13.02835022 | BY47: 13.70810561 | BZ47: 14.42459186 | CA47: 15.17880009 | CB47: 15.96940694 | CC47: 16.79319288 | CD47: 17.64548966 | CE47: 18.52061668 | CF47: 19.41228974 | CG47: 20.31399658 | CH47: 21.21933055 | CI47: 22.12225981 | CJ47: 23.01729327 | CK47: 23.89949635 | CL47: 24.76432013 | CM47: 25.60724015 | CN47: 0 | CO47: 0 | CP47: 0 | CQ47: 0 | CR47: 0 | CS47: 0 | CT47: 0 | CU47: 0 | CV47: 0 | CW47: 0 | CX47: 0 | CY47: 0 | CZ47: 0 | DA47: 0 | DB47: 0 | DC47: 0 | DD47: 0 | DE47: 0 | DF47: 0 | DG47: 0 | DH47: 0 | DI47: =IF('Asset data'!$F47=0,0,AY47/'Asset data'!$F47) -> 0.5891443855 | DJ47: =IF('Asset data'!$F47=0,0,AZ47/'Asset data'!$F47) -> 0.6318873234 | DK47: =IF('Asset data'!$F47=0,0,BA47/'Asset data'!$F47) -> 0.6620219496 | DL47: =IF('Asset data'!$F47=0,0,BB47/'Asset data'!$F47) -> 0.6776953016 | DM47: =IF('Asset data'!$F47=0,0,BC47/'Asset data'!$F47) -> 0.6781096237 | DN47: =IF('Asset data'!$F47=0,0,BD47/'Asset data'!$F47) -> 0.6636465216 | DO47: =IF('Asset data'!$F47=0,0,BE47/'Asset data'!$F47) -> 0.635859324 | DP47: =IF('Asset data'!$F47=0,0,BF47/'Asset data'!$F47) -> 0.5973340285 | DQ47: =IF('Asset data'!$F47=0,0,BG47/'Asset data'!$F47) -> 0.5514392731 | DR47: =IF('Asset data'!$F47=0,0,BH47/'Asset data'!$F47) -> 0.502001794 | DS47: =IF('Asset data'!$F47=0,0,BI47/'Asset data'!$F47) -> 0.4529531165 | DT47: =IF('Asset data'!$F47=0,0,BJ47/'Asset data'!$F47) -> 0.4079947294 | DU47: =IF('Asset data'!$F47=0,0,BK47/'Asset data'!$F47) -> 0.3703233735 | DV47: =IF('Asset data'!$F47=0,0,BL47/'Asset data'!$F47) -> 0.3424471797 | DW47: =IF('Asset data'!$F47=0,0,BM47/'Asset data'!$F47) -> 0.3261096092 | DX47: =IF('Asset data'!$F47=0,0,BN47/'Asset data'!$F47) -> 0.3223236427 | DY47: =IF('Asset data'!$F47=0,0,BO47/'Asset data'!$F47) -> 0.3315049646 | DZ47: =IF('Asset data'!$F47=0,0,BP47/'Asset data'!$F47) -> 0.3536807926 | EA47: =IF('Asset data'!$F47=0,0,BQ47/'Asset data'!$F47) -> 0.3887409137 | EB47: =IF('Asset data'!$F47=0,0,BR47/'Asset data'!$F47) -> 0.4366898283
A48: ='Asset data'!A48 -> 4 | B48: ='Asset data'!B48 -> 0 | C48: ='Asset data'!C48 -> 0 | D48: ='Asset data'!E48 -> > 66 kV & < = 132 kV ; Air Insulated Isolators / Earth Switch | E48: Substation Switchgear Equipment By Highest Operating Voltage; Equipment Type | F48: ='Asset data'!G48 -> 39.82880706 | G48: 39.82880706 | H48: ='Asset data'!H48 -> 6.311006818 | I48: S | J48: =IF(A48=0,0,IF('Asset data'!$D$1=1,1,IF('Asset data'!$D$1=2,2,'Asset data'!I48))) -> 2 | K48: 39.82880706 | AY48: =repcalc('Age profile (Inst)'!CT48:GF48,J48,K48,H48,20,$L$20,$M$20) -> 0.5185062602 | AZ48: 0.4689682945 | BA48: 0.4289598866 | BB48: 0.3970095672 | BC48: 0.3714433539 | BD48: 0.3505988801 | BE48: 0.3329866582 | BF48: 0.3173960189 | BG48: 0.3029501783 | BH48: 0.2891188019 | BI48: 0.2756979577 | BJ48: 0.2627673218 | BK48: 0.2506336896 | BL48: 0.2397687327 | BM48: 0.2307476805 | BN48: 0.2241941314 | BO48: 0.2207343702 | BP48: 0.2209623551 | BQ48: 0.2254141301 | BR48: 0.2345482052 | BS48: 16.05174322 | BT48: 15.78808078 | BU48: 15.87150348 | BV48: 16.13910355 | BW48: 16.51837087 | BX48: 16.97330117 | BY48: 17.48469182 | BZ48: 18.04183064 | CA48: 18.63852254 | CB48: 19.27094851 | CC48: 19.93638473 | CD48: 20.6323881 | CE48: 21.3562851 | CF48: 22.10488577 | CG48: 22.87436803 | CH48: 23.66027795 | CI48: 24.45759067 | CJ48: 25.26078246 | CK48: 26.06388019 | CL48: 26.86047701 | CM48: 27.64372887 | CN48: 0 | CO48: 0 | CP48: 0 | CQ48: 0 | CR48: 0 | CS48: 0 | CT48: 0 | CU48: 0 | CV48: 0 | CW48: 0 | CX48: 0 | CY48: 0 | CZ48: 0 | DA48: 0 | DB48: 0 | DC48: 0 | DD48: 0 | DE48: 0 | DF48: 0 | DG48: 0 | DH48: 0 | DI48: =IF('Asset data'!$F48=0,0,AY48/'Asset data'!$F48) -> 51.85062602 | DJ48: =IF('Asset data'!$F48=0,0,AZ48/'Asset data'!$F48) -> 46.89682945 | DK48: =IF('Asset data'!$F48=0,0,BA48/'Asset data'!$F48) -> 42.89598866 | DL48: =IF('Asset data'!$F48=0,0,BB48/'Asset data'!$F48) -> 39.70095672 | DM48: =IF('Asset data'!$F48=0,0,BC48/'Asset data'!$F48) -> 37.14433539 | DN48: =IF('Asset data'!$F48=0,0,BD48/'Asset data'!$F48) -> 35.05988801 | DO48: =IF('Asset data'!$F48=0,0,BE48/'Asset data'!$F48) -> 33.29866582 | DP48: =IF('Asset data'!$F48=0,0,BF48/'Asset data'!$F48) -> 31.73960189 | DQ48: =IF('Asset data'!$F48=0,0,BG48/'Asset data'!$F48) -> 30.29501783 | DR48: =IF('Asset data'!$F48=0,0,BH48/'Asset data'!$F48) -> 28.91188019 | DS48: =IF('Asset data'!$F48=0,0,BI48/'Asset data'!$F48) -> 27.56979577 | DT48: =IF('Asset data'!$F48=0,0,BJ48/'Asset data'!$F48) -> 26.27673218 | DU48: =IF('Asset data'!$F48=0,0,BK48/'Asset data'!$F48) -> 25.06336896 | DV48: =IF('Asset data'!$F48=0,0,BL48/'Asset data'!$F48) -> 23.97687327 | DW48: =IF('Asset data'!$F48=0,0,BM48/'Asset data'!$F48) -> 23.07476805 | DX48: =IF('Asset data'!$F48=0,0,BN48/'Asset data'!$F48) -> 22.41941314 | DY48: =IF('Asset data'!$F48=0,0,BO48/'Asset data'!$F48) -> 22.07343702 | DZ48: =IF('Asset data'!$F48=0,0,BP48/'Asset data'!$F48) -> 22.09623551 | EA48: =IF('Asset data'!$F48=0,0,BQ48/'Asset data'!$F48) -> 22.54141301 | EB48: =IF('Asset data'!$F48=0,0,BR48/'Asset data'!$F48) -> 23.45482052
A49: ='Asset data'!A49 -> 4 | B49: ='Asset data'!B49 -> 0 | C49: ='Asset data'!C49 -> 0 | D49: ='Asset data'!E49 -> > 132 kV & < = 275 kV ; Air Insulated Isolators / Earth Switch | E49: Substation Switchgear Equipment By Highest Operating Voltage; Equipment Type | F49: ='Asset data'!G49 -> 39.82880706 | G49: 39.82880706 | H49: ='Asset data'!H49 -> 6.311006818 | I49: S | J49: =IF(A49=0,0,IF('Asset data'!$D$1=1,1,IF('Asset data'!$D$1=2,2,'Asset data'!I49))) -> 2 | K49: 39.82880706 | AY49: =repcalc('Age profile (Inst)'!CT49:GF49,J49,K49,H49,20,$L$20,$M$20) -> 0.3939584587 | AZ49: 0.3939042836 | BA49: 0.3903543808 | BB49: 0.3839655601 | BC49: 0.3754801355 | BD49: 0.3656795271 | BE49: 0.3553420675 | BF49: 0.3452073363 | BG49: 0.3359484971 | BH49: 0.328153466 | BI49: 0.322315285 | BJ49: 0.3188317109 | BK49: 0.3180136003 | BL49: 0.3201010343 | BM49: 0.3252852034 | BN49: 0.3337329362 | BO49: 0.3456096104 | BP49: 0.3610953661 | BQ49: 0.3803894222 | BR49: 0.4036981671 | BS49: 14.3320802 | BT49: 14.67979146 | BU49: 15.10367743 | BV49: 15.5881513 | BW49: 16.12226224 | BX49: 16.69786477 | BY49: 17.30851432 | BZ49: 17.94879853 | CA49: 18.61392192 | CB49: 19.2994485 | CC49: 20.00115805 | CD49: 20.71498952 | CE49: 21.43704103 | CF49: 22.1635883 | CG49: 22.89108326 | CH49: 23.61610714 | CI49: 24.33527294 | CJ49: 25.04509303 | CK49: 25.74184207 | CL49: 26.42145041 | CM49: 27.07946116 | CN49: 0 | CO49: 0 | CP49: 0 | CQ49: 0 | CR49: 0 | CS49: 0 | CT49: 0 | CU49: 0 | CV49: 0 | CW49: 0 | CX49: 0 | CY49: 0 | CZ49: 0 | DA49: 0 | DB49: 0 | DC49: 0 | DD49: 0 | DE49: 0 | DF49: 0 | DG49: 0 | DH49: 0 | DI49: =IF('Asset data'!$F49=0,0,AY49/'Asset data'!$F49) -> 39.39584587 | DJ49: =IF('Asset data'!$F49=0,0,AZ49/'Asset data'!$F49) -> 39.39042836 | DK49: =IF('Asset data'!$F49=0,0,BA49/'Asset data'!$F49) -> 39.03543808 | DL49: =IF('Asset data'!$F49=0,0,BB49/'Asset data'!$F49) -> 38.39655601 | DM49: =IF('Asset data'!$F49=0,0,BC49/'Asset data'!$F49) -> 37.54801355 | DN49: =IF('Asset data'!$F49=0,0,BD49/'Asset data'!$F49) -> 36.56795271 | DO49: =IF('Asset data'!$F49=0,0,BE49/'Asset data'!$F49) -> 35.53420675 | DP49: =IF('Asset data'!$F49=0,0,BF49/'Asset data'!$F49) -> 34.52073363 | DQ49: =IF('Asset data'!$F49=0,0,BG49/'Asset data'!$F49) -> 33.59484971 | DR49: =IF('Asset data'!$F49=0,0,BH49/'Asset data'!$F49) -> 32.8153466 | DS49: =IF('Asset data'!$F49=0,0,BI49/'Asset data'!$F49) -> 32.2315285 | DT49: =IF('Asset data'!$F49=0,0,BJ49/'Asset data'!$F49) -> 31.88317109 | DU49: =IF('Asset data'!$F49=0,0,BK49/'Asset data'!$F49) -> 31.80136003 | DV49: =IF('Asset data'!$F49=0,0,BL49/'Asset data'!$F49) -> 32.01010343 | DW49: =IF('Asset data'!$F49=0,0,BM49/'Asset data'!$F49) -> 32.52852034 | DX49: =IF('Asset data'!$F49=0,0,BN49/'Asset data'!$F49) -> 33.37329362 | DY49: =IF('Asset data'!$F49=0,0,BO49/'Asset data'!$F49) -> 34.56096104 | DZ49: =IF('Asset data'!$F49=0,0,BP49/'Asset data'!$F49) -> 36.10953661 | EA49: =IF('Asset data'!$F49=0,0,BQ49/'Asset data'!$F49) -> 38.03894222 | EB49: =IF('Asset data'!$F49=0,0,BR49/'Asset data'!$F49) -> 40.36981671
A50: ='Asset data'!A50 -> 4 | B50: ='Asset data'!B50 -> 0 | C50: ='Asset data'!C50 -> 0 | D50: ='Asset data'!E50 -> > 275 kV & < = 330 kV ; Air Insulated Isolators / Earth Switch | E50: Substation Switchgear Equipment By Highest Operating Voltage; Equipment Type | F50: ='Asset data'!G50 -> 39.82880706 | G50: 39.82880706 | H50: ='Asset data'!H50 -> 6.311006818 | I50: S | J50: =IF(A50=0,0,IF('Asset data'!$D$1=1,1,IF('Asset data'!$D$1=2,2,'Asset data'!I50))) -> 2 | K50: 39.82880706 | AY50: =repcalc('Age profile (Inst)'!CT50:GF50,J50,K50,H50,20,$L$20,$M$20) -> 5.481315255e-07 | AZ50: 1.117248552e-06 | BA50: 2.22135777e-06 | BB50: 4.308233652e-06 | BC50: 8.150819845e-06 | BD50: 1.504301882e-05 | BE50: 2.708394518e-05 | BF50: 4.757129943e-05 | BG50: 8.15171077e-05 | BH50: 0.0001362822947 | BI50: 0.0002222978789 | BJ50: 0.0003537992954 | BK50: 0.0005494491621 | BL50: 0.0008326702447 | BM50: 0.001231467448 | BN50: 0.001777502858 | BO50: 0.00250422002 | BP50: 0.003443907684 | BQ50: 0.004623753415 | BR50: 0.006061151248 | BS50: 8.544444444 | BT50: 9.544431154 | BU50: 10.5444016 | BV50: 11.54433794 | BW50: 12.544205 | BX50: 13.54393555 | BY50: 14.54340521 | BZ50: 15.54239097 | CA50: 16.5405054 | CB50: 17.53709642 | CC50: 18.53110107 | CD50: 19.52084164 | CE50: 20.50375624 | CF50: 21.47606347 | CG50: 22.43237556 | CH50: 23.3652966 | CI50: 24.26507058 | CJ50: 25.11937639 | CK50: 25.91339295 | CL50: 26.63026712 | CM50: 27.25209248 | CN50: 0 | CO50: 0 | CP50: 0 | CQ50: 0 | CR50: 0 | CS50: 0 | CT50: 0 | CU50: 0 | CV50: 0 | CW50: 0 | CX50: 0 | CY50: 0 | CZ50: 0 | DA50: 0 | DB50: 0 | DC50: 0 | DD50: 0 | DE50: 0 | DF50: 0 | DG50: 0 | DH50: 0 | DI50: =IF('Asset data'!$F50=0,0,AY50/'Asset data'!$F50) -> 5.481315255e-05 | DJ50: =IF('Asset data'!$F50=0,0,AZ50/'Asset data'!$F50) -> 0.0001117248552 | DK50: =IF('Asset data'!$F50=0,0,BA50/'Asset data'!$F50) -> 0.000222135777 | DL50: =IF('Asset data'!$F50=0,0,BB50/'Asset data'!$F50) -> 0.0004308233652 | DM50: =IF('Asset data'!$F50=0,0,BC50/'Asset data'!$F50) -> 0.0008150819845 | DN50: =IF('Asset data'!$F50=0,0,BD50/'Asset data'!$F50) -> 0.001504301882 | DO50: =IF('Asset data'!$F50=0,0,BE50/'Asset data'!$F50) -> 0.002708394518 | DP50: =IF('Asset data'!$F50=0,0,BF50/'Asset data'!$F50) -> 0.004757129943 | DQ50: =IF('Asset data'!$F50=0,0,BG50/'Asset data'!$F50) -> 0.00815171077 | DR50: =IF('Asset data'!$F50=0,0,BH50/'Asset data'!$F50) -> 0.01362822947 | DS50: =IF('Asset data'!$F50=0,0,BI50/'Asset data'!$F50) -> 0.02222978789 | DT50: =IF('Asset data'!$F50=0,0,BJ50/'Asset data'!$F50) -> 0.03537992954 | DU50: =IF('Asset data'!$F50=0,0,BK50/'Asset data'!$F50) -> 0.05494491621 | DV50: =IF('Asset data'!$F50=0,0,BL50/'Asset data'!$F50) -> 0.08326702447 | DW50: =IF('Asset data'!$F50=0,0,BM50/'Asset data'!$F50) -> 0.1231467448 | DX50: =IF('Asset data'!$F50=0,0,BN50/'Asset data'!$F50) -> 0.1777502858 | DY50: =IF('Asset data'!$F50=0,0,BO50/'Asset data'!$F50) -> 0.250422002 | DZ50: =IF('Asset data'!$F50=0,0,BP50/'Asset data'!$F50) -> 0.3443907684 | EA50: =IF('Asset data'!$F50=0,0,BQ50/'Asset data'!$F50) -> 0.4623753415 | EB50: =IF('Asset data'!$F50=0,0,BR50/'Asset data'!$F50) -> 0.6061151248
A51: ='Asset data'!A51 -> 4 | B51: ='Asset data'!B51 -> 0 | C51: ='Asset data'!C51 -> 0 | D51: ='Asset data'!E51 -> < = 33 kV; VT | E51: Substation Switchgear Equipment By Highest Operating Voltage; Equipment Type | F51: ='Asset data'!G51 -> 34.59472923 | G51: 34.59472923 | H51: ='Asset data'!H51 -> 5.881728422 | I51: S | J51: =IF(A51=0,0,IF('Asset data'!$D$1=1,1,IF('Asset data'!$D$1=2,2,'Asset data'!I51))) -> 2 | K51: 34.59472923 | AY51: =repcalc('Age profile (Inst)'!CT51:GF51,J51,K51,H51,20,$L$20,$M$20) -> 0.0118401307 | AZ51: 0.009606404213 | BA51: 0.00768068441 | BB51: 0.006075221422 | BC51: 0.004781649884 | BD51: 0.003777183218 | BE51: 0.003030392017 | BF51: 0.002506030502 | BG51: 0.002168679412 | BH51: 0.001985203887 | BI51: 0.001926169111 | BJ51: 0.001966426889 | BK51: 0.002085105389 | BL51: 0.00226522308 | BM51: 0.002493120391 | BN51: 0.002757864946 | BO51: 0.003050740165 | BP51: 0.003364874255 | BQ51: 0.003695011474 | BR51: 0.004037377589 | BS51: 16.34210526 | BT51: 14.75238709 | BU51: 14.15731893 | BV51: 14.11708162 | BW51: 14.41500171 | BX51: 14.93014106 | BY51: 15.58822574 | BZ51: 16.34027083 | CA51: 17.15228626 | CB51: 17.99983603 | CC51: 18.86488704 | CD51: 19.7338393 | CE51: 20.59625404 | CF51: 21.44405683 | CG51: 22.27107737 | CH51: 23.07279585 | CI51: 23.8461659 | CJ51: 24.58941504 | CK51: 25.30178964 | CL51: 25.98328149 | CM51: 26.63441027 | CN51: 0 | CO51: 0 | CP51: 0 | CQ51: 0 | CR51: 0 | CS51: 0 | CT51: 0 | CU51: 0 | CV51: 0 | CW51: 0 | CX51: 0 | CY51: 0 | CZ51: 0 | DA51: 0 | DB51: 0 | DC51: 0 | DD51: 0 | DE51: 0 | DF51: 0 | DG51: 0 | DH51: 0 | DI51: =IF('Asset data'!$F51=0,0,AY51/'Asset data'!$F51) -> 1.18401307 | DJ51: =IF('Asset data'!$F51=0,0,AZ51/'Asset data'!$F51) -> 0.9606404213 | DK51: =IF('Asset data'!$F51=0,0,BA51/'Asset data'!$F51) -> 0.768068441 | DL51: =IF('Asset data'!$F51=0,0,BB51/'Asset data'!$F51) -> 0.6075221422 | DM51: =IF('Asset data'!$F51=0,0,BC51/'Asset data'!$F51) -> 0.4781649884 | DN51: =IF('Asset data'!$F51=0,0,BD51/'Asset data'!$F51) -> 0.3777183218 | DO51: =IF('Asset data'!$F51=0,0,BE51/'Asset data'!$F51) -> 0.3030392017 | DP51: =IF('Asset data'!$F51=0,0,BF51/'Asset data'!$F51) -> 0.2506030502 | DQ51: =IF('Asset data'!$F51=0,0,BG51/'Asset data'!$F51) -> 0.2168679412 | DR51: =IF('Asset data'!$F51=0,0,BH51/'Asset data'!$F51) -> 0.1985203887 | DS51: =IF('Asset data'!$F51=0,0,BI51/'Asset data'!$F51) -> 0.1926169111 | DT51: =IF('Asset data'!$F51=0,0,BJ51/'Asset data'!$F51) -> 0.1966426889 | DU51: =IF('Asset data'!$F51=0,0,BK51/'Asset data'!$F51) -> 0.2085105389 | DV51: =IF('Asset data'!$F51=0,0,BL51/'Asset data'!$F51) -> 0.226522308 | DW51: =IF('Asset data'!$F51=0,0,BM51/'Asset data'!$F51) -> 0.2493120391 | DX51: =IF('Asset data'!$F51=0,0,BN51/'Asset data'!$F51) -> 0.2757864946 | DY51: =IF('Asset data'!$F51=0,0,BO51/'Asset data'!$F51) -> 0.3050740165 | DZ51: =IF('Asset data'!$F51=0,0,BP51/'Asset data'!$F51) -> 0.3364874255 | EA51: =IF('Asset data'!$F51=0,0,BQ51/'Asset data'!$F51) -> 0.3695011474 | EB51: =IF('Asset data'!$F51=0,0,BR51/'Asset data'!$F51) -> 0.4037377589
A52: ='Asset data'!A52 -> 4 | B52: ='Asset data'!B52 -> 0 | C52: ='Asset data'!C52 -> 0 | D52: ='Asset data'!E52 -> > 33 kV & < = 66 kV ; VT | E52: Substation Switchgear Equipment By Highest Operating Voltage; Equipment Type | F52: ='Asset data'!G52 -> 34.59472923 | G52: 34.59472923 | H52: ='Asset data'!H52 -> 5.881728422 | I52: S | J52: =IF(A52=0,0,IF('Asset data'!$D$1=1,1,IF('Asset data'!$D$1=2,2,'Asset data'!I52))) -> 2 | K52: 34.59472923 | AY52: =repcalc('Age profile (Inst)'!CT52:GF52,J52,K52,H52,20,$L$20,$M$20) -> 0.03368169791 | AZ52: 0.03154918328 | BA52: 0.02912441514 | BB52: 0.02653630426 | BC52: 0.02390983296 | BD52: 0.02136184916 | BE52: 0.0189979983 | BF52: 0.01690996909 | BG52: 0.01517244584 | BH52: 0.01383959463 | BI52: 0.01294140599 | BJ52: 0.01248061566 | BK52: 0.01243111335 | BL52: 0.01273867701 | BM52: 0.01332455594 | BN52: 0.0140919454 | BO52: 0.01493485936 | BP52: 0.0157484333 | BQ52: 0.01643937706 | BR52: 0.01693521106 | BS52: 22.48181818 | BT52: 21.24071122 | BU52: 20.46461653 | BV52: 20.0326835 | BW52: 19.86808511 | BX52: 19.91829054 | BY52: 20.14372221 | BZ52: 20.51132131 | CA52: 20.99113863 | CB52: 21.55485368 | CC52: 22.17553375 | CD52: 22.8281709 | CE52: 23.49065777 | CF52: 24.14491791 | CG52: 24.77792544 | CH52: 25.38237403 | CI52: 25.95681802 | CJ52: 26.50521875 | CK52: 27.03596207 | CL52: 27.56052317 | CM52: 28.09200436 | CN52: 0 | CO52: 0 | CP52: 0 | CQ52: 0 | CR52: 0 | CS52: 0 | CT52: 0 | CU52: 0 | CV52: 0 | CW52: 0 | CX52: 0 | CY52: 0 | CZ52: 0 | DA52: 0 | DB52: 0 | DC52: 0 | DD52: 0 | DE52: 0 | DF52: 0 | DG52: 0 | DH52: 0 | DI52: =IF('Asset data'!$F52=0,0,AY52/'Asset data'!$F52) -> 3.368169791 | DJ52: =IF('Asset data'!$F52=0,0,AZ52/'Asset data'!$F52) -> 3.154918328 | DK52: =IF('Asset data'!$F52=0,0,BA52/'Asset data'!$F52) -> 2.912441514 | DL52: =IF('Asset data'!$F52=0,0,BB52/'Asset data'!$F52) -> 2.653630426 | DM52: =IF('Asset data'!$F52=0,0,BC52/'Asset data'!$F52) -> 2.390983296 | DN52: =IF('Asset data'!$F52=0,0,BD52/'Asset data'!$F52) -> 2.136184916 | DO52: =IF('Asset data'!$F52=0,0,BE52/'Asset data'!$F52) -> 1.89979983 | DP52: =IF('Asset data'!$F52=0,0,BF52/'Asset data'!$F52) -> 1.690996909 | DQ52: =IF('Asset data'!$F52=0,0,BG52/'Asset data'!$F52) -> 1.517244584 | DR52: =IF('Asset data'!$F52=0,0,BH52/'Asset data'!$F52) -> 1.383959463 | DS52: =IF('Asset data'!$F52=0,0,BI52/'Asset data'!$F52) -> 1.294140599 | DT52: =IF('Asset data'!$F52=0,0,BJ52/'Asset data'!$F52) -> 1.248061566 | DU52: =IF('Asset data'!$F52=0,0,BK52/'Asset data'!$F52) -> 1.243111335 | DV52: =IF('Asset data'!$F52=0,0,BL52/'Asset data'!$F52) -> 1.273867701 | DW52: =IF('Asset data'!$F52=0,0,BM52/'Asset data'!$F52) -> 1.332455594 | DX52: =IF('Asset data'!$F52=0,0,BN52/'Asset data'!$F52) -> 1.40919454 | DY52: =IF('Asset data'!$F52=0,0,BO52/'Asset data'!$F52) -> 1.493485936 | DZ52: =IF('Asset data'!$F52=0,0,BP52/'Asset data'!$F52) -> 1.57484333 | EA52: =IF('Asset data'!$F52=0,0,BQ52/'Asset data'!$F52) -> 1.643937706 | EB52: =IF('Asset data'!$F52=0,0,BR52/'Asset data'!$F52) -> 1.693521106
A53: ='Asset data'!A53 -> 4 | B53: ='Asset data'!B53 -> 0 | C53: ='Asset data'!C53 -> 0 | D53: ='Asset data'!E53 -> > 66 kV & < = 132 kV ; VT | E53: Substation Switchgear Equipment By Highest Operating Voltage; Equipment Type | F53: ='Asset data'!G53 -> 34.59472923 | G53: 34.59472923 | H53: ='Asset data'!H53 -> 5.881728422 | I53: S | J53: =IF(A53=0,0,IF('Asset data'!$D$1=1,1,IF('Asset data'!$D$1=2,2,'Asset data'!I53))) -> 2 | K53: 34.59472923 | AY53: =repcalc('Age profile (Inst)'!CT53:GF53,J53,K53,H53,20,$L$20,$M$20) -> 0.2490328975 | AZ53: 0.2281520271 | BA53: 0.2120233803 | BB53: 0.1991656426 | BC53: 0.1885393647 | BD53: 0.1795373091 | BE53: 0.1719474304 | BF53: 0.1658932544 | BG53: 0.1617563011 | BH53: 0.1600865013 | BI53: 0.1615082121 | BJ53: 0.1666303239 | BK53: 0.175968374 | BL53: 0.189884434 | BM53: 0.20854731 | BN53: 0.231912103 | BO53: 0.2597153363 | BP53: 0.2914803632 | BQ53: 0.3265279661 | BR53: 0.3639888385 | BS53: 11.93834586 | BT53: 12.22837889 | BU53: 12.70897778 | BV53: 13.28401033 | BW53: 13.91888993 | BX53: 14.59768551 | BY53: 15.31131572 | BZ53: 16.05309455 | CA53: 16.81679347 | CB53: 17.59581128 | CC53: 18.38290774 | CD53: 19.1702372 | CE53: 19.94953581 | CF53: 20.71237839 | CG53: 21.45045774 | CH53: 22.15586186 | CI53: 22.8213381 | CJ53: 23.4405437 | CK53: 24.00829185 | CL53: 24.52081343 | CM53: 24.97605991 | CN53: 0 | CO53: 0 | CP53: 0 | CQ53: 0 | CR53: 0 | CS53: 0 | CT53: 0 | CU53: 0 | CV53: 0 | CW53: 0 | CX53: 0 | CY53: 0 | CZ53: 0 | DA53: 0 | DB53: 0 | DC53: 0 | DD53: 0 | DE53: 0 | DF53: 0 | DG53: 0 | DH53: 0 | DI53: =IF('Asset data'!$F53=0,0,AY53/'Asset data'!$F53) -> 24.90328975 | DJ53: =IF('Asset data'!$F53=0,0,AZ53/'Asset data'!$F53) -> 22.81520271 | DK53: =IF('Asset data'!$F53=0,0,BA53/'Asset data'!$F53) -> 21.20233803 | DL53: =IF('Asset data'!$F53=0,0,BB53/'Asset data'!$F53) -> 19.91656426 | DM53: =IF('Asset data'!$F53=0,0,BC53/'Asset data'!$F53) -> 18.85393647 | DN53: =IF('Asset data'!$F53=0,0,BD53/'Asset data'!$F53) -> 17.95373091 | DO53: =IF('Asset data'!$F53=0,0,BE53/'Asset data'!$F53) -> 17.19474304 | DP53: =IF('Asset data'!$F53=0,0,BF53/'Asset data'!$F53) -> 16.58932544 | DQ53: =IF('Asset data'!$F53=0,0,BG53/'Asset data'!$F53) -> 16.17563011 | DR53: =IF('Asset data'!$F53=0,0,BH53/'Asset data'!$F53) -> 16.00865013 | DS53: =IF('Asset data'!$F53=0,0,BI53/'Asset data'!$F53) -> 16.15082121 | DT53: =IF('Asset data'!$F53=0,0,BJ53/'Asset data'!$F53) -> 16.66303239 | DU53: =IF('Asset data'!$F53=0,0,BK53/'Asset data'!$F53) -> 17.5968374 | DV53: =IF('Asset data'!$F53=0,0,BL53/'Asset data'!$F53) -> 18.9884434 | DW53: =IF('Asset data'!$F53=0,0,BM53/'Asset data'!$F53) -> 20.854731 | DX53: =IF('Asset data'!$F53=0,0,BN53/'Asset data'!$F53) -> 23.1912103 | DY53: =IF('Asset data'!$F53=0,0,BO53/'Asset data'!$F53) -> 25.97153363 | DZ53: =IF('Asset data'!$F53=0,0,BP53/'Asset data'!$F53) -> 29.14803632 | EA53: =IF('Asset data'!$F53=0,0,BQ53/'Asset data'!$F53) -> 32.65279661 | EB53: =IF('Asset data'!$F53=0,0,BR53/'Asset data'!$F53) -> 36.39888385
A54: ='Asset data'!A54 -> 4 | B54: ='Asset data'!B54 -> 0 | C54: ='Asset data'!C54 -> 0 | D54: ='Asset data'!E54 -> > 132 kV & < = 275 kV ; VT | E54: Substation Switchgear Equipment By Highest Operating Voltage; Equipment Type | F54: ='Asset data'!G54 -> 34.59472923 | G54: 34.59472923 | H54: ='Asset data'!H54 -> 5.881728422 | I54: S | J54: =IF(A54=0,0,IF('Asset data'!$D$1=1,1,IF('Asset data'!$D$1=2,2,'Asset data'!I54))) -> 2 | K54: 34.59472923 | AY54: =repcalc('Age profile (Inst)'!CT54:GF54,J54,K54,H54,20,$L$20,$M$20) -> 0.1401946118 | AZ54: 0.1335358065 | BA54: 0.1266454689 | BB54: 0.1195847543 | BC54: 0.1124711285 | BD54: 0.1055042724 | BE54: 0.09897158736 | BF54: 0.09323241165 | BG54: 0.08868495574 | BH54: 0.08572362799 | BI54: 0.08469605594 | BJ54: 0.08586846319 | BK54: 0.08940545548 | BL54: 0.09536645361 | BM54: 0.1037169596 | BN54: 0.1143495027 | BO54: 0.1271072035 | BP54: 0.1418027741 | BQ54: 0.1582273883 | BR54: 0.1761467816 | BS54: 11.28677463 | BT54: 11.60169977 | BU54: 12.05219314 | BV54: 12.59068261 | BW54: 13.1950235 | BX54: 13.85297121 | BY54: 14.555864 | BZ54: 15.29591075 | CA54: 16.06513989 | CB54: 16.85516485 | CC54: 17.65733764 | CD54: 18.46305479 | CE54: 19.26407882 | CF54: 20.05279167 | CG54: 20.82233031 | CH54: 21.56658682 | CI54: 22.28009351 | CJ54: 22.95785378 | CK54: 23.59520918 | CL54: 24.18783692 | CM54: 24.73194285 | CN54: 0 | CO54: 0 | CP54: 0 | CQ54: 0 | CR54: 0 | CS54: 0 | CT54: 0 | CU54: 0 | CV54: 0 | CW54: 0 | CX54: 0 | CY54: 0 | CZ54: 0 | DA54: 0 | DB54: 0 | DC54: 0 | DD54: 0 | DE54: 0 | DF54: 0 | DG54: 0 | DH54: 0 | DI54: =IF('Asset data'!$F54=0,0,AY54/'Asset data'!$F54) -> 14.01946118 | DJ54: =IF('Asset data'!$F54=0,0,AZ54/'Asset data'!$F54) -> 13.35358065 | DK54: =IF('Asset data'!$F54=0,0,BA54/'Asset data'!$F54) -> 12.66454689 | DL54: =IF('Asset data'!$F54=0,0,BB54/'Asset data'!$F54) -> 11.95847543 | DM54: =IF('Asset data'!$F54=0,0,BC54/'Asset data'!$F54) -> 11.24711285 | DN54: =IF('Asset data'!$F54=0,0,BD54/'Asset data'!$F54) -> 10.55042724 | DO54: =IF('Asset data'!$F54=0,0,BE54/'Asset data'!$F54) -> 9.897158736 | DP54: =IF('Asset data'!$F54=0,0,BF54/'Asset data'!$F54) -> 9.323241165 | DQ54: =IF('Asset data'!$F54=0,0,BG54/'Asset data'!$F54) -> 8.868495574 | DR54: =IF('Asset data'!$F54=0,0,BH54/'Asset data'!$F54) -> 8.572362799 | DS54: =IF('Asset data'!$F54=0,0,BI54/'Asset data'!$F54) -> 8.469605594 | DT54: =IF('Asset data'!$F54=0,0,BJ54/'Asset data'!$F54) -> 8.586846319 | DU54: =IF('Asset data'!$F54=0,0,BK54/'Asset data'!$F54) -> 8.940545548 | DV54: =IF('Asset data'!$F54=0,0,BL54/'Asset data'!$F54) -> 9.536645361 | DW54: =IF('Asset data'!$F54=0,0,BM54/'Asset data'!$F54) -> 10.37169596 | DX54: =IF('Asset data'!$F54=0,0,BN54/'Asset data'!$F54) -> 11.43495027 | DY54: =IF('Asset data'!$F54=0,0,BO54/'Asset data'!$F54) -> 12.71072035 | DZ54: =IF('Asset data'!$F54=0,0,BP54/'Asset data'!$F54) -> 14.18027741 | EA54: =IF('Asset data'!$F54=0,0,BQ54/'Asset data'!$F54) -> 15.82273883 | EB54: =IF('Asset data'!$F54=0,0,BR54/'Asset data'!$F54) -> 17.61467816
A55: ='Asset data'!A55 -> 4 | B55: ='Asset data'!B55 -> 0 | C55: ='Asset data'!C55 -> 0 | D55: ='Asset data'!E55 -> > 275 kV & < = 330 kV ; VT | E55: Substation Switchgear Equipment By Highest Operating Voltage; Equipment Type | F55: ='Asset data'!G55 -> 34.59472923 | G55: 34.59472923 | H55: ='Asset data'!H55 -> 5.881728422 | I55: S | J55: =IF(A55=0,0,IF('Asset data'!$D$1=1,1,IF('Asset data'!$D$1=2,2,'Asset data'!I55))) -> 2 | K55: 34.59472923 | AY55: =repcalc('Age profile (Inst)'!CT55:GF55,J55,K55,H55,20,$L$20,$M$20) -> 2.303471575e-06 | AZ55: 4.501460706e-06 | BA55: 8.550231985e-06 | BB55: 1.578610305e-05 | BC55: 2.833122083e-05 | BD55: 4.942786074e-05 | BE55: 8.383390169e-05 | BF55: 0.0001382409063 | BG55: 0.0002216424322 | BH55: 0.0003455429423 | BI55: 0.0005238662349 | BJ55: 0.0007724099368 | BK55: 0.001107714066 | BL55: 0.001545278742 | BM55: 0.002097181779 | BN55: 0.002769299941 | BO55: 0.00355850053 | BP55: 0.004450301333 | BQ55: 0.005417550917 | BR55: 0.006420620608 | BS55: 9 | BT55: 9.999843537 | BU55: 10.99951003 | BV55: 11.99882395 | BW55: 12.99746033 | BX55: 13.99483964 | BY55: 14.98996618 | BZ55: 15.98119242 | CA55: 16.96589457 | CB55: 17.94005478 | CC55: 18.89776601 | CD55: 19.83070867 | CE55: 20.72769334 | CF55: 21.5744141 | CG55: 22.35359894 | CH55: 23.04575272 | CI55: 23.63063743 | CJ55: 24.08950373 | CK55: 24.40788198 | CL55: 24.57850811 | CM55: 24.6037865 | CN55: 0 | CO55: 0 | CP55: 0 | CQ55: 0 | CR55: 0 | CS55: 0 | CT55: 0 | CU55: 0 | CV55: 0 | CW55: 0 | CX55: 0 | CY55: 0 | CZ55: 0 | DA55: 0 | DB55: 0 | DC55: 0 | DD55: 0 | DE55: 0 | DF55: 0 | DG55: 0 | DH55: 0 | DI55: =IF('Asset data'!$F55=0,0,AY55/'Asset data'!$F55) -> 0.0002303471575 | DJ55: =IF('Asset data'!$F55=0,0,AZ55/'Asset data'!$F55) -> 0.0004501460706 | DK55: =IF('Asset data'!$F55=0,0,BA55/'Asset data'!$F55) -> 0.0008550231985 | DL55: =IF('Asset data'!$F55=0,0,BB55/'Asset data'!$F55) -> 0.001578610305 | DM55: =IF('Asset data'!$F55=0,0,BC55/'Asset data'!$F55) -> 0.002833122083 | DN55: =IF('Asset data'!$F55=0,0,BD55/'Asset data'!$F55) -> 0.004942786074 | DO55: =IF('Asset data'!$F55=0,0,BE55/'Asset data'!$F55) -> 0.008383390169 | DP55: =IF('Asset data'!$F55=0,0,BF55/'Asset data'!$F55) -> 0.01382409063 | DQ55: =IF('Asset data'!$F55=0,0,BG55/'Asset data'!$F55) -> 0.02216424322 | DR55: =IF('Asset data'!$F55=0,0,BH55/'Asset data'!$F55) -> 0.03455429423 | DS55: =IF('Asset data'!$F55=0,0,BI55/'Asset data'!$F55) -> 0.05238662349 | DT55: =IF('Asset data'!$F55=0,0,BJ55/'Asset data'!$F55) -> 0.07724099368 | DU55: =IF('Asset data'!$F55=0,0,BK55/'Asset data'!$F55) -> 0.1107714066 | DV55: =IF('Asset data'!$F55=0,0,BL55/'Asset data'!$F55) -> 0.1545278742 | DW55: =IF('Asset data'!$F55=0,0,BM55/'Asset data'!$F55) -> 0.2097181779 | DX55: =IF('Asset data'!$F55=0,0,BN55/'Asset data'!$F55) -> 0.2769299941 | DY55: =IF('Asset data'!$F55=0,0,BO55/'Asset data'!$F55) -> 0.355850053 | DZ55: =IF('Asset data'!$F55=0,0,BP55/'Asset data'!$F55) -> 0.4450301333 | EA55: =IF('Asset data'!$F55=0,0,BQ55/'Asset data'!$F55) -> 0.5417550917 | EB55: =IF('Asset data'!$F55=0,0,BR55/'Asset data'!$F55) -> 0.6420620608
A56: ='Asset data'!A56 -> 4 | B56: ='Asset data'!B56 -> 0 | C56: ='Asset data'!C56 -> 0 | D56: ='Asset data'!E56 -> < = 33 kV; CT | E56: Substation Switchgear Equipment By Highest Operating Voltage; Equipment Type | F56: ='Asset data'!G56 -> 33.18087017 | G56: 33.18087017 | H56: ='Asset data'!H56 -> 5.760283862 | I56: S | J56: =IF(A56=0,0,IF('Asset data'!$D$1=1,1,IF('Asset data'!$D$1=2,2,'Asset data'!I56))) -> 2 | K56: 33.18087017 | AY56: =repcalc('Age profile (Inst)'!CT56:GF56,J56,K56,H56,20,$L$20,$M$20) -> 0.01135522265 | AZ56: 0.009412481186 | BA56: 0.007898718639 | BB56: 0.006831380576 | BC56: 0.006208368925 | BD56: 0.006017449346 | BE56: 0.006245085012 | BF56: 0.006883390095 | BG56: 0.007934059861 | BH56: 0.009408397779 | BI56: 0.01132300077 | BJ56: 0.01369132571 | BK56: 0.01651220463 | BL56: 0.01975725713 | BM56: 0.02335983286 | BN56: 0.02720834574 | BO56: 0.03114644161 | BP56: 0.03498133473 | BQ56: 0.03850002538 | BR56: 0.04149132775 | BS56: 12.02325581 | BT56: 12.50218625 | BU56: 13.18043441 | BV56: 13.95984187 | BW56: 14.79224888 | BX56: 15.65035902 | BY56: 16.51666184 | BZ56: 17.37843513 | CA56: 18.22505877 | CB56: 19.04633125 | CC56: 19.83136939 | CD56: 20.56804647 | CE56: 21.24307183 | CF56: 21.84281549 | CG56: 22.35486192 | CH56: 22.77007573 | CI56: 23.084751 | CJ56: 23.30229159 | CK56: 23.43391795 | CL56: 23.49813206 | CM56: 23.51901905 | CN56: 0 | CO56: 0 | CP56: 0 | CQ56: 0 | CR56: 0 | CS56: 0 | CT56: 0 | CU56: 0 | CV56: 0 | CW56: 0 | CX56: 0 | CY56: 0 | CZ56: 0 | DA56: 0 | DB56: 0 | DC56: 0 | DD56: 0 | DE56: 0 | DF56: 0 | DG56: 0 | DH56: 0 | DI56: =IF('Asset data'!$F56=0,0,AY56/'Asset data'!$F56) -> 1.135522265 | DJ56: =IF('Asset data'!$F56=0,0,AZ56/'Asset data'!$F56) -> 0.9412481186 | DK56: =IF('Asset data'!$F56=0,0,BA56/'Asset data'!$F56) -> 0.7898718639 | DL56: =IF('Asset data'!$F56=0,0,BB56/'Asset data'!$F56) -> 0.6831380576 | DM56: =IF('Asset data'!$F56=0,0,BC56/'Asset data'!$F56) -> 0.6208368925 | DN56: =IF('Asset data'!$F56=0,0,BD56/'Asset data'!$F56) -> 0.6017449346 | DO56: =IF('Asset data'!$F56=0,0,BE56/'Asset data'!$F56) -> 0.6245085012 | DP56: =IF('Asset data'!$F56=0,0,BF56/'Asset data'!$F56) -> 0.6883390095 | DQ56: =IF('Asset data'!$F56=0,0,BG56/'Asset data'!$F56) -> 0.7934059861 | DR56: =IF('Asset data'!$F56=0,0,BH56/'Asset data'!$F56) -> 0.9408397779 | DS56: =IF('Asset data'!$F56=0,0,BI56/'Asset data'!$F56) -> 1.132300077 | DT56: =IF('Asset data'!$F56=0,0,BJ56/'Asset data'!$F56) -> 1.369132571 | DU56: =IF('Asset data'!$F56=0,0,BK56/'Asset data'!$F56) -> 1.651220463 | DV56: =IF('Asset data'!$F56=0,0,BL56/'Asset data'!$F56) -> 1.975725713 | DW56: =IF('Asset data'!$F56=0,0,BM56/'Asset data'!$F56) -> 2.335983286 | DX56: =IF('Asset data'!$F56=0,0,BN56/'Asset data'!$F56) -> 2.720834574 | DY56: =IF('Asset data'!$F56=0,0,BO56/'Asset data'!$F56) -> 3.114644161 | DZ56: =IF('Asset data'!$F56=0,0,BP56/'Asset data'!$F56) -> 3.498133473 | EA56: =IF('Asset data'!$F56=0,0,BQ56/'Asset data'!$F56) -> 3.850002538 | EB56: =IF('Asset data'!$F56=0,0,BR56/'Asset data'!$F56) -> 4.149132775
A57: ='Asset data'!A57 -> 4 | B57: ='Asset data'!B57 -> 0 | C57: ='Asset data'!C57 -> 0 | D57: ='Asset data'!E57 -> > 33 kV & < = 66 kV ; CT | E57: Substation Switchgear Equipment By Highest Operating Voltage; Equipment Type | F57: ='Asset data'!G57 -> 33.18087017 | G57: 33.18087017 | H57: ='Asset data'!H57 -> 5.760283862 | I57: S | J57: =IF(A57=0,0,IF('Asset data'!$D$1=1,1,IF('Asset data'!$D$1=2,2,'Asset data'!I57))) -> 2 | K57: 33.18087017 | AY57: =repcalc('Age profile (Inst)'!CT57:GF57,J57,K57,H57,20,$L$20,$M$20) -> 0.03508797996 | AZ57: 0.03146255014 | BA57: 0.02811252848 | BB57: 0.0251038357 | BC57: 0.02248058431 | BD57: 0.02027384218 | BE57: 0.0185069786 | BF57: 0.01719702957 | BG57: 0.01635284785 | BH57: 0.0159717239 | BI57: 0.01603651913 | BJ57: 0.01651512201 | BK57: 0.01736331522 | BL57: 0.01853110996 | BM57: 0.0199715001 | BN57: 0.02164967013 | BO57: 0.02355018931 | BP57: 0.02567980031 | BQ57: 0.02806411197 | BR57: 0.03073773994 | BS57: 11.76984127 | BT57: 11.74726449 | BU57: 12.00888349 | BV57: 12.4427752 | BW57: 12.99272489 | BX57: 13.62602721 | BY57: 14.32057957 | BZ57: 15.05935802 | CA57: 15.82804324 | CB57: 16.61413721 | CC57: 17.40681885 | CD57: 18.19711657 | CE57: 18.97810622 | CF57: 19.7449243 | CG57: 20.49447398 | CH57: 21.22481038 | CI57: 21.93430157 | CJ57: 22.62074601 | CK57: 23.28066335 | CL57: 23.90895996 | CM57: 24.49911583 | CN57: 0 | CO57: 0 | CP57: 0 | CQ57: 0 | CR57: 0 | CS57: 0 | CT57: 0 | CU57: 0 | CV57: 0 | CW57: 0 | CX57: 0 | CY57: 0 | CZ57: 0 | DA57: 0 | DB57: 0 | DC57: 0 | DD57: 0 | DE57: 0 | DF57: 0 | DG57: 0 | DH57: 0 | DI57: =IF('Asset data'!$F57=0,0,AY57/'Asset data'!$F57) -> 3.508797996 | DJ57: =IF('Asset data'!$F57=0,0,AZ57/'Asset data'!$F57) -> 3.146255014 | DK57: =IF('Asset data'!$F57=0,0,BA57/'Asset data'!$F57) -> 2.811252848 | DL57: =IF('Asset data'!$F57=0,0,BB57/'Asset data'!$F57) -> 2.51038357 | DM57: =IF('Asset data'!$F57=0,0,BC57/'Asset data'!$F57) -> 2.248058431 | DN57: =IF('Asset data'!$F57=0,0,BD57/'Asset data'!$F57) -> 2.027384218 | DO57: =IF('Asset data'!$F57=0,0,BE57/'Asset data'!$F57) -> 1.85069786 | DP57: =IF('Asset data'!$F57=0,0,BF57/'Asset data'!$F57) -> 1.719702957 | DQ57: =IF('Asset data'!$F57=0,0,BG57/'Asset data'!$F57) -> 1.635284785 | DR57: =IF('Asset data'!$F57=0,0,BH57/'Asset data'!$F57) -> 1.59717239 | DS57: =IF('Asset data'!$F57=0,0,BI57/'Asset data'!$F57) -> 1.603651913 | DT57: =IF('Asset data'!$F57=0,0,BJ57/'Asset data'!$F57) -> 1.651512201 | DU57: =IF('Asset data'!$F57=0,0,BK57/'Asset data'!$F57) -> 1.736331522 | DV57: =IF('Asset data'!$F57=0,0,BL57/'Asset data'!$F57) -> 1.853110996 | DW57: =IF('Asset data'!$F57=0,0,BM57/'Asset data'!$F57) -> 1.99715001 | DX57: =IF('Asset data'!$F57=0,0,BN57/'Asset data'!$F57) -> 2.164967013 | DY57: =IF('Asset data'!$F57=0,0,BO57/'Asset data'!$F57) -> 2.355018931 | DZ57: =IF('Asset data'!$F57=0,0,BP57/'Asset data'!$F57) -> 2.567980031 | EA57: =IF('Asset data'!$F57=0,0,BQ57/'Asset data'!$F57) -> 2.806411197 | EB57: =IF('Asset data'!$F57=0,0,BR57/'Asset data'!$F57) -> 3.073773994
A58: ='Asset data'!A58 -> 4 | B58: ='Asset data'!B58 -> 0 | C58: ='Asset data'!C58 -> 0 | D58: ='Asset data'!E58 -> > 66 kV & < = 132 kV ; CT | E58: Substation Switchgear Equipment By Highest Operating Voltage; Equipment Type | F58: ='Asset data'!G58 -> 33.18087017 | G58: 33.18087017 | H58: ='Asset data'!H58 -> 5.760283862 | I58: S | J58: =IF(A58=0,0,IF('Asset data'!$D$1=1,1,IF('Asset data'!$D$1=2,2,'Asset data'!I58))) -> 2 | K58: 33.18087017 | AY58: =repcalc('Age profile (Inst)'!CT58:GF58,J58,K58,H58,20,$L$20,$M$20) -> 0.5260649907 | AZ58: 0.4714998262 | BA58: 0.4269921338 | BB58: 0.3892312855 | BC58: 0.3562650089 | BD58: 0.327208264 | BE58: 0.3019303397 | BF58: 0.2807561782 | BG58: 0.2642071626 | BH58: 0.2527979434 | BI58: 0.2468984496 | BJ58: 0.2466631163 | BK58: 0.2520221512 | BL58: 0.262722648 | BM58: 0.2784013871 | BN58: 0.2986673645 | BO58: 0.3231714915 | BP58: 0.351644071 | BQ58: 0.3838875058 | BR58: 0.4197213251 | BS58: 12.5744186 | BT58: 12.44144033 | BU58: 12.63915725 | BV58: 13.00641074 | BW58: 13.48631977 | BX58: 14.05023893 | BY58: 14.6796489 | BZ58: 15.36022997 | CA58: 16.07965065 | CB58: 16.8267684 | CC58: 17.59143176 | CD58: 18.36453168 | CE58: 19.13811215 | CF58: 19.90542083 | CG58: 20.66082834 | CH58: 21.39959712 | CI58: 22.11753906 | CJ58: 22.8106518 | CK58: 23.47484999 | CL58: 24.10589901 | CM58: 24.69961853 | CN58: 0 | CO58: 0 | CP58: 0 | CQ58: 0 | CR58: 0 | CS58: 0 | CT58: 0 | CU58: 0 | CV58: 0 | CW58: 0 | CX58: 0 | CY58: 0 | CZ58: 0 | DA58: 0 | DB58: 0 | DC58: 0 | DD58: 0 | DE58: 0 | DF58: 0 | DG58: 0 | DH58: 0 | DI58: =IF('Asset data'!$F58=0,0,AY58/'Asset data'!$F58) -> 52.60649907 | DJ58: =IF('Asset data'!$F58=0,0,AZ58/'Asset data'!$F58) -> 47.14998262 | DK58: =IF('Asset data'!$F58=0,0,BA58/'Asset data'!$F58) -> 42.69921338 | DL58: =IF('Asset data'!$F58=0,0,BB58/'Asset data'!$F58) -> 38.92312855 | DM58: =IF('Asset data'!$F58=0,0,BC58/'Asset data'!$F58) -> 35.62650089 | DN58: =IF('Asset data'!$F58=0,0,BD58/'Asset data'!$F58) -> 32.7208264 | DO58: =IF('Asset data'!$F58=0,0,BE58/'Asset data'!$F58) -> 30.19303397 | DP58: =IF('Asset data'!$F58=0,0,BF58/'Asset data'!$F58) -> 28.07561782 | DQ58: =IF('Asset data'!$F58=0,0,BG58/'Asset data'!$F58) -> 26.42071626 | DR58: =IF('Asset data'!$F58=0,0,BH58/'Asset data'!$F58) -> 25.27979434 | DS58: =IF('Asset data'!$F58=0,0,BI58/'Asset data'!$F58) -> 24.68984496 | DT58: =IF('Asset data'!$F58=0,0,BJ58/'Asset data'!$F58) -> 24.66631163 | DU58: =IF('Asset data'!$F58=0,0,BK58/'Asset data'!$F58) -> 25.20221512 | DV58: =IF('Asset data'!$F58=0,0,BL58/'Asset data'!$F58) -> 26.2722648 | DW58: =IF('Asset data'!$F58=0,0,BM58/'Asset data'!$F58) -> 27.84013871 | DX58: =IF('Asset data'!$F58=0,0,BN58/'Asset data'!$F58) -> 29.86673645 | DY58: =IF('Asset data'!$F58=0,0,BO58/'Asset data'!$F58) -> 32.31714915 | DZ58: =IF('Asset data'!$F58=0,0,BP58/'Asset data'!$F58) -> 35.1644071 | EA58: =IF('Asset data'!$F58=0,0,BQ58/'Asset data'!$F58) -> 38.38875058 | EB58: =IF('Asset data'!$F58=0,0,BR58/'Asset data'!$F58) -> 41.97213251
A59: ='Asset data'!A59 -> 4 | B59: ='Asset data'!B59 -> 0 | C59: ='Asset data'!C59 -> 0 | D59: ='Asset data'!E59 -> > 132 kV & < = 275 kV ; CT | E59: Substation Switchgear Equipment By Highest Operating Voltage; Equipment Type | F59: ='Asset data'!G59 -> 33.18087017 | G59: 33.18087017 | H59: ='Asset data'!H59 -> 5.760283862 | I59: S | J59: =IF(A59=0,0,IF('Asset data'!$D$1=1,1,IF('Asset data'!$D$1=2,2,'Asset data'!I59))) -> 2 | K59: 33.18087017 | AY59: =repcalc('Age profile (Inst)'!CT59:GF59,J59,K59,H59,20,$L$20,$M$20) -> 0.2718509071 | AZ59: 0.2439484821 | BA59: 0.2189306251 | BB59: 0.1973876322 | BC59: 0.1795428109 | BD59: 0.1653666897 | BE59: 0.1546975958 | BF59: 0.1473479284 | BG59: 0.1431838401 | BH59: 0.1421739737 | BI59: 0.1444085948 | BJ59: 0.1500933215 | BK59: 0.1595222062 | BL59: 0.1730342484 | BM59: 0.1909567328 | BN59: 0.2135389053 | BO59: 0.2408806884 | BP59: 0.272863036 | BQ59: 0.3090883499 | BR59: 0.3488402395 | BS59: 10.49846508 | BT59: 10.7320657 | BU59: 11.18113908 | BV59: 11.75753311 | BW59: 12.41522137 | BX59: 13.12803421 | BY59: 13.87967765 | BZ59: 14.65898559 | CA59: 15.45752745 | CB59: 16.26831169 | CC59: 17.08501156 | CD59: 17.90145454 | CE59: 18.71126718 | CF59: 19.50763878 | CG59: 20.2832038 | CH59: 21.03006411 | CI59: 21.7399831 | CJ59: 22.40477822 | CK59: 23.0169115 | CL59: 23.5702324 | CM59: 24.06077857 | CN59: 0 | CO59: 0 | CP59: 0 | CQ59: 0 | CR59: 0 | CS59: 0 | CT59: 0 | CU59: 0 | CV59: 0 | CW59: 0 | CX59: 0 | CY59: 0 | CZ59: 0 | DA59: 0 | DB59: 0 | DC59: 0 | DD59: 0 | DE59: 0 | DF59: 0 | DG59: 0 | DH59: 0 | DI59: =IF('Asset data'!$F59=0,0,AY59/'Asset data'!$F59) -> 27.18509071 | DJ59: =IF('Asset data'!$F59=0,0,AZ59/'Asset data'!$F59) -> 24.39484821 | DK59: =IF('Asset data'!$F59=0,0,BA59/'Asset data'!$F59) -> 21.89306251 | DL59: =IF('Asset data'!$F59=0,0,BB59/'Asset data'!$F59) -> 19.73876322 | DM59: =IF('Asset data'!$F59=0,0,BC59/'Asset data'!$F59) -> 17.95428109 | DN59: =IF('Asset data'!$F59=0,0,BD59/'Asset data'!$F59) -> 16.53666897 | DO59: =IF('Asset data'!$F59=0,0,BE59/'Asset data'!$F59) -> 15.46975958 | DP59: =IF('Asset data'!$F59=0,0,BF59/'Asset data'!$F59) -> 14.73479284 | DQ59: =IF('Asset data'!$F59=0,0,BG59/'Asset data'!$F59) -> 14.31838401 | DR59: =IF('Asset data'!$F59=0,0,BH59/'Asset data'!$F59) -> 14.21739737 | DS59: =IF('Asset data'!$F59=0,0,BI59/'Asset data'!$F59) -> 14.44085948 | DT59: =IF('Asset data'!$F59=0,0,BJ59/'Asset data'!$F59) -> 15.00933215 | DU59: =IF('Asset data'!$F59=0,0,BK59/'Asset data'!$F59) -> 15.95222062 | DV59: =IF('Asset data'!$F59=0,0,BL59/'Asset data'!$F59) -> 17.30342484 | DW59: =IF('Asset data'!$F59=0,0,BM59/'Asset data'!$F59) -> 19.09567328 | DX59: =IF('Asset data'!$F59=0,0,BN59/'Asset data'!$F59) -> 21.35389053 | DY59: =IF('Asset data'!$F59=0,0,BO59/'Asset data'!$F59) -> 24.08806884 | DZ59: =IF('Asset data'!$F59=0,0,BP59/'Asset data'!$F59) -> 27.2863036 | EA59: =IF('Asset data'!$F59=0,0,BQ59/'Asset data'!$F59) -> 30.90883499 | EB59: =IF('Asset data'!$F59=0,0,BR59/'Asset data'!$F59) -> 34.88402395
A60: ='Asset data'!A60 -> 4 | B60: ='Asset data'!B60 -> 0 | C60: ='Asset data'!C60 -> 0 | D60: ='Asset data'!E60 -> > 275 kV & < = 330 kV ; CT | E60: Substation Switchgear Equipment By Highest Operating Voltage; Equipment Type | F60: ='Asset data'!G60 -> 33.18087017 | G60: 33.18087017 | H60: ='Asset data'!H60 -> 5.760283862 | I60: S | J60: =IF(A60=0,0,IF('Asset data'!$D$1=1,1,IF('Asset data'!$D$1=2,2,'Asset data'!I60))) -> 2 | K60: 33.18087017 | AY60: =repcalc('Age profile (Inst)'!CT60:GF60,J60,K60,H60,20,$L$20,$M$20) -> 5.265868168e-06 | AZ60: 1.014002927e-05 | BA60: 1.895543865e-05 | BB60: 3.440171836e-05 | BC60: 6.061900189e-05 | BD60: 0.0001037183683 | BE60: 0.0001723307911 | BF60: 0.0002780863785 | BG60: 0.0004358770624 | BH60: 0.000663717965 | BI60: 0.0009820141897 | BJ60: 0.00141208009 | BK60: 0.001973859844 | BL60: 0.00268295911 | BM60: 0.003547294038 | BN60: 0.004563851058 | BO60: 0.005716170552 | BP60: 0.006973165875 | BQ60: 0.008289736884 | BR60: 0.009609346816 | BS60: 7.5 | BT60: 8.499761032 | BU60: 9.499259193 | BV60: 10.49824335 | BW60: 11.49625917 | BX60: 12.49251634 | BY60: 13.48569356 | BZ60: 14.47366868 | CA60: 15.45317056 | CB60: 16.41936753 | CC60: 17.36543632 | CD60: 18.28219408 | CE60: 19.15791807 | CF60: 19.97850816 | CG60: 20.72814428 | CH60: 21.390532 | CI60: 21.9506997 | CJ60: 22.39712786 | CK60: 22.72381168 | CL60: 22.93177147 | CM60: 23.02960881 | CN60: 0 | CO60: 0 | CP60: 0 | CQ60: 0 | CR60: 0 | CS60: 0 | CT60: 0 | CU60: 0 | CV60: 0 | CW60: 0 | CX60: 0 | CY60: 0 | CZ60: 0 | DA60: 0 | DB60: 0 | DC60: 0 | DD60: 0 | DE60: 0 | DF60: 0 | DG60: 0 | DH60: 0 | DI60: =IF('Asset data'!$F60=0,0,AY60/'Asset data'!$F60) -> 0.0005265868168 | DJ60: =IF('Asset data'!$F60=0,0,AZ60/'Asset data'!$F60) -> 0.001014002927 | DK60: =IF('Asset data'!$F60=0,0,BA60/'Asset data'!$F60) -> 0.001895543865 | DL60: =IF('Asset data'!$F60=0,0,BB60/'Asset data'!$F60) -> 0.003440171836 | DM60: =IF('Asset data'!$F60=0,0,BC60/'Asset data'!$F60) -> 0.006061900189 | DN60: =IF('Asset data'!$F60=0,0,BD60/'Asset data'!$F60) -> 0.01037183683 | DO60: =IF('Asset data'!$F60=0,0,BE60/'Asset data'!$F60) -> 0.01723307911 | DP60: =IF('Asset data'!$F60=0,0,BF60/'Asset data'!$F60) -> 0.02780863785 | DQ60: =IF('Asset data'!$F60=0,0,BG60/'Asset data'!$F60) -> 0.04358770624 | DR60: =IF('Asset data'!$F60=0,0,BH60/'Asset data'!$F60) -> 0.0663717965 | DS60: =IF('Asset data'!$F60=0,0,BI60/'Asset data'!$F60) -> 0.09820141897 | DT60: =IF('Asset data'!$F60=0,0,BJ60/'Asset data'!$F60) -> 0.141208009 | DU60: =IF('Asset data'!$F60=0,0,BK60/'Asset data'!$F60) -> 0.1973859844 | DV60: =IF('Asset data'!$F60=0,0,BL60/'Asset data'!$F60) -> 0.268295911 | DW60: =IF('Asset data'!$F60=0,0,BM60/'Asset data'!$F60) -> 0.3547294038 | DX60: =IF('Asset data'!$F60=0,0,BN60/'Asset data'!$F60) -> 0.4563851058 | DY60: =IF('Asset data'!$F60=0,0,BO60/'Asset data'!$F60) -> 0.5716170552 | DZ60: =IF('Asset data'!$F60=0,0,BP60/'Asset data'!$F60) -> 0.6973165875 | EA60: =IF('Asset data'!$F60=0,0,BQ60/'Asset data'!$F60) -> 0.8289736884 | EB60: =IF('Asset data'!$F60=0,0,BR60/'Asset data'!$F60) -> 0.9609346816
A61: ='Asset data'!A61 -> 0 | B61: ='Asset data'!B61 -> 0 | C61: ='Asset data'!C61 -> 0 | D61: ='Asset data'!E61 -> 0 | E61: 0 | F61: ='Asset data'!G61 -> 0 | G61: 0 | H61: ='Asset data'!H61 -> 0 | I61: S | J61: =IF(A61=0,0,IF('Asset data'!$D$1=1,1,IF('Asset data'!$D$1=2,2,'Asset data'!I61))) -> 0 | K61: 0 | AY61: =repcalc('Age profile (Inst)'!CT61:GF61,J61,K61,H61,20,$L$20,$M$20) -> 0 | AZ61: 0 | BA61: 0 | BB61: 0 | BC61: 0 | BD61: 0 | BE61: 0 | BF61: 0 | BG61: 0 | BH61: 0 | BI61: 0 | BJ61: 0 | BK61: 0 | BL61: 0 | BM61: 0 | BN61: 0 | BO61: 0 | BP61: 0 | BQ61: 0 | BR61: 0 | BS61: 0 | BT61: 0 | BU61: 0 | BV61: 0 | BW61: 0 | BX61: 0 | BY61: 0 | BZ61: 0 | CA61: 0 | CB61: 0 | CC61: 0 | CD61: 0 | CE61: 0 | CF61: 0 | CG61: 0 | CH61: 0 | CI61: 0 | CJ61: 0 | CK61: 0 | CL61: 0 | CM61: 0 | CN61: 0 | CO61: 0 | CP61: 0 | CQ61: 0 | CR61: 0 | CS61: 0 | CT61: 0 | CU61: 0 | CV61: 0 | CW61: 0 | CX61: 0 | CY61: 0 | CZ61: 0 | DA61: 0 | DB61: 0 | DC61: 0 | DD61: 0 | DE61: 0 | DF61: 0 | DG61: 0 | DH61: 0 | DI61: =IF('Asset data'!$F61=0,0,AY61/'Asset data'!$F61) -> 0 | DJ61: =IF('Asset data'!$F61=0,0,AZ61/'Asset data'!$F61) -> 0 | DK61: =IF('Asset data'!$F61=0,0,BA61/'Asset data'!$F61) -> 0 | DL61: =IF('Asset data'!$F61=0,0,BB61/'Asset data'!$F61) -> 0 | DM61: =IF('Asset data'!$F61=0,0,BC61/'Asset data'!$F61) -> 0 | DN61: =IF('Asset data'!$F61=0,0,BD61/'Asset data'!$F61) -> 0 | DO61: =IF('Asset data'!$F61=0,0,BE61/'Asset data'!$F61) -> 0 | DP61: =IF('Asset data'!$F61=0,0,BF61/'Asset data'!$F61) -> 0 | DQ61: =IF('Asset data'!$F61=0,0,BG61/'Asset data'!$F61) -> 0 | DR61: =IF('Asset data'!$F61=0,0,BH61/'Asset data'!$F61) -> 0 | DS61: =IF('Asset data'!$F61=0,0,BI61/'Asset data'!$F61) -> 0 | DT61: =IF('Asset data'!$F61=0,0,BJ61/'Asset data'!$F61) -> 0 | DU61: =IF('Asset data'!$F61=0,0,BK61/'Asset data'!$F61) -> 0 | DV61: =IF('Asset data'!$F61=0,0,BL61/'Asset data'!$F61) -> 0 | DW61: =IF('Asset data'!$F61=0,0,BM61/'Asset data'!$F61) -> 0 | DX61: =IF('Asset data'!$F61=0,0,BN61/'Asset data'!$F61) -> 0 | DY61: =IF('Asset data'!$F61=0,0,BO61/'Asset data'!$F61) -> 0 | DZ61: =IF('Asset data'!$F61=0,0,BP61/'Asset data'!$F61) -> 0 | EA61: =IF('Asset data'!$F61=0,0,BQ61/'Asset data'!$F61) -> 0 | EB61: =IF('Asset data'!$F61=0,0,BR61/'Asset data'!$F61) -> 0
A62: ='Asset data'!A62 -> 5 | B62: ='Asset data'!B62 -> 0 | C62: ='Asset data'!C62 -> 0 | D62: ='Asset data'!E62 -> Secondary Systems (Bay or Non-bay) | E62: Secondary Systems and Telecommunications, by Function | F62: ='Asset data'!G62 -> 20.23361768 | G62: 20.23361768 | H62: ='Asset data'!H62 -> 4.498179374 | I62: S | J62: =IF(A62=0,0,IF('Asset data'!$D$1=1,1,IF('Asset data'!$D$1=2,2,'Asset data'!I62))) -> 2 | K62: 20.23361768 | AY62: =repcalc('Age profile (Inst)'!CT62:GF62,J62,K62,H62,20,$L$20,$M$20) -> 54454.08788 | AZ62: 43551.04984 | BA62: 37998.34821 | BB62: 35675.21854 | BC62: 35284.17805 | BD62: 36057.92874 | BE62: 37557.79356 | BF62: 39534.81466 | BG62: 41835.99288 | BH62: 44343.76689 | BI62: 46940.3398 | BJ62: 49491.02639 | BK62: 51842.55368 | BL62: 53833.06281 | BM62: 55310.41467 | BN62: 56154.59132 | BO62: 56299.12404 | BP62: 55746.30474 | BQ62: 54571.9875 | BR62: 52918.09111 | BS62: 9.896602659 | BT62: 9.472754837 | BU62: 9.741107727 | BV62: 10.19881358 | BW62: 10.73204261 | BX62: 11.29741712 | BY62: 11.87354626 | BZ62: 12.44805517 | CA62: 13.01314 | CB62: 13.5639911 | CC62: 14.09844977 | CD62: 14.61727965 | CE62: 15.1247308 | CF62: 15.62911884 | CG62: 16.14308836 | CH62: 16.68321632 | CI62: 17.26874384 | CJ62: 17.91951096 | CK62: 18.65350383 | CL62: 19.48463869 | CM62: 20.42136626 | CN62: 0 | CO62: 0 | CP62: 0 | CQ62: 0 | CR62: 0 | CS62: 0 | CT62: 0 | CU62: 0 | CV62: 0 | CW62: 0 | CX62: 0 | CY62: 0 | CZ62: 0 | DA62: 0 | DB62: 0 | DC62: 0 | DD62: 0 | DE62: 0 | DF62: 0 | DG62: 0 | DH62: 0 | DI62: =IF('Asset data'!$F62=0,0,AY62/'Asset data'!$F62) -> 75.10162853 | DJ62: =IF('Asset data'!$F62=0,0,AZ62/'Asset data'!$F62) -> 60.06444869 | DK62: =IF('Asset data'!$F62=0,0,BA62/'Asset data'!$F62) -> 52.4063104 | DL62: =IF('Asset data'!$F62=0,0,BB62/'Asset data'!$F62) -> 49.2023118 | DM62: =IF('Asset data'!$F62=0,0,BC62/'Asset data'!$F62) -> 48.66299916 | DN62: =IF('Asset data'!$F62=0,0,BD62/'Asset data'!$F62) -> 49.73013552 | DO62: =IF('Asset data'!$F62=0,0,BE62/'Asset data'!$F62) -> 51.79870916 | DP62: =IF('Asset data'!$F62=0,0,BF62/'Asset data'!$F62) -> 54.52536404 | DQ62: =IF('Asset data'!$F62=0,0,BG62/'Asset data'!$F62) -> 57.69908779 | DR62: =IF('Asset data'!$F62=0,0,BH62/'Asset data'!$F62) -> 61.15774295 | DS62: =IF('Asset data'!$F62=0,0,BI62/'Asset data'!$F62) -> 64.73886718 | DT62: =IF('Asset data'!$F62=0,0,BJ62/'Asset data'!$F62) -> 68.25670623 | DU62: =IF('Asset data'!$F62=0,0,BK62/'Asset data'!$F62) -> 71.49987008 | DV62: =IF('Asset data'!$F62=0,0,BL62/'Asset data'!$F62) -> 74.24512729 | DW62: =IF('Asset data'!$F62=0,0,BM62/'Asset data'!$F62) -> 76.28265164 | DX62: =IF('Asset data'!$F62=0,0,BN62/'Asset data'!$F62) -> 77.44691761 | DY62: =IF('Asset data'!$F62=0,0,BO62/'Asset data'!$F62) -> 77.64625329 | DZ62: =IF('Asset data'!$F62=0,0,BP62/'Asset data'!$F62) -> 76.88381962 | EA62: =IF('Asset data'!$F62=0,0,BQ62/'Asset data'!$F62) -> 75.26423255 | EB62: =IF('Asset data'!$F62=0,0,BR62/'Asset data'!$F62) -> 72.98322268
A63: ='Asset data'!A63 -> 5 | B63: ='Asset data'!B63 -> 0 | C63: ='Asset data'!C63 -> 0 | D63: ='Asset data'!E63 -> Telecommunications | E63: Secondary Systems and Telecommunications, by Function | F63: ='Asset data'!G63 -> 10.67924894 | G63: 10.67924894 | H63: ='Asset data'!H63 -> 3.267912016 | I63: S | J63: =IF(A63=0,0,IF('Asset data'!$D$1=1,1,IF('Asset data'!$D$1=2,2,'Asset data'!I63))) -> 2 | K63: 10.67924894 | AY63: =repcalc('Age profile (Inst)'!CT63:GF63,J63,K63,H63,20,$L$20,$M$20) -> 17707.12965 | AZ63: 13040.00462 | BA63: 10277.51879 | BB63: 8834.122602 | BC63: 8285.862582 | BD63: 8353.318395 | BE63: 8850.320166 | BF63: 9622.858928 | BG63: 10505.04232 | BH63: 11312.81006 | BI63: 11877.02628 | BJ63: 12094.24272 | BK63: 11962.12212 | BL63: 11576.27756 | BM63: 11089.20515 | BN63: 10652.97157 | BO63: 10372.38613 | BP63: 10284.77606 | BQ63: 10366.5629 | BR63: 10556.07819 | BS63: 6.83669486 | BT63: 5.666404392 | BU63: 5.725226707 | BV63: 6.147763647 | BW63: 6.733675593 | BX63: 7.405648444 | BY63: 8.127709597 | BZ63: 8.884340821 | CA63: 9.676700851 | CB63: 10.52241103 | CC63: 11.4512206 | CD63: 12.49519407 | CE63: 13.678356 | CF63: 15.01144965 | CG63: 16.49290409 | CH63: 18.11321219 | CI63: 19.85968286 | CJ63: 21.72006779 | CK63: 23.68472466 | CL63: 25.74743078 | CM63: 27.90513667 | CN63: 0 | CO63: 0 | CP63: 0 | CQ63: 0 | CR63: 0 | CS63: 0 | CT63: 0 | CU63: 0 | CV63: 0 | CW63: 0 | CX63: 0 | CY63: 0 | CZ63: 0 | DA63: 0 | DB63: 0 | DC63: 0 | DD63: 0 | DE63: 0 | DF63: 0 | DG63: 0 | DH63: 0 | DI63: =IF('Asset data'!$F63=0,0,AY63/'Asset data'!$F63) -> 468.291154 | DJ63: =IF('Asset data'!$F63=0,0,AZ63/'Asset data'!$F63) -> 344.8621504 | DK63: =IF('Asset data'!$F63=0,0,BA63/'Asset data'!$F63) -> 271.8041392 | DL63: =IF('Asset data'!$F63=0,0,BB63/'Asset data'!$F63) -> 233.6313987 | DM63: =IF('Asset data'!$F63=0,0,BC63/'Asset data'!$F63) -> 219.131854 | DN63: =IF('Asset data'!$F63=0,0,BD63/'Asset data'!$F63) -> 220.9158224 | DO63: =IF('Asset data'!$F63=0,0,BE63/'Asset data'!$F63) -> 234.0597672 | DP63: =IF('Asset data'!$F63=0,0,BF63/'Asset data'!$F63) -> 254.4906939 | DQ63: =IF('Asset data'!$F63=0,0,BG63/'Asset data'!$F63) -> 277.8213345 | DR63: =IF('Asset data'!$F63=0,0,BH63/'Asset data'!$F63) -> 299.1839436 | DS63: =IF('Asset data'!$F63=0,0,BI63/'Asset data'!$F63) -> 314.1054735 | DT63: =IF('Asset data'!$F63=0,0,BJ63/'Asset data'!$F63) -> 319.8500826 | DU63: =IF('Asset data'!$F63=0,0,BK63/'Asset data'!$F63) -> 316.3559583 | DV63: =IF('Asset data'!$F63=0,0,BL63/'Asset data'!$F63) -> 306.1517301 | DW63: =IF('Asset data'!$F63=0,0,BM63/'Asset data'!$F63) -> 293.270382 | DX63: =IF('Asset data'!$F63=0,0,BN63/'Asset data'!$F63) -> 281.7335417 | DY63: =IF('Asset data'!$F63=0,0,BO63/'Asset data'!$F63) -> 274.3130459 | DZ63: =IF('Asset data'!$F63=0,0,BP63/'Asset data'!$F63) -> 271.9960686 | EA63: =IF('Asset data'!$F63=0,0,BQ63/'Asset data'!$F63) -> 274.1590419 | EB63: =IF('Asset data'!$F63=0,0,BR63/'Asset data'!$F63) -> 279.1710533
A64: ='Asset data'!A64 -> 5 | B64: ='Asset data'!B64 -> 0 | C64: ='Asset data'!C64 -> 0 | D64: ='Asset data'!E64 -> Metering Secondary Systems | E64: Secondary Systems and Telecommunications, by Function | F64: ='Asset data'!G64 -> 0 | G64: 0 | H64: ='Asset data'!H64 -> 0 | I64: S | J64: =IF(A64=0,0,IF('Asset data'!$D$1=1,1,IF('Asset data'!$D$1=2,2,'Asset data'!I64))) -> 2 | K64: 0 | AY64: =DI64*'Asset data'!$F$64 -> 9010.546582 | AZ64: =DJ64*'Asset data'!$F$64 -> 7206.41514 | BA64: =DK64*'Asset data'!$F$64 -> 6287.606677 | BB64: =DL64*'Asset data'!$F$64 -> 5903.197189 | BC64: =DM64*'Asset data'!$F$64 -> 5838.491513 | BD64: =DN64*'Asset data'!$F$64 -> 5966.524447 | BE64: =DO64*'Asset data'!$F$64 -> 6214.707869 | BF64: =DP64*'Asset data'!$F$64 -> 6541.846591 | BG64: =DQ64*'Asset data'!$F$64 -> 6922.623762 | BH64: =DR64*'Asset data'!$F$64 -> 7337.586447 | BI64: =DS64*'Asset data'!$F$64 -> 7767.242732 | BJ64: =DT64*'Asset data'!$F$64 -> 8189.306185 | BK64: =DU64*'Asset data'!$F$64 -> 8578.414643 | BL64: =DV64*'Asset data'!$F$64 -> 8907.785237 | BM64: =DW64*'Asset data'!$F$64 -> 9152.243427 | BN64: =DX64*'Asset data'!$F$64 -> 9291.929781 | BO64: =DY64*'Asset data'!$F$64 -> 9315.845686 | BP64: =DZ64*'Asset data'!$F$64 -> 9224.370386 | BQ64: =EA64*'Asset data'!$F$64 -> 9030.055494 | BR64: =EB64*'Asset data'!$F$64 -> 8756.384389 | DI64: =MeteringPerYearRatio*DI62 -> 16.2516818 | DJ64: 12.99769828 | DK64: 11.34050882 | DL64: 10.64717678 | DM64: 10.53047175 | DN64: 10.76139565 | DO64: 11.20902643 | DP64: 11.79906327 | DQ64: 12.48584396 | DR64: 13.23428263 | DS64: 14.0092231 | DT64: 14.77046893 | DU64: 15.47227617 | DV64: 16.06633848 | DW64: 16.50725032 | DX64: 16.75919266 | DY64: 16.80232807 | DZ64: 16.63734058 | EA64: 16.28686864 | EB64: 15.79326754
A65: ='Asset data'!A65 -> 0 | B65: ='Asset data'!B65 -> 0 | C65: ='Asset data'!C65 -> 0 | D65: ='Asset data'!E65 -> 0 | E65: 0 | F65: ='Asset data'!G65 -> 0 | G65: 0 | H65: ='Asset data'!H65 -> 0 | I65: S | J65: =IF(A65=0,0,IF('Asset data'!$D$1=1,1,IF('Asset data'!$D$1=2,2,'Asset data'!I65))) -> 0 | K65: 0 | AY65: =repcalc('Age profile (Inst)'!CT65:GF65,J65,K65,H65,20,$L$20,$M$20) -> 0 | AZ65: 0 | BA65: 0 | BB65: 0 | BC65: 0 | BD65: 0 | BE65: 0 | BF65: 0 | BG65: 0 | BH65: 0 | BI65: 0 | BJ65: 0 | BK65: 0 | BL65: 0 | BM65: 0 | BN65: 0 | BO65: 0 | BP65: 0 | BQ65: 0 | BR65: 0 | BS65: 0 | BT65: 0 | BU65: 0 | BV65: 0 | BW65: 0 | BX65: 0 | BY65: 0 | BZ65: 0 | CA65: 0 | CB65: 0 | CC65: 0 | CD65: 0 | CE65: 0 | CF65: 0 | CG65: 0 | CH65: 0 | CI65: 0 | CJ65: 0 | CK65: 0 | CL65: 0 | CM65: 0 | CN65: 0 | CO65: 0 | CP65: 0 | CQ65: 0 | CR65: 0 | CS65: 0 | CT65: 0 | CU65: 0 | CV65: 0 | CW65: 0 | CX65: 0 | CY65: 0 | CZ65: 0 | DA65: 0 | DB65: 0 | DC65: 0 | DD65: 0 | DE65: 0 | DF65: 0 | DG65: 0 | DH65: 0 | DI65: =IF('Asset data'!$F65=0,0,AY65/'Asset data'!$F65) -> 0 | DJ65: =IF('Asset data'!$F65=0,0,AZ65/'Asset data'!$F65) -> 0 | DK65: =IF('Asset data'!$F65=0,0,BA65/'Asset data'!$F65) -> 0 | DL65: =IF('Asset data'!$F65=0,0,BB65/'Asset data'!$F65) -> 0 | DM65: =IF('Asset data'!$F65=0,0,BC65/'Asset data'!$F65) -> 0 | DN65: =IF('Asset data'!$F65=0,0,BD65/'Asset data'!$F65) -> 0 | DO65: =IF('Asset data'!$F65=0,0,BE65/'Asset data'!$F65) -> 0 | DP65: =IF('Asset data'!$F65=0,0,BF65/'Asset data'!$F65) -> 0 | DQ65: =IF('Asset data'!$F65=0,0,BG65/'Asset data'!$F65) -> 0 | DR65: =IF('Asset data'!$F65=0,0,BH65/'Asset data'!$F65) -> 0 | DS65: =IF('Asset data'!$F65=0,0,BI65/'Asset data'!$F65) -> 0 | DT65: =IF('Asset data'!$F65=0,0,BJ65/'Asset data'!$F65) -> 0 | DU65: =IF('Asset data'!$F65=0,0,BK65/'Asset data'!$F65) -> 0 | DV65: =IF('Asset data'!$F65=0,0,BL65/'Asset data'!$F65) -> 0 | DW65: =IF('Asset data'!$F65=0,0,BM65/'Asset data'!$F65) -> 0 | DX65: =IF('Asset data'!$F65=0,0,BN65/'Asset data'!$F65) -> 0 | DY65: =IF('Asset data'!$F65=0,0,BO65/'Asset data'!$F65) -> 0 | DZ65: =IF('Asset data'!$F65=0,0,BP65/'Asset data'!$F65) -> 0 | EA65: =IF('Asset data'!$F65=0,0,BQ65/'Asset data'!$F65) -> 0 | EB65: =IF('Asset data'!$F65=0,0,BR65/'Asset data'!$F65) -> 0
A66: ='Asset data'!A66 -> 6 | B66: ='Asset data'!B66 -> 0 | C66: ='Asset data'!C66 -> 0 | D66: ='Asset data'!E66 -> Substation Buildings | E66: Other, by Function | F66: ='Asset data'!G66 -> 34.3443597 | G66: 34.3443597 | H66: ='Asset data'!H66 -> 5.860406103 | I66: S | J66: =IF(A66=0,0,IF('Asset data'!$D$1=1,1,IF('Asset data'!$D$1=2,2,'Asset data'!I66))) -> 2 | K66: 34.3443597 | AY66: =repcalc('Age profile (Inst)'!CT66:GF66,J66,K66,H66,20,$L$20,$M$20) -> 3281.399695 | AZ66: 2914.060578 | BA66: 2581.661646 | BB66: 2290.262385 | BC66: 2042.809929 | BD66: 1840.128439 | BE66: 1681.903232 | BF66: 1567.497064 | BG66: 1496.490939 | BH66: 1468.904824 | BI66: 1485.115159 | BJ66: 1545.537805 | BK66: 1650.180038 | BL66: 1798.178582 | BM66: 1987.430456 | BN66: 2214.391902 | BO66: 2474.074528 | BP66: 2760.218036 | BQ66: 3065.577999 | BR66: 3382.246234 | BS66: 12.87566138 | BT66: 12.84530017 | BU66: 13.11310466 | BV66: 13.55900732 | BW66: 14.12120238 | BX66: 14.76401178 | BY66: 15.46465388 | BZ66: 16.2070289 | CA66: 16.97850522 | CB66: 17.76816393 | CC66: 18.56585266 | CD66: 19.36175608 | CE66: 20.14633286 | CF66: 20.91051289 | CG66: 21.64604611 | CH66: 22.34588195 | CI66: 23.00446366 | CJ66: 23.61786256 | CK66: 24.18374662 | CL66: 24.70125188 | CM66: 25.1708683 | CN66: 0 | CO66: 0 | CP66: 0 | CQ66: 0 | CR66: 0 | CS66: 0 | CT66: 0 | CU66: 0 | CV66: 0 | CW66: 0 | CX66: 0 | CY66: 0 | CZ66: 0 | DA66: 0 | DB66: 0 | DC66: 0 | DD66: 0 | DE66: 0 | DF66: 0 | DG66: 0 | DH66: 0 | DI66: =IF('Asset data'!$F66=0,0,AY66/'Asset data'!$F66) -> 5.077848116 | DJ66: =IF('Asset data'!$F66=0,0,AZ66/'Asset data'!$F66) -> 4.509404033 | DK66: =IF('Asset data'!$F66=0,0,BA66/'Asset data'!$F66) -> 3.995028629 | DL66: =IF('Asset data'!$F66=0,0,BB66/'Asset data'!$F66) -> 3.544098744 | DM66: =IF('Asset data'!$F66=0,0,BC66/'Asset data'!$F66) -> 3.161174959 | DN66: =IF('Asset data'!$F66=0,0,BD66/'Asset data'!$F66) -> 2.847532637 | DO66: =IF('Asset data'!$F66=0,0,BE66/'Asset data'!$F66) -> 2.602684815 | DP66: =IF('Asset data'!$F66=0,0,BF66/'Asset data'!$F66) -> 2.425645381 | DQ66: =IF('Asset data'!$F66=0,0,BG66/'Asset data'!$F66) -> 2.315765954 | DR66: =IF('Asset data'!$F66=0,0,BH66/'Asset data'!$F66) -> 2.273077432 | DS66: =IF('Asset data'!$F66=0,0,BI66/'Asset data'!$F66) -> 2.298162343 | DT66: =IF('Asset data'!$F66=0,0,BJ66/'Asset data'!$F66) -> 2.391664217 | DU66: =IF('Asset data'!$F66=0,0,BK66/'Asset data'!$F66) -> 2.553594313 | DV66: =IF('Asset data'!$F66=0,0,BL66/'Asset data'!$F66) -> 2.78261674 | DW66: =IF('Asset data'!$F66=0,0,BM66/'Asset data'!$F66) -> 3.075477215 | DX66: =IF('Asset data'!$F66=0,0,BN66/'Asset data'!$F66) -> 3.426691898 | DY66: =IF('Asset data'!$F66=0,0,BO66/'Asset data'!$F66) -> 3.82854143 | DZ66: =IF('Asset data'!$F66=0,0,BP66/'Asset data'!$F66) -> 4.271338226 | EA66: =IF('Asset data'!$F66=0,0,BQ66/'Asset data'!$F66) -> 4.743871797 | EB66: =IF('Asset data'!$F66=0,0,BR66/'Asset data'!$F66) -> 5.233904511
A67: ='Asset data'!A67 -> 6 | B67: ='Asset data'!B67 -> 0 | C67: ='Asset data'!C67 -> 0 | D67: ='Asset data'!E67 -> Communications Buildings | E67: Other, by Function | F67: ='Asset data'!G67 -> 42.33184942 | G67: 42.33184942 | H67: ='Asset data'!H67 -> 6.506293063 | I67: S | J67: =IF(A67=0,0,IF('Asset data'!$D$1=1,1,IF('Asset data'!$D$1=2,2,'Asset data'!I67))) -> 2 | K67: 42.33184942 | AY67: =repcalc('Age profile (Inst)'!CT67:GF67,J67,K67,H67,20,$L$20,$M$20) -> 633.6841737 | AZ67: 681.2991165 | BA67: 724.8382845 | BB67: 762.7033024 | BC67: 793.2980695 | BD67: 815.1613546 | BE67: 827.1159674 | BF67: 828.4165708 | BG67: 818.8757749 | BH67: 798.9489276 | BI67: 769.762012 | BJ67: 733.073681 | BK67: 691.1706303 | BL67: 646.7039804 | BM67: 602.4818581 | BN67: 561.2389658 | BO67: 525.4069788 | BP67: 496.9098772 | BQ67: 477.0058757 | BR67: 466.1927855 | BS67: 25.02941176 | BT67: 24.99193775 | BU67: 24.95969945 | BV67: 24.92886581 | BW67: 24.90136034 | BX67: 24.88364158 | BY67: 24.88541705 | BZ67: 24.91827362 | CA67: 24.99429133 | CB67: 25.12474402 | CC67: 25.318982 | CD67: 25.58356377 | CE67: 25.9216742 | CF67: 26.33284489 | CG67: 26.81297884 | CH67: 27.35466939 | CI67: 27.94779141 | CJ67: 28.5803267 | CK67: 29.23936534 | CL67: 29.91220136 | CM67: 30.58741753 | CN67: 0 | CO67: 0 | CP67: 0 | CQ67: 0 | CR67: 0 | CS67: 0 | CT67: 0 | CU67: 0 | CV67: 0 | CW67: 0 | CX67: 0 | CY67: 0 | CZ67: 0 | DA67: 0 | DB67: 0 | DC67: 0 | DD67: 0 | DE67: 0 | DF67: 0 | DG67: 0 | DH67: 0 | DI67: =IF('Asset data'!$F67=0,0,AY67/'Asset data'!$F67) -> 1.806954743 | DJ67: =IF('Asset data'!$F67=0,0,AZ67/'Asset data'!$F67) -> 1.942729077 | DK67: =IF('Asset data'!$F67=0,0,BA67/'Asset data'!$F67) -> 2.066881311 | DL67: =IF('Asset data'!$F67=0,0,BB67/'Asset data'!$F67) -> 2.174853668 | DM67: =IF('Asset data'!$F67=0,0,BC67/'Asset data'!$F67) -> 2.262094855 | DN67: =IF('Asset data'!$F67=0,0,BD67/'Asset data'!$F67) -> 2.324438162 | DO67: =IF('Asset data'!$F67=0,0,BE67/'Asset data'!$F67) -> 2.358526821 | DP67: =IF('Asset data'!$F67=0,0,BF67/'Asset data'!$F67) -> 2.362235501 | DQ67: =IF('Asset data'!$F67=0,0,BG67/'Asset data'!$F67) -> 2.335029856 | DR67: =IF('Asset data'!$F67=0,0,BH67/'Asset data'!$F67) -> 2.278208315 | DS67: =IF('Asset data'!$F67=0,0,BI67/'Asset data'!$F67) -> 2.194981626 | DT67: =IF('Asset data'!$F67=0,0,BJ67/'Asset data'!$F67) -> 2.0903646 | DU67: =IF('Asset data'!$F67=0,0,BK67/'Asset data'!$F67) -> 1.970877766 | DV67: =IF('Asset data'!$F67=0,0,BL67/'Asset data'!$F67) -> 1.84408081 | DW67: =IF('Asset data'!$F67=0,0,BM67/'Asset data'!$F67) -> 1.717981127 | DX67: =IF('Asset data'!$F67=0,0,BN67/'Asset data'!$F67) -> 1.600376738 | DY67: =IF('Asset data'!$F67=0,0,BO67/'Asset data'!$F67) -> 1.498201583 | DZ67: =IF('Asset data'!$F67=0,0,BP67/'Asset data'!$F67) -> 1.416941904 | EA67: =IF('Asset data'!$F67=0,0,BQ67/'Asset data'!$F67) -> 1.360185507 | EB67: =IF('Asset data'!$F67=0,0,BR67/'Asset data'!$F67) -> 1.329351907
A68: ='Asset data'!A68 -> 6 | B68: ='Asset data'!B68 -> 0 | C68: ='Asset data'!C68 -> 0 | D68: ='Asset data'!E68 -> Substation Infrastructure | E68: Other, by Function | F68: ='Asset data'!G68 -> 50.55529469 | G68: 50.55529469 | H68: ='Asset data'!H68 -> 7.110224658 | I68: S | J68: =IF(A68=0,0,IF('Asset data'!$D$1=1,1,IF('Asset data'!$D$1=2,2,'Asset data'!I68))) -> 2 | K68: 50.55529469 | AY68: =repcalc('Age profile (Inst)'!CT68:GF68,J68,K68,H68,20,$L$20,$M$20) -> 4563.662251 | AZ68: 4518.836517 | BA68: 4451.799895 | BB68: 4371.373332 | BC68: 4286.632081 | BD68: 4206.320875 | BE68: 4138.297367 | BF68: 4089.04119 | BG68: 4063.261406 | BH68: 4063.628327 | BI68: 4090.647542 | BJ68: 4142.684895 | BK68: 4216.141708 | BL68: 4305.770095 | BM68: 4405.1091 | BN68: 4507.01372 | BO68: 4604.241063 | BP68: 4690.051463 | BQ68: 4758.77807 | BR68: 4806.31732 | BS68: 24.45121951 | BT68: 24.49206494 | BU68: 24.65035148 | BV68: 24.90021318 | BW68: 25.22207316 | BX68: 25.60026579 | BY68: 26.02170496 | BZ68: 26.47516791 | CA68: 26.95093401 | CB68: 27.44062693 | CC68: 27.93717396 | CD68: 28.43483059 | CE68: 28.92923511 | CF68: 29.41746458 | CG68: 29.89806515 | CH68: 30.37103088 | CI68: 30.8377079 | CJ68: 31.30060832 | CK68: 31.76313073 | CL68: 32.22919994 | CM68: 32.70285536 | CN68: 0 | CO68: 0 | CP68: 0 | CQ68: 0 | CR68: 0 | CS68: 0 | CT68: 0 | CU68: 0 | CV68: 0 | CW68: 0 | CX68: 0 | CY68: 0 | CZ68: 0 | DA68: 0 | DB68: 0 | DC68: 0 | DD68: 0 | DE68: 0 | DF68: 0 | DG68: 0 | DH68: 0 | DI68: =IF('Asset data'!$F68=0,0,AY68/'Asset data'!$F68) -> 2.317853324 | DJ68: =IF('Asset data'!$F68=0,0,AZ68/'Asset data'!$F68) -> 2.295086635 | DK68: =IF('Asset data'!$F68=0,0,BA68/'Asset data'!$F68) -> 2.261039186 | DL68: =IF('Asset data'!$F68=0,0,BB68/'Asset data'!$F68) -> 2.220191077 | DM68: =IF('Asset data'!$F68=0,0,BC68/'Asset data'!$F68) -> 2.177151565 | DN68: =IF('Asset data'!$F68=0,0,BD68/'Asset data'!$F68) -> 2.136362045 | DO68: =IF('Asset data'!$F68=0,0,BE68/'Asset data'!$F68) -> 2.101813363 | DP68: =IF('Asset data'!$F68=0,0,BF68/'Asset data'!$F68) -> 2.076796483 | DQ68: =IF('Asset data'!$F68=0,0,BG68/'Asset data'!$F68) -> 2.063703104 | DR68: =IF('Asset data'!$F68=0,0,BH68/'Asset data'!$F68) -> 2.063889461 | DS68: =IF('Asset data'!$F68=0,0,BI68/'Asset data'!$F68) -> 2.077612338 | DT68: =IF('Asset data'!$F68=0,0,BJ68/'Asset data'!$F68) -> 2.104041759 | DU68: =IF('Asset data'!$F68=0,0,BK68/'Asset data'!$F68) -> 2.14134998 | DV68: =IF('Asset data'!$F68=0,0,BL68/'Asset data'!$F68) -> 2.186871634 | DW68: =IF('Asset data'!$F68=0,0,BM68/'Asset data'!$F68) -> 2.237325246 | DX68: =IF('Asset data'!$F68=0,0,BN68/'Asset data'!$F68) -> 2.289081916 | DY68: =IF('Asset data'!$F68=0,0,BO68/'Asset data'!$F68) -> 2.338463029 | DZ68: =IF('Asset data'!$F68=0,0,BP68/'Asset data'!$F68) -> 2.382045553 | EA68: =IF('Asset data'!$F68=0,0,BQ68/'Asset data'!$F68) -> 2.416951334 | EB68: =IF('Asset data'!$F68=0,0,BR68/'Asset data'!$F68) -> 2.441096199
A69: ='Asset data'!A69 -> 0 | B69: ='Asset data'!B69 -> 0 | C69: ='Asset data'!C69 -> 0 | D69: ='Asset data'!E69 -> 0 | E69: 0 | F69: ='Asset data'!G69 -> 0 | G69: 0 | H69: ='Asset data'!H69 -> 0 | I69: S | J69: =IF(A69=0,0,IF('Asset data'!$D$1=1,1,IF('Asset data'!$D$1=2,2,'Asset data'!I69))) -> 0 | K69: 0 | AY69: =repcalc('Age profile (Inst)'!CT69:GF69,J69,K69,H69,20,$L$20,$M$20) -> 0 | AZ69: 0 | BA69: 0 | BB69: 0 | BC69: 0 | BD69: 0 | BE69: 0 | BF69: 0 | BG69: 0 | BH69: 0 | BI69: 0 | BJ69: 0 | BK69: 0 | BL69: 0 | BM69: 0 | BN69: 0 | BO69: 0 | BP69: 0 | BQ69: 0 | BR69: 0 | BS69: 0 | BT69: 0 | BU69: 0 | BV69: 0 | BW69: 0 | BX69: 0 | BY69: 0 | BZ69: 0 | CA69: 0 | CB69: 0 | CC69: 0 | CD69: 0 | CE69: 0 | CF69: 0 | CG69: 0 | CH69: 0 | CI69: 0 | CJ69: 0 | CK69: 0 | CL69: 0 | CM69: 0 | CN69: 0 | CO69: 0 | CP69: 0 | CQ69: 0 | CR69: 0 | CS69: 0 | CT69: 0 | CU69: 0 | CV69: 0 | CW69: 0 | CX69: 0 | CY69: 0 | CZ69: 0 | DA69: 0 | DB69: 0 | DC69: 0 | DD69: 0 | DE69: 0 | DF69: 0 | DG69: 0 | DH69: 0 | DI69: =IF('Asset data'!$F69=0,0,AY69/'Asset data'!$F69) -> 0 | DJ69: =IF('Asset data'!$F69=0,0,AZ69/'Asset data'!$F69) -> 0 | DK69: =IF('Asset data'!$F69=0,0,BA69/'Asset data'!$F69) -> 0 | DL69: =IF('Asset data'!$F69=0,0,BB69/'Asset data'!$F69) -> 0 | DM69: =IF('Asset data'!$F69=0,0,BC69/'Asset data'!$F69) -> 0 | DN69: =IF('Asset data'!$F69=0,0,BD69/'Asset data'!$F69) -> 0 | DO69: =IF('Asset data'!$F69=0,0,BE69/'Asset data'!$F69) -> 0 | DP69: =IF('Asset data'!$F69=0,0,BF69/'Asset data'!$F69) -> 0 | DQ69: =IF('Asset data'!$F69=0,0,BG69/'Asset data'!$F69) -> 0 | DR69: =IF('Asset data'!$F69=0,0,BH69/'Asset data'!$F69) -> 0 | DS69: =IF('Asset data'!$F69=0,0,BI69/'Asset data'!$F69) -> 0 | DT69: =IF('Asset data'!$F69=0,0,BJ69/'Asset data'!$F69) -> 0 | DU69: =IF('Asset data'!$F69=0,0,BK69/'Asset data'!$F69) -> 0 | DV69: =IF('Asset data'!$F69=0,0,BL69/'Asset data'!$F69) -> 0 | DW69: =IF('Asset data'!$F69=0,0,BM69/'Asset data'!$F69) -> 0 | DX69: =IF('Asset data'!$F69=0,0,BN69/'Asset data'!$F69) -> 0 | DY69: =IF('Asset data'!$F69=0,0,BO69/'Asset data'!$F69) -> 0 | DZ69: =IF('Asset data'!$F69=0,0,BP69/'Asset data'!$F69) -> 0 | EA69: =IF('Asset data'!$F69=0,0,BQ69/'Asset data'!$F69) -> 0 | EB69: =IF('Asset data'!$F69=0,0,BR69/'Asset data'!$F69) -> 0
A70: ='Asset data'!A70 -> 7 | B70: ='Asset data'!B70 -> 0 | C70: ='Asset data'!C70 -> 0 | D70: ='Asset data'!E70 -> Reallocation to opex for tower maintenance intervention | E70: Towers - Reallocation for Maintenance Intervention | F70: ='Asset data'!G70 -> 0 | G70: 0 | H70: ='Asset data'!H70 -> 0 | I70: S | J70: =IF(A70=0,0,IF('Asset data'!$D$1=1,1,IF('Asset data'!$D$1=2,2,'Asset data'!I70))) -> 2 | K70: 0 | AY70: =DI70*'Asset data'!$F70 -> 0.184 | AZ70: =DJ70*'Asset data'!$F70 -> 0.184 | BA70: =DK70*'Asset data'!$F70 -> 0.184 | BB70: =DL70*'Asset data'!$F70 -> 0.184 | BC70: =DM70*'Asset data'!$F70 -> 0.184 | BD70: =DN70*'Asset data'!$F70 -> 0.184 | BE70: =DO70*'Asset data'!$F70 -> 0.184 | DI70: =AllocationOfTowersForOpex -> 18.4 | DJ70: 18.4 | DK70: 18.4 | DL70: 18.4 | DM70: 18.4 | DN70: 18.4 | DO70: 18.4 | DP70: =IF('Asset data'!$F70=0,0,BF70/'Asset data'!$F70) -> 0 | DQ70: =IF('Asset data'!$F70=0,0,BG70/'Asset data'!$F70) -> 0 | DR70: =IF('Asset data'!$F70=0,0,BH70/'Asset data'!$F70) -> 0 | DS70: =IF('Asset data'!$F70=0,0,BI70/'Asset data'!$F70) -> 0 | DT70: =IF('Asset data'!$F70=0,0,BJ70/'Asset data'!$F70) -> 0 | DU70: =IF('Asset data'!$F70=0,0,BK70/'Asset data'!$F70) -> 0 | DV70: =IF('Asset data'!$F70=0,0,BL70/'Asset data'!$F70) -> 0 | DW70: =IF('Asset data'!$F70=0,0,BM70/'Asset data'!$F70) -> 0 | DX70: =IF('Asset data'!$F70=0,0,BN70/'Asset data'!$F70) -> 0 | DY70: =IF('Asset data'!$F70=0,0,BO70/'Asset data'!$F70) -> 0 | DZ70: =IF('Asset data'!$F70=0,0,BP70/'Asset data'!$F70) -> 0 | EA70: =IF('Asset data'!$F70=0,0,BQ70/'Asset data'!$F70) -> 0 | EB70: =IF('Asset data'!$F70=0,0,BR70/'Asset data'!$F70) -> 0
A71: ='Asset data'!A72 -> 0 | B71: ='Asset data'!B72 -> 0 | C71: ='Asset data'!C72 -> 0 | D71: ='Asset data'!E72 -> 0 | E71: 0 | F71: ='Asset data'!G72 -> 0 | G71: 0 | H71: ='Asset data'!H72 -> 0 | I71: S | J71: =IF(A71=0,0,IF('Asset data'!$D$1=1,1,IF('Asset data'!$D$1=2,2,'Asset data'!I72))) -> 0 | K71: 0 | AY71: =repcalc('Age profile (Inst)'!CT79:GF79,J71,K71,H71,20,$L$20,$M$20) -> 0 | AZ71: 0 | BA71: 0 | BB71: 0 | BC71: 0 | BD71: 0 | BE71: 0 | BF71: 0 | BG71: 0 | BH71: 0 | BI71: 0 | BJ71: 0 | BK71: 0 | BL71: 0 | BM71: 0 | BN71: 0 | BO71: 0 | BP71: 0 | BQ71: 0 | BR71: 0 | BS71: 0 | BT71: 0 | BU71: 0 | BV71: 0 | BW71: 0 | BX71: 0 | BY71: 0 | BZ71: 0 | CA71: 0 | CB71: 0 | CC71: 0 | CD71: 0 | CE71: 0 | CF71: 0 | CG71: 0 | CH71: 0 | CI71: 0 | CJ71: 0 | CK71: 0 | CL71: 0 | CM71: 0 | CN71: 0 | CO71: 0 | CP71: 0 | CQ71: 0 | CR71: 0 | CS71: 0 | CT71: 0 | CU71: 0 | CV71: 0 | CW71: 0 | CX71: 0 | CY71: 0 | CZ71: 0 | DA71: 0 | DB71: 0 | DC71: 0 | DD71: 0 | DE71: 0 | DF71: 0 | DG71: 0 | DH71: 0 | DI71: =IF('Asset data'!$F72=0,0,AY71/'Asset data'!$F72) -> 0 | DJ71: =IF('Asset data'!$F72=0,0,AZ71/'Asset data'!$F72) -> 0 | DK71: =IF('Asset data'!$F72=0,0,BA71/'Asset data'!$F72) -> 0 | DL71: =IF('Asset data'!$F72=0,0,BB71/'Asset data'!$F72) -> 0 | DM71: =IF('Asset data'!$F72=0,0,BC71/'Asset data'!$F72) -> 0 | DN71: =IF('Asset data'!$F72=0,0,BD71/'Asset data'!$F72) -> 0 | DO71: =IF('Asset data'!$F72=0,0,BE71/'Asset data'!$F72) -> 0 | DP71: =IF('Asset data'!$F72=0,0,BF71/'Asset data'!$F72) -> 0 | DQ71: =IF('Asset data'!$F72=0,0,BG71/'Asset data'!$F72) -> 0 | DR71: =IF('Asset data'!$F72=0,0,BH71/'Asset data'!$F72) -> 0 | DS71: =IF('Asset data'!$F72=0,0,BI71/'Asset data'!$F72) -> 0 | DT71: =IF('Asset data'!$F72=0,0,BJ71/'Asset data'!$F72) -> 0 | DU71: =IF('Asset data'!$F72=0,0,BK71/'Asset data'!$F72) -> 0 | DV71: =IF('Asset data'!$F72=0,0,BL71/'Asset data'!$F72) -> 0 | DW71: =IF('Asset data'!$F72=0,0,BM71/'Asset data'!$F72) -> 0 | DX71: =IF('Asset data'!$F72=0,0,BN71/'Asset data'!$F72) -> 0 | DY71: =IF('Asset data'!$F72=0,0,BO71/'Asset data'!$F72) -> 0 | DZ71: =IF('Asset data'!$F72=0,0,BP71/'Asset data'!$F72) -> 0 | EA71: =IF('Asset data'!$F72=0,0,BQ71/'Asset data'!$F72) -> 0 | EB71: =IF('Asset data'!$F72=0,0,BR71/'Asset data'!$F72) -> 0
A72: ='Asset data'!A73 -> 0 | B72: ='Asset data'!B73 -> 0 | C72: ='Asset data'!C73 -> 0 | D72: ='Asset data'!E73 -> 0 | E72: 0 | F72: ='Asset data'!G73 -> 0 | G72: 0 | H72: ='Asset data'!H73 -> 0 | I72: S | J72: =IF(A72=0,0,IF('Asset data'!$D$1=1,1,IF('Asset data'!$D$1=2,2,'Asset data'!I73))) -> 0 | K72: 0 | AY72: =repcalc('Age profile (Inst)'!CT80:GF80,J72,K72,H72,20,$L$20,$M$20) -> 0 | AZ72: 0 | BA72: 0 | BB72: 0 | BC72: 0 | BD72: 0 | BE72: 0 | BF72: 0 | BG72: 0 | BH72: 0 | BI72: 0 | BJ72: 0 | BK72: 0 | BL72: 0 | BM72: 0 | BN72: 0 | BO72: 0 | BP72: 0 | BQ72: 0 | BR72: 0 | BS72: 0 | BT72: 0 | BU72: 0 | BV72: 0 | BW72: 0 | BX72: 0 | BY72: 0 | BZ72: 0 | CA72: 0 | CB72: 0 | CC72: 0 | CD72: 0 | CE72: 0 | CF72: 0 | CG72: 0 | CH72: 0 | CI72: 0 | CJ72: 0 | CK72: 0 | CL72: 0 | CM72: 0 | CN72: 0 | CO72: 0 | CP72: 0 | CQ72: 0 | CR72: 0 | CS72: 0 | CT72: 0 | CU72: 0 | CV72: 0 | CW72: 0 | CX72: 0 | CY72: 0 | CZ72: 0 | DA72: 0 | DB72: 0 | DC72: 0 | DD72: 0 | DE72: 0 | DF72: 0 | DG72: 0 | DH72: 0 | DI72: =IF('Asset data'!$F73=0,0,AY72/'Asset data'!$F73) -> 0 | DJ72: =IF('Asset data'!$F73=0,0,AZ72/'Asset data'!$F73) -> 0 | DK72: =IF('Asset data'!$F73=0,0,BA72/'Asset data'!$F73) -> 0 | DL72: =IF('Asset data'!$F73=0,0,BB72/'Asset data'!$F73) -> 0 | DM72: =IF('Asset data'!$F73=0,0,BC72/'Asset data'!$F73) -> 0 | DN72: =IF('Asset data'!$F73=0,0,BD72/'Asset data'!$F73) -> 0 | DO72: =IF('Asset data'!$F73=0,0,BE72/'Asset data'!$F73) -> 0 | DP72: =IF('Asset data'!$F73=0,0,BF72/'Asset data'!$F73) -> 0 | DQ72: =IF('Asset data'!$F73=0,0,BG72/'Asset data'!$F73) -> 0 | DR72: =IF('Asset data'!$F73=0,0,BH72/'Asset data'!$F73) -> 0 | DS72: =IF('Asset data'!$F73=0,0,BI72/'Asset data'!$F73) -> 0 | DT72: =IF('Asset data'!$F73=0,0,BJ72/'Asset data'!$F73) -> 0 | DU72: =IF('Asset data'!$F73=0,0,BK72/'Asset data'!$F73) -> 0 | DV72: =IF('Asset data'!$F73=0,0,BL72/'Asset data'!$F73) -> 0 | DW72: =IF('Asset data'!$F73=0,0,BM72/'Asset data'!$F73) -> 0 | DX72: =IF('Asset data'!$F73=0,0,BN72/'Asset data'!$F73) -> 0 | DY72: =IF('Asset data'!$F73=0,0,BO72/'Asset data'!$F73) -> 0 | DZ72: =IF('Asset data'!$F73=0,0,BP72/'Asset data'!$F73) -> 0 | EA72: =IF('Asset data'!$F73=0,0,BQ72/'Asset data'!$F73) -> 0 | EB72: =IF('Asset data'!$F73=0,0,BR72/'Asset data'!$F73) -> 0
A73: ='Asset data'!A74 -> 0 | B73: ='Asset data'!B74 -> 0 | C73: ='Asset data'!C74 -> 0 | D73: ='Asset data'!E74 -> 0 | E73: 0 | F73: ='Asset data'!G74 -> 0 | G73: 0 | H73: ='Asset data'!H74 -> 0 | I73: S | J73: =IF(A73=0,0,IF('Asset data'!$D$1=1,1,IF('Asset data'!$D$1=2,2,'Asset data'!I74))) -> 0 | K73: 0 | AY73: =repcalc('Age profile (Inst)'!CT81:GF81,J73,K73,H73,20,$L$20,$M$20) -> 0 | AZ73: 0 | BA73: 0 | BB73: 0 | BC73: 0 | BD73: 0 | BE73: 0 | BF73: 0 | BG73: 0 | BH73: 0 | BI73: 0 | BJ73: 0 | BK73: 0 | BL73: 0 | BM73: 0 | BN73: 0 | BO73: 0 | BP73: 0 | BQ73: 0 | BR73: 0 | BS73: 0 | BT73: 0 | BU73: 0 | BV73: 0 | BW73: 0 | BX73: 0 | BY73: 0 | BZ73: 0 | CA73: 0 | CB73: 0 | CC73: 0 | CD73: 0 | CE73: 0 | CF73: 0 | CG73: 0 | CH73: 0 | CI73: 0 | CJ73: 0 | CK73: 0 | CL73: 0 | CM73: 0 | CN73: 0 | CO73: 0 | CP73: 0 | CQ73: 0 | CR73: 0 | CS73: 0 | CT73: 0 | CU73: 0 | CV73: 0 | CW73: 0 | CX73: 0 | CY73: 0 | CZ73: 0 | DA73: 0 | DB73: 0 | DC73: 0 | DD73: 0 | DE73: 0 | DF73: 0 | DG73: 0 | DH73: 0 | DI73: =IF('Asset data'!$F74=0,0,AY73/'Asset data'!$F74) -> 0 | DJ73: =IF('Asset data'!$F74=0,0,AZ73/'Asset data'!$F74) -> 0 | DK73: =IF('Asset data'!$F74=0,0,BA73/'Asset data'!$F74) -> 0 | DL73: =IF('Asset data'!$F74=0,0,BB73/'Asset data'!$F74) -> 0 | DM73: =IF('Asset data'!$F74=0,0,BC73/'Asset data'!$F74) -> 0 | DN73: =IF('Asset data'!$F74=0,0,BD73/'Asset data'!$F74) -> 0 | DO73: =IF('Asset data'!$F74=0,0,BE73/'Asset data'!$F74) -> 0 | DP73: =IF('Asset data'!$F74=0,0,BF73/'Asset data'!$F74) -> 0 | DQ73: =IF('Asset data'!$F74=0,0,BG73/'Asset data'!$F74) -> 0 | DR73: =IF('Asset data'!$F74=0,0,BH73/'Asset data'!$F74) -> 0 | DS73: =IF('Asset data'!$F74=0,0,BI73/'Asset data'!$F74) -> 0 | DT73: =IF('Asset data'!$F74=0,0,BJ73/'Asset data'!$F74) -> 0 | DU73: =IF('Asset data'!$F74=0,0,BK73/'Asset data'!$F74) -> 0 | DV73: =IF('Asset data'!$F74=0,0,BL73/'Asset data'!$F74) -> 0 | DW73: =IF('Asset data'!$F74=0,0,BM73/'Asset data'!$F74) -> 0 | DX73: =IF('Asset data'!$F74=0,0,BN73/'Asset data'!$F74) -> 0 | DY73: =IF('Asset data'!$F74=0,0,BO73/'Asset data'!$F74) -> 0 | DZ73: =IF('Asset data'!$F74=0,0,BP73/'Asset data'!$F74) -> 0 | EA73: =IF('Asset data'!$F74=0,0,BQ73/'Asset data'!$F74) -> 0 | EB73: =IF('Asset data'!$F74=0,0,BR73/'Asset data'!$F74) -> 0
A74: ='Asset data'!A75 -> 0 | B74: ='Asset data'!B75 -> 0 | C74: ='Asset data'!C75 -> 0 | D74: ='Asset data'!E75 -> 0 | E74: 0 | F74: ='Asset data'!G75 -> 0 | G74: 0 | H74: ='Asset data'!H75 -> 0 | I74: S | J74: =IF(A74=0,0,IF('Asset data'!$D$1=1,1,IF('Asset data'!$D$1=2,2,'Asset data'!I75))) -> 0 | K74: 0 | AY74: =repcalc('Age profile (Inst)'!CT82:GF82,J74,K74,H74,20,$L$20,$M$20) -> 0 | AZ74: 0 | BA74: 0 | BB74: 0 | BC74: 0 | BD74: 0 | BE74: 0 | BF74: 0 | BG74: 0 | BH74: 0 | BI74: 0 | BJ74: 0 | BK74: 0 | BL74: 0 | BM74: 0 | BN74: 0 | BO74: 0 | BP74: 0 | BQ74: 0 | BR74: 0 | BS74: 0 | BT74: 0 | BU74: 0 | BV74: 0 | BW74: 0 | BX74: 0 | BY74: 0 | BZ74: 0 | CA74: 0 | CB74: 0 | CC74: 0 | CD74: 0 | CE74: 0 | CF74: 0 | CG74: 0 | CH74: 0 | CI74: 0 | CJ74: 0 | CK74: 0 | CL74: 0 | CM74: 0 | CN74: 0 | CO74: 0 | CP74: 0 | CQ74: 0 | CR74: 0 | CS74: 0 | CT74: 0 | CU74: 0 | CV74: 0 | CW74: 0 | CX74: 0 | CY74: 0 | CZ74: 0 | DA74: 0 | DB74: 0 | DC74: 0 | DD74: 0 | DE74: 0 | DF74: 0 | DG74: 0 | DH74: 0 | DI74: =IF('Asset data'!$F75=0,0,AY74/'Asset data'!$F75) -> 0 | DJ74: =IF('Asset data'!$F75=0,0,AZ74/'Asset data'!$F75) -> 0 | DK74: =IF('Asset data'!$F75=0,0,BA74/'Asset data'!$F75) -> 0 | DL74: =IF('Asset data'!$F75=0,0,BB74/'Asset data'!$F75) -> 0 | DM74: =IF('Asset data'!$F75=0,0,BC74/'Asset data'!$F75) -> 0 | DN74: =IF('Asset data'!$F75=0,0,BD74/'Asset data'!$F75) -> 0 | DO74: =IF('Asset data'!$F75=0,0,BE74/'Asset data'!$F75) -> 0 | DP74: =IF('Asset data'!$F75=0,0,BF74/'Asset data'!$F75) -> 0 | DQ74: =IF('Asset data'!$F75=0,0,BG74/'Asset data'!$F75) -> 0 | DR74: =IF('Asset data'!$F75=0,0,BH74/'Asset data'!$F75) -> 0 | DS74: =IF('Asset data'!$F75=0,0,BI74/'Asset data'!$F75) -> 0 | DT74: =IF('Asset data'!$F75=0,0,BJ74/'Asset data'!$F75) -> 0 | DU74: =IF('Asset data'!$F75=0,0,BK74/'Asset data'!$F75) -> 0 | DV74: =IF('Asset data'!$F75=0,0,BL74/'Asset data'!$F75) -> 0 | DW74: =IF('Asset data'!$F75=0,0,BM74/'Asset data'!$F75) -> 0 | DX74: =IF('Asset data'!$F75=0,0,BN74/'Asset data'!$F75) -> 0 | DY74: =IF('Asset data'!$F75=0,0,BO74/'Asset data'!$F75) -> 0 | DZ74: =IF('Asset data'!$F75=0,0,BP74/'Asset data'!$F75) -> 0 | EA74: =IF('Asset data'!$F75=0,0,BQ74/'Asset data'!$F75) -> 0 | EB74: =IF('Asset data'!$F75=0,0,BR74/'Asset data'!$F75) -> 0
A75: ='Asset data'!A76 -> 0 | B75: ='Asset data'!B76 -> 0 | C75: ='Asset data'!C76 -> 0 | D75: ='Asset data'!E76 -> 0 | E75: 0 | F75: ='Asset data'!G76 -> 0 | G75: 0 | H75: ='Asset data'!H76 -> 0 | I75: S | J75: =IF(A75=0,0,IF('Asset data'!$D$1=1,1,IF('Asset data'!$D$1=2,2,'Asset data'!I76))) -> 0 | K75: 0 | AY75: =repcalc('Age profile (Inst)'!CT83:GF83,J75,K75,H75,20,$L$20,$M$20) -> 0 | AZ75: 0 | BA75: 0 | BB75: 0 | BC75: 0 | BD75: 0 | BE75: 0 | BF75: 0 | BG75: 0 | BH75: 0 | BI75: 0 | BJ75: 0 | BK75: 0 | BL75: 0 | BM75: 0 | BN75: 0 | BO75: 0 | BP75: 0 | BQ75: 0 | BR75: 0 | BS75: 0 | BT75: 0 | BU75: 0 | BV75: 0 | BW75: 0 | BX75: 0 | BY75: 0 | BZ75: 0 | CA75: 0 | CB75: 0 | CC75: 0 | CD75: 0 | CE75: 0 | CF75: 0 | CG75: 0 | CH75: 0 | CI75: 0 | CJ75: 0 | CK75: 0 | CL75: 0 | CM75: 0 | CN75: 0 | CO75: 0 | CP75: 0 | CQ75: 0 | CR75: 0 | CS75: 0 | CT75: 0 | CU75: 0 | CV75: 0 | CW75: 0 | CX75: 0 | CY75: 0 | CZ75: 0 | DA75: 0 | DB75: 0 | DC75: 0 | DD75: 0 | DE75: 0 | DF75: 0 | DG75: 0 | DH75: 0 | DI75: =IF('Asset data'!$F76=0,0,AY75/'Asset data'!$F76) -> 0 | DJ75: =IF('Asset data'!$F76=0,0,AZ75/'Asset data'!$F76) -> 0 | DK75: =IF('Asset data'!$F76=0,0,BA75/'Asset data'!$F76) -> 0 | DL75: =IF('Asset data'!$F76=0,0,BB75/'Asset data'!$F76) -> 0 | DM75: =IF('Asset data'!$F76=0,0,BC75/'Asset data'!$F76) -> 0 | DN75: =IF('Asset data'!$F76=0,0,BD75/'Asset data'!$F76) -> 0 | DO75: =IF('Asset data'!$F76=0,0,BE75/'Asset data'!$F76) -> 0 | DP75: =IF('Asset data'!$F76=0,0,BF75/'Asset data'!$F76) -> 0 | DQ75: =IF('Asset data'!$F76=0,0,BG75/'Asset data'!$F76) -> 0 | DR75: =IF('Asset data'!$F76=0,0,BH75/'Asset data'!$F76) -> 0 | DS75: =IF('Asset data'!$F76=0,0,BI75/'Asset data'!$F76) -> 0 | DT75: =IF('Asset data'!$F76=0,0,BJ75/'Asset data'!$F76) -> 0 | DU75: =IF('Asset data'!$F76=0,0,BK75/'Asset data'!$F76) -> 0 | DV75: =IF('Asset data'!$F76=0,0,BL75/'Asset data'!$F76) -> 0 | DW75: =IF('Asset data'!$F76=0,0,BM75/'Asset data'!$F76) -> 0 | DX75: =IF('Asset data'!$F76=0,0,BN75/'Asset data'!$F76) -> 0 | DY75: =IF('Asset data'!$F76=0,0,BO75/'Asset data'!$F76) -> 0 | DZ75: =IF('Asset data'!$F76=0,0,BP75/'Asset data'!$F76) -> 0 | EA75: =IF('Asset data'!$F76=0,0,BQ75/'Asset data'!$F76) -> 0 | EB75: =IF('Asset data'!$F76=0,0,BR75/'Asset data'!$F76) -> 0
A76: ='Asset data'!A77 -> 0 | B76: ='Asset data'!B77 -> 0 | C76: ='Asset data'!C77 -> 0 | D76: ='Asset data'!E77 -> 0 | E76: 0 | F76: ='Asset data'!G77 -> 0 | G76: 0 | H76: ='Asset data'!H77 -> 0 | I76: S | J76: =IF(A76=0,0,IF('Asset data'!$D$1=1,1,IF('Asset data'!$D$1=2,2,'Asset data'!I77))) -> 0 | K76: 0 | AY76: =repcalc('Age profile (Inst)'!CT84:GF84,J76,K76,H76,20,$L$20,$M$20) -> 0 | AZ76: 0 | BA76: 0 | BB76: 0 | BC76: 0 | BD76: 0 | BE76: 0 | BF76: 0 | BG76: 0 | BH76: 0 | BI76: 0 | BJ76: 0 | BK76: 0 | BL76: 0 | BM76: 0 | BN76: 0 | BO76: 0 | BP76: 0 | BQ76: 0 | BR76: 0 | BS76: 0 | BT76: 0 | BU76: 0 | BV76: 0 | BW76: 0 | BX76: 0 | BY76: 0 | BZ76: 0 | CA76: 0 | CB76: 0 | CC76: 0 | CD76: 0 | CE76: 0 | CF76: 0 | CG76: 0 | CH76: 0 | CI76: 0 | CJ76: 0 | CK76: 0 | CL76: 0 | CM76: 0 | CN76: 0 | CO76: 0 | CP76: 0 | CQ76: 0 | CR76: 0 | CS76: 0 | CT76: 0 | CU76: 0 | CV76: 0 | CW76: 0 | CX76: 0 | CY76: 0 | CZ76: 0 | DA76: 0 | DB76: 0 | DC76: 0 | DD76: 0 | DE76: 0 | DF76: 0 | DG76: 0 | DH76: 0 | DI76: =IF('Asset data'!$F77=0,0,AY76/'Asset data'!$F77) -> 0 | DJ76: =IF('Asset data'!$F77=0,0,AZ76/'Asset data'!$F77) -> 0 | DK76: =IF('Asset data'!$F77=0,0,BA76/'Asset data'!$F77) -> 0 | DL76: =IF('Asset data'!$F77=0,0,BB76/'Asset data'!$F77) -> 0 | DM76: =IF('Asset data'!$F77=0,0,BC76/'Asset data'!$F77) -> 0 | DN76: =IF('Asset data'!$F77=0,0,BD76/'Asset data'!$F77) -> 0 | DO76: =IF('Asset data'!$F77=0,0,BE76/'Asset data'!$F77) -> 0 | DP76: =IF('Asset data'!$F77=0,0,BF76/'Asset data'!$F77) -> 0 | DQ76: =IF('Asset data'!$F77=0,0,BG76/'Asset data'!$F77) -> 0 | DR76: =IF('Asset data'!$F77=0,0,BH76/'Asset data'!$F77) -> 0 | DS76: =IF('Asset data'!$F77=0,0,BI76/'Asset data'!$F77) -> 0 | DT76: =IF('Asset data'!$F77=0,0,BJ76/'Asset data'!$F77) -> 0 | DU76: =IF('Asset data'!$F77=0,0,BK76/'Asset data'!$F77) -> 0 | DV76: =IF('Asset data'!$F77=0,0,BL76/'Asset data'!$F77) -> 0 | DW76: =IF('Asset data'!$F77=0,0,BM76/'Asset data'!$F77) -> 0 | DX76: =IF('Asset data'!$F77=0,0,BN76/'Asset data'!$F77) -> 0 | DY76: =IF('Asset data'!$F77=0,0,BO76/'Asset data'!$F77) -> 0 | DZ76: =IF('Asset data'!$F77=0,0,BP76/'Asset data'!$F77) -> 0 | EA76: =IF('Asset data'!$F77=0,0,BQ76/'Asset data'!$F77) -> 0 | EB76: =IF('Asset data'!$F77=0,0,BR76/'Asset data'!$F77) -> 0
A77: ='Asset data'!A78 -> 0 | B77: ='Asset data'!B78 -> 0 | C77: ='Asset data'!C78 -> 0 | D77: ='Asset data'!E78 -> 0 | E77: 0 | F77: ='Asset data'!G78 -> 0 | G77: 0 | H77: ='Asset data'!H78 -> 0 | I77: S | J77: =IF(A77=0,0,IF('Asset data'!$D$1=1,1,IF('Asset data'!$D$1=2,2,'Asset data'!I78))) -> 0 | K77: 0 | AY77: =repcalc('Age profile (Inst)'!CT85:GF85,J77,K77,H77,20,$L$20,$M$20) -> 0 | AZ77: 0 | BA77: 0 | BB77: 0 | BC77: 0 | BD77: 0 | BE77: 0 | BF77: 0 | BG77: 0 | BH77: 0 | BI77: 0 | BJ77: 0 | BK77: 0 | BL77: 0 | BM77: 0 | BN77: 0 | BO77: 0 | BP77: 0 | BQ77: 0 | BR77: 0 | BS77: 0 | BT77: 0 | BU77: 0 | BV77: 0 | BW77: 0 | BX77: 0 | BY77: 0 | BZ77: 0 | CA77: 0 | CB77: 0 | CC77: 0 | CD77: 0 | CE77: 0 | CF77: 0 | CG77: 0 | CH77: 0 | CI77: 0 | CJ77: 0 | CK77: 0 | CL77: 0 | CM77: 0 | CN77: 0 | CO77: 0 | CP77: 0 | CQ77: 0 | CR77: 0 | CS77: 0 | CT77: 0 | CU77: 0 | CV77: 0 | CW77: 0 | CX77: 0 | CY77: 0 | CZ77: 0 | DA77: 0 | DB77: 0 | DC77: 0 | DD77: 0 | DE77: 0 | DF77: 0 | DG77: 0 | DH77: 0 | DI77: =IF('Asset data'!$F78=0,0,AY77/'Asset data'!$F78) -> 0 | DJ77: =IF('Asset data'!$F78=0,0,AZ77/'Asset data'!$F78) -> 0 | DK77: =IF('Asset data'!$F78=0,0,BA77/'Asset data'!$F78) -> 0 | DL77: =IF('Asset data'!$F78=0,0,BB77/'Asset data'!$F78) -> 0 | DM77: =IF('Asset data'!$F78=0,0,BC77/'Asset data'!$F78) -> 0 | DN77: =IF('Asset data'!$F78=0,0,BD77/'Asset data'!$F78) -> 0 | DO77: =IF('Asset data'!$F78=0,0,BE77/'Asset data'!$F78) -> 0 | DP77: =IF('Asset data'!$F78=0,0,BF77/'Asset data'!$F78) -> 0 | DQ77: =IF('Asset data'!$F78=0,0,BG77/'Asset data'!$F78) -> 0 | DR77: =IF('Asset data'!$F78=0,0,BH77/'Asset data'!$F78) -> 0 | DS77: =IF('Asset data'!$F78=0,0,BI77/'Asset data'!$F78) -> 0 | DT77: =IF('Asset data'!$F78=0,0,BJ77/'Asset data'!$F78) -> 0 | DU77: =IF('Asset data'!$F78=0,0,BK77/'Asset data'!$F78) -> 0 | DV77: =IF('Asset data'!$F78=0,0,BL77/'Asset data'!$F78) -> 0 | DW77: =IF('Asset data'!$F78=0,0,BM77/'Asset data'!$F78) -> 0 | DX77: =IF('Asset data'!$F78=0,0,BN77/'Asset data'!$F78) -> 0 | DY77: =IF('Asset data'!$F78=0,0,BO77/'Asset data'!$F78) -> 0 | DZ77: =IF('Asset data'!$F78=0,0,BP77/'Asset data'!$F78) -> 0 | EA77: =IF('Asset data'!$F78=0,0,BQ77/'Asset data'!$F78) -> 0 | EB77: =IF('Asset data'!$F78=0,0,BR77/'Asset data'!$F78) -> 0
A78: ='Asset data'!A79 -> 0 | B78: ='Asset data'!B79 -> 0 | C78: ='Asset data'!C79 -> 0 | D78: ='Asset data'!E79 -> 0 | E78: 0 | F78: ='Asset data'!G79 -> 0 | G78: 0 | H78: ='Asset data'!H79 -> 0 | I78: S | J78: =IF(A78=0,0,IF('Asset data'!$D$1=1,1,IF('Asset data'!$D$1=2,2,'Asset data'!I79))) -> 0 | K78: 0 | AY78: =repcalc('Age profile (Inst)'!CT86:GF86,J78,K78,H78,20,$L$20,$M$20) -> 0 | AZ78: 0 | BA78: 0 | BB78: 0 | BC78: 0 | BD78: 0 | BE78: 0 | BF78: 0 | BG78: 0 | BH78: 0 | BI78: 0 | BJ78: 0 | BK78: 0 | BL78: 0 | BM78: 0 | BN78: 0 | BO78: 0 | BP78: 0 | BQ78: 0 | BR78: 0 | BS78: 0 | BT78: 0 | BU78: 0 | BV78: 0 | BW78: 0 | BX78: 0 | BY78: 0 | BZ78: 0 | CA78: 0 | CB78: 0 | CC78: 0 | CD78: 0 | CE78: 0 | CF78: 0 | CG78: 0 | CH78: 0 | CI78: 0 | CJ78: 0 | CK78: 0 | CL78: 0 | CM78: 0 | CN78: 0 | CO78: 0 | CP78: 0 | CQ78: 0 | CR78: 0 | CS78: 0 | CT78: 0 | CU78: 0 | CV78: 0 | CW78: 0 | CX78: 0 | CY78: 0 | CZ78: 0 | DA78: 0 | DB78: 0 | DC78: 0 | DD78: 0 | DE78: 0 | DF78: 0 | DG78: 0 | DH78: 0 | DI78: =IF('Asset data'!$F79=0,0,AY78/'Asset data'!$F79) -> 0 | DJ78: =IF('Asset data'!$F79=0,0,AZ78/'Asset data'!$F79) -> 0 | DK78: =IF('Asset data'!$F79=0,0,BA78/'Asset data'!$F79) -> 0 | DL78: =IF('Asset data'!$F79=0,0,BB78/'Asset data'!$F79) -> 0 | DM78: =IF('Asset data'!$F79=0,0,BC78/'Asset data'!$F79) -> 0 | DN78: =IF('Asset data'!$F79=0,0,BD78/'Asset data'!$F79) -> 0 | DO78: =IF('Asset data'!$F79=0,0,BE78/'Asset data'!$F79) -> 0 | DP78: =IF('Asset data'!$F79=0,0,BF78/'Asset data'!$F79) -> 0 | DQ78: =IF('Asset data'!$F79=0,0,BG78/'Asset data'!$F79) -> 0 | DR78: =IF('Asset data'!$F79=0,0,BH78/'Asset data'!$F79) -> 0 | DS78: =IF('Asset data'!$F79=0,0,BI78/'Asset data'!$F79) -> 0 | DT78: =IF('Asset data'!$F79=0,0,BJ78/'Asset data'!$F79) -> 0 | DU78: =IF('Asset data'!$F79=0,0,BK78/'Asset data'!$F79) -> 0 | DV78: =IF('Asset data'!$F79=0,0,BL78/'Asset data'!$F79) -> 0 | DW78: =IF('Asset data'!$F79=0,0,BM78/'Asset data'!$F79) -> 0 | DX78: =IF('Asset data'!$F79=0,0,BN78/'Asset data'!$F79) -> 0 | DY78: =IF('Asset data'!$F79=0,0,BO78/'Asset data'!$F79) -> 0 | DZ78: =IF('Asset data'!$F79=0,0,BP78/'Asset data'!$F79) -> 0 | EA78: =IF('Asset data'!$F79=0,0,BQ78/'Asset data'!$F79) -> 0 | EB78: =IF('Asset data'!$F79=0,0,BR78/'Asset data'!$F79) -> 0
A79: ='Asset data'!A80 -> 0 | B79: ='Asset data'!B80 -> 0 | C79: ='Asset data'!C80 -> 0 | D79: ='Asset data'!E80 -> 0 | E79: =IF(A79>0,VLOOKUP(A79,IDtable,2),0) -> 0 | F79: ='Asset data'!G80 -> 0 | G79: =F79 -> 0 | H79: ='Asset data'!H80 -> 0 | I79: S | J79: =IF(A79=0,0,IF('Asset data'!$D$1=1,1,IF('Asset data'!$D$1=2,2,'Asset data'!I80))) -> 0 | K79: =IF(A79>0,IF(I79="S",F79,IF(I79="R",G79,9999)),0) -> 0 | AY79: =repcalc('Age profile (Inst)'!CT87:GF87,J79,K79,H79,20,$L$20,$M$20) -> 0 | AZ79: 0 | BA79: 0 | BB79: 0 | BC79: 0 | BD79: 0 | BE79: 0 | BF79: 0 | BG79: 0 | BH79: 0 | BI79: 0 | BJ79: 0 | BK79: 0 | BL79: 0 | BM79: 0 | BN79: 0 | BO79: 0 | BP79: 0 | BQ79: 0 | BR79: 0 | BS79: 0 | BT79: 0 | BU79: 0 | BV79: 0 | BW79: 0 | BX79: 0 | BY79: 0 | BZ79: 0 | CA79: 0 | CB79: 0 | CC79: 0 | CD79: 0 | CE79: 0 | CF79: 0 | CG79: 0 | CH79: 0 | CI79: 0 | CJ79: 0 | CK79: 0 | CL79: 0 | CM79: 0 | CN79: 0 | CO79: 0 | CP79: 0 | CQ79: 0 | CR79: 0 | CS79: 0 | CT79: 0 | CU79: 0 | CV79: 0 | CW79: 0 | CX79: 0 | CY79: 0 | CZ79: 0 | DA79: 0 | DB79: 0 | DC79: 0 | DD79: 0 | DE79: 0 | DF79: 0 | DG79: 0 | DH79: =CM79*$AX79 -> 0 | DI79: =IF('Asset data'!$F80=0,0,AY79/'Asset data'!$F80) -> 0 | DJ79: =IF('Asset data'!$F80=0,0,AZ79/'Asset data'!$F80) -> 0 | DK79: =IF('Asset data'!$F80=0,0,BA79/'Asset data'!$F80) -> 0 | DL79: =IF('Asset data'!$F80=0,0,BB79/'Asset data'!$F80) -> 0 | DM79: =IF('Asset data'!$F80=0,0,BC79/'Asset data'!$F80) -> 0 | DN79: =IF('Asset data'!$F80=0,0,BD79/'Asset data'!$F80) -> 0 | DO79: =IF('Asset data'!$F80=0,0,BE79/'Asset data'!$F80) -> 0 | DP79: =IF('Asset data'!$F80=0,0,BF79/'Asset data'!$F80) -> 0 | DQ79: =IF('Asset data'!$F80=0,0,BG79/'Asset data'!$F80) -> 0 | DR79: =IF('Asset data'!$F80=0,0,BH79/'Asset data'!$F80) -> 0 | DS79: =IF('Asset data'!$F80=0,0,BI79/'Asset data'!$F80) -> 0 | DT79: =IF('Asset data'!$F80=0,0,BJ79/'Asset data'!$F80) -> 0 | DU79: =IF('Asset data'!$F80=0,0,BK79/'Asset data'!$F80) -> 0 | DV79: =IF('Asset data'!$F80=0,0,BL79/'Asset data'!$F80) -> 0 | DW79: =IF('Asset data'!$F80=0,0,BM79/'Asset data'!$F80) -> 0 | DX79: =IF('Asset data'!$F80=0,0,BN79/'Asset data'!$F80) -> 0 | DY79: =IF('Asset data'!$F80=0,0,BO79/'Asset data'!$F80) -> 0 | DZ79: =IF('Asset data'!$F80=0,0,BP79/'Asset data'!$F80) -> 0 | EA79: =IF('Asset data'!$F80=0,0,BQ79/'Asset data'!$F80) -> 0 | EB79: =IF('Asset data'!$F80=0,0,BR79/'Asset data'!$F80) -> 0
A80: ='Asset data'!A81 -> 0 | B80: ='Asset data'!B81 -> 0 | C80: ='Asset data'!C81 -> 0 | D80: ='Asset data'!E81 -> 0 | E80: 0 | F80: ='Asset data'!G81 -> 0 | G80: 0 | H80: ='Asset data'!H81 -> 0 | I80: S | J80: =IF(A80=0,0,IF('Asset data'!$D$1=1,1,IF('Asset data'!$D$1=2,2,'Asset data'!I81))) -> 0 | K80: 0 | AY80: =repcalc('Age profile (Inst)'!CT88:GF88,J80,K80,H80,20,$L$20,$M$20) -> 0 | AZ80: 0 | BA80: 0 | BB80: 0 | BC80: 0 | BD80: 0 | BE80: 0 | BF80: 0 | BG80: 0 | BH80: 0 | BI80: 0 | BJ80: 0 | BK80: 0 | BL80: 0 | BM80: 0 | BN80: 0 | BO80: 0 | BP80: 0 | BQ80: 0 | BR80: 0 | BS80: 0 | BT80: 0 | BU80: 0 | BV80: 0 | BW80: 0 | BX80: 0 | BY80: 0 | BZ80: 0 | CA80: 0 | CB80: 0 | CC80: 0 | CD80: 0 | CE80: 0 | CF80: 0 | CG80: 0 | CH80: 0 | CI80: 0 | CJ80: 0 | CK80: 0 | CL80: 0 | CM80: 0 | CN80: =BS80*$AX80 -> 0 | CO80: =BT80*$AX80 -> 0 | CP80: =BU80*$AX80 -> 0 | CQ80: =BV80*$AX80 -> 0 | CR80: =BW80*$AX80 -> 0 | CS80: =BX80*$AX80 -> 0 | CT80: =BY80*$AX80 -> 0 | CU80: =BZ80*$AX80 -> 0 | CV80: =CA80*$AX80 -> 0 | CW80: =CB80*$AX80 -> 0 | CX80: =CC80*$AX80 -> 0 | CY80: =CD80*$AX80 -> 0 | CZ80: =CE80*$AX80 -> 0 | DA80: =CF80*$AX80 -> 0 | DB80: =CG80*$AX80 -> 0 | DC80: =CH80*$AX80 -> 0 | DD80: =CI80*$AX80 -> 0 | DE80: =CJ80*$AX80 -> 0 | DF80: =CK80*$AX80 -> 0 | DG80: =CL80*$AX80 -> 0 | DH80: 0 | DI80: =IF('Asset data'!$F81=0,0,AY80/'Asset data'!$F81) -> 0 | DJ80: =IF('Asset data'!$F81=0,0,AZ80/'Asset data'!$F81) -> 0 | DK80: =IF('Asset data'!$F81=0,0,BA80/'Asset data'!$F81) -> 0 | DL80: =IF('Asset data'!$F81=0,0,BB80/'Asset data'!$F81) -> 0 | DM80: =IF('Asset data'!$F81=0,0,BC80/'Asset data'!$F81) -> 0 | DN80: =IF('Asset data'!$F81=0,0,BD80/'Asset data'!$F81) -> 0 | DO80: =IF('Asset data'!$F81=0,0,BE80/'Asset data'!$F81) -> 0 | DP80: =IF('Asset data'!$F81=0,0,BF80/'Asset data'!$F81) -> 0 | DQ80: =IF('Asset data'!$F81=0,0,BG80/'Asset data'!$F81) -> 0 | DR80: =IF('Asset data'!$F81=0,0,BH80/'Asset data'!$F81) -> 0 | DS80: =IF('Asset data'!$F81=0,0,BI80/'Asset data'!$F81) -> 0 | DT80: =IF('Asset data'!$F81=0,0,BJ80/'Asset data'!$F81) -> 0 | DU80: =IF('Asset data'!$F81=0,0,BK80/'Asset data'!$F81) -> 0 | DV80: =IF('Asset data'!$F81=0,0,BL80/'Asset data'!$F81) -> 0 | DW80: =IF('Asset data'!$F81=0,0,BM80/'Asset data'!$F81) -> 0 | DX80: =IF('Asset data'!$F81=0,0,BN80/'Asset data'!$F81) -> 0 | DY80: =IF('Asset data'!$F81=0,0,BO80/'Asset data'!$F81) -> 0 | DZ80: =IF('Asset data'!$F81=0,0,BP80/'Asset data'!$F81) -> 0 | EA80: =IF('Asset data'!$F81=0,0,BQ80/'Asset data'!$F81) -> 0 | EB80: =IF('Asset data'!$F81=0,0,BR80/'Asset data'!$F81) -> 0
A81: ='Asset data'!A82 -> 0 | B81: ='Asset data'!B82 -> 0 | C81: ='Asset data'!C82 -> 0 | D81: ='Asset data'!E82 -> 0 | E81: 0 | F81: ='Asset data'!G82 -> 0 | G81: 0 | H81: ='Asset data'!H82 -> 0 | I81: S | J81: =IF(A81=0,0,IF('Asset data'!$D$1=1,1,IF('Asset data'!$D$1=2,2,'Asset data'!I82))) -> 0 | K81: 0 | AY81: =repcalc('Age profile (Inst)'!CT89:GF89,J81,K81,H81,20,$L$20,$M$20) -> 0 | AZ81: 0 | BA81: 0 | BB81: 0 | BC81: 0 | BD81: 0 | BE81: 0 | BF81: 0 | BG81: 0 | BH81: 0 | BI81: 0 | BJ81: 0 | BK81: 0 | BL81: 0 | BM81: 0 | BN81: 0 | BO81: 0 | BP81: 0 | BQ81: 0 | BR81: 0 | BS81: 0 | BT81: 0 | BU81: 0 | BV81: 0 | BW81: 0 | BX81: 0 | BY81: 0 | BZ81: 0 | CA81: 0 | CB81: 0 | CC81: 0 | CD81: 0 | CE81: 0 | CF81: 0 | CG81: 0 | CH81: 0 | CI81: 0 | CJ81: 0 | CK81: 0 | CL81: 0 | CM81: 0 | CN81: 0 | CO81: 0 | CP81: 0 | CQ81: 0 | CR81: 0 | CS81: 0 | CT81: 0 | CU81: 0 | CV81: 0 | CW81: 0 | CX81: 0 | CY81: 0 | CZ81: 0 | DA81: 0 | DB81: 0 | DC81: 0 | DD81: 0 | DE81: 0 | DF81: 0 | DG81: 0 | DH81: 0 | DI81: =IF('Asset data'!$F82=0,0,AY81/'Asset data'!$F82) -> 0 | DJ81: =IF('Asset data'!$F82=0,0,AZ81/'Asset data'!$F82) -> 0 | DK81: =IF('Asset data'!$F82=0,0,BA81/'Asset data'!$F82) -> 0 | DL81: =IF('Asset data'!$F82=0,0,BB81/'Asset data'!$F82) -> 0 | DM81: =IF('Asset data'!$F82=0,0,BC81/'Asset data'!$F82) -> 0 | DN81: =IF('Asset data'!$F82=0,0,BD81/'Asset data'!$F82) -> 0 | DO81: =IF('Asset data'!$F82=0,0,BE81/'Asset data'!$F82) -> 0 | DP81: =IF('Asset data'!$F82=0,0,BF81/'Asset data'!$F82) -> 0 | DQ81: =IF('Asset data'!$F82=0,0,BG81/'Asset data'!$F82) -> 0 | DR81: =IF('Asset data'!$F82=0,0,BH81/'Asset data'!$F82) -> 0 | DS81: =IF('Asset data'!$F82=0,0,BI81/'Asset data'!$F82) -> 0 | DT81: =IF('Asset data'!$F82=0,0,BJ81/'Asset data'!$F82) -> 0 | DU81: =IF('Asset data'!$F82=0,0,BK81/'Asset data'!$F82) -> 0 | DV81: =IF('Asset data'!$F82=0,0,BL81/'Asset data'!$F82) -> 0 | DW81: =IF('Asset data'!$F82=0,0,BM81/'Asset data'!$F82) -> 0 | DX81: =IF('Asset data'!$F82=0,0,BN81/'Asset data'!$F82) -> 0 | DY81: =IF('Asset data'!$F82=0,0,BO81/'Asset data'!$F82) -> 0 | DZ81: =IF('Asset data'!$F82=0,0,BP81/'Asset data'!$F82) -> 0 | EA81: =IF('Asset data'!$F82=0,0,BQ81/'Asset data'!$F82) -> 0 | EB81: =IF('Asset data'!$F82=0,0,BR81/'Asset data'!$F82) -> 0
A82: ='Asset data'!A83 -> 0 | B82: ='Asset data'!B83 -> 0 | C82: ='Asset data'!C83 -> 0 | D82: ='Asset data'!E83 -> 0 | E82: 0 | F82: ='Asset data'!G83 -> 0 | G82: 0 | H82: ='Asset data'!H83 -> 0 | I82: S | J82: =IF(A82=0,0,IF('Asset data'!$D$1=1,1,IF('Asset data'!$D$1=2,2,'Asset data'!I83))) -> 0 | K82: 0 | AY82: =repcalc('Age profile (Inst)'!CT90:GF90,J82,K82,H82,20,$L$20,$M$20) -> 0 | AZ82: 0 | BA82: 0 | BB82: 0 | BC82: 0 | BD82: 0 | BE82: 0 | BF82: 0 | BG82: 0 | BH82: 0 | BI82: 0 | BJ82: 0 | BK82: 0 | BL82: 0 | BM82: 0 | BN82: 0 | BO82: 0 | BP82: 0 | BQ82: 0 | BR82: 0 | BS82: 0 | BT82: 0 | BU82: 0 | BV82: 0 | BW82: 0 | BX82: 0 | BY82: 0 | BZ82: 0 | CA82: 0 | CB82: 0 | CC82: 0 | CD82: 0 | CE82: 0 | CF82: 0 | CG82: 0 | CH82: 0 | CI82: 0 | CJ82: 0 | CK82: 0 | CL82: 0 | CM82: 0 | CN82: 0 | CO82: 0 | CP82: 0 | CQ82: 0 | CR82: 0 | CS82: 0 | CT82: 0 | CU82: 0 | CV82: 0 | CW82: 0 | CX82: 0 | CY82: 0 | CZ82: 0 | DA82: 0 | DB82: 0 | DC82: 0 | DD82: 0 | DE82: 0 | DF82: 0 | DG82: 0 | DH82: 0 | DI82: =IF('Asset data'!$F83=0,0,AY82/'Asset data'!$F83) -> 0 | DJ82: =IF('Asset data'!$F83=0,0,AZ82/'Asset data'!$F83) -> 0 | DK82: =IF('Asset data'!$F83=0,0,BA82/'Asset data'!$F83) -> 0 | DL82: =IF('Asset data'!$F83=0,0,BB82/'Asset data'!$F83) -> 0 | DM82: =IF('Asset data'!$F83=0,0,BC82/'Asset data'!$F83) -> 0 | DN82: =IF('Asset data'!$F83=0,0,BD82/'Asset data'!$F83) -> 0 | DO82: =IF('Asset data'!$F83=0,0,BE82/'Asset data'!$F83) -> 0 | DP82: =IF('Asset data'!$F83=0,0,BF82/'Asset data'!$F83) -> 0 | DQ82: =IF('Asset data'!$F83=0,0,BG82/'Asset data'!$F83) -> 0 | DR82: =IF('Asset data'!$F83=0,0,BH82/'Asset data'!$F83) -> 0 | DS82: =IF('Asset data'!$F83=0,0,BI82/'Asset data'!$F83) -> 0 | DT82: =IF('Asset data'!$F83=0,0,BJ82/'Asset data'!$F83) -> 0 | DU82: =IF('Asset data'!$F83=0,0,BK82/'Asset data'!$F83) -> 0 | DV82: =IF('Asset data'!$F83=0,0,BL82/'Asset data'!$F83) -> 0 | DW82: =IF('Asset data'!$F83=0,0,BM82/'Asset data'!$F83) -> 0 | DX82: =IF('Asset data'!$F83=0,0,BN82/'Asset data'!$F83) -> 0 | DY82: =IF('Asset data'!$F83=0,0,BO82/'Asset data'!$F83) -> 0 | DZ82: =IF('Asset data'!$F83=0,0,BP82/'Asset data'!$F83) -> 0 | EA82: =IF('Asset data'!$F83=0,0,BQ82/'Asset data'!$F83) -> 0 | EB82: =IF('Asset data'!$F83=0,0,BR82/'Asset data'!$F83) -> 0
A83: ='Asset data'!A84 -> 0 | B83: ='Asset data'!B84 -> 0 | C83: ='Asset data'!C84 -> 0 | D83: ='Asset data'!E84 -> 0 | E83: 0 | F83: ='Asset data'!G84 -> 0 | G83: 0 | H83: ='Asset data'!H84 -> 0 | I83: S | J83: =IF(A83=0,0,IF('Asset data'!$D$1=1,1,IF('Asset data'!$D$1=2,2,'Asset data'!I84))) -> 0 | K83: 0 | AY83: =repcalc('Age profile (Inst)'!CT91:GF91,J83,K83,H83,20,$L$20,$M$20) -> 0 | AZ83: 0 | BA83: 0 | BB83: 0 | BC83: 0 | BD83: 0 | BE83: 0 | BF83: 0 | BG83: 0 | BH83: 0 | BI83: 0 | BJ83: 0 | BK83: 0 | BL83: 0 | BM83: 0 | BN83: 0 | BO83: 0 | BP83: 0 | BQ83: 0 | BR83: 0 | BS83: 0 | BT83: 0 | BU83: 0 | BV83: 0 | BW83: 0 | BX83: 0 | BY83: 0 | BZ83: 0 | CA83: 0 | CB83: 0 | CC83: 0 | CD83: 0 | CE83: 0 | CF83: 0 | CG83: 0 | CH83: 0 | CI83: 0 | CJ83: 0 | CK83: 0 | CL83: 0 | CM83: 0 | CN83: 0 | CO83: 0 | CP83: 0 | CQ83: 0 | CR83: 0 | CS83: 0 | CT83: 0 | CU83: 0 | CV83: 0 | CW83: 0 | CX83: 0 | CY83: 0 | CZ83: 0 | DA83: 0 | DB83: 0 | DC83: 0 | DD83: 0 | DE83: 0 | DF83: 0 | DG83: 0 | DH83: 0 | DI83: =IF('Asset data'!$F84=0,0,AY83/'Asset data'!$F84) -> 0 | DJ83: =IF('Asset data'!$F84=0,0,AZ83/'Asset data'!$F84) -> 0 | DK83: =IF('Asset data'!$F84=0,0,BA83/'Asset data'!$F84) -> 0 | DL83: =IF('Asset data'!$F84=0,0,BB83/'Asset data'!$F84) -> 0 | DM83: =IF('Asset data'!$F84=0,0,BC83/'Asset data'!$F84) -> 0 | DN83: =IF('Asset data'!$F84=0,0,BD83/'Asset data'!$F84) -> 0 | DO83: =IF('Asset data'!$F84=0,0,BE83/'Asset data'!$F84) -> 0 | DP83: =IF('Asset data'!$F84=0,0,BF83/'Asset data'!$F84) -> 0 | DQ83: =IF('Asset data'!$F84=0,0,BG83/'Asset data'!$F84) -> 0 | DR83: =IF('Asset data'!$F84=0,0,BH83/'Asset data'!$F84) -> 0 | DS83: =IF('Asset data'!$F84=0,0,BI83/'Asset data'!$F84) -> 0 | DT83: =IF('Asset data'!$F84=0,0,BJ83/'Asset data'!$F84) -> 0 | DU83: =IF('Asset data'!$F84=0,0,BK83/'Asset data'!$F84) -> 0 | DV83: =IF('Asset data'!$F84=0,0,BL83/'Asset data'!$F84) -> 0 | DW83: =IF('Asset data'!$F84=0,0,BM83/'Asset data'!$F84) -> 0 | DX83: =IF('Asset data'!$F84=0,0,BN83/'Asset data'!$F84) -> 0 | DY83: =IF('Asset data'!$F84=0,0,BO83/'Asset data'!$F84) -> 0 | DZ83: =IF('Asset data'!$F84=0,0,BP83/'Asset data'!$F84) -> 0 | EA83: =IF('Asset data'!$F84=0,0,BQ83/'Asset data'!$F84) -> 0 | EB83: =IF('Asset data'!$F84=0,0,BR83/'Asset data'!$F84) -> 0
A84: ='Asset data'!A85 -> 0 | B84: ='Asset data'!B85 -> 0 | C84: ='Asset data'!C85 -> 0 | D84: ='Asset data'!E85 -> 0 | E84: 0 | F84: ='Asset data'!G85 -> 0 | G84: 0 | H84: ='Asset data'!H85 -> 0 | I84: S | J84: =IF(A84=0,0,IF('Asset data'!$D$1=1,1,IF('Asset data'!$D$1=2,2,'Asset data'!I85))) -> 0 | K84: 0 | AY84: =repcalc('Age profile (Inst)'!CT92:GF92,J84,K84,H84,20,$L$20,$M$20) -> 0 | AZ84: 0 | BA84: 0 | BB84: 0 | BC84: 0 | BD84: 0 | BE84: 0 | BF84: 0 | BG84: 0 | BH84: 0 | BI84: 0 | BJ84: 0 | BK84: 0 | BL84: 0 | BM84: 0 | BN84: 0 | BO84: 0 | BP84: 0 | BQ84: 0 | BR84: 0 | BS84: 0 | BT84: 0 | BU84: 0 | BV84: 0 | BW84: 0 | BX84: 0 | BY84: 0 | BZ84: 0 | CA84: 0 | CB84: 0 | CC84: 0 | CD84: 0 | CE84: 0 | CF84: 0 | CG84: 0 | CH84: 0 | CI84: 0 | CJ84: 0 | CK84: 0 | CL84: 0 | CM84: 0 | CN84: 0 | CO84: 0 | CP84: 0 | CQ84: 0 | CR84: 0 | CS84: 0 | CT84: 0 | CU84: 0 | CV84: 0 | CW84: 0 | CX84: 0 | CY84: 0 | CZ84: 0 | DA84: 0 | DB84: 0 | DC84: 0 | DD84: 0 | DE84: 0 | DF84: 0 | DG84: 0 | DH84: 0 | DI84: =IF('Asset data'!$F85=0,0,AY84/'Asset data'!$F85) -> 0 | DJ84: =IF('Asset data'!$F85=0,0,AZ84/'Asset data'!$F85) -> 0 | DK84: =IF('Asset data'!$F85=0,0,BA84/'Asset data'!$F85) -> 0 | DL84: =IF('Asset data'!$F85=0,0,BB84/'Asset data'!$F85) -> 0 | DM84: =IF('Asset data'!$F85=0,0,BC84/'Asset data'!$F85) -> 0 | DN84: =IF('Asset data'!$F85=0,0,BD84/'Asset data'!$F85) -> 0 | DO84: =IF('Asset data'!$F85=0,0,BE84/'Asset data'!$F85) -> 0 | DP84: =IF('Asset data'!$F85=0,0,BF84/'Asset data'!$F85) -> 0 | DQ84: =IF('Asset data'!$F85=0,0,BG84/'Asset data'!$F85) -> 0 | DR84: =IF('Asset data'!$F85=0,0,BH84/'Asset data'!$F85) -> 0 | DS84: =IF('Asset data'!$F85=0,0,BI84/'Asset data'!$F85) -> 0 | DT84: =IF('Asset data'!$F85=0,0,BJ84/'Asset data'!$F85) -> 0 | DU84: =IF('Asset data'!$F85=0,0,BK84/'Asset data'!$F85) -> 0 | DV84: =IF('Asset data'!$F85=0,0,BL84/'Asset data'!$F85) -> 0 | DW84: =IF('Asset data'!$F85=0,0,BM84/'Asset data'!$F85) -> 0 | DX84: =IF('Asset data'!$F85=0,0,BN84/'Asset data'!$F85) -> 0 | DY84: =IF('Asset data'!$F85=0,0,BO84/'Asset data'!$F85) -> 0 | DZ84: =IF('Asset data'!$F85=0,0,BP84/'Asset data'!$F85) -> 0 | EA84: =IF('Asset data'!$F85=0,0,BQ84/'Asset data'!$F85) -> 0 | EB84: =IF('Asset data'!$F85=0,0,BR84/'Asset data'!$F85) -> 0
A85: ='Asset data'!A86 -> 0 | B85: ='Asset data'!B86 -> 0 | C85: ='Asset data'!C86 -> 0 | D85: ='Asset data'!E86 -> 0 | E85: 0 | F85: ='Asset data'!G86 -> 0 | G85: 0 | H85: ='Asset data'!H86 -> 0 | I85: S | J85: =IF(A85=0,0,IF('Asset data'!$D$1=1,1,IF('Asset data'!$D$1=2,2,'Asset data'!I86))) -> 0 | K85: 0 | AY85: =repcalc('Age profile (Inst)'!CT93:GF93,J85,K85,H85,20,$L$20,$M$20) -> 0 | AZ85: 0 | BA85: 0 | BB85: 0 | BC85: 0 | BD85: 0 | BE85: 0 | BF85: 0 | BG85: 0 | BH85: 0 | BI85: 0 | BJ85: 0 | BK85: 0 | BL85: 0 | BM85: 0 | BN85: 0 | BO85: 0 | BP85: 0 | BQ85: 0 | BR85: 0 | BS85: 0 | BT85: 0 | BU85: 0 | BV85: 0 | BW85: 0 | BX85: 0 | BY85: 0 | BZ85: 0 | CA85: 0 | CB85: 0 | CC85: 0 | CD85: 0 | CE85: 0 | CF85: 0 | CG85: 0 | CH85: 0 | CI85: 0 | CJ85: 0 | CK85: 0 | CL85: 0 | CM85: 0 | CN85: 0 | CO85: 0 | CP85: 0 | CQ85: 0 | CR85: 0 | CS85: 0 | CT85: 0 | CU85: 0 | CV85: 0 | CW85: 0 | CX85: 0 | CY85: 0 | CZ85: 0 | DA85: 0 | DB85: 0 | DC85: 0 | DD85: 0 | DE85: 0 | DF85: 0 | DG85: 0 | DH85: 0 | DI85: =IF('Asset data'!$F86=0,0,AY85/'Asset data'!$F86) -> 0 | DJ85: =IF('Asset data'!$F86=0,0,AZ85/'Asset data'!$F86) -> 0 | DK85: =IF('Asset data'!$F86=0,0,BA85/'Asset data'!$F86) -> 0 | DL85: =IF('Asset data'!$F86=0,0,BB85/'Asset data'!$F86) -> 0 | DM85: =IF('Asset data'!$F86=0,0,BC85/'Asset data'!$F86) -> 0 | DN85: =IF('Asset data'!$F86=0,0,BD85/'Asset data'!$F86) -> 0 | DO85: =IF('Asset data'!$F86=0,0,BE85/'Asset data'!$F86) -> 0 | DP85: =IF('Asset data'!$F86=0,0,BF85/'Asset data'!$F86) -> 0 | DQ85: =IF('Asset data'!$F86=0,0,BG85/'Asset data'!$F86) -> 0 | DR85: =IF('Asset data'!$F86=0,0,BH85/'Asset data'!$F86) -> 0 | DS85: =IF('Asset data'!$F86=0,0,BI85/'Asset data'!$F86) -> 0 | DT85: =IF('Asset data'!$F86=0,0,BJ85/'Asset data'!$F86) -> 0 | DU85: =IF('Asset data'!$F86=0,0,BK85/'Asset data'!$F86) -> 0 | DV85: =IF('Asset data'!$F86=0,0,BL85/'Asset data'!$F86) -> 0 | DW85: =IF('Asset data'!$F86=0,0,BM85/'Asset data'!$F86) -> 0 | DX85: =IF('Asset data'!$F86=0,0,BN85/'Asset data'!$F86) -> 0 | DY85: =IF('Asset data'!$F86=0,0,BO85/'Asset data'!$F86) -> 0 | DZ85: =IF('Asset data'!$F86=0,0,BP85/'Asset data'!$F86) -> 0 | EA85: =IF('Asset data'!$F86=0,0,BQ85/'Asset data'!$F86) -> 0 | EB85: =IF('Asset data'!$F86=0,0,BR85/'Asset data'!$F86) -> 0
A86: ='Asset data'!A87 -> 0 | B86: ='Asset data'!B87 -> 0 | C86: ='Asset data'!C87 -> 0 | D86: ='Asset data'!E87 -> 0 | E86: 0 | F86: ='Asset data'!G87 -> 0 | G86: 0 | H86: ='Asset data'!H87 -> 0 | I86: S | J86: =IF(A86=0,0,IF('Asset data'!$D$1=1,1,IF('Asset data'!$D$1=2,2,'Asset data'!I87))) -> 0 | K86: 0 | AY86: =repcalc('Age profile (Inst)'!CT94:GF94,J86,K86,H86,20,$L$20,$M$20) -> 0 | AZ86: 0 | BA86: 0 | BB86: 0 | BC86: 0 | BD86: 0 | BE86: 0 | BF86: 0 | BG86: 0 | BH86: 0 | BI86: 0 | BJ86: 0 | BK86: 0 | BL86: 0 | BM86: 0 | BN86: 0 | BO86: 0 | BP86: 0 | BQ86: 0 | BR86: 0 | BS86: 0 | BT86: 0 | BU86: 0 | BV86: 0 | BW86: 0 | BX86: 0 | BY86: 0 | BZ86: 0 | CA86: 0 | CB86: 0 | CC86: 0 | CD86: 0 | CE86: 0 | CF86: 0 | CG86: 0 | CH86: 0 | CI86: 0 | CJ86: 0 | CK86: 0 | CL86: 0 | CM86: 0 | CN86: 0 | CO86: 0 | CP86: 0 | CQ86: 0 | CR86: 0 | CS86: 0 | CT86: 0 | CU86: 0 | CV86: 0 | CW86: 0 | CX86: 0 | CY86: 0 | CZ86: 0 | DA86: 0 | DB86: 0 | DC86: 0 | DD86: 0 | DE86: 0 | DF86: 0 | DG86: 0 | DH86: 0 | DI86: =IF('Asset data'!$F87=0,0,AY86/'Asset data'!$F87) -> 0 | DJ86: =IF('Asset data'!$F87=0,0,AZ86/'Asset data'!$F87) -> 0 | DK86: =IF('Asset data'!$F87=0,0,BA86/'Asset data'!$F87) -> 0 | DL86: =IF('Asset data'!$F87=0,0,BB86/'Asset data'!$F87) -> 0 | DM86: =IF('Asset data'!$F87=0,0,BC86/'Asset data'!$F87) -> 0 | DN86: =IF('Asset data'!$F87=0,0,BD86/'Asset data'!$F87) -> 0 | DO86: =IF('Asset data'!$F87=0,0,BE86/'Asset data'!$F87) -> 0 | DP86: =IF('Asset data'!$F87=0,0,BF86/'Asset data'!$F87) -> 0 | DQ86: =IF('Asset data'!$F87=0,0,BG86/'Asset data'!$F87) -> 0 | DR86: =IF('Asset data'!$F87=0,0,BH86/'Asset data'!$F87) -> 0 | DS86: =IF('Asset data'!$F87=0,0,BI86/'Asset data'!$F87) -> 0 | DT86: =IF('Asset data'!$F87=0,0,BJ86/'Asset data'!$F87) -> 0 | DU86: =IF('Asset data'!$F87=0,0,BK86/'Asset data'!$F87) -> 0 | DV86: =IF('Asset data'!$F87=0,0,BL86/'Asset data'!$F87) -> 0 | DW86: =IF('Asset data'!$F87=0,0,BM86/'Asset data'!$F87) -> 0 | DX86: =IF('Asset data'!$F87=0,0,BN86/'Asset data'!$F87) -> 0 | DY86: =IF('Asset data'!$F87=0,0,BO86/'Asset data'!$F87) -> 0 | DZ86: =IF('Asset data'!$F87=0,0,BP86/'Asset data'!$F87) -> 0 | EA86: =IF('Asset data'!$F87=0,0,BQ86/'Asset data'!$F87) -> 0 | EB86: =IF('Asset data'!$F87=0,0,BR86/'Asset data'!$F87) -> 0
